Workbook

Sheet Info
B2: AUTO ARREAR CALCULATION EXCEL SHEET
B3: bl 'khV esa 4 izdkj dh 'khVsa cukbZ xbZ gSaaA
B4: 1- 7th Pay Arrear
B5: 2 -Arrear Probation Fixation
B6: 3 - 6th Pay Arrear
B7: 4 - Arrear With Optional Increment
B8: mi;ksx djus dk rjhdk
B10: 7th Pay Arrear | C10: PARMANAND MEGHWAL
B11: bl 'khV esa vki fnukad 01-01-2017 ls vc rd dk lSysjh ,fj;j cuk ldrs gSa] 'khV dks eq[; #i ls jktLFkku ds f'k{kk foHkkx ds dkfeZdksa ds fy, gh cuk;k x;k gSA | C11: HEAD MASTER, GUPS KANWARPURA
B12: 'khV esa pkgh xbZ lHkh ,UVªh lgh&lgh HkjsaA
B13: Arrear Probation Fixation
B14: ;g 'khV dsoy ijhoh{kkdky i'pkr LFkkbZ gq, dkfeZdksa dk ,fj;j cukus ds fy, gSaA
B15: bl 'khV esa vki fnukad 01-01-2017 ls vc rd dk ijhoh{kkdky i'pkr dk lSysjh ,fj;j cuk ldrs gSaA
B16: 'khV esa pkgh xbZ lHkh ,UVªh lgh&lgh HkjsaA
B17: 6th Pay Arrear
B18: bl 'khV esa vki fnukad 01-01-2006 ls 31-12-2016 rd dk lSysjh ,fj;j cuk ldrs gSa] 'khV dks eq[; #i ls jktLFkku ds f'k{kk foHkkx ds dkfeZdksa ds fy, gh cuk;k x;k gSA
B19: 'khV esa pkgh xbZ lHkh ,UVªh lgh&lgh HkjsaA
B20: Arrear With Optional Increment
B21: bl 'khV esa okf"kZd osru o`f} tuojh ;k tqykbZ esa yxkus dk vkWI'ku fn;k x;k gSa] vr% vki tks Hkh lysDV djsaxsa mlh ekg esa okf"kZd osru o`f} yx tk;sxhA
B22: bl 'khV esa vki fnukad 01-01-2017 ls vc rd dk lSysjh ,fj;j cuk ldrs gSa] 'khV dks eq[; #i ls jktLFkku ds f'k{kk foHkkx ds dkfeZdksa ds fy, gh cuk;k x;k gSA
B23: 'khV esa pkgh xbZ lHkh ,UVªh lgh&lgh HkjsaA

Sheet 7th Pay Arrear
B1: WELCOME TO RAJTEACHERS.NET | L1: CREATED BY : PARMANAND MEGHWAL SENIOR TEACHER GUPS KANWARPURA, BARAN
B2: DATA ENTRY (नीचे दी गई सभी प्रविष्टियाँ पूरी करें)
B3: OFFICE NAME | I3: GOVT. SR. SECONDARY SCHOOL, GORDHANPURA, ATRU, BARAN | T3: S.I. (DEDUCTION) | X3: 0 | Y3: Mar-2025 | AD3: REGULAR
B4: EMPLOYEE NAME | I4: KAMLESH KUMARI | N4: DESIGNATION | P4: TEACHER | T4: EMPLOYEE STATUS | X4: SUB-ORDINATE
B5: ARREAR DATE FROM (DD-MM-YYYY) | I5: 01 | J5: OCT | K5: 2025 | L5: OLD BASIC PAY | O5: 34800 | Q5: HRA (BEFORE 01.07.2021) | V5: 8 | W5: TAX DED. % | Y5: 10% | AJ5: TO
B6: ARREAR DATE UP TO (MM-YYYY) | I6: MAR | K6: 2026 | L6: NEW BASIC PAY | O6: 35800 | Q6: HRA (AFTER 01.07.2021) | V6: 9 | W6: EMPLOYEE CAT. | Y6: GPF 2004
B7: CHANGE BASIC IN DUE (ACP,PROMOTION,ETC) | I7: YES | K7: MONTH | L7: Nov-2021 | M7: NEW BASIC | O7: 43800 | Q7: HRA (AFTER 01.07.2024) | V7: 10 | W7: RAJTEACHERS.NET
B8: CHANGE BASIC IN DRAWN (ACP,PROMOTION,ETC) | I8: YES | K8: MONTH | L8: Mar-2023 | M8: NEW BASIC | O8: 43800 | Q8: GPF DEDUCTION | U8: YES
H9: =DATEDIF(K9,O9,"m") -> 5 | I9: =H9+1 -> 6 | K9: =DATEVALUE(I5&J5&K5) -> 2025-10-01 | N9: =DATEVALUE(I6&K6) -> 2026-03-01 | O9: =EOMONTH(N9,0) -> 2026-03-31 | Y9: =IF($X$3="","",Y3) -> Mar-2025
C10: =EOMONTH(K9,0) -> 2025-10-31 | D10: =DAY(EOMONTH(C10,0)) -> 31 | E10: =F10+1 -> 1900-01-31 | F10: =DATEDIF(K9, C10, "D") -> 1900-01-30 | K10: =DATEVALUE(J5&K5) -> 2025-10-01 | L10: =IFERROR(DATE(YEAR(K10),MONTH(K10)+1,DAY(K10)),"") -> 2025-11-01 | N10: =IF($I$7="yes",$L$7,"") -> Nov-2021 | O10: =IF($I$8="yes",$L$8,"") -> Mar-2023
B12: =I3 -> GOVT. SR. SECONDARY SCHOOL, GORDHANPURA, ATRU, BARAN | AN12: =IF(X4="STATE",5,IF(X4="SUB-ORDINATE",3,IF(X4="MINISTRIAL",2,IF(X4="CLASS-IV",1,"")))) -> 3
L13: ARREAR FROM - | O13: =K9 -> 2025-10-01 | Q13: TO | R13: =O9 -> 2026-03-31 | AN13: =ROUND(S17/31,0) -> 54 | BF13: 2017 | BG13: JAN | BH13: 01
B14: Name Of Employee - | H14: =I4 -> KAMLESH KUMARI | N14: Designation - | Q14: =P4 -> TEACHER | U14: Employee ID | BB14: YES | BC14: NO | BF14: 2018 | BG14: FEB | BH14: 02
B15: SN | C15: MONTH | D15: MONTH | F15: DUE | K15: DRAWN | O15: DIFFERENT | T15: DEDUCTION | X15: TOTAL DED. | Y15: NET AMOUNT | AE15: DA-P | AF15: HRA-P | AG15: CORONA | AH15: CORONA | AI15: TOTAL | AJ15: DA | AK15: HRA | AL15: GPF | AM15: TAX | AN15: CORONA | AO15: CORONA2 | AP15: 2017-01-01 | AQ15: =TEXT(AP15,"mmm-yyyy") -> Jan-2017 | AR15: 4 | AV15: =Y5 -> 10% | AZ15: =IF($Y$6="REGULAR",$V$5,0) -> 0 | BA15: GPF-P | BB15: =AQ15 -> Jan-2017 | BC15: 0 | BF15: 2019 | BG15: MAR | BH15: 03
F16: BASIC | G16: DA | H16: HRA | I16: TOTAL | K16: BASIC | L16: DA | M16: HRA | N16: TOTAL | O16: BASIC | P16: DA | Q16: HRA | R16: SURRENDER | S16: TOTAL | T16: =Y6 -> GPF 2004 | U16: ITAX | V16: SI | W16: CORONA | AP16: 2017-02-01 | AQ16: =TEXT(AP16,"mmm-yyyy") -> Feb-2017 | AR16: 4 | AV16: =AV15 -> 10% | AZ16: 0 | BB16: =AQ16 -> Feb-2017 | BC16: 0 | BF16: 2020 | BG16: APR | BH16: 04
B17: 1 | C17: =K9 -> 2025-10-01 | D17: =TEXT(C17,"mmm-yyyy") -> Oct-2025 | E17: =TEXT(D17,"mmm") -> Oct | F17: =IF(D17="","",ROUND(O6/D10*E10,0)) -> 35800 | G17: =IF(D17="","",IF(D17="TOTAL",SUM($G$17:G17),(ROUND(F17*AJ17/100,0)))) -> 20764 | H17: =IF(D17="","",IF(D17="TOTAL",SUM($H$17:H17),(ROUND(F17*AK17/100,0)))) -> 3580 | I17: =IFERROR(SUM(F17:H17),"") -> 60144 | K17: =IF(D17="","",ROUND(O5/D10*E10,0)) -> 34800 | L17: =IF(D17="","",IF(D17="TOTAL",SUM($L$17:L17),(ROUND(K17*AJ17/100,0)))) -> 20184 | M17: =IF(D17="","",IF(D17="TOTAL",SUM($M$17:M17),(ROUND(K17*AK17/100,0)))) -> 3480 | N17: =IFERROR(SUM(K17:M17),"") -> 58464 | O17: =IFERROR(MIN(F17-K17),"") -> 1000 | P17: =IFERROR(MIN(G17-L17),"") -> 580 | Q17: 100 | S17: =IFERROR(SUM(O17:R17),"") -> 1680 | T17: =IF(D17="","",IF(D17="TOTAL",SUM($T$17:T17),IF($U$8="YES",BA17,BD17))) -> 30 | U17: =IF(D17="","",IF(D17="TOTAL",SUM($U$17:U17),(ROUND(S17*AM17,0)))) -> 168 | V17: =IF(D17=Y9,$X$3,"") ->  | W17: =IF(D17="","",IF(D17="TOTAL",SUM($W$17:W17),(SUM(AG18:AH18)))) -> 0 | X17: =IFERROR(SUM(T17:W17),"") -> 198 | Y17: =S17-X17 -> 1482 | AB17: =DATEVALUE(I5&J5&K5) -> 2025-10-01 | AC17: =AB17 -> 2025-10-01 | AD17: =IFERROR(ROUND(O17*AJ17/100,0),"") -> 580 | AE17: =IFERROR(VLOOKUP(D17,$AQ$15:$BE$211,8,0),"") -> 0 | AF17: =IFERROR(VLOOKUP(D17,$AQ$15:$BE$211,9,0),"") -> 0 | AG17: =IFERROR(ROUND(O17/31*AN17,0),"") ->  | AH17: =IFERROR(ROUND(S17/31*AO17,0),"") ->  | AJ17: =IFERROR(VLOOKUP(D17,$AQ$15:$AR$211,2,0),"") -> 58 | AK17: =IFERROR(VLOOKUP(D17,$AQ$15:$AAT$211,3,0),"") -> 10 | AL17: =IFERROR(VLOOKUP(D17,$AQ$15:$AAU$211,5,0),"") -> 3 | AM17: =IFERROR(VLOOKUP(D17,$AQ$15:$AAU$211,6,0),"") -> 0.1 | AN17: =IFERROR(VLOOKUP(D17,$AQ$15:$AAU$111,7,0),"") ->  | AO17: =IFERROR(VLOOKUP(D17,$AQ$15:$AAU$111,8,0),"") ->  | AP17: 2017-03-01 | AQ17: Mar-2017 | AR17: 4 | AV17: =AV16 -> 10% | AZ17: 0 | BA17: =IFERROR(ROUND(O17*AL17/100,0)+R17,0) -> 30 | BB17: Mar-2017 | BC17: 0 | BF17: 2021 | BG17: MAY | BH17: 05
B18: =IF(B17>=$I$9,"",(B17+1)) -> 2 | C18: =IFERROR(IF(AB18="","",IF(DATE(YEAR(AB18),MONTH(AB18),DAY(AB18))=DATE(YEAR($N$9),MONTH($N$9)+1,DAY($N$9)),"TOTAL",IF(AB18>$N$9,"",AB18))),"") -> 2025-11-01 | D18: =TEXT(C18,"mmm-yyyy") -> Nov-2025 | E18: =TEXT(D18,"mmm") -> Nov | F18: =IF(D18="","",IF(D18=$N$10,$O$7,IF(E18="JUL",MROUND(ROUND(1.03*O6,0),100),IF(E18="JUL",MROUND(ROUND(1.03*O6,0),100),IF(D18="TOTAL",SUM($F$17:F17),$O$6))))) -> 35800 | G18: =IF(D18="","",IF(D18="TOTAL",SUM($G$17:G17),(ROUND(F18*AJ18/100,0)))) -> 20764 | H18: =IF(D18="","",IF(D18="TOTAL",SUM($H$17:H17),(ROUND(F18*AK18/100,0)))) -> 3580 | I18: =SUM(F18:H18) -> 60144 | K18: =IF(D18="","",IF(D18=$O$10,$O$8,IF(E18="JUL",MROUND(ROUND(1.03*O5,0),100),IF(D18="TOTAL",SUM($K$17:K17),$O$5)))) -> 34800 | L18: =IF(D18="","",IF(D18="TOTAL",SUM($L$17:L17),(ROUND(K18*AJ18/100,0)))) -> 20184 | M18: =IF(D18="","",IF(D18="TOTAL",SUM($M$17:M17),(ROUND(K18*AK18/100,0)))) -> 3480 | N18: =IFERROR(SUM(K18:M18),"") -> 58464 | O18: 1000 | P18: 580 | Q18: 100 | S18: =IFERROR(SUM(O18:R18),"") -> 1680 | T18: =IF(D18="","",IF(D18="TOTAL",SUM($T$17:T17),IF($U$8="YES",BA18,BD18))) -> 0 | U18: =IF(D18="","",IF(D18="TOTAL",SUM($U$17:U17),(ROUND(S18*AM18,0)))) -> 168 | V18: =IF(D18="","",IF(D18=$Y$9,$X$3,IF(D18="TOTAL",SUM($V$17:V17),V17))) ->  | W18: =IF(D18="","",IF(D18="TOTAL",SUM($W$17:W17),(SUM(AG19:AH19)))) -> 0 | X18: =IFERROR(SUM(T18:W18),"") -> 168 | Y18: =S18-X18 -> 1512 | AB18: =IFERROR(DATE(YEAR(K10),MONTH(K10)+1,DAY(K10)),"") -> 2025-11-01 | AC18: =IFERROR(IF(AB18="","",IF(DATE(YEAR(AB18),MONTH(AB18),DAY(AB18))=DATE(YEAR($N$9),MONTH($N$9)+2,DAY($N$9)),"TOTAL",IF(AB18>$N$9,"",AB18))),"") -> 2025-11-01 | AE18: 0 | AF18: 0 | AJ18: 58 | AK18: 10 | AL18: =IFERROR(VLOOKUP(D18,$AQ$15:$AAU$211,5,0),"") -> 0 | AM18: 0.1 | AP18: 2017-04-01 | AQ18: Apr-2017 | AR18: 4 | AV18: 10% | AZ18: 0 | BA18: 0 | BB18: Apr-2017 | BC18: 0 | BF18: 2022 | BG18: JUN | BH18: 06
B19: =IF(B18>=$I$9,"",(B18+1)) -> 3 | C19: =IFERROR(IF(AB19="","",IF(DATE(YEAR(AB19),MONTH(AB19),DAY(AB19))=DATE(YEAR($N$9),MONTH($N$9)+1,DAY($N$9)),"TOTAL",IF(AB19>$N$9,"",AB19))),"") -> 2025-12-01 | D19: =TEXT(C19,"mmm-yyyy") -> Dec-2025 | E19: Dec | F19: =IF(D19="","",IF(D19=$N$10,$O$7,IF(E19="JUL",MROUND(ROUND(1.03*F18,0),100),IF(D19="TOTAL",SUM($F$17:F18),F18)))) -> 35800 | G19: =IF(D19="","",IF(D19="TOTAL",SUM($G$17:G18),(ROUND(F19*AJ19/100,0)))) -> 20764 | H19: =IF(D19="","",IF(D19="TOTAL",SUM($H$17:H18),(ROUND(F19*AK19/100,0)))) -> 3580 | I19: 60144 | K19: =IF(D19="","",IF(D19=$O$10,$O$8,IF(E19="JUL",MROUND(ROUND(1.03*K18,0),100),IF(D19="TOTAL",SUM($K$17:K18),K18)))) -> 34800 | L19: =IF(D19="","",IF(D19="TOTAL",SUM($L$17:L18),(ROUND(K19*AJ19/100,0)))) -> 20184 | M19: =IF(D19="","",IF(D19="TOTAL",SUM($M$17:M18),(ROUND(K19*AK19/100,0)))) -> 3480 | N19: 58464 | O19: 1000 | P19: 580 | Q19: 100 | S19: 1680 | T19: =IF(D19="","",IF(D19="TOTAL",SUM($T$17:T18),IF($U$8="YES",BA19,BD19))) -> 0 | U19: =IF(D19="","",IF(D19="TOTAL",SUM($U$17:U18),(ROUND(S19*AM19,0)))) -> 168 | V19: =IF(D19="","",IF(D19=$Y$9,$X$3,IF(D19="TOTAL",SUM($V$17:V18),V18))) ->  | W19: =IF(D19="","",IF(D19="TOTAL",SUM($W$17:W18),(SUM(AG20:AH20)))) -> 0 | X19: 168 | Y19: 1512 | AB19: =IFERROR(DATE(YEAR(C18),MONTH(C18)+1,DAY(C18)),"") -> 2025-12-01 | AC19: =IFERROR(IF(AB19="","",IF(DATE(YEAR(AB19),MONTH(AB19),DAY(AB19))=DATE(YEAR($N$9),MONTH($N$9)+1,DAY($N$9)),"TOTAL",IF(AB19>$N$9,"",AB19))),"") -> 2025-12-01 | AE19: 0 | AF19: 0 | AJ19: 58 | AK19: 10 | AL19: 0 | AM19: 0.1 | AP19: 2017-05-01 | AQ19: May-2017 | AR19: 4 | AV19: 10% | AZ19: 0 | BA19: 0 | BB19: May-2017 | BC19: 0 | BF19: 2023 | BG19: JUL | BH19: 07
B20: =IF(B19>=$I$9,"",(B19+1)) -> 4 | C20: 2026-01-01 | D20: Jan-2026 | E20: Jan | F20: =IF(D20="","",IF(D20=$N$10,$O$7,IF(E20="JUL",MROUND(ROUND(1.03*F19,0),100),IF(D20="TOTAL",SUM($F$17:F19),F19)))) -> 35800 | G20: =IF(D20="","",IF(D20="TOTAL",SUM($G$17:G19),(ROUND(F20*AJ20/100,0)))) -> 20764 | H20: =IF(D20="","",IF(D20="TOTAL",SUM($H$17:H19),(ROUND(F20*AK20/100,0)))) -> 3580 | I20: 60144 | K20: =IF(D20="","",IF(D20=$O$10,$O$8,IF(E20="JUL",MROUND(ROUND(1.03*K19,0),100),IF(D20="TOTAL",SUM($K$17:K19),K19)))) -> 34800 | L20: =IF(D20="","",IF(D20="TOTAL",SUM($L$17:L19),(ROUND(K20*AJ20/100,0)))) -> 20184 | M20: =IF(D20="","",IF(D20="TOTAL",SUM($M$17:M19),(ROUND(K20*AK20/100,0)))) -> 3480 | N20: 58464 | O20: 1000 | P20: 580 | Q20: 100 | S20: 1680 | T20: =IF(D20="","",IF(D20="TOTAL",SUM($T$17:T19),IF($U$8="YES",BA20,BD20))) -> 0 | U20: =IF(D20="","",IF(D20="TOTAL",SUM($U$17:U19),(ROUND(S20*AM20,0)))) -> 168 | V20: =IF(D20="","",IF(D20=$Y$9,$X$3,IF(D20="TOTAL",SUM($V$17:V19),V19))) ->  | W20: =IF(D20="","",IF(D20="TOTAL",SUM($W$17:W19),(SUM(AG21:AH21)))) -> 0 | X20: 168 | Y20: 1512 | AB20: 2026-01-01 | AC20: 2026-01-01 | AE20: 0 | AF20: 0 | AJ20: 58 | AK20: 10 | AL20: 0 | AM20: 0.1 | AP20: 2017-06-01 | AQ20: Jun-2017 | AR20: 4 | AV20: 10% | AZ20: 0 | BA20: 0 | BB20: Jun-2017 | BC20: 0 | BF20: 2024 | BG20: AUG | BH20: 08
B21: 5 | C21: 2026-02-01 | D21: Feb-2026 | E21: Feb | F21: =IF(D21="","",IF(D21=$N$10,$O$7,IF(E21="JUL",MROUND(ROUND(1.03*F20,0),100),IF(D21="TOTAL",SUM($F$17:F20),F20)))) -> 35800 | G21: =IF(D21="","",IF(D21="TOTAL",SUM($G$17:G20),(ROUND(F21*AJ21/100,0)))) -> 20764 | H21: =IF(D21="","",IF(D21="TOTAL",SUM($H$17:H20),(ROUND(F21*AK21/100,0)))) -> 3580 | I21: 60144 | K21: =IF(D21="","",IF(D21=$O$10,$O$8,IF(E21="JUL",MROUND(ROUND(1.03*K20,0),100),IF(D21="TOTAL",SUM($K$17:K20),K20)))) -> 34800 | L21: =IF(D21="","",IF(D21="TOTAL",SUM($L$17:L20),(ROUND(K21*AJ21/100,0)))) -> 20184 | M21: =IF(D21="","",IF(D21="TOTAL",SUM($M$17:M20),(ROUND(K21*AK21/100,0)))) -> 3480 | N21: 58464 | O21: 1000 | P21: 580 | Q21: 100 | S21: 1680 | T21: =IF(D21="","",IF(D21="TOTAL",SUM($T$17:T20),IF($U$8="YES",BA21,BD21))) -> 0 | U21: =IF(D21="","",IF(D21="TOTAL",SUM($U$17:U20),(ROUND(S21*AM21,0)))) -> 168 | V21: =IF(D21="","",IF(D21=$Y$9,$X$3,IF(D21="TOTAL",SUM($V$17:V20),V20))) ->  | W21: =IF(D21="","",IF(D21="TOTAL",SUM($W$17:W20),(SUM(AG22:AH22)))) -> 0 | X21: 168 | Y21: 1512 | AB21: 2026-02-01 | AC21: 2026-02-01 | AE21: 0 | AF21: 0 | AJ21: 58 | AK21: 10 | AL21: 0 | AM21: 0.1 | AP21: 2017-07-01 | AQ21: Jul-2017 | AR21: 5 | AV21: 10% | AZ21: 0 | BA21: 0 | BB21: Jul-2017 | BC21: 0 | BF21: 2025 | BG21: SEP | BH21: 09
B22: 6 | C22: 2026-03-01 | D22: Mar-2026 | E22: Mar | F22: =IF(D22="","",IF(D22=$N$10,$O$7,IF(E22="JUL",MROUND(ROUND(1.03*F21,0),100),IF(D22="TOTAL",SUM($F$17:F21),F21)))) -> 35800 | G22: =IF(D22="","",IF(D22="TOTAL",SUM($G$17:G21),(ROUND(F22*AJ22/100,0)))) -> 20764 | H22: =IF(D22="","",IF(D22="TOTAL",SUM($H$17:H21),(ROUND(F22*AK22/100,0)))) -> 3580 | I22: 60144 | K22: =IF(D22="","",IF(D22=$O$10,$O$8,IF(E22="JUL",MROUND(ROUND(1.03*K21,0),100),IF(D22="TOTAL",SUM($K$17:K21),K21)))) -> 34800 | L22: =IF(D22="","",IF(D22="TOTAL",SUM($L$17:L21),(ROUND(K22*AJ22/100,0)))) -> 20184 | M22: =IF(D22="","",IF(D22="TOTAL",SUM($M$17:M21),(ROUND(K22*AK22/100,0)))) -> 3480 | N22: 58464 | O22: 1000 | P22: 580 | Q22: 100 | S22: 1680 | T22: =IF(D22="","",IF(D22="TOTAL",SUM($T$17:T21),IF($U$8="YES",BA22,BD22))) -> 0 | U22: =IF(D22="","",IF(D22="TOTAL",SUM($U$17:U21),(ROUND(S22*AM22,0)))) -> 168 | V22: =IF(D22="","",IF(D22=$Y$9,$X$3,IF(D22="TOTAL",SUM($V$17:V21),V21))) ->  | W22: =IF(D22="","",IF(D22="TOTAL",SUM($W$17:W21),(SUM(AG23:AH23)))) -> 0 | X22: 168 | Y22: 1512 | AB22: 2026-03-01 | AC22: 2026-03-01 | AE22: 0 | AF22: 0 | AJ22: 58 | AK22: 10 | AL22: 0 | AM22: 0.1 | AP22: 2017-08-01 | AQ22: Aug-2017 | AR22: 5 | AV22: 10% | AZ22: 0 | BA22: 0 | BB22: Aug-2017 | BC22: 0 | BF22: 2026 | BG22: OCT | BH22: 10
C23: TOTAL | D23: TOTAL | E23: TOTAL | F23: =IF(D23="","",IF(D23=$N$10,$O$7,IF(E23="JUL",MROUND(ROUND(1.03*F22,0),100),IF(D23="TOTAL",SUM($F$17:F22),F22)))) -> 214800 | G23: =IF(D23="","",IF(D23="TOTAL",SUM($G$17:G22),(ROUND(F23*AJ23/100,0)))) -> 124584 | H23: =IF(D23="","",IF(D23="TOTAL",SUM($H$17:H22),(ROUND(F23*AK23/100,0)))) -> 21480 | I23: 360864 | K23: =IF(D23="","",IF(D23=$O$10,$O$8,IF(E23="JUL",MROUND(ROUND(1.03*K22,0),100),IF(D23="TOTAL",SUM($K$17:K22),K22)))) -> 208800 | L23: =IF(D23="","",IF(D23="TOTAL",SUM($L$17:L22),(ROUND(K23*AJ23/100,0)))) -> 121104 | M23: =IF(D23="","",IF(D23="TOTAL",SUM($M$17:M22),(ROUND(K23*AK23/100,0)))) -> 20880 | N23: 350784 | O23: 6000 | P23: 3480 | Q23: 600 | S23: 10080 | T23: =IF(D23="","",IF(D23="TOTAL",SUM($T$17:T22),IF($U$8="YES",BA23,BD23))) -> 30 | U23: =IF(D23="","",IF(D23="TOTAL",SUM($U$17:U22),(ROUND(S23*AM23,0)))) -> 1008 | V23: =IF(D23="","",IF(D23=$Y$9,$X$3,IF(D23="TOTAL",SUM($V$17:V22),V22))) -> 0 | W23: =IF(D23="","",IF(D23="TOTAL",SUM($W$17:W22),(SUM(AG24:AH24)))) -> 0 | X23: 1038 | Y23: 9042 | AB23: 2026-04-01 | AC23: TOTAL | AP23: 2017-09-01 | AQ23: Sep-2017 | AR23: 5 | AV23: 10% | AZ23: 0 | BA23: 0 | BB23: Sep-2017 | BC23: 0 | BG23: NOV | BH23: 11
F24: =IF(D24="","",IF(D24=$N$10,$O$7,IF(E24="JUL",MROUND(ROUND(1.03*F23,0),100),IF(D24="TOTAL",SUM($F$17:F23),F23)))) ->  | G24: =IF(D24="","",IF(D24="TOTAL",SUM($G$17:G23),(ROUND(F24*AJ24/100,0)))) ->  | H24: =IF(D24="","",IF(D24="TOTAL",SUM($H$17:H23),(ROUND(F24*AK24/100,0)))) ->  | I24: 0 | K24: =IF(D24="","",IF(D24=$O$10,$O$8,IF(E24="JUL",MROUND(ROUND(1.03*K23,0),100),IF(D24="TOTAL",SUM($K$17:K23),K23)))) ->  | L24: =IF(D24="","",IF(D24="TOTAL",SUM($L$17:L23),(ROUND(K24*AJ24/100,0)))) ->  | M24: =IF(D24="","",IF(D24="TOTAL",SUM($M$17:M23),(ROUND(K24*AK24/100,0)))) ->  | N24: 0 | S24: 0 | T24: =IF(D24="","",IF(D24="TOTAL",SUM($T$17:T23),IF($U$8="YES",BA24,BD24))) ->  | U24: =IF(D24="","",IF(D24="TOTAL",SUM($U$17:U23),(ROUND(S24*AM24,0)))) ->  | V24: =IF(D24="","",IF(D24=$Y$9,$X$3,IF(D24="TOTAL",SUM($V$17:V23),V23))) ->  | W24: =IF(D24="","",IF(D24="TOTAL",SUM($W$17:W23),(SUM(AG25:AH25)))) ->  | X24: 0 | Y24: 0 | AP24: 2017-10-01 | AQ24: Oct-2017 | AR24: 5 | AS24: 8 | AV24: 10% | AZ24: 0 | BA24: 0 | BB24: Oct-2017 | BC24: 0 | BG24: DEC | BH24: 12
F25: =IF(D25="","",IF(D25=$N$10,$O$7,IF(E25="JUL",MROUND(ROUND(1.03*F24,0),100),IF(D25="TOTAL",SUM($F$17:F24),F24)))) ->  | G25: =IF(D25="","",IF(D25="TOTAL",SUM($G$17:G24),(ROUND(F25*AJ25/100,0)))) ->  | H25: =IF(D25="","",IF(D25="TOTAL",SUM($H$17:H24),(ROUND(F25*AK25/100,0)))) ->  | I25: =SUM(F25:H25) -> 0 | K25: =IF(D25="","",IF(D25=$O$10,$O$8,IF(E25="JUL",MROUND(ROUND(1.03*K24,0),100),IF(D25="TOTAL",SUM($K$17:K24),K24)))) ->  | L25: =IF(D25="","",IF(D25="TOTAL",SUM($L$17:L24),(ROUND(K25*AJ25/100,0)))) ->  | M25: =IF(D25="","",IF(D25="TOTAL",SUM($M$17:M24),(ROUND(K25*AK25/100,0)))) ->  | N25: 0 | S25: 0 | T25: =IF(D25="","",IF(D25="TOTAL",SUM($T$17:T24),IF($U$8="YES",BA25,BD25))) ->  | U25: =IF(D25="","",IF(D25="TOTAL",SUM($U$17:U24),(ROUND(S25*AM25,0)))) ->  | V25: =IF(D25="","",IF(D25=$Y$9,$X$3,IF(D25="TOTAL",SUM($V$17:V24),V24))) ->  | W25: =IF(D25="","",IF(D25="TOTAL",SUM($W$17:W24),(SUM(AG26:AH26)))) ->  | X25: 0 | Y25: 0 | AP25: 2017-11-01 | AQ25: Nov-2017 | AR25: 5 | AS25: =AS24 -> 8 | AV25: 10% | AZ25: 0 | BA25: 0 | BB25: Nov-2017 | BC25: 0 | BH25: 13
F26: =IF(D26="","",IF(D26=$N$10,$O$7,IF(E26="JUL",MROUND(ROUND(1.03*F25,0),100),IF(D26="TOTAL",SUM($F$17:F25),F25)))) ->  | G26: =IF(D26="","",IF(D26="TOTAL",SUM($G$17:G25),(ROUND(F26*AJ26/100,0)))) ->  | H26: =IF(D26="","",IF(D26="TOTAL",SUM($H$17:H25),(ROUND(F26*AK26/100,0)))) ->  | I26: 0 | K26: =IF(D26="","",IF(D26=$O$10,$O$8,IF(E26="JUL",MROUND(ROUND(1.03*K25,0),100),IF(D26="TOTAL",SUM($K$17:K25),K25)))) ->  | L26: =IF(D26="","",IF(D26="TOTAL",SUM($L$17:L25),(ROUND(K26*AJ26/100,0)))) ->  | M26: =IF(D26="","",IF(D26="TOTAL",SUM($M$17:M25),(ROUND(K26*AK26/100,0)))) ->  | N26: 0 | S26: 0 | T26: =IF(D26="","",IF(D26="TOTAL",SUM($T$17:T25),IF($U$8="YES",BA26,BD26))) ->  | U26: =IF(D26="","",IF(D26="TOTAL",SUM($U$17:U25),(ROUND(S26*AM26,0)))) ->  | V26: =IF(D26="","",IF(D26=$Y$9,$X$3,IF(D26="TOTAL",SUM($V$17:V25),V25))) ->  | W26: =IF(D26="","",IF(D26="TOTAL",SUM($W$17:W25),(SUM(AG27:AH27)))) ->  | X26: 0 | Y26: 0 | AP26: 2017-12-01 | AQ26: Dec-2017 | AR26: 5 | AS26: 8 | AV26: 10% | AZ26: 0 | BA26: 0 | BB26: Dec-2017 | BC26: 0 | BH26: 14
F27: =IF(D27="","",IF(D27=$N$10,$O$7,IF(E27="JUL",MROUND(ROUND(1.03*F26,0),100),IF(D27="TOTAL",SUM($F$17:F26),F26)))) ->  | G27: =IF(D27="","",IF(D27="TOTAL",SUM($G$17:G26),(ROUND(F27*AJ27/100,0)))) ->  | H27: =IF(D27="","",IF(D27="TOTAL",SUM($H$17:H26),(ROUND(F27*AK27/100,0)))) ->  | I27: 0 | K27: =IF(D27="","",IF(D27=$O$10,$O$8,IF(E27="JUL",MROUND(ROUND(1.03*K26,0),100),IF(D27="TOTAL",SUM($K$17:K26),K26)))) ->  | L27: =IF(D27="","",IF(D27="TOTAL",SUM($L$17:L26),(ROUND(K27*AJ27/100,0)))) ->  | M27: =IF(D27="","",IF(D27="TOTAL",SUM($M$17:M26),(ROUND(K27*AK27/100,0)))) ->  | N27: 0 | S27: 0 | T27: =IF(D27="","",IF(D27="TOTAL",SUM($T$17:T26),IF($U$8="YES",BA27,BD27))) ->  | U27: =IF(D27="","",IF(D27="TOTAL",SUM($U$17:U26),(ROUND(S27*AM27,0)))) ->  | V27: =IF(D27="","",IF(D27=$Y$9,$X$3,IF(D27="TOTAL",SUM($V$17:V26),V26))) ->  | W27: =IF(D27="","",IF(D27="TOTAL",SUM($W$17:W26),(SUM(AG28:AH28)))) ->  | X27: 0 | Y27: 0 | AP27: 2018-01-01 | AQ27: Jan-2018 | AR27: 7 | AS27: 8 | AT27: 2 | AU27: =IF($Y$6="GPF",AT27,0) -> 0 | AV27: 10% | AZ27: 0 | BA27: 0 | BB27: Jan-2018 | BC27: 0 | BH27: 15
F28: =IF(D28="","",IF(D28=$N$10,$O$7,IF(E28="JUL",MROUND(ROUND(1.03*F27,0),100),IF(D28="TOTAL",SUM($F$17:F27),F27)))) ->  | G28: =IF(D28="","",IF(D28="TOTAL",SUM($G$17:G27),(ROUND(F28*AJ28/100,0)))) ->  | H28: =IF(D28="","",IF(D28="TOTAL",SUM($H$17:H27),(ROUND(F28*AK28/100,0)))) ->  | I28: 0 | K28: =IF(D28="","",IF(D28=$O$10,$O$8,IF(E28="JUL",MROUND(ROUND(1.03*K27,0),100),IF(D28="TOTAL",SUM($K$17:K27),K27)))) ->  | L28: =IF(D28="","",IF(D28="TOTAL",SUM($L$17:L27),(ROUND(K28*AJ28/100,0)))) ->  | M28: =IF(D28="","",IF(D28="TOTAL",SUM($M$17:M27),(ROUND(K28*AK28/100,0)))) ->  | N28: 0 | S28: 0 | T28: =IF(D28="","",IF(D28="TOTAL",SUM($T$17:T27),IF($U$8="YES",BA28,BD28))) ->  | U28: =IF(D28="","",IF(D28="TOTAL",SUM($U$17:U27),(ROUND(S28*AM28,0)))) ->  | V28: =IF(D28="","",IF(D28=$Y$9,$X$3,IF(D28="TOTAL",SUM($V$17:V27),V27))) ->  | W28: =IF(D28="","",IF(D28="TOTAL",SUM($W$17:W27),(SUM(AG29:AH29)))) ->  | X28: 0 | Y28: 0 | AP28: 2018-02-01 | AQ28: Feb-2018 | AR28: 7 | AS28: 8 | AT28: 2 | AU28: 0 | AV28: 10% | AZ28: 0 | BA28: 0 | BB28: Feb-2018 | BC28: 0 | BH28: 16
F29: =IF(D29="","",IF(D29=$N$10,$O$7,IF(E29="JUL",MROUND(ROUND(1.03*F28,0),100),IF(D29="TOTAL",SUM($F$17:F28),F28)))) ->  | G29: =IF(D29="","",IF(D29="TOTAL",SUM($G$17:G28),(ROUND(F29*AJ29/100,0)))) ->  | H29: =IF(D29="","",IF(D29="TOTAL",SUM($H$17:H28),(ROUND(F29*AK29/100,0)))) ->  | I29: 0 | K29: =IF(D29="","",IF(D29=$O$10,$O$8,IF(E29="JUL",MROUND(ROUND(1.03*K28,0),100),IF(D29="TOTAL",SUM($K$17:K28),K28)))) ->  | L29: =IF(D29="","",IF(D29="TOTAL",SUM($L$17:L28),(ROUND(K29*AJ29/100,0)))) ->  | M29: =IF(D29="","",IF(D29="TOTAL",SUM($M$17:M28),(ROUND(K29*AK29/100,0)))) ->  | N29: 0 | S29: 0 | T29: =IF(D29="","",IF(D29="TOTAL",SUM($T$17:T28),IF($U$8="YES",BA29,BD29))) ->  | U29: =IF(D29="","",IF(D29="TOTAL",SUM($U$17:U28),(ROUND(S29*AM29,0)))) ->  | V29: =IF(D29="","",IF(D29=$Y$9,$X$3,IF(D29="TOTAL",SUM($V$17:V28),V28))) ->  | W29: =IF(D29="","",IF(D29="TOTAL",SUM($W$17:W28),(SUM(AG30:AH30)))) ->  | X29: 0 | Y29: 0 | AP29: 2018-03-01 | AQ29: Mar-2018 | AR29: 7 | AS29: 8 | AU29: 0 | AV29: 10% | AZ29: 0 | BA29: 0 | BB29: Mar-2018 | BC29: 0 | BH29: 17
F30: =IF(D30="","",IF(D30=$N$10,$O$7,IF(E30="JUL",MROUND(ROUND(1.03*F29,0),100),IF(D30="TOTAL",SUM($F$17:F29),F29)))) ->  | G30: =IF(D30="","",IF(D30="TOTAL",SUM($G$17:G29),(ROUND(F30*AJ30/100,0)))) ->  | H30: =IF(D30="","",IF(D30="TOTAL",SUM($H$17:H29),(ROUND(F30*AK30/100,0)))) ->  | I30: 0 | K30: =IF(D30="","",IF(D30=$O$10,$O$8,IF(E30="JUL",MROUND(ROUND(1.03*K29,0),100),IF(D30="TOTAL",SUM($K$17:K29),K29)))) ->  | L30: =IF(D30="","",IF(D30="TOTAL",SUM($L$17:L29),(ROUND(K30*AJ30/100,0)))) ->  | M30: =IF(D30="","",IF(D30="TOTAL",SUM($M$17:M29),(ROUND(K30*AK30/100,0)))) ->  | N30: 0 | S30: 0 | T30: =IF(D30="","",IF(D30="TOTAL",SUM($T$17:T29),IF($U$8="YES",BA30,BD30))) ->  | U30: =IF(D30="","",IF(D30="TOTAL",SUM($U$17:U29),(ROUND(S30*AM30,0)))) ->  | V30: =IF(D30="","",IF(D30=$Y$9,$X$3,IF(D30="TOTAL",SUM($V$17:V29),V29))) ->  | W30: =IF(D30="","",IF(D30="TOTAL",SUM($W$17:W29),(SUM(AG31:AH31)))) ->  | X30: 0 | Y30: 0 | AP30: 2018-04-01 | AQ30: Apr-2018 | AR30: 7 | AS30: 8 | AU30: 0 | AV30: 10% | AZ30: 0 | BA30: 0 | BB30: Apr-2018 | BC30: 0 | BH30: 18
F31: =IF(D31="","",IF(D31=$N$10,$O$7,IF(E31="JUL",MROUND(ROUND(1.03*F30,0),100),IF(D31="TOTAL",SUM($F$17:F30),F30)))) ->  | G31: =IF(D31="","",IF(D31="TOTAL",SUM($G$17:G30),(ROUND(F31*AJ31/100,0)))) ->  | H31: =IF(D31="","",IF(D31="TOTAL",SUM($H$17:H30),(ROUND(F31*AK31/100,0)))) ->  | I31: 0 | K31: =IF(D31="","",IF(D31=$O$10,$O$8,IF(E31="JUL",MROUND(ROUND(1.03*K30,0),100),IF(D31="TOTAL",SUM($K$17:K30),K30)))) ->  | L31: =IF(D31="","",IF(D31="TOTAL",SUM($L$17:L30),(ROUND(K31*AJ31/100,0)))) ->  | M31: =IF(D31="","",IF(D31="TOTAL",SUM($M$17:M30),(ROUND(K31*AK31/100,0)))) ->  | N31: 0 | S31: 0 | T31: =IF(D31="","",IF(D31="TOTAL",SUM($T$17:T30),IF($U$8="YES",BA31,BD31))) ->  | U31: =IF(D31="","",IF(D31="TOTAL",SUM($U$17:U30),(ROUND(S31*AM31,0)))) ->  | V31: =IF(D31="","",IF(D31=$Y$9,$X$3,IF(D31="TOTAL",SUM($V$17:V30),V30))) ->  | W31: =IF(D31="","",IF(D31="TOTAL",SUM($W$17:W30),(SUM(AG32:AH32)))) ->  | X31: 0 | Y31: 0 | AP31: 2018-05-01 | AQ31: May-2018 | AR31: 7 | AS31: 8 | AU31: 0 | AV31: 10% | AZ31: 0 | BA31: 0 | BB31: May-2018 | BC31: 0 | BH31: 19
F32: =IF(D32="","",IF(D32=$N$10,$O$7,IF(E32="JUL",MROUND(ROUND(1.03*F31,0),100),IF(D32="TOTAL",SUM($F$17:F31),F31)))) ->  | G32: =IF(D32="","",IF(D32="TOTAL",SUM($G$17:G31),(ROUND(F32*AJ32/100,0)))) ->  | H32: =IF(D32="","",IF(D32="TOTAL",SUM($H$17:H31),(ROUND(F32*AK32/100,0)))) ->  | I32: 0 | K32: =IF(D32="","",IF(D32=$O$10,$O$8,IF(E32="JUL",MROUND(ROUND(1.03*K31,0),100),IF(D32="TOTAL",SUM($K$17:K31),K31)))) ->  | L32: =IF(D32="","",IF(D32="TOTAL",SUM($L$17:L31),(ROUND(K32*AJ32/100,0)))) ->  | M32: =IF(D32="","",IF(D32="TOTAL",SUM($M$17:M31),(ROUND(K32*AK32/100,0)))) ->  | N32: 0 | S32: 0 | T32: =IF(D32="","",IF(D32="TOTAL",SUM($T$17:T31),IF($U$8="YES",BA32,BD32))) ->  | U32: =IF(D32="","",IF(D32="TOTAL",SUM($U$17:U31),(ROUND(S32*AM32,0)))) ->  | V32: =IF(D32="","",IF(D32=$Y$9,$X$3,IF(D32="TOTAL",SUM($V$17:V31),V31))) ->  | W32: =IF(D32="","",IF(D32="TOTAL",SUM($W$17:W31),(SUM(AG33:AH33)))) ->  | X32: 0 | Y32: 0 | AP32: 2018-06-01 | AQ32: Jun-2018 | AR32: 7 | AS32: 8 | AU32: 0 | AV32: 10% | AZ32: 0 | BA32: 0 | BB32: Jun-2018 | BC32: 0 | BH32: 20
C33: =IFERROR(IF(AB33="","",IF(DATE(YEAR(AB33),MONTH(AB33),DAY(AB33))=DATE(YEAR($N$9),MONTH($N$9)+1,DAY($N$9)),"TOTAL",IF(AB33>$N$9,"",AB33))),"") ->  | F33: =IF(D33="","",IF(D33=$N$10,$O$7,IF(E33="JUL",MROUND(ROUND(1.03*F32,0),100),IF(D33="TOTAL",SUM($F$17:F32),F32)))) ->  | G33: =IF(D33="","",IF(D33="TOTAL",SUM($G$17:G32),(ROUND(F33*AJ33/100,0)))) ->  | H33: =IF(D33="","",IF(D33="TOTAL",SUM($H$17:H32),(ROUND(F33*AK33/100,0)))) ->  | I33: 0 | K33: =IF(D33="","",IF(D33=$O$10,$O$8,IF(E33="JUL",MROUND(ROUND(1.03*K32,0),100),IF(D33="TOTAL",SUM($K$17:K32),K32)))) ->  | L33: =IF(D33="","",IF(D33="TOTAL",SUM($L$17:L32),(ROUND(K33*AJ33/100,0)))) ->  | M33: =IF(D33="","",IF(D33="TOTAL",SUM($M$17:M32),(ROUND(K33*AK33/100,0)))) ->  | N33: 0 | S33: 0 | T33: =IF(D33="","",IF(D33="TOTAL",SUM($T$17:T32),IF($U$8="YES",BA33,BD33))) ->  | U33: =IF(D33="","",IF(D33="TOTAL",SUM($U$17:U32),(ROUND(S33*AM33,0)))) ->  | V33: =IF(D33="","",IF(D33=$Y$9,$X$3,IF(D33="TOTAL",SUM($V$17:V32),V32))) ->  | W33: =IF(D33="","",IF(D33="TOTAL",SUM($W$17:W32),(SUM(AG34:AH34)))) ->  | X33: 0 | Y33: 0 | AP33: 2018-07-01 | AQ33: Jul-2018 | AR33: 9 | AS33: 8 | AT33: 2 | AU33: 0 | AV33: 10% | AZ33: 0 | BA33: 0 | BB33: Jul-2018 | BC33: 0 | BH33: 21
F34: =IF(D34="","",IF(D34=$N$10,$O$7,IF(E34="JUL",MROUND(ROUND(1.03*F33,0),100),IF(D34="TOTAL",SUM($F$17:F33),F33)))) ->  | G34: =IF(D34="","",IF(D34="TOTAL",SUM($G$17:G33),(ROUND(F34*AJ34/100,0)))) ->  | H34: =IF(D34="","",IF(D34="TOTAL",SUM($H$17:H33),(ROUND(F34*AK34/100,0)))) ->  | I34: 0 | K34: =IF(D34="","",IF(D34=$O$10,$O$8,IF(E34="JUL",MROUND(ROUND(1.03*K33,0),100),IF(D34="TOTAL",SUM($K$17:K33),K33)))) ->  | L34: =IF(D34="","",IF(D34="TOTAL",SUM($L$17:L33),(ROUND(K34*AJ34/100,0)))) ->  | M34: =IF(D34="","",IF(D34="TOTAL",SUM($M$17:M33),(ROUND(K34*AK34/100,0)))) ->  | N34: 0 | S34: 0 | T34: =IF(D34="","",IF(D34="TOTAL",SUM($T$17:T33),IF($U$8="YES",BA34,BD34))) ->  | U34: =IF(D34="","",IF(D34="TOTAL",SUM($U$17:U33),(ROUND(S34*AM34,0)))) ->  | V34: =IF(D34="","",IF(D34=$Y$9,$X$3,IF(D34="TOTAL",SUM($V$17:V33),V33))) ->  | W34: =IF(D34="","",IF(D34="TOTAL",SUM($W$17:W33),(SUM(AG35:AH35)))) ->  | X34: 0 | Y34: 0 | AP34: 2018-08-01 | AQ34: Aug-2018 | AR34: 9 | AS34: 8 | AT34: 2 | AU34: 0 | AV34: 10% | AZ34: 0 | BA34: 0 | BB34: Aug-2018 | BC34: 0 | BH34: 22
F35: =IF(D35="","",IF(D35=$N$10,$O$7,IF(E35="JUL",MROUND(ROUND(1.03*F34,0),100),IF(D35="TOTAL",SUM($F$17:F34),F34)))) ->  | G35: =IF(D35="","",IF(D35="TOTAL",SUM($G$17:G34),(ROUND(F35*AJ35/100,0)))) ->  | H35: =IF(D35="","",IF(D35="TOTAL",SUM($H$17:H34),(ROUND(F35*AK35/100,0)))) ->  | I35: 0 | K35: =IF(D35="","",IF(D35=$O$10,$O$8,IF(E35="JUL",MROUND(ROUND(1.03*K34,0),100),IF(D35="TOTAL",SUM($K$17:K34),K34)))) ->  | L35: =IF(D35="","",IF(D35="TOTAL",SUM($L$17:L34),(ROUND(K35*AJ35/100,0)))) ->  | M35: =IF(D35="","",IF(D35="TOTAL",SUM($M$17:M34),(ROUND(K35*AK35/100,0)))) ->  | N35: 0 | S35: 0 | T35: =IF(D35="","",IF(D35="TOTAL",SUM($T$17:T34),IF($U$8="YES",BA35,BD35))) ->  | U35: =IF(D35="","",IF(D35="TOTAL",SUM($U$17:U34),(ROUND(S35*AM35,0)))) ->  | V35: =IF(D35="","",IF(D35=$Y$9,$X$3,IF(D35="TOTAL",SUM($V$17:V34),V34))) ->  | W35: =IF(D35="","",IF(D35="TOTAL",SUM($W$17:W34),(SUM(AG36:AH36)))) ->  | X35: 0 | Y35: 0 | AP35: 2018-09-01 | AQ35: Sep-2018 | AR35: 9 | AS35: 8 | AU35: 0 | AV35: 10% | AZ35: 0 | BA35: 0 | BB35: Sep-2018 | BC35: 0 | BH35: 23
F36: =IF(D36="","",IF(D36=$N$10,$O$7,IF(E36="JUL",MROUND(ROUND(1.03*F35,0),100),IF(D36="TOTAL",SUM($F$17:F35),F35)))) ->  | G36: =IF(D36="","",IF(D36="TOTAL",SUM($G$17:G35),(ROUND(F36*AJ36/100,0)))) ->  | H36: =IF(D36="","",IF(D36="TOTAL",SUM($H$17:H35),(ROUND(F36*AK36/100,0)))) ->  | I36: 0 | K36: =IF(D36="","",IF(D36=$O$10,$O$8,IF(E36="JUL",MROUND(ROUND(1.03*K35,0),100),IF(D36="TOTAL",SUM($K$17:K35),K35)))) ->  | L36: =IF(D36="","",IF(D36="TOTAL",SUM($L$17:L35),(ROUND(K36*AJ36/100,0)))) ->  | M36: =IF(D36="","",IF(D36="TOTAL",SUM($M$17:M35),(ROUND(K36*AK36/100,0)))) ->  | N36: 0 | S36: 0 | T36: =IF(D36="","",IF(D36="TOTAL",SUM($T$17:T35),IF($U$8="YES",BA36,BD36))) ->  | U36: =IF(D36="","",IF(D36="TOTAL",SUM($U$17:U35),(ROUND(S36*AM36,0)))) ->  | V36: =IF(D36="","",IF(D36=$Y$9,$X$3,IF(D36="TOTAL",SUM($V$17:V35),V35))) ->  | W36: =IF(D36="","",IF(D36="TOTAL",SUM($W$17:W35),(SUM(AG37:AH37)))) ->  | X36: 0 | Y36: 0 | AP36: 2018-10-01 | AQ36: Oct-2018 | AR36: 9 | AS36: 8 | AU36: 0 | AV36: 10% | AZ36: 0 | BA36: 0 | BB36: Oct-2018 | BC36: 0 | BH36: 24
F37: =IF(D37="","",IF(D37=$N$10,$O$7,IF(E37="JUL",MROUND(ROUND(1.03*F36,0),100),IF(D37="TOTAL",SUM($F$17:F36),F36)))) ->  | G37: =IF(D37="","",IF(D37="TOTAL",SUM($G$17:G36),(ROUND(F37*AJ37/100,0)))) ->  | H37: =IF(D37="","",IF(D37="TOTAL",SUM($H$17:H36),(ROUND(F37*AK37/100,0)))) ->  | I37: 0 | K37: =IF(D37="","",IF(D37=$O$10,$O$8,IF(E37="JUL",MROUND(ROUND(1.03*K36,0),100),IF(D37="TOTAL",SUM($K$17:K36),K36)))) ->  | L37: =IF(D37="","",IF(D37="TOTAL",SUM($L$17:L36),(ROUND(K37*AJ37/100,0)))) ->  | M37: =IF(D37="","",IF(D37="TOTAL",SUM($M$17:M36),(ROUND(K37*AK37/100,0)))) ->  | N37: 0 | S37: 0 | T37: =IF(D37="","",IF(D37="TOTAL",SUM($T$17:T36),IF($U$8="YES",BA37,BD37))) ->  | U37: =IF(D37="","",IF(D37="TOTAL",SUM($U$17:U36),(ROUND(S37*AM37,0)))) ->  | V37: =IF(D37="","",IF(D37=$Y$9,$X$3,IF(D37="TOTAL",SUM($V$17:V36),V36))) ->  | W37: =IF(D37="","",IF(D37="TOTAL",SUM($W$17:W36),(SUM(AG38:AH38)))) ->  | X37: 0 | Y37: 0 | AP37: 2018-11-01 | AQ37: Nov-2018 | AR37: 9 | AS37: 8 | AU37: 0 | AV37: 10% | AZ37: 0 | BA37: 0 | BB37: Nov-2018 | BC37: 0 | BH37: 25
F38: =IF(D38="","",IF(D38=$N$10,$O$7,IF(E38="JUL",MROUND(ROUND(1.03*F37,0),100),IF(D38="TOTAL",SUM($F$17:F37),F37)))) ->  | G38: =IF(D38="","",IF(D38="TOTAL",SUM($G$17:G37),(ROUND(F38*AJ38/100,0)))) ->  | H38: =IF(D38="","",IF(D38="TOTAL",SUM($H$17:H37),(ROUND(F38*AK38/100,0)))) ->  | I38: 0 | K38: =IF(D38="","",IF(D38=$O$10,$O$8,IF(E38="JUL",MROUND(ROUND(1.03*K37,0),100),IF(D38="TOTAL",SUM($K$17:K37),K37)))) ->  | L38: =IF(D38="","",IF(D38="TOTAL",SUM($L$17:L37),(ROUND(K38*AJ38/100,0)))) ->  | M38: =IF(D38="","",IF(D38="TOTAL",SUM($M$17:M37),(ROUND(K38*AK38/100,0)))) ->  | N38: 0 | S38: 0 | T38: =IF(D38="","",IF(D38="TOTAL",SUM($T$17:T37),IF($U$8="YES",BA38,BD38))) ->  | U38: =IF(D38="","",IF(D38="TOTAL",SUM($U$17:U37),(ROUND(S38*AM38,0)))) ->  | V38: =IF(D38="","",IF(D38=$Y$9,$X$3,IF(D38="TOTAL",SUM($V$17:V37),V37))) ->  | W38: =IF(D38="","",IF(D38="TOTAL",SUM($W$17:W37),(SUM(AG39:AH39)))) ->  | X38: 0 | Y38: 0 | AP38: 2018-12-01 | AQ38: Dec-2018 | AR38: 9 | AS38: 8 | AU38: 0 | AV38: 10% | AZ38: 0 | BA38: 0 | BB38: Dec-2018 | BC38: 0 | BH38: 26
F39: =IF(D39="","",IF(D39=$N$10,$O$7,IF(E39="JUL",MROUND(ROUND(1.03*F38,0),100),IF(D39="TOTAL",SUM($F$17:F38),F38)))) ->  | G39: =IF(D39="","",IF(D39="TOTAL",SUM($G$17:G38),(ROUND(F39*AJ39/100,0)))) ->  | H39: =IF(D39="","",IF(D39="TOTAL",SUM($H$17:H38),(ROUND(F39*AK39/100,0)))) ->  | I39: 0 | K39: =IF(D39="","",IF(D39=$O$10,$O$8,IF(E39="JUL",MROUND(ROUND(1.03*K38,0),100),IF(D39="TOTAL",SUM($K$17:K38),K38)))) ->  | L39: =IF(D39="","",IF(D39="TOTAL",SUM($L$17:L38),(ROUND(K39*AJ39/100,0)))) ->  | M39: =IF(D39="","",IF(D39="TOTAL",SUM($M$17:M38),(ROUND(K39*AK39/100,0)))) ->  | N39: 0 | S39: 0 | T39: =IF(D39="","",IF(D39="TOTAL",SUM($T$17:T38),IF($U$8="YES",BA39,BD39))) ->  | U39: =IF(D39="","",IF(D39="TOTAL",SUM($U$17:U38),(ROUND(S39*AM39,0)))) ->  | V39: =IF(D39="","",IF(D39=$Y$9,$X$3,IF(D39="TOTAL",SUM($V$17:V38),V38))) ->  | W39: =IF(D39="","",IF(D39="TOTAL",SUM($W$17:W38),(SUM(AG40:AH40)))) ->  | X39: 0 | Y39: 0 | AP39: 2019-01-01 | AQ39: Jan-2019 | AR39: 12 | AS39: 8 | AT39: 3 | AU39: 0 | AV39: 10% | AZ39: 0 | BA39: 0 | BB39: Jan-2019 | BC39: 0 | BH39: 27
F40: =IF(D40="","",IF(D40=$N$10,$O$7,IF(E40="JUL",MROUND(ROUND(1.03*F39,0),100),IF(D40="TOTAL",SUM($F$17:F39),F39)))) ->  | G40: =IF(D40="","",IF(D40="TOTAL",SUM($G$17:G39),(ROUND(F40*AJ40/100,0)))) ->  | H40: =IF(D40="","",IF(D40="TOTAL",SUM($H$17:H39),(ROUND(F40*AK40/100,0)))) ->  | I40: 0 | K40: =IF(D40="","",IF(D40=$O$10,$O$8,IF(E40="JUL",MROUND(ROUND(1.03*K39,0),100),IF(D40="TOTAL",SUM($K$17:K39),K39)))) ->  | L40: =IF(D40="","",IF(D40="TOTAL",SUM($L$17:L39),(ROUND(K40*AJ40/100,0)))) ->  | M40: =IF(D40="","",IF(D40="TOTAL",SUM($M$17:M39),(ROUND(K40*AK40/100,0)))) ->  | N40: 0 | S40: 0 | T40: =IF(D40="","",IF(D40="TOTAL",SUM($T$17:T39),IF($U$8="YES",BA40,BD40))) ->  | U40: =IF(D40="","",IF(D40="TOTAL",SUM($U$17:U39),(ROUND(S40*AM40,0)))) ->  | V40: =IF(D40="","",IF(D40=$Y$9,$X$3,IF(D40="TOTAL",SUM($V$17:V39),V39))) ->  | W40: =IF(D40="","",IF(D40="TOTAL",SUM($W$17:W39),(SUM(AG41:AH41)))) ->  | X40: 0 | Y40: 0 | AP40: 2019-02-01 | AQ40: Feb-2019 | AR40: 12 | AS40: 8 | AT40: 3 | AU40: 0 | AV40: 10% | AZ40: 0 | BA40: 0 | BB40: Feb-2019 | BC40: 0 | BH40: 28
F41: =IF(D41="","",IF(D41=$N$10,$O$7,IF(E41="JUL",MROUND(ROUND(1.03*F40,0),100),IF(D41="TOTAL",SUM($F$17:F40),F40)))) ->  | G41: =IF(D41="","",IF(D41="TOTAL",SUM($G$17:G40),(ROUND(F41*AJ41/100,0)))) ->  | H41: =IF(D41="","",IF(D41="TOTAL",SUM($H$17:H40),(ROUND(F41*AK41/100,0)))) ->  | I41: 0 | K41: =IF(D41="","",IF(D41=$O$10,$O$8,IF(E41="JUL",MROUND(ROUND(1.03*K40,0),100),IF(D41="TOTAL",SUM($K$17:K40),K40)))) ->  | L41: =IF(D41="","",IF(D41="TOTAL",SUM($L$17:L40),(ROUND(K41*AJ41/100,0)))) ->  | M41: =IF(D41="","",IF(D41="TOTAL",SUM($M$17:M40),(ROUND(K41*AK41/100,0)))) ->  | N41: 0 | S41: 0 | T41: =IF(D41="","",IF(D41="TOTAL",SUM($T$17:T40),IF($U$8="YES",BA41,BD41))) ->  | U41: =IF(D41="","",IF(D41="TOTAL",SUM($U$17:U40),(ROUND(S41*AM41,0)))) ->  | V41: =IF(D41="","",IF(D41=$Y$9,$X$3,IF(D41="TOTAL",SUM($V$17:V40),V40))) ->  | W41: =IF(D41="","",IF(D41="TOTAL",SUM($W$17:W40),(SUM(AG42:AH42)))) ->  | X41: 0 | Y41: 0 | AP41: 2019-03-01 | AQ41: Mar-2019 | AR41: 12 | AS41: 8 | AU41: 0 | AV41: 10% | AZ41: 0 | BA41: 0 | BB41: Mar-2019 | BC41: 0 | BH41: 29
F42: =IF(D42="","",IF(D42=$N$10,$O$7,IF(E42="JUL",MROUND(ROUND(1.03*F41,0),100),IF(D42="TOTAL",SUM($F$17:F41),F41)))) ->  | G42: =IF(D42="","",IF(D42="TOTAL",SUM($G$17:G41),(ROUND(F42*AJ42/100,0)))) ->  | H42: =IF(D42="","",IF(D42="TOTAL",SUM($H$17:H41),(ROUND(F42*AK42/100,0)))) ->  | I42: 0 | K42: =IF(D42="","",IF(D42=$O$10,$O$8,IF(E42="JUL",MROUND(ROUND(1.03*K41,0),100),IF(D42="TOTAL",SUM($K$17:K41),K41)))) ->  | L42: =IF(D42="","",IF(D42="TOTAL",SUM($L$17:L41),(ROUND(K42*AJ42/100,0)))) ->  | M42: =IF(D42="","",IF(D42="TOTAL",SUM($M$17:M41),(ROUND(K42*AK42/100,0)))) ->  | N42: 0 | S42: 0 | T42: =IF(D42="","",IF(D42="TOTAL",SUM($T$17:T41),IF($U$8="YES",BA42,BD42))) ->  | U42: =IF(D42="","",IF(D42="TOTAL",SUM($U$17:U41),(ROUND(S42*AM42,0)))) ->  | V42: =IF(D42="","",IF(D42=$Y$9,$X$3,IF(D42="TOTAL",SUM($V$17:V41),V41))) ->  | W42: =IF(D42="","",IF(D42="TOTAL",SUM($W$17:W41),(SUM(AG43:AH43)))) ->  | X42: 0 | Y42: 0 | AP42: 2019-04-01 | AQ42: Apr-2019 | AR42: 12 | AS42: 8 | AU42: 0 | AV42: 10% | AZ42: 0 | BA42: 0 | BB42: Apr-2019 | BC42: 0 | BH42: 30
F43: =IF(D43="","",IF(D43=$N$10,$O$7,IF(E43="JUL",MROUND(ROUND(1.03*F42,0),100),IF(D43="TOTAL",SUM($F$17:F42),F42)))) ->  | G43: =IF(D43="","",IF(D43="TOTAL",SUM($G$17:G42),(ROUND(F43*AJ43/100,0)))) ->  | H43: =IF(D43="","",IF(D43="TOTAL",SUM($H$17:H42),(ROUND(F43*AK43/100,0)))) ->  | I43: 0 | K43: =IF(D43="","",IF(D43=$O$10,$O$8,IF(E43="JUL",MROUND(ROUND(1.03*K42,0),100),IF(D43="TOTAL",SUM($K$17:K42),K42)))) ->  | L43: =IF(D43="","",IF(D43="TOTAL",SUM($L$17:L42),(ROUND(K43*AJ43/100,0)))) ->  | M43: =IF(D43="","",IF(D43="TOTAL",SUM($M$17:M42),(ROUND(K43*AK43/100,0)))) ->  | N43: 0 | S43: 0 | T43: =IF(D43="","",IF(D43="TOTAL",SUM($T$17:T42),IF($U$8="YES",BA43,BD43))) ->  | U43: =IF(D43="","",IF(D43="TOTAL",SUM($U$17:U42),(ROUND(S43*AM43,0)))) ->  | V43: =IF(D43="","",IF(D43=$Y$9,$X$3,IF(D43="TOTAL",SUM($V$17:V42),V42))) ->  | W43: =IF(D43="","",IF(D43="TOTAL",SUM($W$17:W42),(SUM(AG44:AH44)))) ->  | X43: 0 | Y43: 0 | AP43: 2019-05-01 | AQ43: May-2019 | AR43: 12 | AS43: 8 | AU43: 0 | AV43: 10% | AZ43: 0 | BA43: 0 | BB43: May-2019 | BC43: 0 | BH43: 31
F44: =IF(D44="","",IF(D44=$N$10,$O$7,IF(E44="JUL",MROUND(ROUND(1.03*F43,0),100),IF(D44="TOTAL",SUM($F$17:F43),F43)))) ->  | G44: =IF(D44="","",IF(D44="TOTAL",SUM($G$17:G43),(ROUND(F44*AJ44/100,0)))) ->  | H44: =IF(D44="","",IF(D44="TOTAL",SUM($H$17:H43),(ROUND(F44*AK44/100,0)))) ->  | I44: 0 | K44: =IF(D44="","",IF(D44=$O$10,$O$8,IF(E44="JUL",MROUND(ROUND(1.03*K43,0),100),IF(D44="TOTAL",SUM($K$17:K43),K43)))) ->  | L44: =IF(D44="","",IF(D44="TOTAL",SUM($L$17:L43),(ROUND(K44*AJ44/100,0)))) ->  | M44: =IF(D44="","",IF(D44="TOTAL",SUM($M$17:M43),(ROUND(K44*AK44/100,0)))) ->  | N44: 0 | S44: 0 | T44: =IF(D44="","",IF(D44="TOTAL",SUM($T$17:T43),IF($U$8="YES",BA44,BD44))) ->  | U44: =IF(D44="","",IF(D44="TOTAL",SUM($U$17:U43),(ROUND(S44*AM44,0)))) ->  | V44: =IF(D44="","",IF(D44=$Y$9,$X$3,IF(D44="TOTAL",SUM($V$17:V43),V43))) ->  | W44: =IF(D44="","",IF(D44="TOTAL",SUM($W$17:W43),(SUM(AG45:AH45)))) ->  | X44: 0 | Y44: 0 | AP44: 2019-06-01 | AQ44: Jun-2019 | AR44: 12 | AS44: 8 | AU44: 0 | AV44: 10% | AZ44: 0 | BA44: 0 | BB44: Jun-2019 | BC44: 0
F45: =IF(D45="","",IF(D45=$N$10,$O$7,IF(E45="JUL",MROUND(ROUND(1.03*F44,0),100),IF(D45="TOTAL",SUM($F$17:F44),F44)))) ->  | G45: =IF(D45="","",IF(D45="TOTAL",SUM($G$17:G44),(ROUND(F45*AJ45/100,0)))) ->  | H45: =IF(D45="","",IF(D45="TOTAL",SUM($H$17:H44),(ROUND(F45*AK45/100,0)))) ->  | I45: 0 | K45: =IF(D45="","",IF(D45=$O$10,$O$8,IF(E45="JUL",MROUND(ROUND(1.03*K44,0),100),IF(D45="TOTAL",SUM($K$17:K44),K44)))) ->  | L45: =IF(D45="","",IF(D45="TOTAL",SUM($L$17:L44),(ROUND(K45*AJ45/100,0)))) ->  | M45: =IF(D45="","",IF(D45="TOTAL",SUM($M$17:M44),(ROUND(K45*AK45/100,0)))) ->  | N45: 0 | S45: 0 | T45: =IF(D45="","",IF(D45="TOTAL",SUM($T$17:T44),IF($U$8="YES",BA45,BD45))) ->  | U45: =IF(D45="","",IF(D45="TOTAL",SUM($U$17:U44),(ROUND(S45*AM45,0)))) ->  | V45: =IF(D45="","",IF(D45=$Y$9,$X$3,IF(D45="TOTAL",SUM($V$17:V44),V44))) ->  | W45: =IF(D45="","",IF(D45="TOTAL",SUM($W$17:W44),(SUM(AG46:AH46)))) ->  | X45: 0 | Y45: 0 | AP45: 2019-07-01 | AQ45: Jul-2019 | AR45: 17 | AS45: 8 | AT45: 5 | AU45: 0 | AV45: 10% | AZ45: 0 | BA45: 0 | BB45: Jul-2019 | BC45: 0
F46: =IF(D46="","",IF(D46=$N$10,$O$7,IF(E46="JUL",MROUND(ROUND(1.03*F45,0),100),IF(D46="TOTAL",SUM($F$17:F45),F45)))) ->  | G46: =IF(D46="","",IF(D46="TOTAL",SUM($G$17:G45),(ROUND(F46*AJ46/100,0)))) ->  | H46: =IF(D46="","",IF(D46="TOTAL",SUM($H$17:H45),(ROUND(F46*AK46/100,0)))) ->  | I46: 0 | K46: =IF(D46="","",IF(D46=$O$10,$O$8,IF(E46="JUL",MROUND(ROUND(1.03*K45,0),100),IF(D46="TOTAL",SUM($K$17:K45),K45)))) ->  | L46: =IF(D46="","",IF(D46="TOTAL",SUM($L$17:L45),(ROUND(K46*AJ46/100,0)))) ->  | M46: =IF(D46="","",IF(D46="TOTAL",SUM($M$17:M45),(ROUND(K46*AK46/100,0)))) ->  | N46: 0 | S46: 0 | T46: =IF(D46="","",IF(D46="TOTAL",SUM($T$17:T45),IF($U$8="YES",BA46,BD46))) ->  | U46: =IF(D46="","",IF(D46="TOTAL",SUM($U$17:U45),(ROUND(S46*AM46,0)))) ->  | V46: =IF(D46="","",IF(D46=$Y$9,$X$3,IF(D46="TOTAL",SUM($V$17:V45),V45))) ->  | W46: =IF(D46="","",IF(D46="TOTAL",SUM($W$17:W45),(SUM(AG47:AH47)))) ->  | X46: 0 | Y46: 0 | AP46: 2019-08-01 | AQ46: Aug-2019 | AR46: 17 | AS46: 8 | AT46: 5 | AU46: 0 | AV46: 10% | AZ46: 0 | BA46: 0 | BB46: Aug-2019 | BC46: 0
F47: =IF(D47="","",IF(D47=$N$10,$O$7,IF(E47="JUL",MROUND(ROUND(1.03*F46,0),100),IF(D47="TOTAL",SUM($F$17:F46),F46)))) ->  | G47: =IF(D47="","",IF(D47="TOTAL",SUM($G$17:G46),(ROUND(F47*AJ47/100,0)))) ->  | H47: =IF(D47="","",IF(D47="TOTAL",SUM($H$17:H46),(ROUND(F47*AK47/100,0)))) ->  | I47: 0 | K47: =IF(D47="","",IF(D47=$O$10,$O$8,IF(E47="JUL",MROUND(ROUND(1.03*K46,0),100),IF(D47="TOTAL",SUM($K$17:K46),K46)))) ->  | L47: =IF(D47="","",IF(D47="TOTAL",SUM($L$17:L46),(ROUND(K47*AJ47/100,0)))) ->  | M47: =IF(D47="","",IF(D47="TOTAL",SUM($M$17:M46),(ROUND(K47*AK47/100,0)))) ->  | N47: 0 | S47: 0 | T47: =IF(D47="","",IF(D47="TOTAL",SUM($T$17:T46),IF($U$8="YES",BA47,BD47))) ->  | U47: =IF(D47="","",IF(D47="TOTAL",SUM($U$17:U46),(ROUND(S47*AM47,0)))) ->  | V47: =IF(D47="","",IF(D47=$Y$9,$X$3,IF(D47="TOTAL",SUM($V$17:V46),V46))) ->  | W47: =IF(D47="","",IF(D47="TOTAL",SUM($W$17:W46),(SUM(AG48:AH48)))) ->  | X47: 0 | Y47: 0 | AP47: 2019-09-01 | AQ47: Sep-2019 | AR47: 17 | AS47: 8 | AT47: 5 | AU47: 0 | AV47: 10% | AZ47: =IF($Y$6="REGULAR",$V$5,0) -> 0 | BA47: 0 | BB47: Sep-2019 | BC47: 0
F48: =IF(D48="","",IF(D48=$N$10,$O$7,IF(E48="JUL",MROUND(ROUND(1.03*F47,0),100),IF(D48="TOTAL",SUM($F$17:F47),F47)))) ->  | G48: =IF(D48="","",IF(D48="TOTAL",SUM($G$17:G47),(ROUND(F48*AJ48/100,0)))) ->  | H48: =IF(D48="","",IF(D48="TOTAL",SUM($H$17:H47),(ROUND(F48*AK48/100,0)))) ->  | I48: 0 | K48: =IF(D48="","",IF(D48=$O$10,$O$8,IF(E48="JUL",MROUND(ROUND(1.03*K47,0),100),IF(D48="TOTAL",SUM($K$17:K47),K47)))) ->  | L48: =IF(D48="","",IF(D48="TOTAL",SUM($L$17:L47),(ROUND(K48*AJ48/100,0)))) ->  | M48: =IF(D48="","",IF(D48="TOTAL",SUM($M$17:M47),(ROUND(K48*AK48/100,0)))) ->  | N48: 0 | S48: 0 | T48: =IF(D48="","",IF(D48="TOTAL",SUM($T$17:T47),IF($U$8="YES",BA48,BD48))) ->  | U48: =IF(D48="","",IF(D48="TOTAL",SUM($U$17:U47),(ROUND(S48*AM48,0)))) ->  | V48: =IF(D48="","",IF(D48=$Y$9,$X$3,IF(D48="TOTAL",SUM($V$17:V47),V47))) ->  | W48: =IF(D48="","",IF(D48="TOTAL",SUM($W$17:W47),(SUM(AG49:AH49)))) ->  | X48: 0 | Y48: 0 | AP48: 2019-10-01 | AQ48: Oct-2019 | AR48: 17 | AS48: 8 | AT48: 5 | AU48: 0 | AV48: 10% | AZ48: 0 | BA48: 0 | BB48: Oct-2019 | BC48: 0
F49: =IF(D49="","",IF(D49=$N$10,$O$7,IF(E49="JUL",MROUND(ROUND(1.03*F48,0),100),IF(D49="TOTAL",SUM($F$17:F48),F48)))) ->  | G49: =IF(D49="","",IF(D49="TOTAL",SUM($G$17:G48),(ROUND(F49*AJ49/100,0)))) ->  | H49: =IF(D49="","",IF(D49="TOTAL",SUM($H$17:H48),(ROUND(F49*AK49/100,0)))) ->  | I49: 0 | K49: =IF(D49="","",IF(D49=$O$10,$O$8,IF(E49="JUL",MROUND(ROUND(1.03*K48,0),100),IF(D49="TOTAL",SUM($K$17:K48),K48)))) ->  | L49: =IF(D49="","",IF(D49="TOTAL",SUM($L$17:L48),(ROUND(K49*AJ49/100,0)))) ->  | M49: =IF(D49="","",IF(D49="TOTAL",SUM($M$17:M48),(ROUND(K49*AK49/100,0)))) ->  | N49: 0 | O49: =IFERROR(MIN(F49-K49),"") ->  | P49: =IFERROR(MIN(G49-L49),"") ->  | S49: 0 | T49: =IF(D49="","",IF(D49="TOTAL",SUM($T$17:T48),IF($U$8="YES",BA49,BD49))) ->  | U49: =IF(D49="","",IF(D49="TOTAL",SUM($U$17:U48),(ROUND(S49*AM49,0)))) ->  | V49: =IF(D49="","",IF(D49=$Y$9,$X$3,IF(D49="TOTAL",SUM($V$17:V48),V48))) ->  | W49: =IF(D49="","",IF(D49="TOTAL",SUM($W$17:W48),(SUM(AG50:AH50)))) ->  | X49: 0 | Y49: 0 | AE49: =IFERROR(VLOOKUP(D49,$AQ$15:$BE$211,8,0),"") ->  | AF49: =IFERROR(VLOOKUP(D49,$AQ$15:$BE$211,9,0),"") ->  | AG49: =IFERROR(ROUND(O49/31*AN49,0),"") ->  | AH49: =IFERROR(ROUND(S49/31*AO49,0),"") ->  | AJ49: =IFERROR(VLOOKUP(D49,$AQ$15:$AR$211,2,0),"") ->  | AK49: =IFERROR(VLOOKUP(D49,$AQ$15:$AAT$211,3,0),"") ->  | AM49: =IFERROR(VLOOKUP(D49,$AQ$15:$AAU$211,6,0),"") ->  | AN49: =IFERROR(VLOOKUP(D49,$AQ$15:$AAU$111,7,0),"") ->  | AO49: =IFERROR(VLOOKUP(D49,$AQ$15:$AAU$111,8,0),"") ->  | AP49: 2019-11-01 | AQ49: Nov-2019 | AR49: 17 | AS49: 8 | AT49: 5 | AU49: 0 | AV49: 10% | AZ49: 0 | BA49: =IFERROR(ROUND(O49*AL49/100,0)+R49,0) -> 0 | BB49: Nov-2019 | BC49: 0
F50: =IF(D50="","",IF(D50=$N$10,$O$7,IF(E50="JUL",MROUND(ROUND(1.03*F49,0),100),IF(D50="TOTAL",SUM($F$17:F49),F49)))) ->  | G50: =IF(D50="","",IF(D50="TOTAL",SUM($G$17:G49),(ROUND(F50*AJ50/100,0)))) ->  | H50: =IF(D50="","",IF(D50="TOTAL",SUM($H$17:H49),(ROUND(F50*AK50/100,0)))) ->  | I50: =SUM(F50:H50) -> 0 | K50: =IF(D50="","",IF(D50=$O$10,$O$8,IF(E50="JUL",MROUND(ROUND(1.03*K49,0),100),IF(D50="TOTAL",SUM($K$17:K49),K49)))) ->  | L50: =IF(D50="","",IF(D50="TOTAL",SUM($L$17:L49),(ROUND(K50*AJ50/100,0)))) ->  | M50: =IF(D50="","",IF(D50="TOTAL",SUM($M$17:M49),(ROUND(K50*AK50/100,0)))) ->  | N50: 0 | S50: 0 | T50: =IF(D50="","",IF(D50="TOTAL",SUM($T$17:T49),IF($U$8="YES",BA50,BD50))) ->  | U50: =IF(D50="","",IF(D50="TOTAL",SUM($U$17:U49),(ROUND(S50*AM50,0)))) ->  | V50: =IF(D50="","",IF(D50=$Y$9,$X$3,IF(D50="TOTAL",SUM($V$17:V49),V49))) ->  | W50: =IF(D50="","",IF(D50="TOTAL",SUM($W$17:W49),(SUM(AG51:AH51)))) ->  | X50: 0 | Y50: 0 | AP50: 2019-12-01 | AQ50: Dec-2019 | AR50: 17 | AS50: 8 | AT50: 5 | AU50: 0 | AV50: 10% | AZ50: 0 | BA50: 0 | BB50: Dec-2019 | BC50: 0
F51: =IF(D51="","",IF(D51=$N$10,$O$7,IF(E51="JUL",MROUND(ROUND(1.03*F50,0),100),IF(D51="TOTAL",SUM($F$17:F50),F50)))) ->  | G51: =IF(D51="","",IF(D51="TOTAL",SUM($G$17:G50),(ROUND(F51*AJ51/100,0)))) ->  | H51: =IF(D51="","",IF(D51="TOTAL",SUM($H$17:H50),(ROUND(F51*AK51/100,0)))) ->  | I51: 0 | K51: =IF(D51="","",IF(D51=$O$10,$O$8,IF(E51="JUL",MROUND(ROUND(1.03*K50,0),100),IF(D51="TOTAL",SUM($K$17:K50),K50)))) ->  | L51: =IF(D51="","",IF(D51="TOTAL",SUM($L$17:L50),(ROUND(K51*AJ51/100,0)))) ->  | M51: =IF(D51="","",IF(D51="TOTAL",SUM($M$17:M50),(ROUND(K51*AK51/100,0)))) ->  | N51: 0 | S51: 0 | T51: =IF(D51="","",IF(D51="TOTAL",SUM($T$17:T50),IF($U$8="YES",BA51,BD51))) ->  | U51: =IF(D51="","",IF(D51="TOTAL",SUM($U$17:U50),(ROUND(S51*AM51,0)))) ->  | V51: =IF(D51="","",IF(D51=$Y$9,$X$3,IF(D51="TOTAL",SUM($V$17:V50),V50))) ->  | W51: =IF(D51="","",IF(D51="TOTAL",SUM($W$17:W50),(SUM(AG52:AH52)))) ->  | X51: 0 | Y51: 0 | AB51: =IFERROR(DATE(YEAR(C50),MONTH(C50)+1,DAY(C50)),"") ->  | AC51: =IFERROR(IF(AB51="","",IF(DATE(YEAR(AB51),MONTH(AB51),DAY(AB51))=DATE(YEAR($N$9),MONTH($N$9)+1,DAY($N$9)),"TOTAL",IF(AB51>$N$9,"",AB51))),"") ->  | AP51: 2020-01-01 | AQ51: Jan-2020 | AR51: 17 | AS51: 8 | AT51: 5 | AU51: 0 | AV51: 10% | AZ51: 0 | BA51: 0 | BB51: Jan-2020 | BC51: 0
F52: =IF(D52="","",IF(D52=$N$10,$O$7,IF(E52="JUL",MROUND(ROUND(1.03*F51,0),100),IF(D52="TOTAL",SUM($F$17:F51),F51)))) ->  | G52: =IF(D52="","",IF(D52="TOTAL",SUM($G$17:G51),(ROUND(F52*AJ52/100,0)))) ->  | H52: =IF(D52="","",IF(D52="TOTAL",SUM($H$17:H51),(ROUND(F52*AK52/100,0)))) ->  | I52: 0 | K52: =IF(D52="","",IF(D52=$O$10,$O$8,IF(E52="JUL",MROUND(ROUND(1.03*K51,0),100),IF(D52="TOTAL",SUM($K$17:K51),K51)))) ->  | L52: =IF(D52="","",IF(D52="TOTAL",SUM($L$17:L51),(ROUND(K52*AJ52/100,0)))) ->  | M52: =IF(D52="","",IF(D52="TOTAL",SUM($M$17:M51),(ROUND(K52*AK52/100,0)))) ->  | N52: 0 | S52: 0 | T52: =IF(D52="","",IF(D52="TOTAL",SUM($T$17:T51),IF($U$8="YES",BA52,BD52))) ->  | U52: =IF(D52="","",IF(D52="TOTAL",SUM($U$17:U51),(ROUND(S52*AM52,0)))) ->  | V52: =IF(D52="","",IF(D52=$Y$9,$X$3,IF(D52="TOTAL",SUM($V$17:V51),V51))) ->  | W52: =IF(D52="","",IF(D52="TOTAL",SUM($W$17:W51),(SUM(AG53:AH53)))) ->  | X52: 0 | Y52: 0 | AP52: 2020-02-01 | AQ52: Feb-2020 | AR52: 17 | AS52: 8 | AT52: 5 | AU52: 0 | AV52: 10% | AZ52: 0 | BA52: 0 | BB52: Feb-2020 | BC52: 0
F53: =IF(D53="","",IF(D53=$N$10,$O$7,IF(E53="JUL",MROUND(ROUND(1.03*F52,0),100),IF(D53="TOTAL",SUM($F$17:F52),F52)))) ->  | G53: =IF(D53="","",IF(D53="TOTAL",SUM($G$17:G52),(ROUND(F53*AJ53/100,0)))) ->  | H53: =IF(D53="","",IF(D53="TOTAL",SUM($H$17:H52),(ROUND(F53*AK53/100,0)))) ->  | I53: 0 | K53: =IF(D53="","",IF(D53=$O$10,$O$8,IF(E53="JUL",MROUND(ROUND(1.03*K52,0),100),IF(D53="TOTAL",SUM($K$17:K52),K52)))) ->  | L53: =IF(D53="","",IF(D53="TOTAL",SUM($L$17:L52),(ROUND(K53*AJ53/100,0)))) ->  | M53: =IF(D53="","",IF(D53="TOTAL",SUM($M$17:M52),(ROUND(K53*AK53/100,0)))) ->  | N53: 0 | S53: 0 | T53: =IF(D53="","",IF(D53="TOTAL",SUM($T$17:T52),IF($U$8="YES",BA53,BD53))) ->  | U53: =IF(D53="","",IF(D53="TOTAL",SUM($U$17:U52),(ROUND(S53*AM53,0)))) ->  | V53: =IF(D53="","",IF(D53=$Y$9,$X$3,IF(D53="TOTAL",SUM($V$17:V52),V52))) ->  | W53: =IF(D53="","",IF(D53="TOTAL",SUM($W$17:W52),(SUM(AG54:AH54)))) ->  | X53: 0 | Y53: 0 | AP53: 2020-03-01 | AQ53: Mar-2020 | AR53: 17 | AS53: 8 | AU53: 0 | AV53: 10% | AW53: =AN12 -> 3 | AZ53: 0 | BA53: 0 | BB53: Mar-2020 | BC53: 0
F54: =IF(D54="","",IF(D54=$N$10,$O$7,IF(E54="JUL",MROUND(ROUND(1.03*F53,0),100),IF(D54="TOTAL",SUM($F$17:F53),F53)))) ->  | G54: =IF(D54="","",IF(D54="TOTAL",SUM($G$17:G53),(ROUND(F54*AJ54/100,0)))) ->  | H54: =IF(D54="","",IF(D54="TOTAL",SUM($H$17:H53),(ROUND(F54*AK54/100,0)))) ->  | I54: 0 | K54: =IF(D54="","",IF(D54=$O$10,$O$8,IF(E54="JUL",MROUND(ROUND(1.03*K53,0),100),IF(D54="TOTAL",SUM($K$17:K53),K53)))) ->  | L54: =IF(D54="","",IF(D54="TOTAL",SUM($L$17:L53),(ROUND(K54*AJ54/100,0)))) ->  | M54: =IF(D54="","",IF(D54="TOTAL",SUM($M$17:M53),(ROUND(K54*AK54/100,0)))) ->  | N54: 0 | S54: 0 | T54: =IF(D54="","",IF(D54="TOTAL",SUM($T$17:T53),IF($U$8="YES",BA54,BD54))) ->  | U54: =IF(D54="","",IF(D54="TOTAL",SUM($U$17:U53),(ROUND(S54*AM54,0)))) ->  | V54: =IF(D54="","",IF(D54=$Y$9,$X$3,IF(D54="TOTAL",SUM($V$17:V53),V53))) ->  | W54: =IF(D54="","",IF(D54="TOTAL",SUM($W$17:W53),(SUM(AG55:AH55)))) ->  | X54: 0 | Y54: 0 | AP54: 2020-04-01 | AQ54: Apr-2020 | AR54: 17 | AS54: 8 | AU54: 0 | AV54: 10% | AZ54: 0 | BA54: 0 | BB54: Apr-2020 | BC54: 0
F55: =IF(D55="","",IF(D55=$N$10,$O$7,IF(E55="JUL",MROUND(ROUND(1.03*F54,0),100),IF(D55="TOTAL",SUM($F$17:F54),F54)))) ->  | G55: =IF(D55="","",IF(D55="TOTAL",SUM($G$17:G54),(ROUND(F55*AJ55/100,0)))) ->  | H55: =IF(D55="","",IF(D55="TOTAL",SUM($H$17:H54),(ROUND(F55*AK55/100,0)))) ->  | I55: 0 | K55: =IF(D55="","",IF(D55=$O$10,$O$8,IF(E55="JUL",MROUND(ROUND(1.03*K54,0),100),IF(D55="TOTAL",SUM($K$17:K54),K54)))) ->  | L55: =IF(D55="","",IF(D55="TOTAL",SUM($L$17:L54),(ROUND(K55*AJ55/100,0)))) ->  | M55: =IF(D55="","",IF(D55="TOTAL",SUM($M$17:M54),(ROUND(K55*AK55/100,0)))) ->  | N55: 0 | S55: 0 | T55: =IF(D55="","",IF(D55="TOTAL",SUM($T$17:T54),IF($U$8="YES",BA55,BD55))) ->  | U55: =IF(D55="","",IF(D55="TOTAL",SUM($U$17:U54),(ROUND(S55*AM55,0)))) ->  | V55: =IF(D55="","",IF(D55=$Y$9,$X$3,IF(D55="TOTAL",SUM($V$17:V54),V54))) ->  | W55: =IF(D55="","",IF(D55="TOTAL",SUM($W$17:W54),(SUM(AG56:AH56)))) ->  | X55: 0 | Y55: 0 | AP55: 2020-05-01 | AQ55: May-2020 | AR55: 17 | AS55: 8 | AU55: 0 | AV55: 10% | AZ55: 0 | BA55: 0 | BB55: May-2020 | BC55: 0
F56: =IF(D56="","",IF(D56=$N$10,$O$7,IF(E56="JUL",MROUND(ROUND(1.03*F55,0),100),IF(D56="TOTAL",SUM($F$17:F55),F55)))) ->  | G56: =IF(D56="","",IF(D56="TOTAL",SUM($G$17:G55),(ROUND(F56*AJ56/100,0)))) ->  | H56: =IF(D56="","",IF(D56="TOTAL",SUM($H$17:H55),(ROUND(F56*AK56/100,0)))) ->  | I56: 0 | K56: =IF(D56="","",IF(D56=$O$10,$O$8,IF(E56="JUL",MROUND(ROUND(1.03*K55,0),100),IF(D56="TOTAL",SUM($K$17:K55),K55)))) ->  | L56: =IF(D56="","",IF(D56="TOTAL",SUM($L$17:L55),(ROUND(K56*AJ56/100,0)))) ->  | M56: =IF(D56="","",IF(D56="TOTAL",SUM($M$17:M55),(ROUND(K56*AK56/100,0)))) ->  | N56: 0 | S56: 0 | T56: =IF(D56="","",IF(D56="TOTAL",SUM($T$17:T55),IF($U$8="YES",BA56,BD56))) ->  | U56: =IF(D56="","",IF(D56="TOTAL",SUM($U$17:U55),(ROUND(S56*AM56,0)))) ->  | V56: =IF(D56="","",IF(D56=$Y$9,$X$3,IF(D56="TOTAL",SUM($V$17:V55),V55))) ->  | W56: =IF(D56="","",IF(D56="TOTAL",SUM($W$17:W55),(SUM(AG57:AH57)))) ->  | X56: 0 | Y56: 0 | AP56: 2020-06-01 | AQ56: Jun-2020 | AR56: 17 | AS56: 8 | AU56: 0 | AV56: 10% | AZ56: 0 | BA56: 0 | BB56: Jun-2020 | BC56: 0
F57: =IF(D57="","",IF(D57=$N$10,$O$7,IF(E57="JUL",MROUND(ROUND(1.03*F56,0),100),IF(D57="TOTAL",SUM($F$17:F56),F56)))) ->  | G57: =IF(D57="","",IF(D57="TOTAL",SUM($G$17:G56),(ROUND(F57*AJ57/100,0)))) ->  | H57: =IF(D57="","",IF(D57="TOTAL",SUM($H$17:H56),(ROUND(F57*AK57/100,0)))) ->  | I57: 0 | K57: =IF(D57="","",IF(D57=$O$10,$O$8,IF(E57="JUL",MROUND(ROUND(1.03*K56,0),100),IF(D57="TOTAL",SUM($K$17:K56),K56)))) ->  | L57: =IF(D57="","",IF(D57="TOTAL",SUM($L$17:L56),(ROUND(K57*AJ57/100,0)))) ->  | M57: =IF(D57="","",IF(D57="TOTAL",SUM($M$17:M56),(ROUND(K57*AK57/100,0)))) ->  | N57: 0 | S57: 0 | T57: =IF(D57="","",IF(D57="TOTAL",SUM($T$17:T56),IF($U$8="YES",BA57,BD57))) ->  | U57: =IF(D57="","",IF(D57="TOTAL",SUM($U$17:U56),(ROUND(S57*AM57,0)))) ->  | V57: =IF(D57="","",IF(D57=$Y$9,$X$3,IF(D57="TOTAL",SUM($V$17:V56),V56))) ->  | W57: =IF(D57="","",IF(D57="TOTAL",SUM($W$17:W56),(SUM(AG58:AH58)))) ->  | X57: 0 | Y57: 0 | AP57: 2020-07-01 | AQ57: Jul-2020 | AR57: 17 | AS57: 8 | AU57: 0 | AV57: 10% | AZ57: 0 | BA57: 0 | BB57: Jul-2020 | BC57: 0
F58: =IF(D58="","",IF(D58=$N$10,$O$7,IF(E58="JUL",MROUND(ROUND(1.03*F57,0),100),IF(D58="TOTAL",SUM($F$17:F57),F57)))) ->  | G58: =IF(D58="","",IF(D58="TOTAL",SUM($G$17:G57),(ROUND(F58*AJ58/100,0)))) ->  | H58: =IF(D58="","",IF(D58="TOTAL",SUM($H$17:H57),(ROUND(F58*AK58/100,0)))) ->  | I58: 0 | K58: =IF(D58="","",IF(D58=$O$10,$O$8,IF(E58="JUL",MROUND(ROUND(1.03*K57,0),100),IF(D58="TOTAL",SUM($K$17:K57),K57)))) ->  | L58: =IF(D58="","",IF(D58="TOTAL",SUM($L$17:L57),(ROUND(K58*AJ58/100,0)))) ->  | M58: =IF(D58="","",IF(D58="TOTAL",SUM($M$17:M57),(ROUND(K58*AK58/100,0)))) ->  | N58: 0 | S58: 0 | T58: =IF(D58="","",IF(D58="TOTAL",SUM($T$17:T57),IF($U$8="YES",BA58,BD58))) ->  | U58: =IF(D58="","",IF(D58="TOTAL",SUM($U$17:U57),(ROUND(S58*AM58,0)))) ->  | V58: =IF(D58="","",IF(D58=$Y$9,$X$3,IF(D58="TOTAL",SUM($V$17:V57),V57))) ->  | W58: =IF(D58="","",IF(D58="TOTAL",SUM($W$17:W57),(SUM(AG59:AH59)))) ->  | X58: 0 | Y58: 0 | AP58: 2020-08-01 | AQ58: Aug-2020 | AR58: 17 | AS58: 8 | AU58: 0 | AV58: 10% | AZ58: 0 | BA58: 0 | BB58: Aug-2020 | BC58: 0
F59: =IF(D59="","",IF(D59=$N$10,$O$7,IF(E59="JUL",MROUND(ROUND(1.03*F58,0),100),IF(D59="TOTAL",SUM($F$17:F58),F58)))) ->  | G59: =IF(D59="","",IF(D59="TOTAL",SUM($G$17:G58),(ROUND(F59*AJ59/100,0)))) ->  | H59: =IF(D59="","",IF(D59="TOTAL",SUM($H$17:H58),(ROUND(F59*AK59/100,0)))) ->  | I59: 0 | K59: =IF(D59="","",IF(D59=$O$10,$O$8,IF(E59="JUL",MROUND(ROUND(1.03*K58,0),100),IF(D59="TOTAL",SUM($K$17:K58),K58)))) ->  | L59: =IF(D59="","",IF(D59="TOTAL",SUM($L$17:L58),(ROUND(K59*AJ59/100,0)))) ->  | M59: =IF(D59="","",IF(D59="TOTAL",SUM($M$17:M58),(ROUND(K59*AK59/100,0)))) ->  | N59: 0 | S59: 0 | T59: =IF(D59="","",IF(D59="TOTAL",SUM($T$17:T58),IF($U$8="YES",BA59,BD59))) ->  | U59: =IF(D59="","",IF(D59="TOTAL",SUM($U$17:U58),(ROUND(S59*AM59,0)))) ->  | V59: =IF(D59="","",IF(D59=$Y$9,$X$3,IF(D59="TOTAL",SUM($V$17:V58),V58))) ->  | W59: =IF(D59="","",IF(D59="TOTAL",SUM($W$17:W58),(SUM(AG60:AH60)))) ->  | X59: 0 | Y59: 0 | AP59: 2020-09-01 | AQ59: Sep-2020 | AR59: 17 | AS59: 8 | AU59: =IF($Y$6="GPF",AT59,0) -> 0 | AV59: 10% | AX59: 1 | AZ59: 0 | BA59: 0 | BB59: Sep-2020 | BC59: 0
F60: =IF(D60="","",IF(D60=$N$10,$O$7,IF(E60="JUL",MROUND(ROUND(1.03*F59,0),100),IF(D60="TOTAL",SUM($F$17:F59),F59)))) ->  | G60: =IF(D60="","",IF(D60="TOTAL",SUM($G$17:G59),(ROUND(F60*AJ60/100,0)))) ->  | H60: =IF(D60="","",IF(D60="TOTAL",SUM($H$17:H59),(ROUND(F60*AK60/100,0)))) ->  | I60: 0 | K60: =IF(D60="","",IF(D60=$O$10,$O$8,IF(E60="JUL",MROUND(ROUND(1.03*K59,0),100),IF(D60="TOTAL",SUM($K$17:K59),K59)))) ->  | L60: =IF(D60="","",IF(D60="TOTAL",SUM($L$17:L59),(ROUND(K60*AJ60/100,0)))) ->  | M60: =IF(D60="","",IF(D60="TOTAL",SUM($M$17:M59),(ROUND(K60*AK60/100,0)))) ->  | N60: 0 | S60: 0 | T60: =IF(D60="","",IF(D60="TOTAL",SUM($T$17:T59),IF($U$8="YES",BA60,BD60))) ->  | U60: =IF(D60="","",IF(D60="TOTAL",SUM($U$17:U59),(ROUND(S60*AM60,0)))) ->  | V60: =IF(D60="","",IF(D60=$Y$9,$X$3,IF(D60="TOTAL",SUM($V$17:V59),V59))) ->  | W60: =IF(D60="","",IF(D60="TOTAL",SUM($W$17:W59),(SUM(AG61:AH61)))) ->  | X60: 0 | Y60: 0 | AP60: 2020-10-01 | AQ60: Oct-2020 | AR60: 17 | AS60: 8 | AU60: 0 | AV60: 10% | AX60: 1 | AZ60: 0 | BA60: 0 | BB60: Oct-2020 | BC60: 0
F61: =IF(D61="","",IF(D61=$N$10,$O$7,IF(E61="JUL",MROUND(ROUND(1.03*F60,0),100),IF(D61="TOTAL",SUM($F$17:F60),F60)))) ->  | G61: =IF(D61="","",IF(D61="TOTAL",SUM($G$17:G60),(ROUND(F61*AJ61/100,0)))) ->  | H61: =IF(D61="","",IF(D61="TOTAL",SUM($H$17:H60),(ROUND(F61*AK61/100,0)))) ->  | I61: 0 | K61: =IF(D61="","",IF(D61=$O$10,$O$8,IF(E61="JUL",MROUND(ROUND(1.03*K60,0),100),IF(D61="TOTAL",SUM($K$17:K60),K60)))) ->  | L61: =IF(D61="","",IF(D61="TOTAL",SUM($L$17:L60),(ROUND(K61*AJ61/100,0)))) ->  | M61: =IF(D61="","",IF(D61="TOTAL",SUM($M$17:M60),(ROUND(K61*AK61/100,0)))) ->  | N61: 0 | S61: 0 | T61: =IF(D61="","",IF(D61="TOTAL",SUM($T$17:T60),IF($U$8="YES",BA61,BD61))) ->  | U61: =IF(D61="","",IF(D61="TOTAL",SUM($U$17:U60),(ROUND(S61*AM61,0)))) ->  | V61: =IF(D61="","",IF(D61=$Y$9,$X$3,IF(D61="TOTAL",SUM($V$17:V60),V60))) ->  | W61: =IF(D61="","",IF(D61="TOTAL",SUM($W$17:W60),(SUM(AG62:AH62)))) ->  | X61: 0 | Y61: 0 | AP61: 2020-11-01 | AQ61: Nov-2020 | AR61: 17 | AS61: 8 | AU61: 0 | AV61: 10% | AZ61: 0 | BA61: 0 | BB61: Nov-2020 | BC61: 0
F62: =IF(D62="","",IF(D62=$N$10,$O$7,IF(E62="JUL",MROUND(ROUND(1.03*F61,0),100),IF(D62="TOTAL",SUM($F$17:F61),F61)))) ->  | G62: =IF(D62="","",IF(D62="TOTAL",SUM($G$17:G61),(ROUND(F62*AJ62/100,0)))) ->  | H62: =IF(D62="","",IF(D62="TOTAL",SUM($H$17:H61),(ROUND(F62*AK62/100,0)))) ->  | I62: 0 | K62: =IF(D62="","",IF(D62=$O$10,$O$8,IF(E62="JUL",MROUND(ROUND(1.03*K61,0),100),IF(D62="TOTAL",SUM($K$17:K61),K61)))) ->  | L62: =IF(D62="","",IF(D62="TOTAL",SUM($L$17:L61),(ROUND(K62*AJ62/100,0)))) ->  | M62: =IF(D62="","",IF(D62="TOTAL",SUM($M$17:M61),(ROUND(K62*AK62/100,0)))) ->  | N62: 0 | S62: 0 | T62: =IF(D62="","",IF(D62="TOTAL",SUM($T$17:T61),IF($U$8="YES",BA62,BD62))) ->  | U62: =IF(D62="","",IF(D62="TOTAL",SUM($U$17:U61),(ROUND(S62*AM62,0)))) ->  | V62: =IF(D62="","",IF(D62=$Y$9,$X$3,IF(D62="TOTAL",SUM($V$17:V61),V61))) ->  | W62: =IF(D62="","",IF(D62="TOTAL",SUM($W$17:W61),(SUM(AG63:AH63)))) ->  | X62: 0 | Y62: 0 | AP62: 2020-12-01 | AQ62: Dec-2020 | AR62: 17 | AS62: 8 | AU62: 0 | AV62: 10% | AZ62: 0 | BA62: 0 | BB62: Dec-2020 | BC62: 0
F63: =IF(D63="","",IF(D63=$N$10,$O$7,IF(E63="JUL",MROUND(ROUND(1.03*F62,0),100),IF(D63="TOTAL",SUM($F$17:F62),F62)))) ->  | G63: =IF(D63="","",IF(D63="TOTAL",SUM($G$17:G62),(ROUND(F63*AJ63/100,0)))) ->  | H63: =IF(D63="","",IF(D63="TOTAL",SUM($H$17:H62),(ROUND(F63*AK63/100,0)))) ->  | I63: 0 | K63: =IF(D63="","",IF(D63=$O$10,$O$8,IF(E63="JUL",MROUND(ROUND(1.03*K62,0),100),IF(D63="TOTAL",SUM($K$17:K62),K62)))) ->  | L63: =IF(D63="","",IF(D63="TOTAL",SUM($L$17:L62),(ROUND(K63*AJ63/100,0)))) ->  | M63: =IF(D63="","",IF(D63="TOTAL",SUM($M$17:M62),(ROUND(K63*AK63/100,0)))) ->  | N63: 0 | S63: 0 | T63: =IF(D63="","",IF(D63="TOTAL",SUM($T$17:T62),IF($U$8="YES",BA63,BD63))) ->  | U63: =IF(D63="","",IF(D63="TOTAL",SUM($U$17:U62),(ROUND(S63*AM63,0)))) ->  | V63: =IF(D63="","",IF(D63=$Y$9,$X$3,IF(D63="TOTAL",SUM($V$17:V62),V62))) ->  | W63: =IF(D63="","",IF(D63="TOTAL",SUM($W$17:W62),(SUM(AG64:AH64)))) ->  | X63: 0 | Y63: 0 | AP63: 2021-01-01 | AQ63: Jan-2021 | AR63: 17 | AS63: 8 | AU63: 0 | AV63: 10% | AZ63: 0 | BA63: 0 | BB63: Jan-2021 | BC63: 0
F64: =IF(D64="","",IF(D64=$N$10,$O$7,IF(E64="JUL",MROUND(ROUND(1.03*F63,0),100),IF(D64="TOTAL",SUM($F$17:F63),F63)))) ->  | G64: =IF(D64="","",IF(D64="TOTAL",SUM($G$17:G63),(ROUND(F64*AJ64/100,0)))) ->  | H64: =IF(D64="","",IF(D64="TOTAL",SUM($H$17:H63),(ROUND(F64*AK64/100,0)))) ->  | I64: 0 | K64: =IF(D64="","",IF(D64=$O$10,$O$8,IF(E64="JUL",MROUND(ROUND(1.03*K63,0),100),IF(D64="TOTAL",SUM($K$17:K63),K63)))) ->  | L64: =IF(D64="","",IF(D64="TOTAL",SUM($L$17:L63),(ROUND(K64*AJ64/100,0)))) ->  | M64: =IF(D64="","",IF(D64="TOTAL",SUM($M$17:M63),(ROUND(K64*AK64/100,0)))) ->  | N64: 0 | S64: 0 | T64: =IF(D64="","",IF(D64="TOTAL",SUM($T$17:T63),IF($U$8="YES",BA64,BD64))) ->  | U64: =IF(D64="","",IF(D64="TOTAL",SUM($U$17:U63),(ROUND(S64*AM64,0)))) ->  | V64: =IF(D64="","",IF(D64=$Y$9,$X$3,IF(D64="TOTAL",SUM($V$17:V63),V63))) ->  | W64: =IF(D64="","",IF(D64="TOTAL",SUM($W$17:W63),(SUM(AG65:AH65)))) ->  | X64: 0 | Y64: 0 | AP64: 2021-02-01 | AQ64: Feb-2021 | AR64: 17 | AS64: 8 | AU64: 0 | AV64: 10% | AZ64: 0 | BA64: 0 | BB64: Feb-2021 | BC64: 0
F65: =IF(D65="","",IF(D65=$N$10,$O$7,IF(E65="JUL",MROUND(ROUND(1.03*F64,0),100),IF(D65="TOTAL",SUM($F$17:F64),F64)))) ->  | G65: =IF(D65="","",IF(D65="TOTAL",SUM($G$17:G64),(ROUND(F65*AJ65/100,0)))) ->  | H65: =IF(D65="","",IF(D65="TOTAL",SUM($H$17:H64),(ROUND(F65*AK65/100,0)))) ->  | I65: 0 | K65: =IF(D65="","",IF(D65=$O$10,$O$8,IF(E65="JUL",MROUND(ROUND(1.03*K64,0),100),IF(D65="TOTAL",SUM($K$17:K64),K64)))) ->  | L65: =IF(D65="","",IF(D65="TOTAL",SUM($L$17:L64),(ROUND(K65*AJ65/100,0)))) ->  | M65: =IF(D65="","",IF(D65="TOTAL",SUM($M$17:M64),(ROUND(K65*AK65/100,0)))) ->  | N65: 0 | S65: 0 | T65: =IF(D65="","",IF(D65="TOTAL",SUM($T$17:T64),IF($U$8="YES",BA65,BD65))) ->  | U65: =IF(D65="","",IF(D65="TOTAL",SUM($U$17:U64),(ROUND(S65*AM65,0)))) ->  | V65: =IF(D65="","",IF(D65=$Y$9,$X$3,IF(D65="TOTAL",SUM($V$17:V64),V64))) ->  | W65: =IF(D65="","",IF(D65="TOTAL",SUM($W$17:W64),(SUM(AG66:AH66)))) ->  | X65: 0 | Y65: 0 | AP65: 2021-03-01 | AQ65: Mar-2021 | AR65: 17 | AS65: 8 | AU65: 0 | AV65: 10% | AZ65: 0 | BA65: 0 | BB65: Mar-2021 | BC65: 0
F66: =IF(D66="","",IF(D66=$N$10,$O$7,IF(E66="JUL",MROUND(ROUND(1.03*F65,0),100),IF(D66="TOTAL",SUM($F$17:F65),F65)))) ->  | G66: =IF(D66="","",IF(D66="TOTAL",SUM($G$17:G65),(ROUND(F66*AJ66/100,0)))) ->  | H66: =IF(D66="","",IF(D66="TOTAL",SUM($H$17:H65),(ROUND(F66*AK66/100,0)))) ->  | I66: 0 | K66: =IF(D66="","",IF(D66=$O$10,$O$8,IF(E66="JUL",MROUND(ROUND(1.03*K65,0),100),IF(D66="TOTAL",SUM($K$17:K65),K65)))) ->  | L66: =IF(D66="","",IF(D66="TOTAL",SUM($L$17:L65),(ROUND(K66*AJ66/100,0)))) ->  | M66: =IF(D66="","",IF(D66="TOTAL",SUM($M$17:M65),(ROUND(K66*AK66/100,0)))) ->  | N66: 0 | S66: 0 | T66: =IF(D66="","",IF(D66="TOTAL",SUM($T$17:T65),IF($U$8="YES",BA66,BD66))) ->  | U66: =IF(D66="","",IF(D66="TOTAL",SUM($U$17:U65),(ROUND(S66*AM66,0)))) ->  | V66: =IF(D66="","",IF(D66=$Y$9,$X$3,IF(D66="TOTAL",SUM($V$17:V65),V65))) ->  | W66: =IF(D66="","",IF(D66="TOTAL",SUM($W$17:W65),(SUM(AG67:AH67)))) ->  | X66: 0 | Y66: 0 | AP66: 2021-04-01 | AQ66: Apr-2021 | AR66: 17 | AS66: 8 | AU66: 0 | AV66: 10% | AZ66: 0 | BA66: 0 | BB66: Apr-2021 | BC66: 0
F67: =IF(D67="","",IF(D67=$N$10,$O$7,IF(E67="JUL",MROUND(ROUND(1.03*F66,0),100),IF(D67="TOTAL",SUM($F$17:F66),F66)))) ->  | G67: =IF(D67="","",IF(D67="TOTAL",SUM($G$17:G66),(ROUND(F67*AJ67/100,0)))) ->  | H67: =IF(D67="","",IF(D67="TOTAL",SUM($H$17:H66),(ROUND(F67*AK67/100,0)))) ->  | I67: 0 | K67: =IF(D67="","",IF(D67=$O$10,$O$8,IF(E67="JUL",MROUND(ROUND(1.03*K66,0),100),IF(D67="TOTAL",SUM($K$17:K66),K66)))) ->  | L67: =IF(D67="","",IF(D67="TOTAL",SUM($L$17:L66),(ROUND(K67*AJ67/100,0)))) ->  | M67: =IF(D67="","",IF(D67="TOTAL",SUM($M$17:M66),(ROUND(K67*AK67/100,0)))) ->  | N67: 0 | S67: 0 | T67: =IF(D67="","",IF(D67="TOTAL",SUM($T$17:T66),IF($U$8="YES",BA67,BD67))) ->  | U67: =IF(D67="","",IF(D67="TOTAL",SUM($U$17:U66),(ROUND(S67*AM67,0)))) ->  | V67: =IF(D67="","",IF(D67=$Y$9,$X$3,IF(D67="TOTAL",SUM($V$17:V66),V66))) ->  | W67: =IF(D67="","",IF(D67="TOTAL",SUM($W$17:W66),(SUM(AG68:AH68)))) ->  | X67: 0 | Y67: 0 | AP67: 2021-05-01 | AQ67: May-2021 | AR67: 17 | AS67: 8 | AU67: 0 | AV67: 10% | AZ67: 0 | BA67: 0 | BB67: May-2021 | BC67: 0
F68: =IF(D68="","",IF(D68=$N$10,$O$7,IF(E68="JUL",MROUND(ROUND(1.03*F67,0),100),IF(D68="TOTAL",SUM($F$17:F67),F67)))) ->  | G68: =IF(D68="","",IF(D68="TOTAL",SUM($G$17:G67),(ROUND(F68*AJ68/100,0)))) ->  | H68: =IF(D68="","",IF(D68="TOTAL",SUM($H$17:H67),(ROUND(F68*AK68/100,0)))) ->  | I68: 0 | K68: =IF(D68="","",IF(D68=$O$10,$O$8,IF(E68="JUL",MROUND(ROUND(1.03*K67,0),100),IF(D68="TOTAL",SUM($K$17:K67),K67)))) ->  | L68: =IF(D68="","",IF(D68="TOTAL",SUM($L$17:L67),(ROUND(K68*AJ68/100,0)))) ->  | M68: =IF(D68="","",IF(D68="TOTAL",SUM($M$17:M67),(ROUND(K68*AK68/100,0)))) ->  | N68: 0 | S68: 0 | T68: =IF(D68="","",IF(D68="TOTAL",SUM($T$17:T67),IF($U$8="YES",BA68,BD68))) ->  | U68: =IF(D68="","",IF(D68="TOTAL",SUM($U$17:U67),(ROUND(S68*AM68,0)))) ->  | V68: =IF(D68="","",IF(D68=$Y$9,$X$3,IF(D68="TOTAL",SUM($V$17:V67),V67))) ->  | W68: =IF(D68="","",IF(D68="TOTAL",SUM($W$17:W67),(SUM(AG69:AH69)))) ->  | X68: 0 | Y68: 0 | AP68: 2021-06-01 | AQ68: Jun-2021 | AR68: 17 | AS68: 8 | AU68: 0 | AV68: 10% | AZ68: 0 | BA68: 0 | BB68: Jun-2021 | BC68: 0
F69: =IF(D69="","",IF(D69=$N$10,$O$7,IF(E69="JUL",MROUND(ROUND(1.03*F68,0),100),IF(D69="TOTAL",SUM($F$17:F68),F68)))) ->  | G69: =IF(D69="","",IF(D69="TOTAL",SUM($G$17:G68),(ROUND(F69*AJ69/100,0)))) ->  | H69: =IF(D69="","",IF(D69="TOTAL",SUM($H$17:H68),(ROUND(F69*AK69/100,0)))) ->  | I69: 0 | K69: =IF(D69="","",IF(D69=$O$10,$O$8,IF(E69="JUL",MROUND(ROUND(1.03*K68,0),100),IF(D69="TOTAL",SUM($K$17:K68),K68)))) ->  | L69: =IF(D69="","",IF(D69="TOTAL",SUM($L$17:L68),(ROUND(K69*AJ69/100,0)))) ->  | M69: =IF(D69="","",IF(D69="TOTAL",SUM($M$17:M68),(ROUND(K69*AK69/100,0)))) ->  | N69: 0 | S69: 0 | T69: =IF(D69="","",IF(D69="TOTAL",SUM($T$17:T68),IF($U$8="YES",BA69,BD69))) ->  | U69: =IF(D69="","",IF(D69="TOTAL",SUM($U$17:U68),(ROUND(S69*AM69,0)))) ->  | V69: =IF(D69="","",IF(D69=$Y$9,$X$3,IF(D69="TOTAL",SUM($V$17:V68),V68))) ->  | W69: =IF(D69="","",IF(D69="TOTAL",SUM($W$17:W68),(SUM(AG70:AH70)))) ->  | X69: 0 | Y69: 0 | AP69: 2021-07-01 | AQ69: Jul-2021 | AR69: 31 | AS69: =V6 -> 9 | AT69: 3 | AU69: 0 | AV69: 10% | AZ69: =IF($Y$6="REGULAR",$V$6,0) -> 0 | BA69: 0 | BB69: Jul-2021 | BC69: 0
F70: =IF(D70="","",IF(D70=$N$10,$O$7,IF(E70="JUL",MROUND(ROUND(1.03*F69,0),100),IF(D70="TOTAL",SUM($F$17:F69),F69)))) ->  | G70: =IF(D70="","",IF(D70="TOTAL",SUM($G$17:G69),(ROUND(F70*AJ70/100,0)))) ->  | H70: =IF(D70="","",IF(D70="TOTAL",SUM($H$17:H69),(ROUND(F70*AK70/100,0)))) ->  | I70: 0 | K70: =IF(D70="","",IF(D70=$O$10,$O$8,IF(E70="JUL",MROUND(ROUND(1.03*K69,0),100),IF(D70="TOTAL",SUM($K$17:K69),K69)))) ->  | L70: =IF(D70="","",IF(D70="TOTAL",SUM($L$17:L69),(ROUND(K70*AJ70/100,0)))) ->  | M70: =IF(D70="","",IF(D70="TOTAL",SUM($M$17:M69),(ROUND(K70*AK70/100,0)))) ->  | N70: 0 | S70: 0 | T70: =IF(D70="","",IF(D70="TOTAL",SUM($T$17:T69),IF($U$8="YES",BA70,BD70))) ->  | U70: =IF(D70="","",IF(D70="TOTAL",SUM($U$17:U69),(ROUND(S70*AM70,0)))) ->  | V70: =IF(D70="","",IF(D70=$Y$9,$X$3,IF(D70="TOTAL",SUM($V$17:V69),V69))) ->  | W70: =IF(D70="","",IF(D70="TOTAL",SUM($W$17:W69),(SUM(AG71:AH71)))) ->  | X70: 0 | Y70: 0 | AP70: 2021-08-01 | AQ70: Aug-2021 | AR70: 31 | AS70: =AS69 -> 9 | AT70: 3 | AU70: 0 | AV70: 10% | AZ70: 0 | BA70: 0 | BB70: Aug-2021 | BC70: 0
F71: =IF(D71="","",IF(D71=$N$10,$O$7,IF(E71="JUL",MROUND(ROUND(1.03*F70,0),100),IF(D71="TOTAL",SUM($F$17:F70),F70)))) ->  | G71: =IF(D71="","",IF(D71="TOTAL",SUM($G$17:G70),(ROUND(F71*AJ71/100,0)))) ->  | H71: =IF(D71="","",IF(D71="TOTAL",SUM($H$17:H70),(ROUND(F71*AK71/100,0)))) ->  | I71: 0 | K71: =IF(D71="","",IF(D71=$O$10,$O$8,IF(E71="JUL",MROUND(ROUND(1.03*K70,0),100),IF(D71="TOTAL",SUM($K$17:K70),K70)))) ->  | L71: =IF(D71="","",IF(D71="TOTAL",SUM($L$17:L70),(ROUND(K71*AJ71/100,0)))) ->  | M71: =IF(D71="","",IF(D71="TOTAL",SUM($M$17:M70),(ROUND(K71*AK71/100,0)))) ->  | N71: 0 | S71: 0 | T71: =IF(D71="","",IF(D71="TOTAL",SUM($T$17:T70),IF($U$8="YES",BA71,BD71))) ->  | U71: =IF(D71="","",IF(D71="TOTAL",SUM($U$17:U70),(ROUND(S71*AM71,0)))) ->  | V71: =IF(D71="","",IF(D71=$Y$9,$X$3,IF(D71="TOTAL",SUM($V$17:V70),V70))) ->  | W71: =IF(D71="","",IF(D71="TOTAL",SUM($W$17:W70),(SUM(AG72:AH72)))) ->  | X71: 0 | Y71: 0 | AP71: 2021-09-01 | AQ71: Sep-2021 | AR71: 31 | AS71: =AS70 -> 9 | AT71: 3 | AU71: 0 | AV71: 10% | AZ71: 0 | BA71: 0 | BB71: Sep-2021 | BC71: 0
F72: =IF(D72="","",IF(D72=$N$10,$O$7,IF(E72="JUL",MROUND(ROUND(1.03*F71,0),100),IF(D72="TOTAL",SUM($F$17:F71),F71)))) ->  | G72: =IF(D72="","",IF(D72="TOTAL",SUM($G$17:G71),(ROUND(F72*AJ72/100,0)))) ->  | H72: =IF(D72="","",IF(D72="TOTAL",SUM($H$17:H71),(ROUND(F72*AK72/100,0)))) ->  | I72: 0 | K72: =IF(D72="","",IF(D72=$O$10,$O$8,IF(E72="JUL",MROUND(ROUND(1.03*K71,0),100),IF(D72="TOTAL",SUM($K$17:K71),K71)))) ->  | L72: =IF(D72="","",IF(D72="TOTAL",SUM($L$17:L71),(ROUND(K72*AJ72/100,0)))) ->  | M72: =IF(D72="","",IF(D72="TOTAL",SUM($M$17:M71),(ROUND(K72*AK72/100,0)))) ->  | N72: 0 | S72: 0 | T72: =IF(D72="","",IF(D72="TOTAL",SUM($T$17:T71),IF($U$8="YES",BA72,BD72))) ->  | U72: =IF(D72="","",IF(D72="TOTAL",SUM($U$17:U71),(ROUND(S72*AM72,0)))) ->  | V72: =IF(D72="","",IF(D72=$Y$9,$X$3,IF(D72="TOTAL",SUM($V$17:V71),V71))) ->  | W72: =IF(D72="","",IF(D72="TOTAL",SUM($W$17:W71),(SUM(AG73:AH73)))) ->  | X72: 0 | Y72: 0 | AP72: 2021-10-01 | AQ72: Oct-2021 | AR72: 31 | AS72: 9 | AU72: 0 | AV72: 10% | AZ72: 0 | BA72: 0 | BB72: Oct-2021 | BC72: 0
F73: =IF(D73="","",IF(D73=$N$10,$O$7,IF(E73="JUL",MROUND(ROUND(1.03*F72,0),100),IF(D73="TOTAL",SUM($F$17:F72),F72)))) ->  | G73: =IF(D73="","",IF(D73="TOTAL",SUM($G$17:G72),(ROUND(F73*AJ73/100,0)))) ->  | H73: =IF(D73="","",IF(D73="TOTAL",SUM($H$17:H72),(ROUND(F73*AK73/100,0)))) ->  | I73: 0 | K73: =IF(D73="","",IF(D73=$O$10,$O$8,IF(E73="JUL",MROUND(ROUND(1.03*K72,0),100),IF(D73="TOTAL",SUM($K$17:K72),K72)))) ->  | L73: =IF(D73="","",IF(D73="TOTAL",SUM($L$17:L72),(ROUND(K73*AJ73/100,0)))) ->  | M73: =IF(D73="","",IF(D73="TOTAL",SUM($M$17:M72),(ROUND(K73*AK73/100,0)))) ->  | N73: 0 | S73: 0 | T73: =IF(D73="","",IF(D73="TOTAL",SUM($T$17:T72),IF($U$8="YES",BA73,BD73))) ->  | U73: =IF(D73="","",IF(D73="TOTAL",SUM($U$17:U72),(ROUND(S73*AM73,0)))) ->  | V73: =IF(D73="","",IF(D73=$Y$9,$X$3,IF(D73="TOTAL",SUM($V$17:V72),V72))) ->  | W73: =IF(D73="","",IF(D73="TOTAL",SUM($W$17:W72),(SUM(AG74:AH74)))) ->  | X73: 0 | Y73: 0 | AP73: 2021-11-01 | AQ73: Nov-2021 | AR73: 31 | AS73: 9 | AU73: 0 | AV73: 10% | AZ73: 0 | BA73: 0 | BB73: Nov-2021 | BC73: 0
F74: =IF(D74="","",IF(D74=$N$10,$O$7,IF(E74="JUL",MROUND(ROUND(1.03*F73,0),100),IF(D74="TOTAL",SUM($F$17:F73),F73)))) ->  | G74: =IF(D74="","",IF(D74="TOTAL",SUM($G$17:G73),(ROUND(F74*AJ74/100,0)))) ->  | H74: =IF(D74="","",IF(D74="TOTAL",SUM($H$17:H73),(ROUND(F74*AK74/100,0)))) ->  | I74: 0 | K74: =IF(D74="","",IF(D74=$O$10,$O$8,IF(E74="JUL",MROUND(ROUND(1.03*K73,0),100),IF(D74="TOTAL",SUM($K$17:K73),K73)))) ->  | L74: =IF(D74="","",IF(D74="TOTAL",SUM($L$17:L73),(ROUND(K74*AJ74/100,0)))) ->  | M74: =IF(D74="","",IF(D74="TOTAL",SUM($M$17:M73),(ROUND(K74*AK74/100,0)))) ->  | N74: 0 | S74: 0 | T74: =IF(D74="","",IF(D74="TOTAL",SUM($T$17:T73),IF($U$8="YES",BA74,BD74))) ->  | U74: =IF(D74="","",IF(D74="TOTAL",SUM($U$17:U73),(ROUND(S74*AM74,0)))) ->  | V74: =IF(D74="","",IF(D74=$Y$9,$X$3,IF(D74="TOTAL",SUM($V$17:V73),V73))) ->  | W74: =IF(D74="","",IF(D74="TOTAL",SUM($W$17:W73),(SUM(AG75:AH75)))) ->  | X74: 0 | Y74: 0 | AP74: 2021-12-01 | AQ74: Dec-2021 | AR74: 31 | AS74: 9 | AU74: 0 | AV74: 10% | AZ74: 0 | BA74: 0 | BB74: Dec-2021 | BC74: 0
F75: =IF(D75="","",IF(D75=$N$10,$O$7,IF(E75="JUL",MROUND(ROUND(1.03*F74,0),100),IF(D75="TOTAL",SUM($F$17:F74),F74)))) ->  | G75: =IF(D75="","",IF(D75="TOTAL",SUM($G$17:G74),(ROUND(F75*AJ75/100,0)))) ->  | H75: =IF(D75="","",IF(D75="TOTAL",SUM($H$17:H74),(ROUND(F75*AK75/100,0)))) ->  | I75: 0 | K75: =IF(D75="","",IF(D75=$O$10,$O$8,IF(E75="JUL",MROUND(ROUND(1.03*K74,0),100),IF(D75="TOTAL",SUM($K$17:K74),K74)))) ->  | L75: =IF(D75="","",IF(D75="TOTAL",SUM($L$17:L74),(ROUND(K75*AJ75/100,0)))) ->  | M75: =IF(D75="","",IF(D75="TOTAL",SUM($M$17:M74),(ROUND(K75*AK75/100,0)))) ->  | N75: 0 | S75: 0 | T75: =IF(D75="","",IF(D75="TOTAL",SUM($T$17:T74),IF($U$8="YES",BA75,BD75))) ->  | U75: =IF(D75="","",IF(D75="TOTAL",SUM($U$17:U74),(ROUND(S75*AM75,0)))) ->  | V75: =IF(D75="","",IF(D75=$Y$9,$X$3,IF(D75="TOTAL",SUM($V$17:V74),V74))) ->  | W75: =IF(D75="","",IF(D75="TOTAL",SUM($W$17:W74),(SUM(AG76:AH76)))) ->  | X75: 0 | Y75: 0 | AP75: 2022-01-01 | AQ75: Jan-2022 | AR75: 34 | AS75: 9 | AT75: 3 | AU75: 0 | AV75: 10% | AZ75: 0 | BA75: 0 | BB75: Jan-2022 | BC75: 0
F76: =IF(D76="","",IF(D76=$N$10,$O$7,IF(E76="JUL",MROUND(ROUND(1.03*F75,0),100),IF(D76="TOTAL",SUM($F$17:F75),F75)))) ->  | G76: =IF(D76="","",IF(D76="TOTAL",SUM($G$17:G75),(ROUND(F76*AJ76/100,0)))) ->  | H76: =IF(D76="","",IF(D76="TOTAL",SUM($H$17:H75),(ROUND(F76*AK76/100,0)))) ->  | I76: 0 | K76: =IF(D76="","",IF(D76=$O$10,$O$8,IF(E76="JUL",MROUND(ROUND(1.03*K75,0),100),IF(D76="TOTAL",SUM($K$17:K75),K75)))) ->  | L76: =IF(D76="","",IF(D76="TOTAL",SUM($L$17:L75),(ROUND(K76*AJ76/100,0)))) ->  | M76: =IF(D76="","",IF(D76="TOTAL",SUM($M$17:M75),(ROUND(K76*AK76/100,0)))) ->  | N76: 0 | S76: 0 | T76: =IF(D76="","",IF(D76="TOTAL",SUM($T$17:T75),IF($U$8="YES",BA76,BD76))) ->  | U76: =IF(D76="","",IF(D76="TOTAL",SUM($U$17:U75),(ROUND(S76*AM76,0)))) ->  | V76: =IF(D76="","",IF(D76=$Y$9,$X$3,IF(D76="TOTAL",SUM($V$17:V75),V75))) ->  | W76: =IF(D76="","",IF(D76="TOTAL",SUM($W$17:W75),(SUM(AG77:AH77)))) ->  | X76: 0 | Y76: 0 | AP76: 2022-02-01 | AQ76: Feb-2022 | AR76: 34 | AS76: 9 | AT76: 3 | AU76: 0 | AV76: 10% | AZ76: 0 | BA76: 0 | BB76: Feb-2022 | BC76: 0
F77: =IF(D77="","",IF(D77=$N$10,$O$7,IF(E77="JUL",MROUND(ROUND(1.03*F76,0),100),IF(D77="TOTAL",SUM($F$17:F76),F76)))) ->  | G77: =IF(D77="","",IF(D77="TOTAL",SUM($G$17:G76),(ROUND(F77*AJ77/100,0)))) ->  | H77: =IF(D77="","",IF(D77="TOTAL",SUM($H$17:H76),(ROUND(F77*AK77/100,0)))) ->  | I77: 0 | K77: =IF(D77="","",IF(D77=$O$10,$O$8,IF(E77="JUL",MROUND(ROUND(1.03*K76,0),100),IF(D77="TOTAL",SUM($K$17:K76),K76)))) ->  | L77: =IF(D77="","",IF(D77="TOTAL",SUM($L$17:L76),(ROUND(K77*AJ77/100,0)))) ->  | M77: =IF(D77="","",IF(D77="TOTAL",SUM($M$17:M76),(ROUND(K77*AK77/100,0)))) ->  | N77: 0 | S77: 0 | T77: =IF(D77="","",IF(D77="TOTAL",SUM($T$17:T76),IF($U$8="YES",BA77,BD77))) ->  | U77: =IF(D77="","",IF(D77="TOTAL",SUM($U$17:U76),(ROUND(S77*AM77,0)))) ->  | V77: =IF(D77="","",IF(D77=$Y$9,$X$3,IF(D77="TOTAL",SUM($V$17:V76),V76))) ->  | W77: =IF(D77="","",IF(D77="TOTAL",SUM($W$17:W76),(SUM(AG78:AH78)))) ->  | X77: 0 | Y77: 0 | AP77: 2022-03-01 | AQ77: Mar-2022 | AR77: 34 | AS77: 9 | AT77: 3 | AU77: 0 | AV77: 10% | AZ77: 0 | BA77: 0 | BB77: Mar-2022 | BC77: 0
F78: =IF(D78="","",IF(D78=$N$10,$O$7,IF(E78="JUL",MROUND(ROUND(1.03*F77,0),100),IF(D78="TOTAL",SUM($F$17:F77),F77)))) ->  | G78: =IF(D78="","",IF(D78="TOTAL",SUM($G$17:G77),(ROUND(F78*AJ78/100,0)))) ->  | H78: =IF(D78="","",IF(D78="TOTAL",SUM($H$17:H77),(ROUND(F78*AK78/100,0)))) ->  | I78: 0 | K78: =IF(D78="","",IF(D78=$O$10,$O$8,IF(E78="JUL",MROUND(ROUND(1.03*K77,0),100),IF(D78="TOTAL",SUM($K$17:K77),K77)))) ->  | L78: =IF(D78="","",IF(D78="TOTAL",SUM($L$17:L77),(ROUND(K78*AJ78/100,0)))) ->  | M78: =IF(D78="","",IF(D78="TOTAL",SUM($M$17:M77),(ROUND(K78*AK78/100,0)))) ->  | N78: 0 | S78: 0 | T78: =IF(D78="","",IF(D78="TOTAL",SUM($T$17:T77),IF($U$8="YES",BA78,BD78))) ->  | U78: =IF(D78="","",IF(D78="TOTAL",SUM($U$17:U77),(ROUND(S78*AM78,0)))) ->  | V78: =IF(D78="","",IF(D78=$Y$9,$X$3,IF(D78="TOTAL",SUM($V$17:V77),V77))) ->  | W78: =IF(D78="","",IF(D78="TOTAL",SUM($W$17:W77),(SUM(AG79:AH79)))) ->  | X78: 0 | Y78: 0 | AP78: 2022-04-01 | AQ78: Apr-2022 | AR78: 34 | AS78: 9 | AU78: 0 | AV78: 10% | AZ78: 0 | BA78: 0 | BB78: Apr-2022 | BC78: 0
F79: =IF(D79="","",IF(D79=$N$10,$O$7,IF(E79="JUL",MROUND(ROUND(1.03*F78,0),100),IF(D79="TOTAL",SUM($F$17:F78),F78)))) ->  | G79: =IF(D79="","",IF(D79="TOTAL",SUM($G$17:G78),(ROUND(F79*AJ79/100,0)))) ->  | H79: =IF(D79="","",IF(D79="TOTAL",SUM($H$17:H78),(ROUND(F79*AK79/100,0)))) ->  | I79: 0 | K79: =IF(D79="","",IF(D79=$O$10,$O$8,IF(E79="JUL",MROUND(ROUND(1.03*K78,0),100),IF(D79="TOTAL",SUM($K$17:K78),K78)))) ->  | L79: =IF(D79="","",IF(D79="TOTAL",SUM($L$17:L78),(ROUND(K79*AJ79/100,0)))) ->  | M79: =IF(D79="","",IF(D79="TOTAL",SUM($M$17:M78),(ROUND(K79*AK79/100,0)))) ->  | N79: 0 | S79: 0 | T79: =IF(D79="","",IF(D79="TOTAL",SUM($T$17:T78),IF($U$8="YES",BA79,BD79))) ->  | U79: =IF(D79="","",IF(D79="TOTAL",SUM($U$17:U78),(ROUND(S79*AM79,0)))) ->  | V79: =IF(D79="","",IF(D79=$Y$9,$X$3,IF(D79="TOTAL",SUM($V$17:V78),V78))) ->  | W79: =IF(D79="","",IF(D79="TOTAL",SUM($W$17:W78),(SUM(AG80:AH80)))) ->  | X79: 0 | Y79: 0 | AP79: 2022-05-01 | AQ79: May-2022 | AR79: 34 | AS79: 9 | AU79: 0 | AV79: 10% | AZ79: 0 | BA79: 0 | BB79: May-2022 | BC79: 0
F80: =IF(D80="","",IF(D80=$N$10,$O$7,IF(E80="JUL",MROUND(ROUND(1.03*F79,0),100),IF(D80="TOTAL",SUM($F$17:F79),F79)))) ->  | G80: =IF(D80="","",IF(D80="TOTAL",SUM($G$17:G79),(ROUND(F80*AJ80/100,0)))) ->  | H80: =IF(D80="","",IF(D80="TOTAL",SUM($H$17:H79),(ROUND(F80*AK80/100,0)))) ->  | I80: 0 | K80: =IF(D80="","",IF(D80=$O$10,$O$8,IF(E80="JUL",MROUND(ROUND(1.03*K79,0),100),IF(D80="TOTAL",SUM($K$17:K79),K79)))) ->  | L80: =IF(D80="","",IF(D80="TOTAL",SUM($L$17:L79),(ROUND(K80*AJ80/100,0)))) ->  | M80: =IF(D80="","",IF(D80="TOTAL",SUM($M$17:M79),(ROUND(K80*AK80/100,0)))) ->  | N80: 0 | S80: 0 | T80: =IF(D80="","",IF(D80="TOTAL",SUM($T$17:T79),IF($U$8="YES",BA80,BD80))) ->  | U80: =IF(D80="","",IF(D80="TOTAL",SUM($U$17:U79),(ROUND(S80*AM80,0)))) ->  | V80: =IF(D80="","",IF(D80=$Y$9,$X$3,IF(D80="TOTAL",SUM($V$17:V79),V79))) ->  | W80: =IF(D80="","",IF(D80="TOTAL",SUM($W$17:W79),(SUM(AG81:AH81)))) ->  | X80: 0 | Y80: 0 | AP80: 2022-06-01 | AQ80: =TEXT(AP80,"mmm-yyyy") -> Jun-2022 | AR80: 34 | AS80: 9 | AU80: 0 | AV80: 10% | AZ80: 0 | BA80: 0 | BB80: =AQ80 -> Jun-2022 | BC80: 0
F81: =IF(D81="","",IF(D81=$N$10,$O$7,IF(E81="JUL",MROUND(ROUND(1.03*F80,0),100),IF(D81="TOTAL",SUM($F$17:F80),F80)))) ->  | G81: =IF(D81="","",IF(D81="TOTAL",SUM($G$17:G80),(ROUND(F81*AJ81/100,0)))) ->  | H81: =IF(D81="","",IF(D81="TOTAL",SUM($H$17:H80),(ROUND(F81*AK81/100,0)))) ->  | I81: 0 | K81: =IF(D81="","",IF(D81=$O$10,$O$8,IF(E81="JUL",MROUND(ROUND(1.03*K80,0),100),IF(D81="TOTAL",SUM($K$17:K80),K80)))) ->  | L81: =IF(D81="","",IF(D81="TOTAL",SUM($L$17:L80),(ROUND(K81*AJ81/100,0)))) ->  | M81: =IF(D81="","",IF(D81="TOTAL",SUM($M$17:M80),(ROUND(K81*AK81/100,0)))) ->  | N81: 0 | O81: =IFERROR(MIN(F81-K81),"") ->  | P81: =IFERROR(MIN(G81-L81),"") ->  | S81: 0 | T81: =IF(D81="","",IF(D81="TOTAL",SUM($T$17:T80),IF($U$8="YES",BA81,BD81))) ->  | U81: =IF(D81="","",IF(D81="TOTAL",SUM($U$17:U80),(ROUND(S81*AM81,0)))) ->  | V81: =IF(D81="","",IF(D81=$Y$9,$X$3,IF(D81="TOTAL",SUM($V$17:V80),V80))) ->  | W81: =IF(D81="","",IF(D81="TOTAL",SUM($W$17:W80),(SUM(AG82:AH82)))) ->  | X81: 0 | Y81: 0 | AE81: =IFERROR(VLOOKUP(D81,$AQ$15:$BE$211,8,0),"") ->  | AF81: =IFERROR(VLOOKUP(D81,$AQ$15:$BE$211,9,0),"") ->  | AG81: =IFERROR(ROUND(O81/31*AN81,0),"") ->  | AH81: =IFERROR(ROUND(S81/31*AO81,0),"") ->  | AJ81: =IFERROR(VLOOKUP(D81,$AQ$15:$AR$211,2,0),"") ->  | AK81: =IFERROR(VLOOKUP(D81,$AQ$15:$AAT$211,3,0),"") ->  | AM81: =IFERROR(VLOOKUP(D81,$AQ$15:$AAU$211,6,0),"") ->  | AN81: =IFERROR(VLOOKUP(D81,$AQ$15:$AAU$111,7,0),"") ->  | AO81: =IFERROR(VLOOKUP(D81,$AQ$15:$AAU$111,8,0),"") ->  | AP81: 2022-07-01 | AQ81: Jul-2022 | AR81: 38 | AS81: 9 | AT81: 3 | AU81: =IF($Y$6="GPF",AT81,AT81) -> 3 | AV81: =AV80 -> 10% | AZ81: 0 | BA81: =IFERROR(ROUND(O81*AL81/100,0)+R81,0) -> 0 | BB81: Jul-2022 | BC81: 0
E82: =TEXT(D82,"mmm") ->  | F82: =IF(D82="","",IF(D82=$N$10,$O$7,IF(E82="JUL",MROUND(ROUND(1.03*F81,0),100),IF(D82="TOTAL",SUM($F$17:F81),F81)))) ->  | G82: =IF(D82="","",IF(D82="TOTAL",SUM($G$17:G81),(ROUND(F82*AJ82/100,0)))) ->  | H82: =IF(D82="","",IF(D82="TOTAL",SUM($H$17:H81),(ROUND(F82*AK82/100,0)))) ->  | I82: =SUM(F82:H82) -> 0 | K82: =IF(D82="","",IF(D82=$O$10,$O$8,IF(E82="JUL",MROUND(ROUND(1.03*K81,0),100),IF(D82="TOTAL",SUM($K$17:K81),K81)))) ->  | L82: =IF(D82="","",IF(D82="TOTAL",SUM($L$17:L81),(ROUND(K82*AJ82/100,0)))) ->  | M82: =IF(D82="","",IF(D82="TOTAL",SUM($M$17:M81),(ROUND(K82*AK82/100,0)))) ->  | N82: =IFERROR(SUM(K82:M82),"") -> 0 | S82: =IFERROR(SUM(O82:R82),"") -> 0 | T82: =IF(D82="","",IF(D82="TOTAL",SUM($T$17:T81),IF($U$8="YES",BA82,BD82))) ->  | U82: =IF(D82="","",IF(D82="TOTAL",SUM($U$17:U81),(ROUND(S82*AM82,0)))) ->  | V82: =IF(D82="","",IF(D82=$Y$9,$X$3,IF(D82="TOTAL",SUM($V$17:V81),V81))) ->  | W82: =IF(D82="","",IF(D82="TOTAL",SUM($W$17:W81),(SUM(AG83:AH83)))) ->  | X82: =IFERROR(SUM(T82:W82),"") -> 0 | Y82: =S82-X82 -> 0 | AL82: =IFERROR(VLOOKUP(D82,$AQ$15:$AAU$211,5,0),"") ->  | AP82: 2022-08-01 | AQ82: Aug-2022 | AR82: 38 | AS82: 9 | AT82: 3 | AU82: 3 | AV82: 10% | AZ82: 0 | BA82: 0 | BB82: Aug-2022 | BC82: 0
C83: =IFERROR(IF(AB83="","",IF(DATE(YEAR(AB83),MONTH(AB83),DAY(AB83))=DATE(YEAR($N$9),MONTH($N$9)+1,DAY($N$9)),"TOTAL",IF(AB83>$N$9,"",AB83))),"") ->  | D83: =TEXT(C83,"mmm-yyyy") ->  | F83: =IF(D83="","",IF(D83=$N$10,$O$7,IF(E83="JUL",MROUND(ROUND(1.03*F82,0),100),IF(D83="TOTAL",SUM($F$17:F82),F82)))) ->  | G83: =IF(D83="","",IF(D83="TOTAL",SUM($G$17:G82),(ROUND(F83*AJ83/100,0)))) ->  | H83: =IF(D83="","",IF(D83="TOTAL",SUM($H$17:H82),(ROUND(F83*AK83/100,0)))) ->  | I83: 0 | K83: =IF(D83="","",IF(D83=$O$10,$O$8,IF(E83="JUL",MROUND(ROUND(1.03*K82,0),100),IF(D83="TOTAL",SUM($K$17:K82),K82)))) ->  | L83: =IF(D83="","",IF(D83="TOTAL",SUM($L$17:L82),(ROUND(K83*AJ83/100,0)))) ->  | M83: =IF(D83="","",IF(D83="TOTAL",SUM($M$17:M82),(ROUND(K83*AK83/100,0)))) ->  | N83: 0 | S83: 0 | T83: =IF(D83="","",IF(D83="TOTAL",SUM($T$17:T82),IF($U$8="YES",BA83,BD83))) ->  | U83: =IF(D83="","",IF(D83="TOTAL",SUM($U$17:U82),(ROUND(S83*AM83,0)))) ->  | V83: =IF(D83="","",IF(D83=$Y$9,$X$3,IF(D83="TOTAL",SUM($V$17:V82),V82))) ->  | W83: =IF(D83="","",IF(D83="TOTAL",SUM($W$17:W82),(SUM(AG84:AH84)))) ->  | X83: 0 | Y83: 0 | AB83: =IFERROR(DATE(YEAR(C82),MONTH(C82)+1,DAY(C82)),"") ->  | AC83: =IFERROR(IF(AB83="","",IF(DATE(YEAR(AB83),MONTH(AB83),DAY(AB83))=DATE(YEAR($N$9),MONTH($N$9)+1,DAY($N$9)),"TOTAL",IF(AB83>$N$9,"",AB83))),"") ->  | AP83: 2022-09-01 | AQ83: Sep-2022 | AR83: 38 | AS83: 9 | AT83: 3 | AU83: 3 | AV83: 10% | AZ83: 0 | BA83: 0 | BB83: Sep-2022 | BC83: 0
B84: =IF(B83>=$I$9,"",(B83+1)) ->  | F84: =IF(D84="","",IF(D84=$N$10,$O$7,IF(E84="JUL",MROUND(ROUND(1.03*F83,0),100),IF(D84="TOTAL",SUM($F$17:F83),F83)))) ->  | G84: =IF(D84="","",IF(D84="TOTAL",SUM($G$17:G83),(ROUND(F84*AJ84/100,0)))) ->  | H84: =IF(D84="","",IF(D84="TOTAL",SUM($H$17:H83),(ROUND(F84*AK84/100,0)))) ->  | I84: 0 | K84: =IF(D84="","",IF(D84=$O$10,$O$8,IF(E84="JUL",MROUND(ROUND(1.03*K83,0),100),IF(D84="TOTAL",SUM($K$17:K83),K83)))) ->  | L84: =IF(D84="","",IF(D84="TOTAL",SUM($L$17:L83),(ROUND(K84*AJ84/100,0)))) ->  | M84: =IF(D84="","",IF(D84="TOTAL",SUM($M$17:M83),(ROUND(K84*AK84/100,0)))) ->  | N84: 0 | S84: 0 | T84: =IF(D84="","",IF(D84="TOTAL",SUM($T$17:T83),IF($U$8="YES",BA84,BD84))) ->  | U84: =IF(D84="","",IF(D84="TOTAL",SUM($U$17:U83),(ROUND(S84*AM84,0)))) ->  | V84: =IF(D84="","",IF(D84=$Y$9,$X$3,IF(D84="TOTAL",SUM($V$17:V83),V83))) ->  | W84: =IF(D84="","",IF(D84="TOTAL",SUM($W$17:W83),(SUM(AG85:AH85)))) ->  | X84: 0 | Y84: 0 | AP84: 2022-10-01 | AQ84: Oct-2022 | AR84: 38 | AS84: 9 | AU84: 0 | AV84: 10% | AZ84: 0 | BA84: 0 | BB84: Oct-2022 | BC84: 0
F85: =IF(D85="","",IF(D85=$N$10,$O$7,IF(E85="JUL",MROUND(ROUND(1.03*F84,0),100),IF(D85="TOTAL",SUM($F$17:F84),F84)))) ->  | G85: =IF(D85="","",IF(D85="TOTAL",SUM($G$17:G84),(ROUND(F85*AJ85/100,0)))) ->  | H85: =IF(D85="","",IF(D85="TOTAL",SUM($H$17:H84),(ROUND(F85*AK85/100,0)))) ->  | I85: 0 | K85: =IF(D85="","",IF(D85=$O$10,$O$8,IF(E85="JUL",MROUND(ROUND(1.03*K84,0),100),IF(D85="TOTAL",SUM($K$17:K84),K84)))) ->  | L85: =IF(D85="","",IF(D85="TOTAL",SUM($L$17:L84),(ROUND(K85*AJ85/100,0)))) ->  | M85: =IF(D85="","",IF(D85="TOTAL",SUM($M$17:M84),(ROUND(K85*AK85/100,0)))) ->  | N85: 0 | S85: 0 | T85: =IF(D85="","",IF(D85="TOTAL",SUM($T$17:T84),IF($U$8="YES",BA85,BD85))) ->  | U85: =IF(D85="","",IF(D85="TOTAL",SUM($U$17:U84),(ROUND(S85*AM85,0)))) ->  | V85: =IF(D85="","",IF(D85=$Y$9,$X$3,IF(D85="TOTAL",SUM($V$17:V84),V84))) ->  | W85: =IF(D85="","",IF(D85="TOTAL",SUM($W$17:W84),(SUM(AG86:AH86)))) ->  | X85: 0 | Y85: 0 | AP85: 2022-11-01 | AQ85: Nov-2022 | AR85: 38 | AS85: 9 | AU85: 0 | AV85: 10% | AZ85: 0 | BA85: 0 | BB85: Nov-2022 | BC85: 0
F86: =IF(D86="","",IF(D86=$N$10,$O$7,IF(E86="JUL",MROUND(ROUND(1.03*F85,0),100),IF(D86="TOTAL",SUM($F$17:F85),F85)))) ->  | G86: =IF(D86="","",IF(D86="TOTAL",SUM($G$17:G85),(ROUND(F86*AJ86/100,0)))) ->  | H86: =IF(D86="","",IF(D86="TOTAL",SUM($H$17:H85),(ROUND(F86*AK86/100,0)))) ->  | I86: 0 | K86: =IF(D86="","",IF(D86=$O$10,$O$8,IF(E86="JUL",MROUND(ROUND(1.03*K85,0),100),IF(D86="TOTAL",SUM($K$17:K85),K85)))) ->  | L86: =IF(D86="","",IF(D86="TOTAL",SUM($L$17:L85),(ROUND(K86*AJ86/100,0)))) ->  | M86: =IF(D86="","",IF(D86="TOTAL",SUM($M$17:M85),(ROUND(K86*AK86/100,0)))) ->  | N86: 0 | S86: 0 | T86: =IF(D86="","",IF(D86="TOTAL",SUM($T$17:T85),IF($U$8="YES",BA86,BD86))) ->  | U86: =IF(D86="","",IF(D86="TOTAL",SUM($U$17:U85),(ROUND(S86*AM86,0)))) ->  | V86: =IF(D86="","",IF(D86=$Y$9,$X$3,IF(D86="TOTAL",SUM($V$17:V85),V85))) ->  | W86: =IF(D86="","",IF(D86="TOTAL",SUM($W$17:W85),(SUM(AG87:AH87)))) ->  | X86: 0 | Y86: 0 | AP86: 2022-12-01 | AQ86: Dec-2022 | AR86: 38 | AS86: 9 | AU86: 0 | AV86: 10% | AZ86: 0 | BA86: 0 | BB86: Dec-2022 | BC86: 0
F87: =IF(D87="","",IF(D87=$N$10,$O$7,IF(E87="JUL",MROUND(ROUND(1.03*F86,0),100),IF(D87="TOTAL",SUM($F$17:F86),F86)))) ->  | G87: =IF(D87="","",IF(D87="TOTAL",SUM($G$17:G86),(ROUND(F87*AJ87/100,0)))) ->  | H87: =IF(D87="","",IF(D87="TOTAL",SUM($H$17:H86),(ROUND(F87*AK87/100,0)))) ->  | I87: 0 | K87: =IF(D87="","",IF(D87=$O$10,$O$8,IF(E87="JUL",MROUND(ROUND(1.03*K86,0),100),IF(D87="TOTAL",SUM($K$17:K86),K86)))) ->  | L87: =IF(D87="","",IF(D87="TOTAL",SUM($L$17:L86),(ROUND(K87*AJ87/100,0)))) ->  | M87: =IF(D87="","",IF(D87="TOTAL",SUM($M$17:M86),(ROUND(K87*AK87/100,0)))) ->  | N87: 0 | S87: 0 | T87: =IF(D87="","",IF(D87="TOTAL",SUM($T$17:T86),IF($U$8="YES",BA87,BD87))) ->  | U87: =IF(D87="","",IF(D87="TOTAL",SUM($U$17:U86),(ROUND(S87*AM87,0)))) ->  | V87: =IF(D87="","",IF(D87=$Y$9,$X$3,IF(D87="TOTAL",SUM($V$17:V86),V86))) ->  | W87: =IF(D87="","",IF(D87="TOTAL",SUM($W$17:W86),(SUM(AG88:AH88)))) ->  | X87: 0 | Y87: 0 | AP87: 2023-01-01 | AQ87: Jan-2023 | AR87: 42 | AS87: 9 | AT87: 4 | AU87: 4 | AV87: 10% | AZ87: 0 | BA87: 0 | BB87: Jan-2023 | BC87: 0
F88: =IF(D88="","",IF(D88=$N$10,$O$7,IF(E88="JUL",MROUND(ROUND(1.03*F87,0),100),IF(D88="TOTAL",SUM($F$17:F87),F87)))) ->  | G88: =IF(D88="","",IF(D88="TOTAL",SUM($G$17:G87),(ROUND(F88*AJ88/100,0)))) ->  | H88: =IF(D88="","",IF(D88="TOTAL",SUM($H$17:H87),(ROUND(F88*AK88/100,0)))) ->  | I88: 0 | K88: =IF(D88="","",IF(D88=$O$10,$O$8,IF(E88="JUL",MROUND(ROUND(1.03*K87,0),100),IF(D88="TOTAL",SUM($K$17:K87),K87)))) ->  | L88: =IF(D88="","",IF(D88="TOTAL",SUM($L$17:L87),(ROUND(K88*AJ88/100,0)))) ->  | M88: =IF(D88="","",IF(D88="TOTAL",SUM($M$17:M87),(ROUND(K88*AK88/100,0)))) ->  | N88: 0 | S88: 0 | T88: =IF(D88="","",IF(D88="TOTAL",SUM($T$17:T87),IF($U$8="YES",BA88,BD88))) ->  | U88: =IF(D88="","",IF(D88="TOTAL",SUM($U$17:U87),(ROUND(S88*AM88,0)))) ->  | V88: =IF(D88="","",IF(D88=$Y$9,$X$3,IF(D88="TOTAL",SUM($V$17:V87),V87))) ->  | W88: =IF(D88="","",IF(D88="TOTAL",SUM($W$17:W87),(SUM(AG89:AH89)))) ->  | X88: 0 | Y88: 0 | AP88: 2023-02-01 | AQ88: Feb-2023 | AR88: 42 | AS88: 9 | AT88: 4 | AU88: 4 | AV88: 10% | AZ88: 0 | BA88: 0 | BB88: Feb-2023 | BC88: 0
F89: =IF(D89="","",IF(D89=$N$10,$O$7,IF(E89="JUL",MROUND(ROUND(1.03*F88,0),100),IF(D89="TOTAL",SUM($F$17:F88),F88)))) ->  | G89: =IF(D89="","",IF(D89="TOTAL",SUM($G$17:G88),(ROUND(F89*AJ89/100,0)))) ->  | H89: =IF(D89="","",IF(D89="TOTAL",SUM($H$17:H88),(ROUND(F89*AK89/100,0)))) ->  | I89: 0 | K89: =IF(D89="","",IF(D89=$O$10,$O$8,IF(E89="JUL",MROUND(ROUND(1.03*K88,0),100),IF(D89="TOTAL",SUM($K$17:K88),K88)))) ->  | L89: =IF(D89="","",IF(D89="TOTAL",SUM($L$17:L88),(ROUND(K89*AJ89/100,0)))) ->  | M89: =IF(D89="","",IF(D89="TOTAL",SUM($M$17:M88),(ROUND(K89*AK89/100,0)))) ->  | N89: 0 | S89: 0 | T89: =IF(D89="","",IF(D89="TOTAL",SUM($T$17:T88),IF($U$8="YES",BA89,BD89))) ->  | U89: =IF(D89="","",IF(D89="TOTAL",SUM($U$17:U88),(ROUND(S89*AM89,0)))) ->  | V89: =IF(D89="","",IF(D89=$Y$9,$X$3,IF(D89="TOTAL",SUM($V$17:V88),V88))) ->  | W89: =IF(D89="","",IF(D89="TOTAL",SUM($W$17:W88),(SUM(AG90:AH90)))) ->  | X89: 0 | Y89: 0 | AP89: 2023-03-01 | AQ89: Mar-2023 | AR89: 42 | AS89: 9 | AT89: 4 | AU89: 4 | AV89: 10% | AZ89: 0 | BA89: 0 | BB89: Mar-2023 | BC89: 0
F90: =IF(D90="","",IF(D90=$N$10,$O$7,IF(E90="JUL",MROUND(ROUND(1.03*F89,0),100),IF(D90="TOTAL",SUM($F$17:F89),F89)))) ->  | G90: =IF(D90="","",IF(D90="TOTAL",SUM($G$17:G89),(ROUND(F90*AJ90/100,0)))) ->  | H90: =IF(D90="","",IF(D90="TOTAL",SUM($H$17:H89),(ROUND(F90*AK90/100,0)))) ->  | I90: 0 | K90: =IF(D90="","",IF(D90=$O$10,$O$8,IF(E90="JUL",MROUND(ROUND(1.03*K89,0),100),IF(D90="TOTAL",SUM($K$17:K89),K89)))) ->  | L90: =IF(D90="","",IF(D90="TOTAL",SUM($L$17:L89),(ROUND(K90*AJ90/100,0)))) ->  | M90: =IF(D90="","",IF(D90="TOTAL",SUM($M$17:M89),(ROUND(K90*AK90/100,0)))) ->  | N90: 0 | S90: 0 | T90: =IF(D90="","",IF(D90="TOTAL",SUM($T$17:T89),IF($U$8="YES",BA90,BD90))) ->  | U90: =IF(D90="","",IF(D90="TOTAL",SUM($U$17:U89),(ROUND(S90*AM90,0)))) ->  | V90: =IF(D90="","",IF(D90=$Y$9,$X$3,IF(D90="TOTAL",SUM($V$17:V89),V89))) ->  | W90: =IF(D90="","",IF(D90="TOTAL",SUM($W$17:W89),(SUM(AG91:AH91)))) ->  | X90: 0 | Y90: 0 | AP90: 2023-04-01 | AQ90: Apr-2023 | AR90: 42 | AS90: 9 | AU90: 0 | AV90: 10% | AZ90: 0 | BA90: 0 | BB90: Apr-2023 | BC90: 0
F91: =IF(D91="","",IF(D91=$N$10,$O$7,IF(E91="JUL",MROUND(ROUND(1.03*F90,0),100),IF(D91="TOTAL",SUM($F$17:F90),F90)))) ->  | G91: =IF(D91="","",IF(D91="TOTAL",SUM($G$17:G90),(ROUND(F91*AJ91/100,0)))) ->  | H91: =IF(D91="","",IF(D91="TOTAL",SUM($H$17:H90),(ROUND(F91*AK91/100,0)))) ->  | I91: 0 | K91: =IF(D91="","",IF(D91=$O$10,$O$8,IF(E91="JUL",MROUND(ROUND(1.03*K90,0),100),IF(D91="TOTAL",SUM($K$17:K90),K90)))) ->  | L91: =IF(D91="","",IF(D91="TOTAL",SUM($L$17:L90),(ROUND(K91*AJ91/100,0)))) ->  | M91: =IF(D91="","",IF(D91="TOTAL",SUM($M$17:M90),(ROUND(K91*AK91/100,0)))) ->  | N91: 0 | S91: 0 | T91: =IF(D91="","",IF(D91="TOTAL",SUM($T$17:T90),IF($U$8="YES",BA91,BD91))) ->  | U91: =IF(D91="","",IF(D91="TOTAL",SUM($U$17:U90),(ROUND(S91*AM91,0)))) ->  | V91: =IF(D91="","",IF(D91=$Y$9,$X$3,IF(D91="TOTAL",SUM($V$17:V90),V90))) ->  | W91: =IF(D91="","",IF(D91="TOTAL",SUM($W$17:W90),(SUM(AG92:AH92)))) ->  | X91: 0 | Y91: 0 | AP91: 2023-05-01 | AQ91: May-2023 | AR91: 42 | AS91: 9 | AU91: 0 | AV91: 10% | AZ91: 0 | BA91: 0 | BB91: May-2023 | BC91: 0
F92: =IF(D92="","",IF(D92=$N$10,$O$7,IF(E92="JUL",MROUND(ROUND(1.03*F91,0),100),IF(D92="TOTAL",SUM($F$17:F91),F91)))) ->  | G92: =IF(D92="","",IF(D92="TOTAL",SUM($G$17:G91),(ROUND(F92*AJ92/100,0)))) ->  | H92: =IF(D92="","",IF(D92="TOTAL",SUM($H$17:H91),(ROUND(F92*AK92/100,0)))) ->  | I92: 0 | K92: =IF(D92="","",IF(D92=$O$10,$O$8,IF(E92="JUL",MROUND(ROUND(1.03*K91,0),100),IF(D92="TOTAL",SUM($K$17:K91),K91)))) ->  | L92: =IF(D92="","",IF(D92="TOTAL",SUM($L$17:L91),(ROUND(K92*AJ92/100,0)))) ->  | M92: =IF(D92="","",IF(D92="TOTAL",SUM($M$17:M91),(ROUND(K92*AK92/100,0)))) ->  | N92: 0 | S92: 0 | T92: =IF(D92="","",IF(D92="TOTAL",SUM($T$17:T91),IF($U$8="YES",BA92,BD92))) ->  | U92: =IF(D92="","",IF(D92="TOTAL",SUM($U$17:U91),(ROUND(S92*AM92,0)))) ->  | V92: =IF(D92="","",IF(D92=$Y$9,$X$3,IF(D92="TOTAL",SUM($V$17:V91),V91))) ->  | W92: =IF(D92="","",IF(D92="TOTAL",SUM($W$17:W91),(SUM(AG93:AH93)))) ->  | X92: 0 | Y92: 0 | AP92: 2023-06-01 | AQ92: Jun-2023 | AR92: 42 | AS92: 9 | AU92: 0 | AV92: 10% | AZ92: 0 | BA92: 0 | BB92: Jun-2023 | BC92: 0
F93: =IF(D93="","",IF(D93=$N$10,$O$7,IF(E93="JUL",MROUND(ROUND(1.03*F92,0),100),IF(D93="TOTAL",SUM($F$17:F92),F92)))) ->  | G93: =IF(D93="","",IF(D93="TOTAL",SUM($G$17:G92),(ROUND(F93*AJ93/100,0)))) ->  | H93: =IF(D93="","",IF(D93="TOTAL",SUM($H$17:H92),(ROUND(F93*AK93/100,0)))) ->  | I93: 0 | K93: =IF(D93="","",IF(D93=$O$10,$O$8,IF(E93="JUL",MROUND(ROUND(1.03*K92,0),100),IF(D93="TOTAL",SUM($K$17:K92),K92)))) ->  | L93: =IF(D93="","",IF(D93="TOTAL",SUM($L$17:L92),(ROUND(K93*AJ93/100,0)))) ->  | M93: =IF(D93="","",IF(D93="TOTAL",SUM($M$17:M92),(ROUND(K93*AK93/100,0)))) ->  | N93: 0 | S93: 0 | T93: =IF(D93="","",IF(D93="TOTAL",SUM($T$17:T92),IF($U$8="YES",BA93,BD93))) ->  | U93: =IF(D93="","",IF(D93="TOTAL",SUM($U$17:U92),(ROUND(S93*AM93,0)))) ->  | V93: =IF(D93="","",IF(D93=$Y$9,$X$3,IF(D93="TOTAL",SUM($V$17:V92),V92))) ->  | W93: =IF(D93="","",IF(D93="TOTAL",SUM($W$17:W92),(SUM(AG94:AH94)))) ->  | X93: 0 | Y93: 0 | AP93: 2023-07-01 | AQ93: Jul-2023 | AR93: 46 | AS93: 9 | AT93: 4 | AU93: 4 | AV93: 10% | AZ93: 0 | BA93: 0 | BB93: Jul-2023 | BC93: 0
F94: =IF(D94="","",IF(D94=$N$10,$O$7,IF(E94="JUL",MROUND(ROUND(1.03*F93,0),100),IF(D94="TOTAL",SUM($F$17:F93),F93)))) ->  | G94: =IF(D94="","",IF(D94="TOTAL",SUM($G$17:G93),(ROUND(F94*AJ94/100,0)))) ->  | H94: =IF(D94="","",IF(D94="TOTAL",SUM($H$17:H93),(ROUND(F94*AK94/100,0)))) ->  | I94: 0 | K94: =IF(D94="","",IF(D94=$O$10,$O$8,IF(E94="JUL",MROUND(ROUND(1.03*K93,0),100),IF(D94="TOTAL",SUM($K$17:K93),K93)))) ->  | L94: =IF(D94="","",IF(D94="TOTAL",SUM($L$17:L93),(ROUND(K94*AJ94/100,0)))) ->  | M94: =IF(D94="","",IF(D94="TOTAL",SUM($M$17:M93),(ROUND(K94*AK94/100,0)))) ->  | N94: 0 | S94: 0 | T94: =IF(D94="","",IF(D94="TOTAL",SUM($T$17:T93),IF($U$8="YES",BA94,BD94))) ->  | U94: =IF(D94="","",IF(D94="TOTAL",SUM($U$17:U93),(ROUND(S94*AM94,0)))) ->  | V94: =IF(D94="","",IF(D94=$Y$9,$X$3,IF(D94="TOTAL",SUM($V$17:V93),V93))) ->  | W94: =IF(D94="","",IF(D94="TOTAL",SUM($W$17:W93),(SUM(AG95:AH95)))) ->  | X94: 0 | Y94: 0 | AP94: 2023-08-01 | AQ94: Aug-2023 | AR94: 46 | AS94: 9 | AT94: 4 | AU94: 4 | AV94: 10% | AZ94: 0 | BA94: 0 | BB94: Aug-2023 | BC94: 0
F95: =IF(D95="","",IF(D95=$N$10,$O$7,IF(E95="JUL",MROUND(ROUND(1.03*F94,0),100),IF(D95="TOTAL",SUM($F$17:F94),F94)))) ->  | G95: =IF(D95="","",IF(D95="TOTAL",SUM($G$17:G94),(ROUND(F95*AJ95/100,0)))) ->  | H95: =IF(D95="","",IF(D95="TOTAL",SUM($H$17:H94),(ROUND(F95*AK95/100,0)))) ->  | I95: 0 | K95: =IF(D95="","",IF(D95=$O$10,$O$8,IF(E95="JUL",MROUND(ROUND(1.03*K94,0),100),IF(D95="TOTAL",SUM($K$17:K94),K94)))) ->  | L95: =IF(D95="","",IF(D95="TOTAL",SUM($L$17:L94),(ROUND(K95*AJ95/100,0)))) ->  | M95: =IF(D95="","",IF(D95="TOTAL",SUM($M$17:M94),(ROUND(K95*AK95/100,0)))) ->  | N95: 0 | S95: 0 | T95: =IF(D95="","",IF(D95="TOTAL",SUM($T$17:T94),IF($U$8="YES",BA95,BD95))) ->  | U95: =IF(D95="","",IF(D95="TOTAL",SUM($U$17:U94),(ROUND(S95*AM95,0)))) ->  | V95: =IF(D95="","",IF(D95=$Y$9,$X$3,IF(D95="TOTAL",SUM($V$17:V94),V94))) ->  | W95: =IF(D95="","",IF(D95="TOTAL",SUM($W$17:W94),(SUM(AG96:AH96)))) ->  | X95: 0 | Y95: 0 | AP95: 2023-09-01 | AQ95: Sep-2023 | AR95: 46 | AS95: 9 | AT95: 4 | AU95: 4 | AV95: 10% | AZ95: 0 | BA95: 0 | BB95: Sep-2023 | BC95: 0
F96: =IF(D96="","",IF(D96=$N$10,$O$7,IF(E96="JUL",MROUND(ROUND(1.03*F95,0),100),IF(D96="TOTAL",SUM($F$17:F95),F95)))) ->  | G96: =IF(D96="","",IF(D96="TOTAL",SUM($G$17:G95),(ROUND(F96*AJ96/100,0)))) ->  | H96: =IF(D96="","",IF(D96="TOTAL",SUM($H$17:H95),(ROUND(F96*AK96/100,0)))) ->  | I96: 0 | K96: =IF(D96="","",IF(D96=$O$10,$O$8,IF(E96="JUL",MROUND(ROUND(1.03*K95,0),100),IF(D96="TOTAL",SUM($K$17:K95),K95)))) ->  | L96: =IF(D96="","",IF(D96="TOTAL",SUM($L$17:L95),(ROUND(K96*AJ96/100,0)))) ->  | M96: =IF(D96="","",IF(D96="TOTAL",SUM($M$17:M95),(ROUND(K96*AK96/100,0)))) ->  | N96: 0 | S96: 0 | T96: =IF(D96="","",IF(D96="TOTAL",SUM($T$17:T95),IF($U$8="YES",BA96,BD96))) ->  | U96: =IF(D96="","",IF(D96="TOTAL",SUM($U$17:U95),(ROUND(S96*AM96,0)))) ->  | V96: =IF(D96="","",IF(D96=$Y$9,$X$3,IF(D96="TOTAL",SUM($V$17:V95),V95))) ->  | W96: =IF(D96="","",IF(D96="TOTAL",SUM($W$17:W95),(SUM(AG97:AH97)))) ->  | X96: 0 | Y96: 0 | AP96: 2023-10-01 | AQ96: Oct-2023 | AR96: 46 | AS96: 9 | AT96: 4 | AU96: 4 | AV96: 10% | AZ96: 0 | BA96: 0 | BB96: Oct-2023 | BC96: 0
F97: =IF(D97="","",IF(D97=$N$10,$O$7,IF(E97="JUL",MROUND(ROUND(1.03*F96,0),100),IF(D97="TOTAL",SUM($F$17:F96),F96)))) ->  | G97: =IF(D97="","",IF(D97="TOTAL",SUM($G$17:G96),(ROUND(F97*AJ97/100,0)))) ->  | H97: =IF(D97="","",IF(D97="TOTAL",SUM($H$17:H96),(ROUND(F97*AK97/100,0)))) ->  | I97: 0 | K97: =IF(D97="","",IF(D97=$O$10,$O$8,IF(E97="JUL",MROUND(ROUND(1.03*K96,0),100),IF(D97="TOTAL",SUM($K$17:K96),K96)))) ->  | L97: =IF(D97="","",IF(D97="TOTAL",SUM($L$17:L96),(ROUND(K97*AJ97/100,0)))) ->  | M97: =IF(D97="","",IF(D97="TOTAL",SUM($M$17:M96),(ROUND(K97*AK97/100,0)))) ->  | N97: 0 | S97: 0 | T97: =IF(D97="","",IF(D97="TOTAL",SUM($T$17:T96),IF($U$8="YES",BA97,BD97))) ->  | U97: =IF(D97="","",IF(D97="TOTAL",SUM($U$17:U96),(ROUND(S97*AM97,0)))) ->  | V97: =IF(D97="","",IF(D97=$Y$9,$X$3,IF(D97="TOTAL",SUM($V$17:V96),V96))) ->  | W97: =IF(D97="","",IF(D97="TOTAL",SUM($W$17:W96),(SUM(AG98:AH98)))) ->  | X97: 0 | Y97: 0 | AP97: 2023-11-01 | AQ97: Nov-2023 | AR97: 46 | AS97: 9 | AU97: 0 | AV97: 10% | AZ97: 0 | BA97: 0 | BB97: Nov-2023 | BC97: 0
F98: =IF(D98="","",IF(D98=$N$10,$O$7,IF(E98="JUL",MROUND(ROUND(1.03*F97,0),100),IF(D98="TOTAL",SUM($F$17:F97),F97)))) ->  | G98: =IF(D98="","",IF(D98="TOTAL",SUM($G$17:G97),(ROUND(F98*AJ98/100,0)))) ->  | H98: =IF(D98="","",IF(D98="TOTAL",SUM($H$17:H97),(ROUND(F98*AK98/100,0)))) ->  | I98: 0 | K98: =IF(D98="","",IF(D98=$O$10,$O$8,IF(E98="JUL",MROUND(ROUND(1.03*K97,0),100),IF(D98="TOTAL",SUM($K$17:K97),K97)))) ->  | L98: =IF(D98="","",IF(D98="TOTAL",SUM($L$17:L97),(ROUND(K98*AJ98/100,0)))) ->  | M98: =IF(D98="","",IF(D98="TOTAL",SUM($M$17:M97),(ROUND(K98*AK98/100,0)))) ->  | N98: 0 | S98: 0 | T98: =IF(D98="","",IF(D98="TOTAL",SUM($T$17:T97),IF($U$8="YES",BA98,BD98))) ->  | U98: =IF(D98="","",IF(D98="TOTAL",SUM($U$17:U97),(ROUND(S98*AM98,0)))) ->  | V98: =IF(D98="","",IF(D98=$Y$9,$X$3,IF(D98="TOTAL",SUM($V$17:V97),V97))) ->  | W98: =IF(D98="","",IF(D98="TOTAL",SUM($W$17:W97),(SUM(AG99:AH99)))) ->  | X98: 0 | Y98: 0 | AP98: 2023-12-01 | AQ98: Dec-2023 | AR98: 46 | AS98: 9 | AU98: 0 | AV98: 10% | AZ98: 0 | BA98: 0 | BB98: Dec-2023 | BC98: 0
F99: =IF(D99="","",IF(D99=$N$10,$O$7,IF(E99="JUL",MROUND(ROUND(1.03*F98,0),100),IF(D99="TOTAL",SUM($F$17:F98),F98)))) ->  | G99: =IF(D99="","",IF(D99="TOTAL",SUM($G$17:G98),(ROUND(F99*AJ99/100,0)))) ->  | H99: =IF(D99="","",IF(D99="TOTAL",SUM($H$17:H98),(ROUND(F99*AK99/100,0)))) ->  | I99: 0 | K99: =IF(D99="","",IF(D99=$O$10,$O$8,IF(E99="JUL",MROUND(ROUND(1.03*K98,0),100),IF(D99="TOTAL",SUM($K$17:K98),K98)))) ->  | L99: =IF(D99="","",IF(D99="TOTAL",SUM($L$17:L98),(ROUND(K99*AJ99/100,0)))) ->  | M99: =IF(D99="","",IF(D99="TOTAL",SUM($M$17:M98),(ROUND(K99*AK99/100,0)))) ->  | N99: 0 | S99: 0 | T99: =IF(D99="","",IF(D99="TOTAL",SUM($T$17:T98),IF($U$8="YES",BA99,BD99))) ->  | U99: =IF(D99="","",IF(D99="TOTAL",SUM($U$17:U98),(ROUND(S99*AM99,0)))) ->  | V99: =IF(D99="","",IF(D99=$Y$9,$X$3,IF(D99="TOTAL",SUM($V$17:V98),V98))) ->  | W99: =IF(D99="","",IF(D99="TOTAL",SUM($W$17:W98),(SUM(AG100:AH100)))) ->  | X99: 0 | Y99: 0 | AP99: 2024-01-01 | AQ99: Jan-2024 | AR99: 50 | AS99: 9 | AT99: 4 | AU99: 4 | AV99: 10% | AZ99: 0 | BA99: 0 | BB99: Jan-2024 | BC99: 0
F100: =IF(D100="","",IF(D100=$N$10,$O$7,IF(E100="JUL",MROUND(ROUND(1.03*F99,0),100),IF(D100="TOTAL",SUM($F$17:F99),F99)))) ->  | G100: =IF(D100="","",IF(D100="TOTAL",SUM($G$17:G99),(ROUND(F100*AJ100/100,0)))) ->  | H100: =IF(D100="","",IF(D100="TOTAL",SUM($H$17:H99),(ROUND(F100*AK100/100,0)))) ->  | I100: 0 | K100: =IF(D100="","",IF(D100=$O$10,$O$8,IF(E100="JUL",MROUND(ROUND(1.03*K99,0),100),IF(D100="TOTAL",SUM($K$17:K99),K99)))) ->  | L100: =IF(D100="","",IF(D100="TOTAL",SUM($L$17:L99),(ROUND(K100*AJ100/100,0)))) ->  | M100: =IF(D100="","",IF(D100="TOTAL",SUM($M$17:M99),(ROUND(K100*AK100/100,0)))) ->  | N100: 0 | S100: 0 | T100: =IF(D100="","",IF(D100="TOTAL",SUM($T$17:T99),IF($U$8="YES",BA100,BD100))) ->  | U100: =IF(D100="","",IF(D100="TOTAL",SUM($U$17:U99),(ROUND(S100*AM100,0)))) ->  | V100: =IF(D100="","",IF(D100=$Y$9,$X$3,IF(D100="TOTAL",SUM($V$17:V99),V99))) ->  | W100: =IF(D100="","",IF(D100="TOTAL",SUM($W$17:W99),(SUM(AG101:AH101)))) ->  | X100: 0 | Y100: 0 | AP100: 2024-02-01 | AQ100: Feb-2024 | AR100: 50 | AS100: 9 | AT100: 4 | AU100: 4 | AV100: 10% | AZ100: 0 | BA100: 0 | BB100: Feb-2024 | BC100: 0
F101: =IF(D101="","",IF(D101=$N$10,$O$7,IF(E101="JUL",MROUND(ROUND(1.03*F100,0),100),IF(D101="TOTAL",SUM($F$17:F100),F100)))) ->  | G101: =IF(D101="","",IF(D101="TOTAL",SUM($G$17:G100),(ROUND(F101*AJ101/100,0)))) ->  | H101: =IF(D101="","",IF(D101="TOTAL",SUM($H$17:H100),(ROUND(F101*AK101/100,0)))) ->  | I101: 0 | K101: =IF(D101="","",IF(D101=$O$10,$O$8,IF(E101="JUL",MROUND(ROUND(1.03*K100,0),100),IF(D101="TOTAL",SUM($K$17:K100),K100)))) ->  | L101: =IF(D101="","",IF(D101="TOTAL",SUM($L$17:L100),(ROUND(K101*AJ101/100,0)))) ->  | M101: =IF(D101="","",IF(D101="TOTAL",SUM($M$17:M100),(ROUND(K101*AK101/100,0)))) ->  | N101: 0 | S101: 0 | T101: =IF(D101="","",IF(D101="TOTAL",SUM($T$17:T100),IF($U$8="YES",BA101,BD101))) ->  | U101: =IF(D101="","",IF(D101="TOTAL",SUM($U$17:U100),(ROUND(S101*AM101,0)))) ->  | V101: =IF(D101="","",IF(D101=$Y$9,$X$3,IF(D101="TOTAL",SUM($V$17:V100),V100))) ->  | W101: =IF(D101="","",IF(D101="TOTAL",SUM($W$17:W100),(SUM(AG102:AH102)))) ->  | X101: 0 | Y101: 0 | AP101: 2024-03-01 | AQ101: Mar-2024 | AR101: 50 | AS101: 9 | AU101: 0 | AV101: 10% | AZ101: =IF($Y$6="REGULAR",$V$6,0) -> 0 | BA101: 0 | BB101: Mar-2024 | BC101: 0
F102: =IF(D102="","",IF(D102=$N$10,$O$7,IF(E102="JUL",MROUND(ROUND(1.03*F101,0),100),IF(D102="TOTAL",SUM($F$17:F101),F101)))) ->  | G102: =IF(D102="","",IF(D102="TOTAL",SUM($G$17:G101),(ROUND(F102*AJ102/100,0)))) ->  | H102: =IF(D102="","",IF(D102="TOTAL",SUM($H$17:H101),(ROUND(F102*AK102/100,0)))) ->  | I102: 0 | K102: =IF(D102="","",IF(D102=$O$10,$O$8,IF(E102="JUL",MROUND(ROUND(1.03*K101,0),100),IF(D102="TOTAL",SUM($K$17:K101),K101)))) ->  | L102: =IF(D102="","",IF(D102="TOTAL",SUM($L$17:L101),(ROUND(K102*AJ102/100,0)))) ->  | M102: =IF(D102="","",IF(D102="TOTAL",SUM($M$17:M101),(ROUND(K102*AK102/100,0)))) ->  | N102: 0 | S102: 0 | T102: =IF(D102="","",IF(D102="TOTAL",SUM($T$17:T101),IF($U$8="YES",BA102,BD102))) ->  | U102: =IF(D102="","",IF(D102="TOTAL",SUM($U$17:U101),(ROUND(S102*AM102,0)))) ->  | V102: =IF(D102="","",IF(D102=$Y$9,$X$3,IF(D102="TOTAL",SUM($V$17:V101),V101))) ->  | W102: =IF(D102="","",IF(D102="TOTAL",SUM($W$17:W101),(SUM(AG103:AH103)))) ->  | X102: 0 | Y102: 0 | AP102: 2024-04-01 | AQ102: Apr-2024 | AR102: 50 | AS102: 9 | AU102: 0 | AV102: 10% | AZ102: 0 | BA102: 0 | BB102: Apr-2024 | BC102: 0
F103: =IF(D103="","",IF(D103=$N$10,$O$7,IF(E103="JUL",MROUND(ROUND(1.03*F102,0),100),IF(D103="TOTAL",SUM($F$17:F102),F102)))) ->  | G103: =IF(D103="","",IF(D103="TOTAL",SUM($G$17:G102),(ROUND(F103*AJ103/100,0)))) ->  | H103: =IF(D103="","",IF(D103="TOTAL",SUM($H$17:H102),(ROUND(F103*AK103/100,0)))) ->  | I103: 0 | K103: =IF(D103="","",IF(D103=$O$10,$O$8,IF(E103="JUL",MROUND(ROUND(1.03*K102,0),100),IF(D103="TOTAL",SUM($K$17:K102),K102)))) ->  | L103: =IF(D103="","",IF(D103="TOTAL",SUM($L$17:L102),(ROUND(K103*AJ103/100,0)))) ->  | M103: =IF(D103="","",IF(D103="TOTAL",SUM($M$17:M102),(ROUND(K103*AK103/100,0)))) ->  | N103: 0 | S103: 0 | T103: =IF(D103="","",IF(D103="TOTAL",SUM($T$17:T102),IF($U$8="YES",BA103,BD103))) ->  | U103: =IF(D103="","",IF(D103="TOTAL",SUM($U$17:U102),(ROUND(S103*AM103,0)))) ->  | V103: =IF(D103="","",IF(D103=$Y$9,$X$3,IF(D103="TOTAL",SUM($V$17:V102),V102))) ->  | W103: =IF(D103="","",IF(D103="TOTAL",SUM($W$17:W102),(SUM(AG104:AH104)))) ->  | X103: 0 | Y103: 0 | AP103: 2024-05-01 | AQ103: May-2024 | AR103: 50 | AS103: 9 | AU103: 0 | AV103: 10% | AZ103: 0 | BA103: 0 | BB103: May-2024 | BC103: 0
F104: =IF(D104="","",IF(D104=$N$10,$O$7,IF(E104="JUL",MROUND(ROUND(1.03*F103,0),100),IF(D104="TOTAL",SUM($F$17:F103),F103)))) ->  | G104: =IF(D104="","",IF(D104="TOTAL",SUM($G$17:G103),(ROUND(F104*AJ104/100,0)))) ->  | H104: =IF(D104="","",IF(D104="TOTAL",SUM($H$17:H103),(ROUND(F104*AK104/100,0)))) ->  | I104: 0 | K104: =IF(D104="","",IF(D104=$O$10,$O$8,IF(E104="JUL",MROUND(ROUND(1.03*K103,0),100),IF(D104="TOTAL",SUM($K$17:K103),K103)))) ->  | L104: =IF(D104="","",IF(D104="TOTAL",SUM($L$17:L103),(ROUND(K104*AJ104/100,0)))) ->  | M104: =IF(D104="","",IF(D104="TOTAL",SUM($M$17:M103),(ROUND(K104*AK104/100,0)))) ->  | N104: 0 | S104: 0 | T104: =IF(D104="","",IF(D104="TOTAL",SUM($T$17:T103),IF($U$8="YES",BA104,BD104))) ->  | U104: =IF(D104="","",IF(D104="TOTAL",SUM($U$17:U103),(ROUND(S104*AM104,0)))) ->  | V104: =IF(D104="","",IF(D104=$Y$9,$X$3,IF(D104="TOTAL",SUM($V$17:V103),V103))) ->  | W104: =IF(D104="","",IF(D104="TOTAL",SUM($W$17:W103),(SUM(AG105:AH105)))) ->  | X104: 0 | Y104: 0 | AP104: 2024-06-01 | AQ104: Jun-2024 | AR104: 50 | AS104: 9 | AU104: 0 | AV104: 10% | AZ104: 0 | BA104: 0 | BB104: Jun-2024 | BC104: 0
F105: =IF(D105="","",IF(D105=$N$10,$O$7,IF(E105="JUL",MROUND(ROUND(1.03*F104,0),100),IF(D105="TOTAL",SUM($F$17:F104),F104)))) ->  | G105: =IF(D105="","",IF(D105="TOTAL",SUM($G$17:G104),(ROUND(F105*AJ105/100,0)))) ->  | H105: =IF(D105="","",IF(D105="TOTAL",SUM($H$17:H104),(ROUND(F105*AK105/100,0)))) ->  | I105: 0 | K105: =IF(D105="","",IF(D105=$O$10,$O$8,IF(E105="JUL",MROUND(ROUND(1.03*K104,0),100),IF(D105="TOTAL",SUM($K$17:K104),K104)))) ->  | L105: =IF(D105="","",IF(D105="TOTAL",SUM($L$17:L104),(ROUND(K105*AJ105/100,0)))) ->  | M105: =IF(D105="","",IF(D105="TOTAL",SUM($M$17:M104),(ROUND(K105*AK105/100,0)))) ->  | N105: 0 | S105: 0 | T105: =IF(D105="","",IF(D105="TOTAL",SUM($T$17:T104),IF($U$8="YES",BA105,BD105))) ->  | U105: =IF(D105="","",IF(D105="TOTAL",SUM($U$17:U104),(ROUND(S105*AM105,0)))) ->  | V105: =IF(D105="","",IF(D105=$Y$9,$X$3,IF(D105="TOTAL",SUM($V$17:V104),V104))) ->  | W105: =IF(D105="","",IF(D105="TOTAL",SUM($W$17:W104),(SUM(AG106:AH106)))) ->  | X105: 0 | Y105: 0 | AP105: 2024-07-01 | AQ105: Jul-2024 | AR105: 53 | AS105: 9 | AT105: 3 | AU105: 3 | AV105: 10% | AZ105: 0 | BA105: 0 | BB105: Jul-2024 | BC105: 0
F106: =IF(D106="","",IF(D106=$N$10,$O$7,IF(E106="JUL",MROUND(ROUND(1.03*F105,0),100),IF(D106="TOTAL",SUM($F$17:F105),F105)))) ->  | G106: =IF(D106="","",IF(D106="TOTAL",SUM($G$17:G105),(ROUND(F106*AJ106/100,0)))) ->  | H106: =IF(D106="","",IF(D106="TOTAL",SUM($H$17:H105),(ROUND(F106*AK106/100,0)))) ->  | I106: 0 | K106: =IF(D106="","",IF(D106=$O$10,$O$8,IF(E106="JUL",MROUND(ROUND(1.03*K105,0),100),IF(D106="TOTAL",SUM($K$17:K105),K105)))) ->  | L106: =IF(D106="","",IF(D106="TOTAL",SUM($L$17:L105),(ROUND(K106*AJ106/100,0)))) ->  | M106: =IF(D106="","",IF(D106="TOTAL",SUM($M$17:M105),(ROUND(K106*AK106/100,0)))) ->  | N106: 0 | S106: 0 | T106: =IF(D106="","",IF(D106="TOTAL",SUM($T$17:T105),IF($U$8="YES",BA106,BD106))) ->  | U106: =IF(D106="","",IF(D106="TOTAL",SUM($U$17:U105),(ROUND(S106*AM106,0)))) ->  | V106: =IF(D106="","",IF(D106=$Y$9,$X$3,IF(D106="TOTAL",SUM($V$17:V105),V105))) ->  | W106: =IF(D106="","",IF(D106="TOTAL",SUM($W$17:W105),(SUM(AG107:AH107)))) ->  | X106: 0 | Y106: 0 | AP106: 2024-08-01 | AQ106: Aug-2024 | AR106: 53 | AS106: 9 | AT106: 3 | AU106: 3 | AV106: 10% | AZ106: 0 | BA106: 0 | BB106: Aug-2024 | BC106: 0
F107: =IF(D107="","",IF(D107=$N$10,$O$7,IF(E107="JUL",MROUND(ROUND(1.03*F106,0),100),IF(D107="TOTAL",SUM($F$17:F106),F106)))) ->  | G107: =IF(D107="","",IF(D107="TOTAL",SUM($G$17:G106),(ROUND(F107*AJ107/100,0)))) ->  | H107: =IF(D107="","",IF(D107="TOTAL",SUM($H$17:H106),(ROUND(F107*AK107/100,0)))) ->  | I107: 0 | K107: =IF(D107="","",IF(D107=$O$10,$O$8,IF(E107="JUL",MROUND(ROUND(1.03*K106,0),100),IF(D107="TOTAL",SUM($K$17:K106),K106)))) ->  | L107: =IF(D107="","",IF(D107="TOTAL",SUM($L$17:L106),(ROUND(K107*AJ107/100,0)))) ->  | M107: =IF(D107="","",IF(D107="TOTAL",SUM($M$17:M106),(ROUND(K107*AK107/100,0)))) ->  | N107: 0 | P107: =IFERROR(MIN(G107-L107),"") ->  | S107: =IFERROR(SUM(O107:R107),"") -> 0 | T107: =IF(D107="","",IF(D107="TOTAL",SUM($T$17:T106),IF($U$8="YES",BA107,BD107))) ->  | U107: =IF(D107="","",IF(D107="TOTAL",SUM($U$17:U106),(ROUND(S107*AM107,0)))) ->  | V107: =IF(D107="","",IF(D107=$Y$9,$X$3,IF(D107="TOTAL",SUM($V$17:V106),V106))) ->  | W107: =IF(D107="","",IF(D107="TOTAL",SUM($W$17:W106),(SUM(AG108:AH108)))) ->  | X107: 0 | Y107: 0 | AP107: 2024-09-01 | AQ107: Sep-2024 | AR107: 53 | AS107: 9 | AT107: 3 | AU107: 3 | AV107: 10% | AZ107: 0 | BA107: 0 | BB107: Sep-2024 | BC107: 0
F108: =IF(D108="","",IF(D108=$N$10,$O$7,IF(E108="JUL",MROUND(ROUND(1.03*F107,0),100),IF(D108="TOTAL",SUM($F$17:F107),F107)))) ->  | G108: =IF(D108="","",IF(D108="TOTAL",SUM($G$17:G107),(ROUND(F108*AJ108/100,0)))) ->  | H108: =IF(D108="","",IF(D108="TOTAL",SUM($H$17:H107),(ROUND(F108*AK108/100,0)))) ->  | I108: 0 | K108: =IF(D108="","",IF(D108=$O$10,$O$8,IF(E108="JUL",MROUND(ROUND(1.03*K107,0),100),IF(D108="TOTAL",SUM($K$17:K107),K107)))) ->  | L108: =IF(D108="","",IF(D108="TOTAL",SUM($L$17:L107),(ROUND(K108*AJ108/100,0)))) ->  | M108: =IF(D108="","",IF(D108="TOTAL",SUM($M$17:M107),(ROUND(K108*AK108/100,0)))) ->  | N108: 0 | S108: 0 | T108: =IF(D108="","",IF(D108="TOTAL",SUM($T$17:T107),IF($U$8="YES",BA108,BD108))) ->  | U108: =IF(D108="","",IF(D108="TOTAL",SUM($U$17:U107),(ROUND(S108*AM108,0)))) ->  | V108: =IF(D108="","",IF(D108=$Y$9,$X$3,IF(D108="TOTAL",SUM($V$17:V107),V107))) ->  | W108: =IF(D108="","",IF(D108="TOTAL",SUM($W$17:W107),(SUM(AG109:AH109)))) ->  | X108: 0 | Y108: 0 | AP108: 2024-10-01 | AQ108: Oct-2024 | AR108: 53 | AS108: 9 | AT108: 3 | AU108: 3 | AV108: 10% | AZ108: 0 | BA108: 0 | BB108: Oct-2024 | BC108: 0
F109: =IF(D109="","",IF(D109=$N$10,$O$7,IF(E109="JUL",MROUND(ROUND(1.03*F108,0),100),IF(D109="TOTAL",SUM($F$17:F108),F108)))) ->  | G109: =IF(D109="","",IF(D109="TOTAL",SUM($G$17:G108),(ROUND(F109*AJ109/100,0)))) ->  | H109: =IF(D109="","",IF(D109="TOTAL",SUM($H$17:H108),(ROUND(F109*AK109/100,0)))) ->  | I109: 0 | K109: =IF(D109="","",IF(D109=$O$10,$O$8,IF(E109="JUL",MROUND(ROUND(1.03*K108,0),100),IF(D109="TOTAL",SUM($K$17:K108),K108)))) ->  | L109: =IF(D109="","",IF(D109="TOTAL",SUM($L$17:L108),(ROUND(K109*AJ109/100,0)))) ->  | M109: =IF(D109="","",IF(D109="TOTAL",SUM($M$17:M108),(ROUND(K109*AK109/100,0)))) ->  | N109: 0 | S109: 0 | T109: =IF(D109="","",IF(D109="TOTAL",SUM($T$17:T108),IF($U$8="YES",BA109,BD109))) ->  | U109: =IF(D109="","",IF(D109="TOTAL",SUM($U$17:U108),(ROUND(S109*AM109,0)))) ->  | V109: =IF(D109="","",IF(D109=$Y$9,$X$3,IF(D109="TOTAL",SUM($V$17:V108),V108))) ->  | W109: =IF(D109="","",IF(D109="TOTAL",SUM($W$17:W108),(SUM(AG110:AH110)))) ->  | X109: 0 | Y109: 0 | AP109: 2024-11-01 | AQ109: Nov-2024 | AR109: 53 | AS109: =V7 -> 10 | AU109: 0 | AV109: 10% | AZ109: 0 | BA109: 0 | BB109: Nov-2024 | BC109: 0
F110: =IF(D110="","",IF(D110=$N$10,$O$7,IF(E110="JUL",MROUND(ROUND(1.03*F109,0),100),IF(D110="TOTAL",SUM($F$17:F109),F109)))) ->  | G110: =IF(D110="","",IF(D110="TOTAL",SUM($G$17:G109),(ROUND(F110*AJ110/100,0)))) ->  | H110: =IF(D110="","",IF(D110="TOTAL",SUM($H$17:H109),(ROUND(F110*AK110/100,0)))) ->  | I110: 0 | K110: =IF(D110="","",IF(D110=$O$10,$O$8,IF(E110="JUL",MROUND(ROUND(1.03*K109,0),100),IF(D110="TOTAL",SUM($K$17:K109),K109)))) ->  | L110: =IF(D110="","",IF(D110="TOTAL",SUM($L$17:L109),(ROUND(K110*AJ110/100,0)))) ->  | M110: =IF(D110="","",IF(D110="TOTAL",SUM($M$17:M109),(ROUND(K110*AK110/100,0)))) ->  | N110: 0 | S110: 0 | T110: =IF(D110="","",IF(D110="TOTAL",SUM($T$17:T109),IF($U$8="YES",BA110,BD110))) ->  | U110: =IF(D110="","",IF(D110="TOTAL",SUM($U$17:U109),(ROUND(S110*AM110,0)))) ->  | V110: =IF(D110="","",IF(D110=$Y$9,$X$3,IF(D110="TOTAL",SUM($V$17:V109),V109))) ->  | W110: =IF(D110="","",IF(D110="TOTAL",SUM($W$17:W109),(SUM(AG111:AH111)))) ->  | X110: 0 | Y110: 0 | AP110: 2024-12-01 | AQ110: Dec-2024 | AR110: 53 | AS110: 10 | AU110: 0 | AV110: 10% | AZ110: 0 | BA110: 0 | BB110: Dec-2024 | BC110: 0
F111: =IF(D111="","",IF(D111=$N$10,$O$7,IF(E111="JUL",MROUND(ROUND(1.03*F110,0),100),IF(D111="TOTAL",SUM($F$17:F110),F110)))) ->  | G111: =IF(D111="","",IF(D111="TOTAL",SUM($G$17:G110),(ROUND(F111*AJ111/100,0)))) ->  | H111: =IF(D111="","",IF(D111="TOTAL",SUM($H$17:H110),(ROUND(F111*AK111/100,0)))) ->  | I111: 0 | K111: =IF(D111="","",IF(D111=$O$10,$O$8,IF(E111="JUL",MROUND(ROUND(1.03*K110,0),100),IF(D111="TOTAL",SUM($K$17:K110),K110)))) ->  | L111: =IF(D111="","",IF(D111="TOTAL",SUM($L$17:L110),(ROUND(K111*AJ111/100,0)))) ->  | M111: =IF(D111="","",IF(D111="TOTAL",SUM($M$17:M110),(ROUND(K111*AK111/100,0)))) ->  | N111: 0 | S111: 0 | T111: =IF(D111="","",IF(D111="TOTAL",SUM($T$17:T110),IF($U$8="YES",BA111,BD111))) ->  | U111: =IF(D111="","",IF(D111="TOTAL",SUM($U$17:U110),(ROUND(S111*AM111,0)))) ->  | V111: =IF(D111="","",IF(D111=$Y$9,$X$3,IF(D111="TOTAL",SUM($V$17:V110),V110))) ->  | W111: =IF(D111="","",IF(D111="TOTAL",SUM($W$17:W110),(SUM(AG112:AH112)))) ->  | X111: 0 | Y111: 0 | AP111: 2025-01-01 | AQ111: Jan-2025 | AR111: 55 | AS111: 10 | AT111: 2 | AU111: 2 | AV111: 10% | AZ111: 0 | BA111: 0 | BB111: Jan-2025 | BC111: 0
F112: =IF(D112="","",IF(D112=$N$10,$O$7,IF(E112="JUL",MROUND(ROUND(1.03*F111,0),100),IF(D112="TOTAL",SUM($F$17:F111),F111)))) ->  | G112: =IF(D112="","",IF(D112="TOTAL",SUM($G$17:G111),(ROUND(F112*AJ112/100,0)))) ->  | H112: =IF(D112="","",IF(D112="TOTAL",SUM($H$17:H111),(ROUND(F112*AK112/100,0)))) ->  | I112: 0 | K112: =IF(D112="","",IF(D112=$O$10,$O$8,IF(E112="JUL",MROUND(ROUND(1.03*K111,0),100),IF(D112="TOTAL",SUM($K$17:K111),K111)))) ->  | L112: =IF(D112="","",IF(D112="TOTAL",SUM($L$17:L111),(ROUND(K112*AJ112/100,0)))) ->  | M112: =IF(D112="","",IF(D112="TOTAL",SUM($M$17:M111),(ROUND(K112*AK112/100,0)))) ->  | N112: 0 | S112: 0 | T112: =IF(D112="","",IF(D112="TOTAL",SUM($T$17:T111),IF($U$8="YES",BA112,BD112))) ->  | U112: =IF(D112="","",IF(D112="TOTAL",SUM($U$17:U111),(ROUND(S112*AM112,0)))) ->  | V112: =IF(D112="","",IF(D112=$Y$9,$X$3,IF(D112="TOTAL",SUM($V$17:V111),V111))) ->  | W112: =IF(D112="","",IF(D112="TOTAL",SUM($W$17:W111),(SUM(AG113:AH113)))) ->  | X112: 0 | Y112: 0 | AP112: 2025-02-01 | AQ112: Feb-2025 | AR112: 55 | AS112: 10 | AT112: 2 | AU112: 2 | AV112: 10% | AZ112: 0 | BA112: 0 | BB112: Feb-2025 | BC112: 0
F113: =IF(D113="","",IF(D113=$N$10,$O$7,IF(E113="JUL",MROUND(ROUND(1.03*F112,0),100),IF(D113="TOTAL",SUM($F$17:F112),F112)))) ->  | G113: =IF(D113="","",IF(D113="TOTAL",SUM($G$17:G112),(ROUND(F113*AJ113/100,0)))) ->  | H113: =IF(D113="","",IF(D113="TOTAL",SUM($H$17:H112),(ROUND(F113*AK113/100,0)))) ->  | I113: 0 | K113: =IF(D113="","",IF(D113=$O$10,$O$8,IF(E113="JUL",MROUND(ROUND(1.03*K112,0),100),IF(D113="TOTAL",SUM($K$17:K112),K112)))) ->  | L113: =IF(D113="","",IF(D113="TOTAL",SUM($L$17:L112),(ROUND(K113*AJ113/100,0)))) ->  | M113: =IF(D113="","",IF(D113="TOTAL",SUM($M$17:M112),(ROUND(K113*AK113/100,0)))) ->  | N113: 0 | S113: 0 | T113: =IF(D113="","",IF(D113="TOTAL",SUM($T$17:T112),IF($U$8="YES",BA113,BD113))) ->  | U113: =IF(D113="","",IF(D113="TOTAL",SUM($U$17:U112),(ROUND(S113*AM113,0)))) ->  | V113: =IF(D113="","",IF(D113=$Y$9,$X$3,IF(D113="TOTAL",SUM($V$17:V112),V112))) ->  | W113: =IF(D113="","",IF(D113="TOTAL",SUM($W$17:W112),(SUM(AG114:AH114)))) ->  | X113: 0 | Y113: 0 | AE113: =IFERROR(VLOOKUP(D113,$AQ$15:$BE$211,8,0),"") ->  | AF113: =IFERROR(VLOOKUP(D113,$AQ$15:$BE$211,9,0),"") ->  | AG113: =IFERROR(ROUND(O113/31*AN113,0),"") ->  | AH113: =IFERROR(ROUND(S113/31*AO113,0),"") -> 0 | AJ113: =IFERROR(VLOOKUP(D113,$AQ$15:$AR$211,2,0),"") ->  | AK113: =IFERROR(VLOOKUP(D113,$AQ$15:$AAT$211,3,0),"") ->  | AM113: =IFERROR(VLOOKUP(D113,$AQ$15:$AAU$211,6,0),"") ->  | AP113: 2025-03-01 | AQ113: Mar-2025 | AR113: 55 | AS113: 10 | AT113: 2 | AU113: 2 | AV113: 10% | AZ113: 0 | BA113: 0 | BB113: Mar-2025 | BC113: 0
C114: =IFERROR(IF(AB114="","",IF(DATE(YEAR(AB114),MONTH(AB114),DAY(AB114))=DATE(YEAR($N$9),MONTH($N$9)+1,DAY($N$9)),"TOTAL",IF(AB114>$N$9,"",AB114))),"") ->  | D114: =TEXT(C114,"mmm-yyyy") ->  | F114: =IF(D114="","",IF(D114=$N$10,$O$7,IF(E114="JUL",MROUND(ROUND(1.03*F113,0),100),IF(D114="TOTAL",SUM($F$17:F113),F113)))) ->  | G114: =IF(D114="","",IF(D114="TOTAL",SUM($G$17:G113),(ROUND(F114*AJ114/100,0)))) ->  | H114: =IF(D114="","",IF(D114="TOTAL",SUM($H$17:H113),(ROUND(F114*AK114/100,0)))) ->  | I114: =SUM(F114:H114) -> 0 | K114: =IF(D114="","",IF(D114=$O$10,$O$8,IF(E114="JUL",MROUND(ROUND(1.03*K113,0),100),IF(D114="TOTAL",SUM($K$17:K113),K113)))) ->  | L114: =IF(D114="","",IF(D114="TOTAL",SUM($L$17:L113),(ROUND(K114*AJ114/100,0)))) ->  | M114: =IF(D114="","",IF(D114="TOTAL",SUM($M$17:M113),(ROUND(K114*AK114/100,0)))) ->  | N114: =IFERROR(SUM(K114:M114),"") -> 0 | O114: =IFERROR(MIN(F114-K114),"") ->  | P114: =IFERROR(MIN(G114-L114),"") ->  | Q114: =IFERROR(MIN(H114-M114),"") ->  | S114: =IFERROR(SUM(O114:R114),"") -> 0 | T114: =IF(D114="","",IF(D114="TOTAL",SUM($T$17:T113),IF($U$8="YES",BA114,BD114))) ->  | U114: =IF(D114="","",IF(D114="TOTAL",SUM($U$17:U113),(ROUND(S114*AM114,0)))) ->  | V114: =IF(D114="","",IF(D114=$Y$9,$X$3,IF(D114="TOTAL",SUM($V$17:V113),V113))) ->  | W114: =IF(D114="","",IF(D114="TOTAL",SUM($W$17:W113),(SUM(AG115:AH115)))) ->  | X114: =IFERROR(SUM(T114:W114),"") -> 0 | Y114: =S114-X114 -> 0 | AH114: 0 | AP114: 2025-04-01 | AQ114: Apr-2025 | AR114: 55 | AS114: 10 | AU114: 0 | AV114: 10% | AZ114: 0 | BA114: 0 | BB114: Apr-2025 | BC114: 0
F115: =IF(D115="","",IF(D115=$N$10,$O$7,IF(E115="JUL",MROUND(ROUND(1.03*F114,0),100),IF(D115="TOTAL",SUM($F$17:F114),F114)))) ->  | G115: =IF(D115="","",IF(D115="TOTAL",SUM($G$17:G114),(ROUND(F115*AJ115/100,0)))) ->  | H115: =IF(D115="","",IF(D115="TOTAL",SUM($H$17:H114),(ROUND(F115*AK115/100,0)))) ->  | I115: 0 | K115: =IF(D115="","",IF(D115=$O$10,$O$8,IF(E115="JUL",MROUND(ROUND(1.03*K114,0),100),IF(D115="TOTAL",SUM($K$17:K114),K114)))) ->  | L115: =IF(D115="","",IF(D115="TOTAL",SUM($L$17:L114),(ROUND(K115*AJ115/100,0)))) ->  | M115: =IF(D115="","",IF(D115="TOTAL",SUM($M$17:M114),(ROUND(K115*AK115/100,0)))) ->  | N115: 0 | S115: 0 | T115: =IF(D115="","",IF(D115="TOTAL",SUM($T$17:T114),IF($U$8="YES",BA115,BD115))) ->  | U115: =IF(D115="","",IF(D115="TOTAL",SUM($U$17:U114),(ROUND(S115*AM115,0)))) ->  | V115: =IF(D115="","",IF(D115=$Y$9,$X$3,IF(D115="TOTAL",SUM($V$17:V114),V114))) ->  | W115: =IF(D115="","",IF(D115="TOTAL",SUM($W$17:W114),(SUM(AG116:AH116)))) ->  | X115: 0 | Y115: 0 | AB115: =IFERROR(DATE(YEAR(C114),MONTH(C114)+1,DAY(C114)),"") ->  | AC115: =IFERROR(IF(AB115="","",IF(DATE(YEAR(AB115),MONTH(AB115),DAY(AB115))=DATE(YEAR($N$9),MONTH($N$9)+1,DAY($N$9)),"TOTAL",IF(AB115>$N$9,"",AB115))),"") ->  | AH115: 0 | AP115: 2025-05-01 | AQ115: May-2025 | AR115: 55 | AS115: 10 | AU115: 0 | AV115: 10% | AZ115: 0 | BA115: 0 | BB115: May-2025 | BC115: 0
F116: =IF(D116="","",IF(D116=$N$10,$O$7,IF(E116="JUL",MROUND(ROUND(1.03*F115,0),100),IF(D116="TOTAL",SUM($F$17:F115),F115)))) ->  | G116: =IF(D116="","",IF(D116="TOTAL",SUM($G$17:G115),(ROUND(F116*AJ116/100,0)))) ->  | H116: =IF(D116="","",IF(D116="TOTAL",SUM($H$17:H115),(ROUND(F116*AK116/100,0)))) ->  | I116: 0 | K116: =IF(D116="","",IF(D116=$O$10,$O$8,IF(E116="JUL",MROUND(ROUND(1.03*K115,0),100),IF(D116="TOTAL",SUM($K$17:K115),K115)))) ->  | L116: =IF(D116="","",IF(D116="TOTAL",SUM($L$17:L115),(ROUND(K116*AJ116/100,0)))) ->  | M116: =IF(D116="","",IF(D116="TOTAL",SUM($M$17:M115),(ROUND(K116*AK116/100,0)))) ->  | N116: 0 | S116: 0 | T116: =IF(D116="","",IF(D116="TOTAL",SUM($T$17:T115),IF($U$8="YES",BA116,BD116))) ->  | U116: =IF(D116="","",IF(D116="TOTAL",SUM($U$17:U115),(ROUND(S116*AM116,0)))) ->  | V116: =IF(D116="","",IF(D116=$Y$9,$X$3,IF(D116="TOTAL",SUM($V$17:V115),V115))) ->  | W116: =IF(D116="","",IF(D116="TOTAL",SUM($W$17:W115),(SUM(AG117:AH117)))) ->  | X116: 0 | Y116: 0 | AH116: 0 | AP116: 2025-06-01 | AQ116: Jun-2025 | AR116: 55 | AS116: 10 | AU116: 0 | AV116: 10% | AZ116: 0 | BA116: 0 | BB116: Jun-2025 | BC116: 0
F117: =IF(D117="","",IF(D117=$N$10,$O$7,IF(E117="JUL",MROUND(ROUND(1.03*F116,0),100),IF(D117="TOTAL",SUM($F$17:F116),F116)))) ->  | G117: =IF(D117="","",IF(D117="TOTAL",SUM($G$17:G116),(ROUND(F117*AJ117/100,0)))) ->  | H117: =IF(D117="","",IF(D117="TOTAL",SUM($H$17:H116),(ROUND(F117*AK117/100,0)))) ->  | I117: 0 | K117: =IF(D117="","",IF(D117=$O$10,$O$8,IF(E117="JUL",MROUND(ROUND(1.03*K116,0),100),IF(D117="TOTAL",SUM($K$17:K116),K116)))) ->  | L117: =IF(D117="","",IF(D117="TOTAL",SUM($L$17:L116),(ROUND(K117*AJ117/100,0)))) ->  | M117: =IF(D117="","",IF(D117="TOTAL",SUM($M$17:M116),(ROUND(K117*AK117/100,0)))) ->  | N117: 0 | S117: 0 | T117: =IF(D117="","",IF(D117="TOTAL",SUM($T$17:T116),IF($U$8="YES",BA117,BD117))) ->  | U117: =IF(D117="","",IF(D117="TOTAL",SUM($U$17:U116),(ROUND(S117*AM117,0)))) ->  | V117: =IF(D117="","",IF(D117=$Y$9,$X$3,IF(D117="TOTAL",SUM($V$17:V116),V116))) ->  | W117: =IF(D117="","",IF(D117="TOTAL",SUM($W$17:W116),(SUM(AG118:AH118)))) ->  | X117: 0 | Y117: 0 | AH117: 0 | AP117: 2025-07-01 | AQ117: Jul-2025 | AR117: 58 | AS117: 10 | AT117: 3 | AU117: 3 | AV117: 10% | AZ117: 0 | BA117: 0 | BB117: Jul-2025 | BC117: 0
F118: =IF(D118="","",IF(D118=$N$10,$O$7,IF(E118="JUL",MROUND(ROUND(1.03*F117,0),100),IF(D118="TOTAL",SUM($F$17:F117),F117)))) ->  | G118: =IF(D118="","",IF(D118="TOTAL",SUM($G$17:G117),(ROUND(F118*AJ118/100,0)))) ->  | H118: =IF(D118="","",IF(D118="TOTAL",SUM($H$17:H117),(ROUND(F118*AK118/100,0)))) ->  | I118: 0 | K118: =IF(D118="","",IF(D118=$O$10,$O$8,IF(E118="JUL",MROUND(ROUND(1.03*K117,0),100),IF(D118="TOTAL",SUM($K$17:K117),K117)))) ->  | L118: =IF(D118="","",IF(D118="TOTAL",SUM($L$17:L117),(ROUND(K118*AJ118/100,0)))) ->  | M118: =IF(D118="","",IF(D118="TOTAL",SUM($M$17:M117),(ROUND(K118*AK118/100,0)))) ->  | N118: 0 | S118: 0 | T118: =IF(D118="","",IF(D118="TOTAL",SUM($T$17:T117),IF($U$8="YES",BA118,BD118))) ->  | U118: =IF(D118="","",IF(D118="TOTAL",SUM($U$17:U117),(ROUND(S118*AM118,0)))) ->  | V118: =IF(D118="","",IF(D118=$Y$9,$X$3,IF(D118="TOTAL",SUM($V$17:V117),V117))) ->  | W118: =IF(D118="","",IF(D118="TOTAL",SUM($W$17:W117),(SUM(AG119:AH119)))) ->  | X118: 0 | Y118: 0 | AH118: 0 | AP118: 2025-08-01 | AQ118: Aug-2025 | AR118: 58 | AS118: 10 | AT118: 3 | AU118: 3 | AV118: 10% | AZ118: 0 | BA118: 0 | BB118: Aug-2025 | BC118: 0
F119: =IF(D119="","",IF(D119=$N$10,$O$7,IF(E119="JUL",MROUND(ROUND(1.03*F118,0),100),IF(D119="TOTAL",SUM($F$17:F118),F118)))) ->  | G119: =IF(D119="","",IF(D119="TOTAL",SUM($G$17:G118),(ROUND(F119*AJ119/100,0)))) ->  | H119: =IF(D119="","",IF(D119="TOTAL",SUM($H$17:H118),(ROUND(F119*AK119/100,0)))) ->  | I119: 0 | K119: =IF(D119="","",IF(D119=$O$10,$O$8,IF(E119="JUL",MROUND(ROUND(1.03*K118,0),100),IF(D119="TOTAL",SUM($K$17:K118),K118)))) ->  | L119: =IF(D119="","",IF(D119="TOTAL",SUM($L$17:L118),(ROUND(K119*AJ119/100,0)))) ->  | M119: =IF(D119="","",IF(D119="TOTAL",SUM($M$17:M118),(ROUND(K119*AK119/100,0)))) ->  | N119: 0 | S119: 0 | T119: =IF(D119="","",IF(D119="TOTAL",SUM($T$17:T118),IF($U$8="YES",BA119,BD119))) ->  | U119: =IF(D119="","",IF(D119="TOTAL",SUM($U$17:U118),(ROUND(S119*AM119,0)))) ->  | V119: =IF(D119="","",IF(D119=$Y$9,$X$3,IF(D119="TOTAL",SUM($V$17:V118),V118))) ->  | W119: =IF(D119="","",IF(D119="TOTAL",SUM($W$17:W118),(SUM(AG120:AH120)))) ->  | X119: 0 | Y119: 0 | AH119: 0 | AP119: 2025-09-01 | AQ119: Sep-2025 | AR119: 58 | AS119: 10 | AT119: 3 | AU119: 3 | AV119: 10% | AZ119: 0 | BA119: 0 | BB119: Sep-2025 | BC119: 0
F120: =IF(D120="","",IF(D120=$N$10,$O$7,IF(E120="JUL",MROUND(ROUND(1.03*F119,0),100),IF(D120="TOTAL",SUM($F$17:F119),F119)))) ->  | G120: =IF(D120="","",IF(D120="TOTAL",SUM($G$17:G119),(ROUND(F120*AJ120/100,0)))) ->  | H120: =IF(D120="","",IF(D120="TOTAL",SUM($H$17:H119),(ROUND(F120*AK120/100,0)))) ->  | I120: 0 | K120: =IF(D120="","",IF(D120=$O$10,$O$8,IF(E120="JUL",MROUND(ROUND(1.03*K119,0),100),IF(D120="TOTAL",SUM($K$17:K119),K119)))) ->  | L120: =IF(D120="","",IF(D120="TOTAL",SUM($L$17:L119),(ROUND(K120*AJ120/100,0)))) ->  | M120: =IF(D120="","",IF(D120="TOTAL",SUM($M$17:M119),(ROUND(K120*AK120/100,0)))) ->  | N120: 0 | S120: 0 | T120: =IF(D120="","",IF(D120="TOTAL",SUM($T$17:T119),IF($U$8="YES",BA120,BD120))) ->  | U120: =IF(D120="","",IF(D120="TOTAL",SUM($U$17:U119),(ROUND(S120*AM120,0)))) ->  | V120: =IF(D120="","",IF(D120=$Y$9,$X$3,IF(D120="TOTAL",SUM($V$17:V119),V119))) ->  | W120: =IF(D120="","",IF(D120="TOTAL",SUM($W$17:W119),(SUM(AG121:AH121)))) ->  | X120: 0 | Y120: 0 | AH120: 0 | AP120: 2025-10-01 | AQ120: Oct-2025 | AR120: 58 | AS120: 10 | AT120: 3 | AU120: 3 | AV120: 10% | AZ120: 0 | BA120: 0 | BB120: Oct-2025 | BC120: 0
F121: =IF(D121="","",IF(D121=$N$10,$O$7,IF(E121="JUL",MROUND(ROUND(1.03*F120,0),100),IF(D121="TOTAL",SUM($F$17:F120),F120)))) ->  | G121: =IF(D121="","",IF(D121="TOTAL",SUM($G$17:G120),(ROUND(F121*AJ121/100,0)))) ->  | H121: =IF(D121="","",IF(D121="TOTAL",SUM($H$17:H120),(ROUND(F121*AK121/100,0)))) ->  | I121: 0 | K121: =IF(D121="","",IF(D121=$O$10,$O$8,IF(E121="JUL",MROUND(ROUND(1.03*K120,0),100),IF(D121="TOTAL",SUM($K$17:K120),K120)))) ->  | L121: =IF(D121="","",IF(D121="TOTAL",SUM($L$17:L120),(ROUND(K121*AJ121/100,0)))) ->  | M121: =IF(D121="","",IF(D121="TOTAL",SUM($M$17:M120),(ROUND(K121*AK121/100,0)))) ->  | N121: 0 | S121: 0 | T121: =IF(D121="","",IF(D121="TOTAL",SUM($T$17:T120),IF($U$8="YES",BA121,BD121))) ->  | U121: =IF(D121="","",IF(D121="TOTAL",SUM($U$17:U120),(ROUND(S121*AM121,0)))) ->  | V121: =IF(D121="","",IF(D121=$Y$9,$X$3,IF(D121="TOTAL",SUM($V$17:V120),V120))) ->  | W121: =IF(D121="","",IF(D121="TOTAL",SUM($W$17:W120),(SUM(AG122:AH122)))) ->  | X121: 0 | Y121: 0 | AH121: 0 | AP121: 2025-11-01 | AQ121: Nov-2025 | AR121: 58 | AS121: 10 | AU121: 0 | AV121: 10% | AZ121: 0 | BA121: 0 | BB121: Nov-2025 | BC121: 0
F122: =IF(D122="","",IF(D122=$N$10,$O$7,IF(E122="JUL",MROUND(ROUND(1.03*F121,0),100),IF(D122="TOTAL",SUM($F$17:F121),F121)))) ->  | G122: =IF(D122="","",IF(D122="TOTAL",SUM($G$17:G121),(ROUND(F122*AJ122/100,0)))) ->  | H122: =IF(D122="","",IF(D122="TOTAL",SUM($H$17:H121),(ROUND(F122*AK122/100,0)))) ->  | I122: 0 | K122: =IF(D122="","",IF(D122=$O$10,$O$8,IF(E122="JUL",MROUND(ROUND(1.03*K121,0),100),IF(D122="TOTAL",SUM($K$17:K121),K121)))) ->  | L122: =IF(D122="","",IF(D122="TOTAL",SUM($L$17:L121),(ROUND(K122*AJ122/100,0)))) ->  | M122: =IF(D122="","",IF(D122="TOTAL",SUM($M$17:M121),(ROUND(K122*AK122/100,0)))) ->  | N122: 0 | S122: 0 | T122: =IF(D122="","",IF(D122="TOTAL",SUM($T$17:T121),IF($U$8="YES",BA122,BD122))) ->  | U122: =IF(D122="","",IF(D122="TOTAL",SUM($U$17:U121),(ROUND(S122*AM122,0)))) ->  | V122: =IF(D122="","",IF(D122=$Y$9,$X$3,IF(D122="TOTAL",SUM($V$17:V121),V121))) ->  | W122: =IF(D122="","",IF(D122="TOTAL",SUM($W$17:W121),(SUM(AG123:AH123)))) ->  | X122: 0 | Y122: 0 | AH122: 0 | AP122: 2025-12-01 | AQ122: Dec-2025 | AR122: 58 | AS122: 10 | AU122: 0 | AV122: 10% | AZ122: 0 | BA122: 0 | BB122: Dec-2025 | BC122: 0
F123: =IF(D123="","",IF(D123=$N$10,$O$7,IF(E123="JUL",MROUND(ROUND(1.03*F122,0),100),IF(D123="TOTAL",SUM($F$17:F122),F122)))) ->  | G123: =IF(D123="","",IF(D123="TOTAL",SUM($G$17:G122),(ROUND(F123*AJ123/100,0)))) ->  | H123: =IF(D123="","",IF(D123="TOTAL",SUM($H$17:H122),(ROUND(F123*AK123/100,0)))) ->  | I123: 0 | K123: =IF(D123="","",IF(D123=$O$10,$O$8,IF(E123="JUL",MROUND(ROUND(1.03*K122,0),100),IF(D123="TOTAL",SUM($K$17:K122),K122)))) ->  | L123: =IF(D123="","",IF(D123="TOTAL",SUM($L$17:L122),(ROUND(K123*AJ123/100,0)))) ->  | M123: =IF(D123="","",IF(D123="TOTAL",SUM($M$17:M122),(ROUND(K123*AK123/100,0)))) ->  | N123: 0 | S123: 0 | T123: =IF(D123="","",IF(D123="TOTAL",SUM($T$17:T122),IF($U$8="YES",BA123,BD123))) ->  | U123: =IF(D123="","",IF(D123="TOTAL",SUM($U$17:U122),(ROUND(S123*AM123,0)))) ->  | V123: =IF(D123="","",IF(D123=$Y$9,$X$3,IF(D123="TOTAL",SUM($V$17:V122),V122))) ->  | W123: =IF(D123="","",IF(D123="TOTAL",SUM($W$17:W122),(SUM(AG124:AH124)))) ->  | X123: 0 | Y123: 0 | AH123: 0 | AP123: 2026-01-01 | AQ123: Jan-2026 | AR123: 58 | AS123: 10 | AU123: 0 | AV123: 10% | BA123: 0 | BB123: Jan-2026 | BC123: 0
F124: =IF(D124="","",IF(D124=$N$10,$O$7,IF(E124="JUL",MROUND(ROUND(1.03*F123,0),100),IF(D124="TOTAL",SUM($F$17:F123),F123)))) ->  | G124: =IF(D124="","",IF(D124="TOTAL",SUM($G$17:G123),(ROUND(F124*AJ124/100,0)))) ->  | H124: =IF(D124="","",IF(D124="TOTAL",SUM($H$17:H123),(ROUND(F124*AK124/100,0)))) ->  | I124: 0 | K124: =IF(D124="","",IF(D124=$O$10,$O$8,IF(E124="JUL",MROUND(ROUND(1.03*K123,0),100),IF(D124="TOTAL",SUM($K$17:K123),K123)))) ->  | L124: =IF(D124="","",IF(D124="TOTAL",SUM($L$17:L123),(ROUND(K124*AJ124/100,0)))) ->  | M124: =IF(D124="","",IF(D124="TOTAL",SUM($M$17:M123),(ROUND(K124*AK124/100,0)))) ->  | N124: 0 | S124: 0 | T124: =IF(D124="","",IF(D124="TOTAL",SUM($T$17:T123),IF($U$8="YES",BA124,BD124))) ->  | U124: =IF(D124="","",IF(D124="TOTAL",SUM($U$17:U123),(ROUND(S124*AM124,0)))) ->  | V124: =IF(D124="","",IF(D124=$Y$9,$X$3,IF(D124="TOTAL",SUM($V$17:V123),V123))) ->  | W124: =IF(D124="","",IF(D124="TOTAL",SUM($W$17:W123),(SUM(AG125:AH125)))) ->  | X124: 0 | Y124: 0 | AH124: 0 | AP124: 2026-02-01 | AQ124: Feb-2026 | AR124: 58 | AS124: 10 | AU124: 0 | AV124: 10% | BA124: 0 | BB124: Feb-2026 | BC124: 0
C125: =IFERROR(IF(AB125="","",IF(DATE(YEAR(AB125),MONTH(AB125),DAY(AB125))=DATE(YEAR($N$9),MONTH($N$9)+1,DAY($N$9)),"TOTAL",IF(AB125>$N$9,"",AB125))),"") ->  | D125: =TEXT(C125,"mmm-yyyy") ->  | E125: =TEXT(D125,"mmm") ->  | F125: =IF(D125="","",IF(E125="JUL",MROUND(ROUND(1.03*F124,0),100),IF(D125="TOTAL",SUM($F$17:F124),F124))) ->  | G125: =IF(D125="","",IF(D125="TOTAL",SUM($G$17:G124),(ROUND(F125*AJ125/100,0)))) ->  | H125: =IF(D125="","",IF(D125="TOTAL",SUM($H$17:H124),(ROUND(F125*AK125/100,0)))) ->  | I125: =SUM(F125:H125) -> 0 | K125: =IF(D125="","",IF(E125="JUL",MROUND(ROUND(1.03*K124,0),100),IF(D125="TOTAL",SUM($K$17:K124),K124))) ->  | L125: =IF(D125="","",IF(D125="TOTAL",SUM($L$17:L124),(ROUND(K125*AJ125/100,0)))) ->  | M125: =IF(D125="","",IF(D125="TOTAL",SUM($M$17:M124),(ROUND(K125*AK125/100,0)))) ->  | N125: =IFERROR(SUM(K125:M125),"") -> 0 | O125: =IFERROR(MIN(F125-K125),"") ->  | P125: =IFERROR(MIN(G125-L125),"") ->  | Q125: =IFERROR(MIN(H125-M125),"") ->  | S125: =IFERROR(SUM(O125:R125),"") -> 0 | T125: =IF(D125="","",IF(D125="TOTAL",SUM($T$17:T124),IF($U$8="YES",BA125,BD125))) ->  | U125: =IF(D125="","",IF(D125="TOTAL",SUM($U$17:U124),(ROUND(S125*AM125,0)))) ->  | V125: =IF(D125="","",IF(E125="mar",$X$3,IF(D125="TOTAL",SUM($V$17:V124),V124))) ->  | W125: =IF(D125="","",IF(D125="TOTAL",SUM($W$17:W124),(SUM(AG126:AH126)))) ->  | X125: =IFERROR(SUM(T125:W125),"") -> 0 | Y125: =S125-X125 -> 0 | AH125: 0 | AP125: 2026-03-01 | AQ125: Mar-2026 | AR125: 58 | AS125: 10 | AU125: 0 | AV125: 10% | BA125: 0 | BB125: Mar-2026 | BC125: 0
C126: =IFERROR(IF(AB126="","",IF(DATE(YEAR(AB126),MONTH(AB126),DAY(AB126))=DATE(YEAR($N$9),MONTH($N$9)+1,DAY($N$9)),"TOTAL",IF(AB126>$N$9,"",AB126))),"") ->  | D126: =TEXT(C126,"mmm-yyyy") ->  | E126: =TEXT(D126,"mmm") ->  | F126: =IF(D126="","",IF(E126="JUL",MROUND(ROUND(1.03*F125,0),100),IF(D126="TOTAL",SUM($F$17:F125),F125))) ->  | G126: =IF(D126="","",IF(D126="TOTAL",SUM($G$17:G125),(ROUND(F126*AJ126/100,0)))) ->  | H126: =IF(D126="","",IF(D126="TOTAL",SUM($H$17:H125),(ROUND(F126*AK126/100,0)))) ->  | I126: =SUM(F126:H126) -> 0 | K126: =IF(D126="","",IF(E126="JUL",MROUND(ROUND(1.03*K125,0),100),IF(D126="TOTAL",SUM($K$17:K125),K125))) ->  | L126: =IF(D126="","",IF(D126="TOTAL",SUM($L$17:L125),(ROUND(K126*AJ126/100,0)))) ->  | M126: =IF(D126="","",IF(D126="TOTAL",SUM($M$17:M125),(ROUND(K126*AK126/100,0)))) ->  | N126: =IFERROR(SUM(K126:M126),"") -> 0 | O126: =IFERROR(MIN(F126-K126),"") ->  | P126: =IFERROR(MIN(G126-L126),"") ->  | Q126: =IFERROR(MIN(H126-M126),"") ->  | S126: =IFERROR(SUM(O126:R126),"") -> 0 | T126: =IF(D126="","",IF(D126="TOTAL",SUM($T$17:T125),IF($U$8="YES",BA126,BD126))) ->  | U126: =IF(D126="","",IF(D126="TOTAL",SUM($U$17:U125),(ROUND(S126*AM126,0)))) ->  | V126: =IF(D126="","",IF(E126="mar",$X$3,IF(D126="TOTAL",SUM($V$17:V125),V125))) ->  | W126: =IF(D126="","",IF(D126="TOTAL",SUM($W$17:W125),(SUM(AG127:AH127)))) ->  | X126: =IFERROR(SUM(T126:W126),"") -> 0 | Y126: =S126-X126 -> 0 | AB126: =IFERROR(DATE(YEAR(C125),MONTH(C125)+1,DAY(C125)),"") ->  | AC126: =IFERROR(IF(AB126="","",IF(DATE(YEAR(AB126),MONTH(AB126),DAY(AB126))=DATE(YEAR($N$9),MONTH($N$9)+1,DAY($N$9)),"TOTAL",IF(AB126>$N$9,"",AB126))),"") ->  | AE126: =IFERROR(VLOOKUP(D126,$AQ$15:$BE$211,8,0),"") ->  | AG126: =IFERROR(ROUND(O126/31*AN126,0),"") ->  | AH126: =IFERROR(ROUND(S126/31*AO126,0),"") -> 0 | AJ126: =IFERROR(VLOOKUP(D126,$AQ$15:$AR$211,2,0),"") ->  | AK126: =IFERROR(VLOOKUP(D126,$AQ$15:$AAT$211,3,0),"") ->  | AL126: =IFERROR(VLOOKUP(D126,$AQ$15:$AAU$211,5,0),"") ->  | AM126: =IFERROR(VLOOKUP(D126,$AQ$15:$AAU$211,6,0),"") ->  | AP126: 2026-04-01 | AQ126: Apr-2026 | AR126: 58 | AS126: 10 | AV126: 10% | BA126: 0 | BB126: Apr-2026
F127: =IF(D127="","",IF(E127="JUL",MROUND(ROUND(1.03*F126,0),100),IF(D127="TOTAL",SUM($F$17:F126),F126))) ->  | G127: =IF(D127="","",IF(D127="TOTAL",SUM($G$17:G126),(ROUND(F127*AJ127/100,0)))) ->  | H127: =IF(D127="","",IF(D127="TOTAL",SUM($H$17:H126),(ROUND(F127*AK127/100,0)))) ->  | I127: 0 | K127: =IF(D127="","",IF(E127="JUL",MROUND(ROUND(1.03*K126,0),100),IF(D127="TOTAL",SUM($K$17:K126),K126))) ->  | L127: =IF(D127="","",IF(D127="TOTAL",SUM($L$17:L126),(ROUND(K127*AJ127/100,0)))) ->  | M127: =IF(D127="","",IF(D127="TOTAL",SUM($M$17:M126),(ROUND(K127*AK127/100,0)))) ->  | N127: 0 | S127: 0 | T127: =IF(D127="","",IF(D127="TOTAL",SUM($T$17:T126),IF($U$8="YES",BA127,BD127))) ->  | U127: =IF(D127="","",IF(D127="TOTAL",SUM($U$17:U126),(ROUND(S127*AM127,0)))) ->  | V127: =IF(D127="","",IF(E127="mar",$X$3,IF(D127="TOTAL",SUM($V$17:V126),V126))) ->  | W127: =IF(D127="","",IF(D127="TOTAL",SUM($W$17:W126),(SUM(AG128:AH128)))) ->  | X127: 0 | Y127: 0 | AH127: 0 | AP127: 2026-05-01 | AQ127: May-2026 | AR127: 58 | AS127: 10 | AV127: 10% | BA127: 0 | BB127: May-2026
F128: =IF(D128="","",IF(E128="JUL",MROUND(ROUND(1.03*F127,0),100),IF(D128="TOTAL",SUM($F$17:F127),F127))) ->  | G128: =IF(D128="","",IF(D128="TOTAL",SUM($G$17:G127),(ROUND(F128*AJ128/100,0)))) ->  | H128: =IF(D128="","",IF(D128="TOTAL",SUM($H$17:H127),(ROUND(F128*AK128/100,0)))) ->  | I128: 0 | K128: =IF(D128="","",IF(E128="JUL",MROUND(ROUND(1.03*K127,0),100),IF(D128="TOTAL",SUM($K$17:K127),K127))) ->  | L128: =IF(D128="","",IF(D128="TOTAL",SUM($L$17:L127),(ROUND(K128*AJ128/100,0)))) ->  | M128: =IF(D128="","",IF(D128="TOTAL",SUM($M$17:M127),(ROUND(K128*AK128/100,0)))) ->  | N128: 0 | S128: 0 | T128: =IF(D128="","",IF(D128="TOTAL",SUM($T$17:T127),IF($U$8="YES",BA128,BD128))) ->  | U128: =IF(D128="","",IF(D128="TOTAL",SUM($U$17:U127),(ROUND(S128*AM128,0)))) ->  | V128: =IF(D128="","",IF(E128="mar",$X$3,IF(D128="TOTAL",SUM($V$17:V127),V127))) ->  | W128: =IF(D128="","",IF(D128="TOTAL",SUM($W$17:W127),(SUM(AG129:AH129)))) ->  | X128: 0 | Y128: 0 | AH128: 0 | AP128: 2026-06-01 | AQ128: Jun-2026 | AR128: 58 | AS128: 10 | AV128: 10% | BA128: 0 | BB128: Jun-2026
F129: =IF(D129="","",IF(E129="JUL",MROUND(ROUND(1.03*F128,0),100),IF(D129="TOTAL",SUM($F$17:F128),F128))) ->  | G129: =IF(D129="","",IF(D129="TOTAL",SUM($G$17:G128),(ROUND(F129*AJ129/100,0)))) ->  | H129: =IF(D129="","",IF(D129="TOTAL",SUM($H$17:H128),(ROUND(F129*AK129/100,0)))) ->  | I129: 0 | K129: =IF(D129="","",IF(E129="JUL",MROUND(ROUND(1.03*K128,0),100),IF(D129="TOTAL",SUM($K$17:K128),K128))) ->  | L129: =IF(D129="","",IF(D129="TOTAL",SUM($L$17:L128),(ROUND(K129*AJ129/100,0)))) ->  | M129: =IF(D129="","",IF(D129="TOTAL",SUM($M$17:M128),(ROUND(K129*AK129/100,0)))) ->  | N129: 0 | S129: 0 | T129: =IF(D129="","",IF(D129="TOTAL",SUM($T$17:T128),IF($U$8="YES",BA129,BD129))) ->  | U129: =IF(D129="","",IF(D129="TOTAL",SUM($U$17:U128),(ROUND(S129*AM129,0)))) ->  | V129: =IF(D129="","",IF(E129="mar",$X$3,IF(D129="TOTAL",SUM($V$17:V128),V128))) ->  | W129: =IF(D129="","",IF(D129="TOTAL",SUM($W$17:W128),(SUM(AG130:AH130)))) ->  | X129: 0 | Y129: 0 | AH129: 0 | AP129: 2026-07-01 | AQ129: Jul-2026 | AR129: 58 | AS129: 10 | AV129: 10% | BA129: 0 | BB129: Jul-2026
F130: =IF(D130="","",IF(E130="JUL",MROUND(ROUND(1.03*F129,0),100),IF(D130="TOTAL",SUM($F$17:F129),F129))) ->  | G130: =IF(D130="","",IF(D130="TOTAL",SUM($G$17:G129),(ROUND(F130*AJ130/100,0)))) ->  | H130: =IF(D130="","",IF(D130="TOTAL",SUM($H$17:H129),(ROUND(F130*AK130/100,0)))) ->  | I130: 0 | K130: =IF(D130="","",IF(E130="JUL",MROUND(ROUND(1.03*K129,0),100),IF(D130="TOTAL",SUM($K$17:K129),K129))) ->  | L130: =IF(D130="","",IF(D130="TOTAL",SUM($L$17:L129),(ROUND(K130*AJ130/100,0)))) ->  | M130: =IF(D130="","",IF(D130="TOTAL",SUM($M$17:M129),(ROUND(K130*AK130/100,0)))) ->  | N130: 0 | S130: 0 | T130: =IF(D130="","",IF(D130="TOTAL",SUM($T$17:T129),IF($U$8="YES",BA130,BD130))) ->  | U130: =IF(D130="","",IF(D130="TOTAL",SUM($U$17:U129),(ROUND(S130*AM130,0)))) ->  | V130: =IF(D130="","",IF(E130="mar",$X$3,IF(D130="TOTAL",SUM($V$17:V129),V129))) ->  | W130: =IF(D130="","",IF(D130="TOTAL",SUM($W$17:W129),(SUM(AG131:AH131)))) ->  | X130: 0 | Y130: 0 | AH130: 0 | AP130: 2026-08-01 | AQ130: Aug-2026 | AR130: 58 | AS130: 10 | AV130: 10% | BA130: 0 | BB130: Aug-2026
F131: =IF(D131="","",IF(E131="JUL",MROUND(ROUND(1.03*F130,0),100),IF(D131="TOTAL",SUM($F$17:F130),F130))) ->  | G131: =IF(D131="","",IF(D131="TOTAL",SUM($G$17:G130),(ROUND(F131*AJ131/100,0)))) ->  | H131: =IF(D131="","",IF(D131="TOTAL",SUM($H$17:H130),(ROUND(F131*AK131/100,0)))) ->  | I131: 0 | K131: =IF(D131="","",IF(E131="JUL",MROUND(ROUND(1.03*K130,0),100),IF(D131="TOTAL",SUM($K$17:K130),K130))) ->  | L131: =IF(D131="","",IF(D131="TOTAL",SUM($L$17:L130),(ROUND(K131*AJ131/100,0)))) ->  | M131: =IF(D131="","",IF(D131="TOTAL",SUM($M$17:M130),(ROUND(K131*AK131/100,0)))) ->  | N131: 0 | S131: 0 | T131: =IF(D131="","",IF(D131="TOTAL",SUM($T$17:T130),IF($U$8="YES",BA131,BD131))) ->  | U131: =IF(D131="","",IF(D131="TOTAL",SUM($U$17:U130),(ROUND(S131*AM131,0)))) ->  | V131: =IF(D131="","",IF(E131="mar",$X$3,IF(D131="TOTAL",SUM($V$17:V130),V130))) ->  | W131: =IF(D131="","",IF(D131="TOTAL",SUM($W$17:W130),(SUM(AG132:AH132)))) ->  | X131: 0 | Y131: 0 | AH131: 0 | AP131: 2026-09-01 | AQ131: Sep-2026 | AR131: 58 | AS131: 10 | AV131: 10% | BA131: 0 | BB131: Sep-2026
F132: =IF(D132="","",IF(E132="JUL",MROUND(ROUND(1.03*F131,0),100),IF(D132="TOTAL",SUM($F$17:F131),F131))) ->  | G132: =IF(D132="","",IF(D132="TOTAL",SUM($G$17:G131),(ROUND(F132*AJ132/100,0)))) ->  | H132: =IF(D132="","",IF(D132="TOTAL",SUM($H$17:H131),(ROUND(F132*AK132/100,0)))) ->  | I132: 0 | K132: =IF(D132="","",IF(E132="JUL",MROUND(ROUND(1.03*K131,0),100),IF(D132="TOTAL",SUM($K$17:K131),K131))) ->  | L132: =IF(D132="","",IF(D132="TOTAL",SUM($L$17:L131),(ROUND(K132*AJ132/100,0)))) ->  | M132: =IF(D132="","",IF(D132="TOTAL",SUM($M$17:M131),(ROUND(K132*AK132/100,0)))) ->  | N132: 0 | S132: 0 | T132: =IF(D132="","",IF(D132="TOTAL",SUM($T$17:T131),IF($U$8="YES",BA132,BD132))) ->  | U132: =IF(D132="","",IF(D132="TOTAL",SUM($U$17:U131),(ROUND(S132*AM132,0)))) ->  | V132: =IF(D132="","",IF(E132="mar",$X$3,IF(D132="TOTAL",SUM($V$17:V131),V131))) ->  | W132: =IF(D132="","",IF(D132="TOTAL",SUM($W$17:W131),(SUM(AG133:AH133)))) ->  | X132: 0 | Y132: 0 | AH132: 0 | AP132: 2026-10-01 | AQ132: Oct-2026 | AR132: 58 | AS132: 10 | AV132: 10% | BA132: 0 | BB132: Oct-2026
F133: =IF(D133="","",IF(E133="JUL",MROUND(ROUND(1.03*F132,0),100),IF(D133="TOTAL",SUM($F$17:F132),F132))) ->  | G133: =IF(D133="","",IF(D133="TOTAL",SUM($G$17:G132),(ROUND(F133*AJ133/100,0)))) ->  | H133: =IF(D133="","",IF(D133="TOTAL",SUM($H$17:H132),(ROUND(F133*AK133/100,0)))) ->  | I133: 0 | K133: =IF(D133="","",IF(E133="JUL",MROUND(ROUND(1.03*K132,0),100),IF(D133="TOTAL",SUM($K$17:K132),K132))) ->  | L133: =IF(D133="","",IF(D133="TOTAL",SUM($L$17:L132),(ROUND(K133*AJ133/100,0)))) ->  | M133: =IF(D133="","",IF(D133="TOTAL",SUM($M$17:M132),(ROUND(K133*AK133/100,0)))) ->  | N133: 0 | S133: 0 | T133: =IF(D133="","",IF(D133="TOTAL",SUM($T$17:T132),IF($U$8="YES",BA133,BD133))) ->  | U133: =IF(D133="","",IF(D133="TOTAL",SUM($U$17:U132),(ROUND(S133*AM133,0)))) ->  | V133: =IF(D133="","",IF(E133="mar",$X$3,IF(D133="TOTAL",SUM($V$17:V132),V132))) ->  | W133: =IF(D133="","",IF(D133="TOTAL",SUM($W$17:W132),(SUM(AG134:AH134)))) ->  | X133: 0 | Y133: 0 | AH133: 0 | AP133: 2026-11-01 | AQ133: Nov-2026 | AR133: 58 | AS133: 10 | AV133: 10% | BA133: 0 | BB133: Nov-2026
F134: =IF(D134="","",IF(E134="JUL",MROUND(ROUND(1.03*F133,0),100),IF(D134="TOTAL",SUM($F$17:F133),F133))) ->  | G134: =IF(D134="","",IF(D134="TOTAL",SUM($G$17:G133),(ROUND(F134*AJ134/100,0)))) ->  | H134: =IF(D134="","",IF(D134="TOTAL",SUM($H$17:H133),(ROUND(F134*AK134/100,0)))) ->  | I134: 0 | K134: =IF(D134="","",IF(E134="JUL",MROUND(ROUND(1.03*K133,0),100),IF(D134="TOTAL",SUM($K$17:K133),K133))) ->  | L134: =IF(D134="","",IF(D134="TOTAL",SUM($L$17:L133),(ROUND(K134*AJ134/100,0)))) ->  | M134: =IF(D134="","",IF(D134="TOTAL",SUM($M$17:M133),(ROUND(K134*AK134/100,0)))) ->  | N134: 0 | S134: 0 | T134: =IF(D134="","",IF(D134="TOTAL",SUM($T$17:T133),IF($U$8="YES",BA134,BD134))) ->  | U134: =IF(D134="","",IF(D134="TOTAL",SUM($U$17:U133),(ROUND(S134*AM134,0)))) ->  | V134: =IF(D134="","",IF(E134="mar",$X$3,IF(D134="TOTAL",SUM($V$17:V133),V133))) ->  | W134: =IF(D134="","",IF(D134="TOTAL",SUM($W$17:W133),(SUM(AG135:AH135)))) ->  | X134: 0 | Y134: 0 | AH134: 0 | AP134: 2026-12-01 | AQ134: Dec-2026 | AR134: 58 | AS134: 10 | AV134: 10% | BA134: 0 | BB134: Dec-2026
F135: =IF(D135="","",IF(E135="JUL",MROUND(ROUND(1.03*F134,0),100),IF(D135="TOTAL",SUM($F$17:F134),F134))) ->  | G135: =IF(D135="","",IF(D135="TOTAL",SUM($G$17:G134),(ROUND(F135*AJ135/100,0)))) ->  | H135: =IF(D135="","",IF(D135="TOTAL",SUM($H$17:H134),(ROUND(F135*AK135/100,0)))) ->  | I135: 0 | K135: =IF(D135="","",IF(E135="JUL",MROUND(ROUND(1.03*K134,0),100),IF(D135="TOTAL",SUM($K$17:K134),K134))) ->  | L135: =IF(D135="","",IF(D135="TOTAL",SUM($L$17:L134),(ROUND(K135*AJ135/100,0)))) ->  | M135: =IF(D135="","",IF(D135="TOTAL",SUM($M$17:M134),(ROUND(K135*AK135/100,0)))) ->  | N135: 0 | S135: 0 | T135: =IF(D135="","",IF(D135="TOTAL",SUM($T$17:T134),IF($U$8="YES",BA135,BD135))) ->  | U135: =IF(D135="","",IF(D135="TOTAL",SUM($U$17:U134),(ROUND(S135*AM135,0)))) ->  | V135: =IF(D135="","",IF(E135="mar",$X$3,IF(D135="TOTAL",SUM($V$17:V134),V134))) ->  | W135: =IF(D135="","",IF(D135="TOTAL",SUM($W$17:W134),(SUM(AG136:AH136)))) ->  | X135: 0 | Y135: 0 | AH135: 0 | BA135: 0
F136: =IF(D136="","",IF(E136="JUL",MROUND(ROUND(1.03*F135,0),100),IF(D136="TOTAL",SUM($F$17:F135),F135))) ->  | G136: =IF(D136="","",IF(D136="TOTAL",SUM($G$17:G135),(ROUND(F136*AJ136/100,0)))) ->  | H136: =IF(D136="","",IF(D136="TOTAL",SUM($H$17:H135),(ROUND(F136*AK136/100,0)))) ->  | I136: 0 | K136: =IF(D136="","",IF(E136="JUL",MROUND(ROUND(1.03*K135,0),100),IF(D136="TOTAL",SUM($K$17:K135),K135))) ->  | L136: =IF(D136="","",IF(D136="TOTAL",SUM($L$17:L135),(ROUND(K136*AJ136/100,0)))) ->  | M136: =IF(D136="","",IF(D136="TOTAL",SUM($M$17:M135),(ROUND(K136*AK136/100,0)))) ->  | N136: 0 | S136: 0 | T136: =IF(D136="","",IF(D136="TOTAL",SUM($T$17:T135),IF($U$8="YES",BA136,BD136))) ->  | U136: =IF(D136="","",IF(D136="TOTAL",SUM($U$17:U135),(ROUND(S136*AM136,0)))) ->  | V136: =IF(D136="","",IF(E136="mar",$X$3,IF(D136="TOTAL",SUM($V$17:V135),V135))) ->  | W136: =IF(D136="","",IF(D136="TOTAL",SUM($W$17:W135),(SUM(AG137:AH137)))) ->  | X136: 0 | Y136: 0 | AH136: 0 | BA136: 0
F137: =IF(D137="","",IF(E137="JUL",MROUND(ROUND(1.03*F136,0),100),IF(D137="TOTAL",SUM($F$17:F136),F136))) ->  | G137: =IF(D137="","",IF(D137="TOTAL",SUM($G$17:G136),(ROUND(F137*AJ137/100,0)))) ->  | H137: =IF(D137="","",IF(D137="TOTAL",SUM($H$17:H136),(ROUND(F137*AK137/100,0)))) ->  | I137: 0 | K137: =IF(D137="","",IF(E137="JUL",MROUND(ROUND(1.03*K136,0),100),IF(D137="TOTAL",SUM($K$17:K136),K136))) ->  | L137: =IF(D137="","",IF(D137="TOTAL",SUM($L$17:L136),(ROUND(K137*AJ137/100,0)))) ->  | M137: =IF(D137="","",IF(D137="TOTAL",SUM($M$17:M136),(ROUND(K137*AK137/100,0)))) ->  | N137: 0 | S137: 0 | T137: =IF(D137="","",IF(D137="TOTAL",SUM($T$17:T136),IF($U$8="YES",BA137,BD137))) ->  | U137: =IF(D137="","",IF(D137="TOTAL",SUM($U$17:U136),(ROUND(S137*AM137,0)))) ->  | V137: =IF(D137="","",IF(E137="mar",$X$3,IF(D137="TOTAL",SUM($V$17:V136),V136))) ->  | W137: =IF(D137="","",IF(D137="TOTAL",SUM($W$17:W136),(SUM(AG138:AH138)))) ->  | X137: 0 | Y137: 0 | AH137: 0 | BA137: 0

Sheet Arrear Probation
B1: WELCOME TO RAJTEACHERS.NET | M1: CREATED BY : PARMANAND MEGHWAL SENIOR TEACHER GUPS KANWARPURA, BARAN
B2: OFFICE NAME | J2: GOVT. SR. SECONDARY SCHOOL, GORDHANPURA, ATRU, BARAN | U2: INCREAMENT | X2: JUL | Y2: S.I. DED. | Z2: 0 | AE2: =Z5 -> PROBATION (L-10)
B3: EMPLOYEE NAME | J3: Parmanand Meghwal | O3: DESIGNATION | Q3: Senior Teacher | U3: SI (STATE INSURANCE) | Y3: SUB-ORDINATE
B4: ARREAR DATE FROM (DD-MM-YYYY) | J4: 06 | K4: OCT | L4: 2025 | M4: OLD BASIC PAY | P4: 23700 | R4: HRA (BEFORE 01.07.2021) | W4: 8 | X4: TAX DED. % | Z4: 10% | AK4: TO
B5: ARREAR DATE UP TO (MM-YYYY) | J5: MAR | L5: 2026 | M5: NEW BASIC PAY | P5: 33800 | R5: HRA (AFTER 01.07.2021) | W5: 9 | X5: PAY LEVEL | Z5: PROBATION (L-10)
B6: Fill all the options on the sheet | R6: HRA (AFTER 01.07.2024) | W6: 10 | X6: RAJTEACHERS.NET
I7: =DATEDIF(L7,P7,"m") -> 5 | J7: =I7+1 -> 6 | L7: =DATEVALUE(J4&K4&L4) -> 2025-10-06 | O7: =DATEVALUE(J5&L5) -> 2026-03-01 | P7: =EOMONTH(O7,0) -> 2026-03-31
C8: =EOMONTH(L7,0) -> 2025-10-31 | D8: =DAY(EOMONTH(C8,0)) -> 31 | E8: =G8+1 -> 1900-01-26 | G8: =DATEDIF(L7, C8, "D") -> 1900-01-25 | L8: =DATEVALUE(K4&L4) -> 2025-10-01 | M8: =IFERROR(DATE(YEAR(L8),MONTH(L8)+1,DAY(L8)),"") -> 2025-11-01
B10: =J2 -> GOVT. SR. SECONDARY SCHOOL, GORDHANPURA, ATRU, BARAN | AO10: =IF(Y3="STATE",5,IF(Y3="SUB-ORDINATE",3,IF(Y3="MINISTRIAL",2,IF(Y3="CLASS-IV",1,"")))) -> 3 | BB10: =E8 -> 1900-01-26
M11: ARREAR FROM - | P11: =L7 -> 2025-10-06 | R11: TO | S11: =P7 -> 2026-03-31 | AO11: =ROUND(T15/31,0) -> 895 | BG11: 2017 | BH11: JAN | BI11: 01
B12: Name Of Employee - | I12: =J3 -> Parmanand Meghwal | O12: Designation - | R12: =Q3 -> Senior Teacher | V12: Employee ID | Y12: RJBR200804022222 | BG12: 2018 | BH12: FEB | BI12: 02
B13: SN | C13: MONTH | D13: MONTH | G13: DUE | L13: DRAWN | P13: DIFFERENT | U13: DEDUCTION | Y13: TOTAL DED. | Z13: NET AMOUNT | AF13: DA-P | AG13: HRA-P | AH13: CORONA | AI13: CORONA | AJ13: TOTAL | AK13: DA | AL13: HRA | AM13: GPF | AN13: TAX | AO13: CORONA | AP13: CORONA2 | AQ13: 2017-01-01 | AR13: =TEXT(AQ13,"mmm-yyyy") -> Jan-2017 | AS13: 4 | AV13: =Z4 -> 10% | AY13: =IF($Z$5="REGULAR",AS13,0) -> 0 | AZ13: =IF($Z$5="REGULAR",$W$4,0) -> 0 | BA13: GPF-P | BB13: PROBATION (L-1) | BC13: 750 | BG13: 2019 | BH13: MAR | BI13: 03
G14: BASIC | H14: DA | I14: HRA | J14: TOTAL | L14: BASIC | M14: DA | N14: HRA | O14: TOTAL | P14: BASIC | Q14: DA | R14: HRA | S14: SURRENDER | T14: TOTAL | U14: GPF | V14: ITAX | W14: SI | X14: CORONA | AQ14: 2017-02-01 | AR14: =TEXT(AQ14,"mmm-yyyy") -> Feb-2017 | AS14: 4 | AV14: =AV13 -> 10% | AY14: =IF($Z$5="REGULAR",AS14,0) -> 0 | AZ14: =IF($Z$5="REGULAR",$W$4,0) -> 0 | BB14: PROBATION (L-2) | BC14: 750 | BG14: 2020 | BH14: APR | BI14: 04
B15: 1 | C15: =L7 -> 2025-10-06 | D15: =TEXT(C15,"mmm-yyyy") -> Oct-2025 | E15: =TEXT(D15,"mmm") -> Oct | G15: =IF(D15="","",ROUND(P5/D8*E8,0)) -> 28348 | H15: =IF(D15="","",IF(D15="TOTAL",SUM($H$15:H15),(ROUND(G15*AK15/100,0)))) -> 16442 | I15: =IF(D15="","",IF(D15="TOTAL",SUM($I$15:I15),(ROUND(G15*AL15/100,0)))) -> 2835 | J15: =IFERROR(SUM(G15:I15),"") -> 47625 | L15: =IF(D15="","",ROUND(P4/D8*E8,0)) -> 19877 | M15: =IF(D15="","",IF(D15="TOTAL",SUM($M$15:M15),(ROUND(L15*AF15/100,0)))) -> 0 | N15: =IF(D15="","",IF(D15="TOTAL",SUM($N$15:N15),(ROUND(L15*AG15/100,0)))) -> 0 | O15: =IFERROR(SUM(L15:N15),"") -> 19877 | P15: =IFERROR(MIN(G15-L15),"") -> 8471 | Q15: 16442 | R15: 2835 | T15: =IFERROR(SUM(P15:S15),"") -> 27748 | U15: =IF(D15="","",IF(D15="TOTAL",SUM($U$15:U15),IF($Z$5="REGULAR",BA15,AJ15+BF15))) -> 1000 | V15: =IF(D15="","",IF(D15="TOTAL",SUM($V$15:V15),(ROUND(T15*AN15,0)))) -> 2775 | W15: =IF(E15="mar",$Z$2,"") ->  | X15: =IF(D15="","",IF(D15="TOTAL",SUM($X$15:X15),(SUM(AH16:AI16)))) -> 0 | Y15: =IFERROR(SUM(U15:X15),"") -> 3775 | Z15: =T15-Y15 -> 23973 | AC15: =DATEVALUE(J4&K4&L4) -> 2025-10-06 | AD15: =AC15 -> 2025-10-06 | AE15: =IFERROR(ROUND(P15*AK15/100,0),"") -> 4913 | AF15: =IFERROR(VLOOKUP(D15,$AR$13:$BF$209,8,0),"") -> 0 | AG15: =IFERROR(VLOOKUP(D15,$AR$13:$BF$209,9,0),"") -> 0 | AH15: =IFERROR(ROUND(P15/31*AO15,0),"") ->  | AI15: =IFERROR(ROUND(T15/31*AP15,0),"") ->  | AJ15: =IFERROR(VLOOKUP(D15,$AR$13:$BD$209,13,0),"") -> 1000 | AK15: =IFERROR(VLOOKUP(D15,$AR$13:$AS$209,2,0),"") -> 58 | AL15: =IFERROR(VLOOKUP(D15,$AR$13:$AAU$209,3,0),"") -> 10 | AM15: =IFERROR(VLOOKUP(D15,$AR$13:$AAV$209,4,0),"") -> 0 | AN15: =IFERROR(VLOOKUP(D15,$AR$13:$AAV$209,5,0),"") -> 0.1 | AO15: =IFERROR(VLOOKUP(D15,$AR$13:$AAV$109,6,0),"") ->  | AP15: =IFERROR(VLOOKUP(D15,$AR$13:$AAV$109,7,0),"") ->  | AQ15: 2017-03-01 | AR15: Mar-2017 | AS15: 4 | AV15: =AV14 -> 10% | AY15: 0 | AZ15: 0 | BA15: =IFERROR(ROUND(P15*AM15/100,0)+S15,0) -> 0 | BB15: PROBATION (L-3) | BC15: 750 | BF15: =IFERROR(ROUND(G15*AM15/100,0),0) -> 0 | BG15: 2021 | BH15: MAY | BI15: 05
B16: =IF(B15>=$J$7,"",(B15+1)) -> 2 | C16: =IFERROR(IF(AC16="","",IF(DATE(YEAR(AC16),MONTH(AC16),DAY(AC16))=DATE(YEAR($O$7),MONTH($O$7)+1,DAY($O$7)),"TOTAL",IF(AC16>$O$7,"",AC16))),"") -> 2025-11-01 | D16: =TEXT(C16,"mmm-yyyy") -> Nov-2025 | E16: =TEXT(D16,"mmm") -> Nov | F16: =IF(D17="","",IF($X$2=E16,"YES","NO")) -> NO | G16: =IF(D16="","",IF(F16="YES",MROUND(ROUND(1.03*P5,0),100),IF(D16="TOTAL",SUM($G$15:G15),$P$5))) -> 33800 | H16: =IF(D16="","",IF(D16="TOTAL",SUM($H$15:H15),(ROUND(G16*AK16/100,0)))) -> 19604 | I16: =IF(D16="","",IF(D16="TOTAL",SUM($I$15:I15),(ROUND(G16*AL16/100,0)))) -> 3380 | J16: =SUM(G16:I16) -> 56784 | L16: =IF(D16="","",IF(D16="TOTAL",SUM($L$15:L15),$P$4)) -> 23700 | M16: =IF(D16="","",IF(D16="TOTAL",SUM($M$15:M15),(ROUND(L16*AF16/100,0)))) -> 0 | N16: =IF(D16="","",IF(D16="TOTAL",SUM($N$15:N15),(ROUND(L16*AG16/100,0)))) -> 0 | O16: =IFERROR(SUM(L16:N16),"") -> 23700 | P16: 10100 | Q16: 19604 | R16: 3380 | T16: =IFERROR(SUM(P16:S16),"") -> 33084 | U16: =IF(D16="","",IF(D16="TOTAL",SUM($U$15:U15),IF($Z$5="REGULAR",BA16,AJ16+BF16))) -> 1000 | V16: =IF(D16="","",IF(D16="TOTAL",SUM($V$15:V15),(ROUND(T16*AN16,0)))) -> 3308 | W16: =IF(D16="","",IF(E16="mar",$Z$2,IF(D16="TOTAL",SUM($W$15:W15),W15))) ->  | X16: =IF(D16="","",IF(D16="TOTAL",SUM($X$15:X15),(SUM(AH17:AI17)))) -> 0 | Y16: =IFERROR(SUM(U16:X16),"") -> 4308 | Z16: =T16-Y16 -> 28776 | AC16: =IFERROR(DATE(YEAR(L8),MONTH(L8)+1,DAY(L8)),"") -> 2025-11-01 | AD16: =IFERROR(IF(AC16="","",IF(DATE(YEAR(AC16),MONTH(AC16),DAY(AC16))=DATE(YEAR($O$7),MONTH($O$7)+2,DAY($O$7)),"TOTAL",IF(AC16>$O$7,"",AC16))),"") -> 2025-11-01 | AF16: 0 | AG16: 0 | AJ16: =IFERROR(VLOOKUP(D16,$AR$13:$BD$209,13,0),"") -> 1000 | AK16: =IFERROR(VLOOKUP(D16,$AR$13:$AS$209,2,0),"") -> 58 | AL16: 10 | AM16: 0 | AN16: 0.1 | AQ16: 2017-04-01 | AR16: Apr-2017 | AS16: 4 | AV16: 10% | AY16: 0 | AZ16: 0 | BA16: 0 | BB16: PROBATION (L-4) | BC16: 750 | BF16: =IFERROR(ROUND(G16*AM16/100,0),0) -> 0 | BG16: 2022 | BH16: JUN | BI16: 06
B17: =IF(B16>=$J$7,"",(B16+1)) -> 3 | C17: =IFERROR(IF(AC17="","",IF(DATE(YEAR(AC17),MONTH(AC17),DAY(AC17))=DATE(YEAR($O$7),MONTH($O$7)+1,DAY($O$7)),"TOTAL",IF(AC17>$O$7,"",AC17))),"") -> 2025-12-01 | D17: =TEXT(C17,"mmm-yyyy") -> Dec-2025 | E17: Dec | F17: =IF(D18="","",IF($X$2=E17,"YES","NO")) -> NO | G17: =IF(D17="","",IF(F17="YES",MROUND(ROUND(1.03*G16,0),100),IF(D17="TOTAL",SUM($G$15:G16),G16))) -> 33800 | H17: =IF(D17="","",IF(D17="TOTAL",SUM($H$15:H16),(ROUND(G17*AK17/100,0)))) -> 19604 | I17: =IF(D17="","",IF(D17="TOTAL",SUM($I$15:I16),(ROUND(G17*AL17/100,0)))) -> 3380 | J17: 56784 | L17: =IF(D17="","",IF(D17="TOTAL",SUM($L$15:L16),$P$4)) -> 23700 | M17: =IF(D17="","",IF(D17="TOTAL",SUM($M$15:M16),(ROUND(L17*AF17/100,0)))) -> 0 | N17: =IF(D17="","",IF(D17="TOTAL",SUM($N$15:N16),(ROUND(L17*AG17/100,0)))) -> 0 | O17: 23700 | P17: 10100 | Q17: 19604 | R17: 3380 | T17: 33084 | U17: =IF(D17="","",IF(D17="TOTAL",SUM($U$15:U16),IF($Z$5="REGULAR",BA17,AJ17+BF17))) -> 1000 | V17: =IF(D17="","",IF(D17="TOTAL",SUM($V$15:V16),(ROUND(T17*AN17,0)))) -> 3308 | W17: =IF(D17="","",IF(E17="mar",$Z$2,IF(D17="TOTAL",SUM($W$15:W16),W16))) ->  | X17: =IF(D17="","",IF(D17="TOTAL",SUM($X$15:X16),(SUM(AH18:AI18)))) -> 0 | Y17: 4308 | Z17: 28776 | AC17: =IFERROR(DATE(YEAR(C16),MONTH(C16)+1,DAY(C16)),"") -> 2025-12-01 | AD17: =IFERROR(IF(AC17="","",IF(DATE(YEAR(AC17),MONTH(AC17),DAY(AC17))=DATE(YEAR($O$7),MONTH($O$7)+1,DAY($O$7)),"TOTAL",IF(AC17>$O$7,"",AC17))),"") -> 2025-12-01 | AF17: 0 | AG17: 0 | AJ17: 1000 | AK17: 58 | AL17: 10 | AM17: 0 | AN17: 0.1 | AQ17: 2017-05-01 | AR17: May-2017 | AS17: 4 | AV17: 10% | AY17: 0 | AZ17: 0 | BA17: 0 | BB17: PROBATION (L-5) | BC17: 750 | BF17: 0 | BG17: 2023 | BH17: JUL | BI17: 07
B18: =IF(B17>=$J$7,"",(B17+1)) -> 4 | C18: 2026-01-01 | D18: Jan-2026 | E18: Jan | F18: NO | G18: =IF(D18="","",IF(F18="YES",MROUND(ROUND(1.03*G17,0),100),IF(D18="TOTAL",SUM($G$15:G17),G17))) -> 33800 | H18: =IF(D18="","",IF(D18="TOTAL",SUM($H$15:H17),(ROUND(G18*AK18/100,0)))) -> 19604 | I18: =IF(D18="","",IF(D18="TOTAL",SUM($I$15:I17),(ROUND(G18*AL18/100,0)))) -> 3380 | J18: 56784 | L18: =IF(D18="","",IF(D18="TOTAL",SUM($L$15:L17),$P$4)) -> 23700 | M18: =IF(D18="","",IF(D18="TOTAL",SUM($M$15:M17),(ROUND(L18*AF18/100,0)))) -> 0 | N18: =IF(D18="","",IF(D18="TOTAL",SUM($N$15:N17),(ROUND(L18*AG18/100,0)))) -> 0 | O18: 23700 | P18: 10100 | Q18: 19604 | R18: 3380 | T18: 33084 | U18: =IF(D18="","",IF(D18="TOTAL",SUM($U$15:U17),IF($Z$5="REGULAR",BA18,AJ18+BF18))) -> 1000 | V18: =IF(D18="","",IF(D18="TOTAL",SUM($V$15:V17),(ROUND(T18*AN18,0)))) -> 3308 | W18: =IF(D18="","",IF(E18="mar",$Z$2,IF(D18="TOTAL",SUM($W$15:W17),W17))) ->  | X18: =IF(D18="","",IF(D18="TOTAL",SUM($X$15:X17),(SUM(AH19:AI19)))) -> 0 | Y18: 4308 | Z18: 28776 | AC18: =IFERROR(DATE(YEAR(C17),MONTH(C17)+1,DAY(C17)),"") -> 2026-01-01 | AD18: 2026-01-01 | AF18: 0 | AG18: 0 | AJ18: 1000 | AK18: 58 | AL18: 10 | AM18: 0 | AN18: 0.1 | AQ18: 2017-06-01 | AR18: Jun-2017 | AS18: 4 | AV18: 10% | AY18: 0 | AZ18: 0 | BA18: 0 | BB18: PROBATION (L-6) | BC18: 750 | BF18: 0 | BG18: 2024 | BH18: AUG | BI18: 08
B19: 5 | C19: 2026-02-01 | D19: Feb-2026 | E19: Feb | F19: NO | G19: =IF(D19="","",IF(F19="YES",MROUND(ROUND(1.03*G18,0),100),IF(D19="TOTAL",SUM($G$15:G18),G18))) -> 33800 | H19: =IF(D19="","",IF(D19="TOTAL",SUM($H$15:H18),(ROUND(G19*AK19/100,0)))) -> 19604 | I19: =IF(D19="","",IF(D19="TOTAL",SUM($I$15:I18),(ROUND(G19*AL19/100,0)))) -> 3380 | J19: 56784 | L19: =IF(D19="","",IF(D19="TOTAL",SUM($L$15:L18),$P$4)) -> 23700 | M19: =IF(D19="","",IF(D19="TOTAL",SUM($M$15:M18),(ROUND(L19*AF19/100,0)))) -> 0 | N19: =IF(D19="","",IF(D19="TOTAL",SUM($N$15:N18),(ROUND(L19*AG19/100,0)))) -> 0 | O19: 23700 | P19: 10100 | Q19: 19604 | R19: 3380 | T19: 33084 | U19: =IF(D19="","",IF(D19="TOTAL",SUM($U$15:U18),IF($Z$5="REGULAR",BA19,AJ19+BF19))) -> 1000 | V19: =IF(D19="","",IF(D19="TOTAL",SUM($V$15:V18),(ROUND(T19*AN19,0)))) -> 3308 | W19: =IF(D19="","",IF(E19="mar",$Z$2,IF(D19="TOTAL",SUM($W$15:W18),W18))) ->  | X19: =IF(D19="","",IF(D19="TOTAL",SUM($X$15:X18),(SUM(AH20:AI20)))) -> 0 | Y19: 4308 | Z19: 28776 | AC19: 2026-02-01 | AD19: 2026-02-01 | AF19: 0 | AG19: 0 | AJ19: 1000 | AK19: 58 | AL19: 10 | AM19: 0 | AN19: 0.1 | AQ19: 2017-07-01 | AR19: Jul-2017 | AS19: 5 | AV19: 10% | AY19: 0 | AZ19: 0 | BA19: 0 | BB19: PROBATION (L-7) | BC19: 750 | BF19: 0 | BG19: 2025 | BH19: SEP | BI19: 09
B20: 6 | C20: 2026-03-01 | D20: Mar-2026 | E20: Mar | F20: NO | G20: =IF(D20="","",IF(F20="YES",MROUND(ROUND(1.03*G19,0),100),IF(D20="TOTAL",SUM($G$15:G19),G19))) -> 33800 | H20: =IF(D20="","",IF(D20="TOTAL",SUM($H$15:H19),(ROUND(G20*AK20/100,0)))) -> 19604 | I20: =IF(D20="","",IF(D20="TOTAL",SUM($I$15:I19),(ROUND(G20*AL20/100,0)))) -> 3380 | J20: 56784 | L20: =IF(D20="","",IF(D20="TOTAL",SUM($L$15:L19),$P$4)) -> 23700 | M20: =IF(D20="","",IF(D20="TOTAL",SUM($M$15:M19),(ROUND(L20*AF20/100,0)))) -> 0 | N20: =IF(D20="","",IF(D20="TOTAL",SUM($N$15:N19),(ROUND(L20*AG20/100,0)))) -> 0 | O20: 23700 | P20: 10100 | Q20: 19604 | R20: 3380 | T20: 33084 | U20: =IF(D20="","",IF(D20="TOTAL",SUM($U$15:U19),IF($Z$5="REGULAR",BA20,AJ20+BF20))) -> 1000 | V20: =IF(D20="","",IF(D20="TOTAL",SUM($V$15:V19),(ROUND(T20*AN20,0)))) -> 3308 | W20: =IF(D20="","",IF(E20="mar",$Z$2,IF(D20="TOTAL",SUM($W$15:W19),W19))) -> 0 | X20: =IF(D20="","",IF(D20="TOTAL",SUM($X$15:X19),(SUM(AH21:AI21)))) -> 0 | Y20: 4308 | Z20: 28776 | AC20: 2026-03-01 | AD20: 2026-03-01 | AF20: 0 | AG20: 0 | AJ20: 1000 | AK20: 58 | AL20: 10 | AM20: 0 | AN20: 0.1 | AQ20: 2017-08-01 | AR20: Aug-2017 | AS20: 5 | AV20: 10% | AY20: 0 | AZ20: 0 | BA20: 0 | BB20: PROBATION (L-8) | BC20: 825 | BF20: 0 | BG20: 2026 | BH20: OCT | BI20: 10
C21: TOTAL | D21: TOTAL | E21: TOTAL | G21: =IF(D21="","",IF(F21="YES",MROUND(ROUND(1.03*G20,0),100),IF(D21="TOTAL",SUM($G$15:G20),G20))) -> 197348 | H21: =IF(D21="","",IF(D21="TOTAL",SUM($H$15:H20),(ROUND(G21*AK21/100,0)))) -> 114462 | I21: =IF(D21="","",IF(D21="TOTAL",SUM($I$15:I20),(ROUND(G21*AL21/100,0)))) -> 19735 | J21: 331545 | L21: =IF(D21="","",IF(D21="TOTAL",SUM($L$15:L20),$P$4)) -> 138377 | M21: =IF(D21="","",IF(D21="TOTAL",SUM($M$15:M20),(ROUND(L21*AF21/100,0)))) -> 0 | N21: =IF(D21="","",IF(D21="TOTAL",SUM($N$15:N20),(ROUND(L21*AG21/100,0)))) -> 0 | O21: 138377 | P21: 58971 | Q21: 114462 | R21: 19735 | T21: 193168 | U21: =IF(D21="","",IF(D21="TOTAL",SUM($U$15:U20),IF($Z$5="REGULAR",BA21,AJ21+BF21))) -> 6000 | V21: =IF(D21="","",IF(D21="TOTAL",SUM($V$15:V20),(ROUND(T21*AN21,0)))) -> 19315 | W21: =IF(D21="","",IF(E21="mar",$Z$2,IF(D21="TOTAL",SUM($W$15:W20),W20))) -> 0 | X21: =IF(D21="","",IF(D21="TOTAL",SUM($X$15:X20),(SUM(AH22:AI22)))) -> 0 | Y21: 25315 | Z21: 167853 | AC21: 2026-04-01 | AD21: TOTAL | AQ21: 2017-09-01 | AR21: Sep-2017 | AS21: 5 | AV21: 10% | AY21: 0 | AZ21: 0 | BA21: 0 | BB21: PROBATION (L-9) | BC21: 1300 | BF21: 0 | BH21: NOV | BI21: 11
G22: =IF(D22="","",IF(F22="YES",MROUND(ROUND(1.03*G21,0),100),IF(D22="TOTAL",SUM($G$15:G21),G21))) ->  | H22: =IF(D22="","",IF(D22="TOTAL",SUM($H$15:H21),(ROUND(G22*AK22/100,0)))) ->  | I22: =IF(D22="","",IF(D22="TOTAL",SUM($I$15:I21),(ROUND(G22*AL22/100,0)))) ->  | J22: 0 | L22: =IF(D22="","",IF(D22="TOTAL",SUM($L$15:L21),$P$4)) ->  | M22: =IF(D22="","",IF(D22="TOTAL",SUM($M$15:M21),(ROUND(L22*AF22/100,0)))) ->  | N22: =IF(D22="","",IF(D22="TOTAL",SUM($N$15:N21),(ROUND(L22*AG22/100,0)))) ->  | O22: 0 | T22: 0 | U22: =IF(D22="","",IF(D22="TOTAL",SUM($U$15:U21),IF($Z$5="REGULAR",BA22,AJ22+BF22))) ->  | V22: =IF(D22="","",IF(D22="TOTAL",SUM($V$15:V21),(ROUND(T22*AN22,0)))) ->  | W22: =IF(D22="","",IF(E22="mar",$Z$2,IF(D22="TOTAL",SUM($W$15:W21),W21))) ->  | X22: =IF(D22="","",IF(D22="TOTAL",SUM($X$15:X21),(SUM(AH23:AI23)))) ->  | Y22: 0 | Z22: 0 | AQ22: 2017-10-01 | AR22: Oct-2017 | AS22: 5 | AT22: 8 | AV22: 10% | AY22: 0 | AZ22: 0 | BA22: 0 | BB22: PROBATION (L-10) | BC22: 1000 | BF22: 0 | BH22: DEC | BI22: 12
G23: =IF(D23="","",IF(F23="YES",MROUND(ROUND(1.03*G22,0),100),IF(D23="TOTAL",SUM($G$15:G22),G22))) ->  | H23: =IF(D23="","",IF(D23="TOTAL",SUM($H$15:H22),(ROUND(G23*AK23/100,0)))) ->  | I23: =IF(D23="","",IF(D23="TOTAL",SUM($I$15:I22),(ROUND(G23*AL23/100,0)))) ->  | J23: 0 | L23: =IF(D23="","",IF(D23="TOTAL",SUM($L$15:L22),$P$4)) ->  | M23: =IF(D23="","",IF(D23="TOTAL",SUM($M$15:M22),(ROUND(L23*AF23/100,0)))) ->  | N23: =IF(D23="","",IF(D23="TOTAL",SUM($N$15:N22),(ROUND(L23*AG23/100,0)))) ->  | O23: 0 | T23: 0 | U23: =IF(D23="","",IF(D23="TOTAL",SUM($U$15:U22),IF($Z$5="REGULAR",BA23,AJ23+BF23))) ->  | V23: =IF(D23="","",IF(D23="TOTAL",SUM($V$15:V22),(ROUND(T23*AN23,0)))) ->  | W23: =IF(D23="","",IF(E23="mar",$Z$2,IF(D23="TOTAL",SUM($W$15:W22),W22))) ->  | X23: =IF(D23="","",IF(D23="TOTAL",SUM($X$15:X22),(SUM(AH24:AI24)))) ->  | Y23: 0 | Z23: 0 | AQ23: 2017-11-01 | AR23: Nov-2017 | AS23: 5 | AT23: =AT22 -> 8 | AV23: 10% | AY23: 0 | AZ23: 0 | BA23: 0 | BB23: PROBATION (L-11) | BC23: 1000 | BF23: 0 | BI23: 13
G24: =IF(D24="","",IF(F24="YES",MROUND(ROUND(1.03*G23,0),100),IF(D24="TOTAL",SUM($G$15:G23),G23))) ->  | H24: =IF(D24="","",IF(D24="TOTAL",SUM($H$15:H23),(ROUND(G24*AK24/100,0)))) ->  | I24: =IF(D24="","",IF(D24="TOTAL",SUM($I$15:I23),(ROUND(G24*AL24/100,0)))) ->  | J24: 0 | L24: =IF(D24="","",IF(D24="TOTAL",SUM($L$15:L23),$P$4)) ->  | M24: =IF(D24="","",IF(D24="TOTAL",SUM($M$15:M23),(ROUND(L24*AF24/100,0)))) ->  | N24: =IF(D24="","",IF(D24="TOTAL",SUM($N$15:N23),(ROUND(L24*AG24/100,0)))) ->  | O24: 0 | T24: 0 | U24: =IF(D24="","",IF(D24="TOTAL",SUM($U$15:U23),IF($Z$5="REGULAR",BA24,AJ24+BF24))) ->  | V24: =IF(D24="","",IF(D24="TOTAL",SUM($V$15:V23),(ROUND(T24*AN24,0)))) ->  | W24: =IF(D24="","",IF(E24="mar",$Z$2,IF(D24="TOTAL",SUM($W$15:W23),W23))) ->  | X24: =IF(D24="","",IF(D24="TOTAL",SUM($X$15:X23),(SUM(AH25:AI25)))) ->  | Y24: 0 | Z24: 0 | AQ24: 2017-12-01 | AR24: Dec-2017 | AS24: 5 | AT24: 8 | AV24: 10% | AY24: 0 | AZ24: 0 | BA24: 0 | BB24: PROBATION (L-12) | BC24: 1450 | BF24: 0 | BI24: 14
G25: =IF(D25="","",IF(F25="YES",MROUND(ROUND(1.03*G24,0),100),IF(D25="TOTAL",SUM($G$15:G24),G24))) ->  | H25: =IF(D25="","",IF(D25="TOTAL",SUM($H$15:H24),(ROUND(G25*AK25/100,0)))) ->  | I25: =IF(D25="","",IF(D25="TOTAL",SUM($I$15:I24),(ROUND(G25*AL25/100,0)))) ->  | J25: 0 | L25: =IF(D25="","",IF(D25="TOTAL",SUM($L$15:L24),$P$4)) ->  | M25: =IF(D25="","",IF(D25="TOTAL",SUM($M$15:M24),(ROUND(L25*AF25/100,0)))) ->  | N25: =IF(D25="","",IF(D25="TOTAL",SUM($N$15:N24),(ROUND(L25*AG25/100,0)))) ->  | O25: 0 | T25: 0 | U25: =IF(D25="","",IF(D25="TOTAL",SUM($U$15:U24),IF($Z$5="REGULAR",BA25,AJ25+BF25))) ->  | V25: =IF(D25="","",IF(D25="TOTAL",SUM($V$15:V24),(ROUND(T25*AN25,0)))) ->  | W25: =IF(D25="","",IF(E25="mar",$Z$2,IF(D25="TOTAL",SUM($W$15:W24),W24))) ->  | X25: =IF(D25="","",IF(D25="TOTAL",SUM($X$15:X24),(SUM(AH26:AI26)))) ->  | Y25: 0 | Z25: 0 | AQ25: 2018-01-01 | AR25: Jan-2018 | AS25: 7 | AT25: 8 | AV25: 10% | AY25: 0 | AZ25: 0 | BA25: 0 | BF25: 0 | BI25: 15
G26: =IF(D26="","",IF(F26="YES",MROUND(ROUND(1.03*G25,0),100),IF(D26="TOTAL",SUM($G$15:G25),G25))) ->  | H26: =IF(D26="","",IF(D26="TOTAL",SUM($H$15:H25),(ROUND(G26*AK26/100,0)))) ->  | I26: =IF(D26="","",IF(D26="TOTAL",SUM($I$15:I25),(ROUND(G26*AL26/100,0)))) ->  | J26: 0 | L26: =IF(D26="","",IF(D26="TOTAL",SUM($L$15:L25),$P$4)) ->  | M26: =IF(D26="","",IF(D26="TOTAL",SUM($M$15:M25),(ROUND(L26*AF26/100,0)))) ->  | N26: =IF(D26="","",IF(D26="TOTAL",SUM($N$15:N25),(ROUND(L26*AG26/100,0)))) ->  | O26: 0 | T26: 0 | U26: =IF(D26="","",IF(D26="TOTAL",SUM($U$15:U25),IF($Z$5="REGULAR",BA26,AJ26+BF26))) ->  | V26: =IF(D26="","",IF(D26="TOTAL",SUM($V$15:V25),(ROUND(T26*AN26,0)))) ->  | W26: =IF(D26="","",IF(E26="mar",$Z$2,IF(D26="TOTAL",SUM($W$15:W25),W25))) ->  | X26: =IF(D26="","",IF(D26="TOTAL",SUM($X$15:X25),(SUM(AH27:AI27)))) ->  | Y26: 0 | Z26: 0 | AQ26: 2018-02-01 | AR26: Feb-2018 | AS26: 7 | AT26: 8 | AV26: 10% | AY26: 0 | AZ26: 0 | BA26: 0 | BF26: 0 | BI26: 16
G27: =IF(D27="","",IF(F27="YES",MROUND(ROUND(1.03*G26,0),100),IF(D27="TOTAL",SUM($G$15:G26),G26))) ->  | H27: =IF(D27="","",IF(D27="TOTAL",SUM($H$15:H26),(ROUND(G27*AK27/100,0)))) ->  | I27: =IF(D27="","",IF(D27="TOTAL",SUM($I$15:I26),(ROUND(G27*AL27/100,0)))) ->  | J27: 0 | L27: =IF(D27="","",IF(D27="TOTAL",SUM($L$15:L26),$P$4)) ->  | M27: =IF(D27="","",IF(D27="TOTAL",SUM($M$15:M26),(ROUND(L27*AF27/100,0)))) ->  | N27: =IF(D27="","",IF(D27="TOTAL",SUM($N$15:N26),(ROUND(L27*AG27/100,0)))) ->  | O27: 0 | T27: 0 | U27: =IF(D27="","",IF(D27="TOTAL",SUM($U$15:U26),IF($Z$5="REGULAR",BA27,AJ27+BF27))) ->  | V27: =IF(D27="","",IF(D27="TOTAL",SUM($V$15:V26),(ROUND(T27*AN27,0)))) ->  | W27: =IF(D27="","",IF(E27="mar",$Z$2,IF(D27="TOTAL",SUM($W$15:W26),W26))) ->  | X27: =IF(D27="","",IF(D27="TOTAL",SUM($X$15:X26),(SUM(AH28:AI28)))) ->  | Y27: 0 | Z27: 0 | AQ27: 2018-03-01 | AR27: Mar-2018 | AS27: 7 | AT27: 8 | AV27: 10% | AY27: 0 | AZ27: 0 | BA27: 0 | BF27: 0 | BI27: 17
G28: =IF(D28="","",IF(F28="YES",MROUND(ROUND(1.03*G27,0),100),IF(D28="TOTAL",SUM($G$15:G27),G27))) ->  | H28: =IF(D28="","",IF(D28="TOTAL",SUM($H$15:H27),(ROUND(G28*AK28/100,0)))) ->  | I28: =IF(D28="","",IF(D28="TOTAL",SUM($I$15:I27),(ROUND(G28*AL28/100,0)))) ->  | J28: 0 | L28: =IF(D28="","",IF(D28="TOTAL",SUM($L$15:L27),$P$4)) ->  | M28: =IF(D28="","",IF(D28="TOTAL",SUM($M$15:M27),(ROUND(L28*AF28/100,0)))) ->  | N28: =IF(D28="","",IF(D28="TOTAL",SUM($N$15:N27),(ROUND(L28*AG28/100,0)))) ->  | O28: 0 | T28: 0 | U28: =IF(D28="","",IF(D28="TOTAL",SUM($U$15:U27),IF($Z$5="REGULAR",BA28,AJ28+BF28))) ->  | V28: =IF(D28="","",IF(D28="TOTAL",SUM($V$15:V27),(ROUND(T28*AN28,0)))) ->  | W28: =IF(D28="","",IF(E28="mar",$Z$2,IF(D28="TOTAL",SUM($W$15:W27),W27))) ->  | X28: =IF(D28="","",IF(D28="TOTAL",SUM($X$15:X27),(SUM(AH29:AI29)))) ->  | Y28: 0 | Z28: 0 | AQ28: 2018-04-01 | AR28: Apr-2018 | AS28: 7 | AT28: 8 | AV28: 10% | AY28: 0 | AZ28: 0 | BA28: 0 | BF28: 0 | BI28: 18
G29: =IF(D29="","",IF(F29="YES",MROUND(ROUND(1.03*G28,0),100),IF(D29="TOTAL",SUM($G$15:G28),G28))) ->  | H29: =IF(D29="","",IF(D29="TOTAL",SUM($H$15:H28),(ROUND(G29*AK29/100,0)))) ->  | I29: =IF(D29="","",IF(D29="TOTAL",SUM($I$15:I28),(ROUND(G29*AL29/100,0)))) ->  | J29: 0 | L29: =IF(D29="","",IF(D29="TOTAL",SUM($L$15:L28),$P$4)) ->  | M29: =IF(D29="","",IF(D29="TOTAL",SUM($M$15:M28),(ROUND(L29*AF29/100,0)))) ->  | N29: =IF(D29="","",IF(D29="TOTAL",SUM($N$15:N28),(ROUND(L29*AG29/100,0)))) ->  | O29: 0 | T29: 0 | U29: =IF(D29="","",IF(D29="TOTAL",SUM($U$15:U28),IF($Z$5="REGULAR",BA29,AJ29+BF29))) ->  | V29: =IF(D29="","",IF(D29="TOTAL",SUM($V$15:V28),(ROUND(T29*AN29,0)))) ->  | W29: =IF(D29="","",IF(E29="mar",$Z$2,IF(D29="TOTAL",SUM($W$15:W28),W28))) ->  | X29: =IF(D29="","",IF(D29="TOTAL",SUM($X$15:X28),(SUM(AH30:AI30)))) ->  | Y29: 0 | Z29: 0 | AQ29: 2018-05-01 | AR29: May-2018 | AS29: 7 | AT29: 8 | AV29: 10% | AY29: 0 | AZ29: 0 | BA29: 0 | BF29: 0 | BI29: 19
G30: =IF(D30="","",IF(F30="YES",MROUND(ROUND(1.03*G29,0),100),IF(D30="TOTAL",SUM($G$15:G29),G29))) ->  | H30: =IF(D30="","",IF(D30="TOTAL",SUM($H$15:H29),(ROUND(G30*AK30/100,0)))) ->  | I30: =IF(D30="","",IF(D30="TOTAL",SUM($I$15:I29),(ROUND(G30*AL30/100,0)))) ->  | J30: 0 | L30: =IF(D30="","",IF(D30="TOTAL",SUM($L$15:L29),$P$4)) ->  | M30: =IF(D30="","",IF(D30="TOTAL",SUM($M$15:M29),(ROUND(L30*AF30/100,0)))) ->  | N30: =IF(D30="","",IF(D30="TOTAL",SUM($N$15:N29),(ROUND(L30*AG30/100,0)))) ->  | O30: 0 | T30: 0 | U30: =IF(D30="","",IF(D30="TOTAL",SUM($U$15:U29),IF($Z$5="REGULAR",BA30,AJ30+BF30))) ->  | V30: =IF(D30="","",IF(D30="TOTAL",SUM($V$15:V29),(ROUND(T30*AN30,0)))) ->  | W30: =IF(D30="","",IF(E30="mar",$Z$2,IF(D30="TOTAL",SUM($W$15:W29),W29))) ->  | X30: =IF(D30="","",IF(D30="TOTAL",SUM($X$15:X29),(SUM(AH31:AI31)))) ->  | Y30: 0 | Z30: 0 | AQ30: 2018-06-01 | AR30: Jun-2018 | AS30: 7 | AT30: 8 | AV30: 10% | AY30: 0 | AZ30: 0 | BA30: 0 | BF30: 0 | BI30: 20
C31: =IFERROR(IF(AC31="","",IF(DATE(YEAR(AC31),MONTH(AC31),DAY(AC31))=DATE(YEAR($O$7),MONTH($O$7)+1,DAY($O$7)),"TOTAL",IF(AC31>$O$7,"",AC31))),"") ->  | G31: =IF(D31="","",IF(F31="YES",MROUND(ROUND(1.03*G30,0),100),IF(D31="TOTAL",SUM($G$15:G30),G30))) ->  | H31: =IF(D31="","",IF(D31="TOTAL",SUM($H$15:H30),(ROUND(G31*AK31/100,0)))) ->  | I31: =IF(D31="","",IF(D31="TOTAL",SUM($I$15:I30),(ROUND(G31*AL31/100,0)))) ->  | J31: 0 | L31: =IF(D31="","",IF(D31="TOTAL",SUM($L$15:L30),$P$4)) ->  | M31: =IF(D31="","",IF(D31="TOTAL",SUM($M$15:M30),(ROUND(L31*AF31/100,0)))) ->  | N31: =IF(D31="","",IF(D31="TOTAL",SUM($N$15:N30),(ROUND(L31*AG31/100,0)))) ->  | O31: 0 | T31: 0 | U31: =IF(D31="","",IF(D31="TOTAL",SUM($U$15:U30),IF($Z$5="REGULAR",BA31,AJ31+BF31))) ->  | V31: =IF(D31="","",IF(D31="TOTAL",SUM($V$15:V30),(ROUND(T31*AN31,0)))) ->  | W31: =IF(D31="","",IF(E31="mar",$Z$2,IF(D31="TOTAL",SUM($W$15:W30),W30))) ->  | X31: =IF(D31="","",IF(D31="TOTAL",SUM($X$15:X30),(SUM(AH32:AI32)))) ->  | Y31: 0 | Z31: 0 | AQ31: 2018-07-01 | AR31: Jul-2018 | AS31: 9 | AT31: 8 | AV31: 10% | AY31: 0 | AZ31: 0 | BA31: 0 | BF31: 0 | BI31: 21
G32: =IF(D32="","",IF(F32="YES",MROUND(ROUND(1.03*G31,0),100),IF(D32="TOTAL",SUM($G$15:G31),G31))) ->  | H32: =IF(D32="","",IF(D32="TOTAL",SUM($H$15:H31),(ROUND(G32*AK32/100,0)))) ->  | I32: =IF(D32="","",IF(D32="TOTAL",SUM($I$15:I31),(ROUND(G32*AL32/100,0)))) ->  | J32: 0 | L32: =IF(D32="","",IF(D32="TOTAL",SUM($L$15:L31),$P$4)) ->  | M32: =IF(D32="","",IF(D32="TOTAL",SUM($M$15:M31),(ROUND(L32*AF32/100,0)))) ->  | N32: =IF(D32="","",IF(D32="TOTAL",SUM($N$15:N31),(ROUND(L32*AG32/100,0)))) ->  | O32: 0 | T32: 0 | U32: =IF(D32="","",IF(D32="TOTAL",SUM($U$15:U31),IF($Z$5="REGULAR",BA32,AJ32+BF32))) ->  | V32: =IF(D32="","",IF(D32="TOTAL",SUM($V$15:V31),(ROUND(T32*AN32,0)))) ->  | W32: =IF(D32="","",IF(E32="mar",$Z$2,IF(D32="TOTAL",SUM($W$15:W31),W31))) ->  | X32: =IF(D32="","",IF(D32="TOTAL",SUM($X$15:X31),(SUM(AH33:AI33)))) ->  | Y32: 0 | Z32: 0 | AQ32: 2018-08-01 | AR32: Aug-2018 | AS32: 9 | AT32: 8 | AV32: 10% | AY32: 0 | AZ32: 0 | BA32: 0 | BF32: 0 | BI32: 22
G33: =IF(D33="","",IF(F33="YES",MROUND(ROUND(1.03*G32,0),100),IF(D33="TOTAL",SUM($G$15:G32),G32))) ->  | H33: =IF(D33="","",IF(D33="TOTAL",SUM($H$15:H32),(ROUND(G33*AK33/100,0)))) ->  | I33: =IF(D33="","",IF(D33="TOTAL",SUM($I$15:I32),(ROUND(G33*AL33/100,0)))) ->  | J33: 0 | L33: =IF(D33="","",IF(D33="TOTAL",SUM($L$15:L32),$P$4)) ->  | M33: =IF(D33="","",IF(D33="TOTAL",SUM($M$15:M32),(ROUND(L33*AF33/100,0)))) ->  | N33: =IF(D33="","",IF(D33="TOTAL",SUM($N$15:N32),(ROUND(L33*AG33/100,0)))) ->  | O33: 0 | T33: 0 | U33: =IF(D33="","",IF(D33="TOTAL",SUM($U$15:U32),IF($Z$5="REGULAR",BA33,AJ33+BF33))) ->  | V33: =IF(D33="","",IF(D33="TOTAL",SUM($V$15:V32),(ROUND(T33*AN33,0)))) ->  | W33: =IF(D33="","",IF(E33="mar",$Z$2,IF(D33="TOTAL",SUM($W$15:W32),W32))) ->  | X33: =IF(D33="","",IF(D33="TOTAL",SUM($X$15:X32),(SUM(AH34:AI34)))) ->  | Y33: 0 | Z33: 0 | AQ33: 2018-09-01 | AR33: Sep-2018 | AS33: 9 | AT33: 8 | AV33: 10% | AY33: 0 | AZ33: 0 | BA33: 0 | BF33: 0 | BI33: 23
G34: =IF(D34="","",IF(F34="YES",MROUND(ROUND(1.03*G33,0),100),IF(D34="TOTAL",SUM($G$15:G33),G33))) ->  | H34: =IF(D34="","",IF(D34="TOTAL",SUM($H$15:H33),(ROUND(G34*AK34/100,0)))) ->  | I34: =IF(D34="","",IF(D34="TOTAL",SUM($I$15:I33),(ROUND(G34*AL34/100,0)))) ->  | J34: 0 | L34: =IF(D34="","",IF(D34="TOTAL",SUM($L$15:L33),$P$4)) ->  | M34: =IF(D34="","",IF(D34="TOTAL",SUM($M$15:M33),(ROUND(L34*AF34/100,0)))) ->  | N34: =IF(D34="","",IF(D34="TOTAL",SUM($N$15:N33),(ROUND(L34*AG34/100,0)))) ->  | O34: 0 | T34: 0 | U34: =IF(D34="","",IF(D34="TOTAL",SUM($U$15:U33),IF($Z$5="REGULAR",BA34,AJ34+BF34))) ->  | V34: =IF(D34="","",IF(D34="TOTAL",SUM($V$15:V33),(ROUND(T34*AN34,0)))) ->  | W34: =IF(D34="","",IF(E34="mar",$Z$2,IF(D34="TOTAL",SUM($W$15:W33),W33))) ->  | X34: =IF(D34="","",IF(D34="TOTAL",SUM($X$15:X33),(SUM(AH35:AI35)))) ->  | Y34: 0 | Z34: 0 | AQ34: 2018-10-01 | AR34: Oct-2018 | AS34: 9 | AT34: 8 | AV34: 10% | AY34: 0 | AZ34: 0 | BA34: 0 | BF34: 0 | BI34: 24
G35: =IF(D35="","",IF(F35="YES",MROUND(ROUND(1.03*G34,0),100),IF(D35="TOTAL",SUM($G$15:G34),G34))) ->  | H35: =IF(D35="","",IF(D35="TOTAL",SUM($H$15:H34),(ROUND(G35*AK35/100,0)))) ->  | I35: =IF(D35="","",IF(D35="TOTAL",SUM($I$15:I34),(ROUND(G35*AL35/100,0)))) ->  | J35: 0 | L35: =IF(D35="","",IF(D35="TOTAL",SUM($L$15:L34),$P$4)) ->  | M35: =IF(D35="","",IF(D35="TOTAL",SUM($M$15:M34),(ROUND(L35*AF35/100,0)))) ->  | N35: =IF(D35="","",IF(D35="TOTAL",SUM($N$15:N34),(ROUND(L35*AG35/100,0)))) ->  | O35: 0 | T35: 0 | U35: =IF(D35="","",IF(D35="TOTAL",SUM($U$15:U34),IF($Z$5="REGULAR",BA35,AJ35+BF35))) ->  | V35: =IF(D35="","",IF(D35="TOTAL",SUM($V$15:V34),(ROUND(T35*AN35,0)))) ->  | W35: =IF(D35="","",IF(E35="mar",$Z$2,IF(D35="TOTAL",SUM($W$15:W34),W34))) ->  | X35: =IF(D35="","",IF(D35="TOTAL",SUM($X$15:X34),(SUM(AH36:AI36)))) ->  | Y35: 0 | Z35: 0 | AQ35: 2018-11-01 | AR35: Nov-2018 | AS35: 9 | AT35: 8 | AV35: 10% | AY35: 0 | AZ35: 0 | BA35: 0 | BF35: 0 | BI35: 25
G36: =IF(D36="","",IF(F36="YES",MROUND(ROUND(1.03*G35,0),100),IF(D36="TOTAL",SUM($G$15:G35),G35))) ->  | H36: =IF(D36="","",IF(D36="TOTAL",SUM($H$15:H35),(ROUND(G36*AK36/100,0)))) ->  | I36: =IF(D36="","",IF(D36="TOTAL",SUM($I$15:I35),(ROUND(G36*AL36/100,0)))) ->  | J36: 0 | L36: =IF(D36="","",IF(D36="TOTAL",SUM($L$15:L35),$P$4)) ->  | M36: =IF(D36="","",IF(D36="TOTAL",SUM($M$15:M35),(ROUND(L36*AF36/100,0)))) ->  | N36: =IF(D36="","",IF(D36="TOTAL",SUM($N$15:N35),(ROUND(L36*AG36/100,0)))) ->  | O36: 0 | T36: 0 | U36: =IF(D36="","",IF(D36="TOTAL",SUM($U$15:U35),IF($Z$5="REGULAR",BA36,AJ36+BF36))) ->  | V36: =IF(D36="","",IF(D36="TOTAL",SUM($V$15:V35),(ROUND(T36*AN36,0)))) ->  | W36: =IF(D36="","",IF(E36="mar",$Z$2,IF(D36="TOTAL",SUM($W$15:W35),W35))) ->  | X36: =IF(D36="","",IF(D36="TOTAL",SUM($X$15:X35),(SUM(AH37:AI37)))) ->  | Y36: 0 | Z36: 0 | AQ36: 2018-12-01 | AR36: Dec-2018 | AS36: 9 | AT36: 8 | AV36: 10% | AY36: 0 | AZ36: 0 | BA36: 0 | BF36: 0 | BI36: 26
G37: =IF(D37="","",IF(F37="YES",MROUND(ROUND(1.03*G36,0),100),IF(D37="TOTAL",SUM($G$15:G36),G36))) ->  | H37: =IF(D37="","",IF(D37="TOTAL",SUM($H$15:H36),(ROUND(G37*AK37/100,0)))) ->  | I37: =IF(D37="","",IF(D37="TOTAL",SUM($I$15:I36),(ROUND(G37*AL37/100,0)))) ->  | J37: 0 | L37: =IF(D37="","",IF(D37="TOTAL",SUM($L$15:L36),$P$4)) ->  | M37: =IF(D37="","",IF(D37="TOTAL",SUM($M$15:M36),(ROUND(L37*AF37/100,0)))) ->  | N37: =IF(D37="","",IF(D37="TOTAL",SUM($N$15:N36),(ROUND(L37*AG37/100,0)))) ->  | O37: 0 | T37: 0 | U37: =IF(D37="","",IF(D37="TOTAL",SUM($U$15:U36),IF($Z$5="REGULAR",BA37,AJ37+BF37))) ->  | V37: =IF(D37="","",IF(D37="TOTAL",SUM($V$15:V36),(ROUND(T37*AN37,0)))) ->  | W37: =IF(D37="","",IF(E37="mar",$Z$2,IF(D37="TOTAL",SUM($W$15:W36),W36))) ->  | X37: =IF(D37="","",IF(D37="TOTAL",SUM($X$15:X36),(SUM(AH38:AI38)))) ->  | Y37: 0 | Z37: 0 | AQ37: 2019-01-01 | AR37: Jan-2019 | AS37: 12 | AT37: 8 | AV37: 10% | AY37: 0 | AZ37: 0 | BA37: 0 | BF37: 0 | BI37: 27
G38: =IF(D38="","",IF(F38="YES",MROUND(ROUND(1.03*G37,0),100),IF(D38="TOTAL",SUM($G$15:G37),G37))) ->  | H38: =IF(D38="","",IF(D38="TOTAL",SUM($H$15:H37),(ROUND(G38*AK38/100,0)))) ->  | I38: =IF(D38="","",IF(D38="TOTAL",SUM($I$15:I37),(ROUND(G38*AL38/100,0)))) ->  | J38: 0 | L38: =IF(D38="","",IF(D38="TOTAL",SUM($L$15:L37),$P$4)) ->  | M38: =IF(D38="","",IF(D38="TOTAL",SUM($M$15:M37),(ROUND(L38*AF38/100,0)))) ->  | N38: =IF(D38="","",IF(D38="TOTAL",SUM($N$15:N37),(ROUND(L38*AG38/100,0)))) ->  | O38: 0 | T38: 0 | U38: =IF(D38="","",IF(D38="TOTAL",SUM($U$15:U37),IF($Z$5="REGULAR",BA38,AJ38+BF38))) ->  | V38: =IF(D38="","",IF(D38="TOTAL",SUM($V$15:V37),(ROUND(T38*AN38,0)))) ->  | W38: =IF(D38="","",IF(E38="mar",$Z$2,IF(D38="TOTAL",SUM($W$15:W37),W37))) ->  | X38: =IF(D38="","",IF(D38="TOTAL",SUM($X$15:X37),(SUM(AH39:AI39)))) ->  | Y38: 0 | Z38: 0 | AQ38: 2019-02-01 | AR38: Feb-2019 | AS38: 12 | AT38: 8 | AV38: 10% | AY38: 0 | AZ38: 0 | BA38: 0 | BF38: 0 | BI38: 28
G39: =IF(D39="","",IF(F39="YES",MROUND(ROUND(1.03*G38,0),100),IF(D39="TOTAL",SUM($G$15:G38),G38))) ->  | H39: =IF(D39="","",IF(D39="TOTAL",SUM($H$15:H38),(ROUND(G39*AK39/100,0)))) ->  | I39: =IF(D39="","",IF(D39="TOTAL",SUM($I$15:I38),(ROUND(G39*AL39/100,0)))) ->  | J39: 0 | L39: =IF(D39="","",IF(D39="TOTAL",SUM($L$15:L38),$P$4)) ->  | M39: =IF(D39="","",IF(D39="TOTAL",SUM($M$15:M38),(ROUND(L39*AF39/100,0)))) ->  | N39: =IF(D39="","",IF(D39="TOTAL",SUM($N$15:N38),(ROUND(L39*AG39/100,0)))) ->  | O39: 0 | T39: 0 | U39: =IF(D39="","",IF(D39="TOTAL",SUM($U$15:U38),IF($Z$5="REGULAR",BA39,AJ39+BF39))) ->  | V39: =IF(D39="","",IF(D39="TOTAL",SUM($V$15:V38),(ROUND(T39*AN39,0)))) ->  | W39: =IF(D39="","",IF(E39="mar",$Z$2,IF(D39="TOTAL",SUM($W$15:W38),W38))) ->  | X39: =IF(D39="","",IF(D39="TOTAL",SUM($X$15:X38),(SUM(AH40:AI40)))) ->  | Y39: 0 | Z39: 0 | AQ39: 2019-03-01 | AR39: Mar-2019 | AS39: 12 | AT39: 8 | AV39: 10% | AY39: 0 | AZ39: 0 | BA39: 0 | BF39: 0 | BI39: 29
G40: =IF(D40="","",IF(F40="YES",MROUND(ROUND(1.03*G39,0),100),IF(D40="TOTAL",SUM($G$15:G39),G39))) ->  | H40: =IF(D40="","",IF(D40="TOTAL",SUM($H$15:H39),(ROUND(G40*AK40/100,0)))) ->  | I40: =IF(D40="","",IF(D40="TOTAL",SUM($I$15:I39),(ROUND(G40*AL40/100,0)))) ->  | J40: 0 | L40: =IF(D40="","",IF(D40="TOTAL",SUM($L$15:L39),$P$4)) ->  | M40: =IF(D40="","",IF(D40="TOTAL",SUM($M$15:M39),(ROUND(L40*AF40/100,0)))) ->  | N40: =IF(D40="","",IF(D40="TOTAL",SUM($N$15:N39),(ROUND(L40*AG40/100,0)))) ->  | O40: 0 | T40: 0 | U40: =IF(D40="","",IF(D40="TOTAL",SUM($U$15:U39),IF($Z$5="REGULAR",BA40,AJ40+BF40))) ->  | V40: =IF(D40="","",IF(D40="TOTAL",SUM($V$15:V39),(ROUND(T40*AN40,0)))) ->  | W40: =IF(D40="","",IF(E40="mar",$Z$2,IF(D40="TOTAL",SUM($W$15:W39),W39))) ->  | X40: =IF(D40="","",IF(D40="TOTAL",SUM($X$15:X39),(SUM(AH41:AI41)))) ->  | Y40: 0 | Z40: 0 | AQ40: 2019-04-01 | AR40: Apr-2019 | AS40: 12 | AT40: 8 | AV40: 10% | AY40: 0 | AZ40: 0 | BA40: 0 | BF40: 0 | BI40: 30
G41: =IF(D41="","",IF(F41="YES",MROUND(ROUND(1.03*G40,0),100),IF(D41="TOTAL",SUM($G$15:G40),G40))) ->  | H41: =IF(D41="","",IF(D41="TOTAL",SUM($H$15:H40),(ROUND(G41*AK41/100,0)))) ->  | I41: =IF(D41="","",IF(D41="TOTAL",SUM($I$15:I40),(ROUND(G41*AL41/100,0)))) ->  | J41: 0 | L41: =IF(D41="","",IF(D41="TOTAL",SUM($L$15:L40),$P$4)) ->  | M41: =IF(D41="","",IF(D41="TOTAL",SUM($M$15:M40),(ROUND(L41*AF41/100,0)))) ->  | N41: =IF(D41="","",IF(D41="TOTAL",SUM($N$15:N40),(ROUND(L41*AG41/100,0)))) ->  | O41: 0 | T41: 0 | U41: =IF(D41="","",IF(D41="TOTAL",SUM($U$15:U40),IF($Z$5="REGULAR",BA41,AJ41+BF41))) ->  | V41: =IF(D41="","",IF(D41="TOTAL",SUM($V$15:V40),(ROUND(T41*AN41,0)))) ->  | W41: =IF(D41="","",IF(E41="mar",$Z$2,IF(D41="TOTAL",SUM($W$15:W40),W40))) ->  | X41: =IF(D41="","",IF(D41="TOTAL",SUM($X$15:X40),(SUM(AH42:AI42)))) ->  | Y41: 0 | Z41: 0 | AQ41: 2019-05-01 | AR41: May-2019 | AS41: 12 | AT41: 8 | AV41: 10% | AY41: 0 | AZ41: 0 | BA41: 0 | BF41: 0 | BI41: 31
G42: =IF(D42="","",IF(F42="YES",MROUND(ROUND(1.03*G41,0),100),IF(D42="TOTAL",SUM($G$15:G41),G41))) ->  | H42: =IF(D42="","",IF(D42="TOTAL",SUM($H$15:H41),(ROUND(G42*AK42/100,0)))) ->  | I42: =IF(D42="","",IF(D42="TOTAL",SUM($I$15:I41),(ROUND(G42*AL42/100,0)))) ->  | J42: 0 | L42: =IF(D42="","",IF(D42="TOTAL",SUM($L$15:L41),$P$4)) ->  | M42: =IF(D42="","",IF(D42="TOTAL",SUM($M$15:M41),(ROUND(L42*AF42/100,0)))) ->  | N42: =IF(D42="","",IF(D42="TOTAL",SUM($N$15:N41),(ROUND(L42*AG42/100,0)))) ->  | O42: 0 | T42: 0 | U42: =IF(D42="","",IF(D42="TOTAL",SUM($U$15:U41),IF($Z$5="REGULAR",BA42,AJ42+BF42))) ->  | V42: =IF(D42="","",IF(D42="TOTAL",SUM($V$15:V41),(ROUND(T42*AN42,0)))) ->  | W42: =IF(D42="","",IF(E42="mar",$Z$2,IF(D42="TOTAL",SUM($W$15:W41),W41))) ->  | X42: =IF(D42="","",IF(D42="TOTAL",SUM($X$15:X41),(SUM(AH43:AI43)))) ->  | Y42: 0 | Z42: 0 | AQ42: 2019-06-01 | AR42: Jun-2019 | AS42: 12 | AT42: 8 | AV42: 10% | AY42: 0 | AZ42: 0 | BA42: 0 | BF42: 0
G43: =IF(D43="","",IF(F43="YES",MROUND(ROUND(1.03*G42,0),100),IF(D43="TOTAL",SUM($G$15:G42),G42))) ->  | H43: =IF(D43="","",IF(D43="TOTAL",SUM($H$15:H42),(ROUND(G43*AK43/100,0)))) ->  | I43: =IF(D43="","",IF(D43="TOTAL",SUM($I$15:I42),(ROUND(G43*AL43/100,0)))) ->  | J43: 0 | L43: =IF(D43="","",IF(D43="TOTAL",SUM($L$15:L42),$P$4)) ->  | M43: =IF(D43="","",IF(D43="TOTAL",SUM($M$15:M42),(ROUND(L43*AF43/100,0)))) ->  | N43: =IF(D43="","",IF(D43="TOTAL",SUM($N$15:N42),(ROUND(L43*AG43/100,0)))) ->  | O43: 0 | T43: 0 | U43: =IF(D43="","",IF(D43="TOTAL",SUM($U$15:U42),IF($Z$5="REGULAR",BA43,AJ43+BF43))) ->  | V43: =IF(D43="","",IF(D43="TOTAL",SUM($V$15:V42),(ROUND(T43*AN43,0)))) ->  | W43: =IF(D43="","",IF(E43="mar",$Z$2,IF(D43="TOTAL",SUM($W$15:W42),W42))) ->  | X43: =IF(D43="","",IF(D43="TOTAL",SUM($X$15:X42),(SUM(AH44:AI44)))) ->  | Y43: 0 | Z43: 0 | AQ43: 2019-07-01 | AR43: Jul-2019 | AS43: 17 | AT43: 8 | AV43: 10% | AY43: 0 | AZ43: 0 | BA43: 0 | BF43: 0
G44: =IF(D44="","",IF(F44="YES",MROUND(ROUND(1.03*G43,0),100),IF(D44="TOTAL",SUM($G$15:G43),G43))) ->  | H44: =IF(D44="","",IF(D44="TOTAL",SUM($H$15:H43),(ROUND(G44*AK44/100,0)))) ->  | I44: =IF(D44="","",IF(D44="TOTAL",SUM($I$15:I43),(ROUND(G44*AL44/100,0)))) ->  | J44: 0 | L44: =IF(D44="","",IF(D44="TOTAL",SUM($L$15:L43),$P$4)) ->  | M44: =IF(D44="","",IF(D44="TOTAL",SUM($M$15:M43),(ROUND(L44*AF44/100,0)))) ->  | N44: =IF(D44="","",IF(D44="TOTAL",SUM($N$15:N43),(ROUND(L44*AG44/100,0)))) ->  | O44: 0 | T44: 0 | U44: =IF(D44="","",IF(D44="TOTAL",SUM($U$15:U43),IF($Z$5="REGULAR",BA44,AJ44+BF44))) ->  | V44: =IF(D44="","",IF(D44="TOTAL",SUM($V$15:V43),(ROUND(T44*AN44,0)))) ->  | W44: =IF(D44="","",IF(E44="mar",$Z$2,IF(D44="TOTAL",SUM($W$15:W43),W43))) ->  | X44: =IF(D44="","",IF(D44="TOTAL",SUM($X$15:X43),(SUM(AH45:AI45)))) ->  | Y44: 0 | Z44: 0 | AQ44: 2019-08-01 | AR44: Aug-2019 | AS44: 17 | AT44: 8 | AV44: 10% | AY44: 0 | AZ44: 0 | BA44: 0 | BF44: 0
G45: =IF(D45="","",IF(F45="YES",MROUND(ROUND(1.03*G44,0),100),IF(D45="TOTAL",SUM($G$15:G44),G44))) ->  | H45: =IF(D45="","",IF(D45="TOTAL",SUM($H$15:H44),(ROUND(G45*AK45/100,0)))) ->  | I45: =IF(D45="","",IF(D45="TOTAL",SUM($I$15:I44),(ROUND(G45*AL45/100,0)))) ->  | J45: 0 | L45: =IF(D45="","",IF(D45="TOTAL",SUM($L$15:L44),$P$4)) ->  | M45: =IF(D45="","",IF(D45="TOTAL",SUM($M$15:M44),(ROUND(L45*AF45/100,0)))) ->  | N45: =IF(D45="","",IF(D45="TOTAL",SUM($N$15:N44),(ROUND(L45*AG45/100,0)))) ->  | O45: 0 | T45: 0 | U45: =IF(D45="","",IF(D45="TOTAL",SUM($U$15:U44),IF($Z$5="REGULAR",BA45,AJ45+BF45))) ->  | V45: =IF(D45="","",IF(D45="TOTAL",SUM($V$15:V44),(ROUND(T45*AN45,0)))) ->  | W45: =IF(D45="","",IF(E45="mar",$Z$2,IF(D45="TOTAL",SUM($W$15:W44),W44))) ->  | X45: =IF(D45="","",IF(D45="TOTAL",SUM($X$15:X44),(SUM(AH46:AI46)))) ->  | Y45: 0 | Z45: 0 | AQ45: 2019-09-01 | AR45: Sep-2019 | AS45: 17 | AT45: 8 | AV45: 10% | AY45: 0 | AZ45: 0 | BA45: 0 | BF45: 0
G46: =IF(D46="","",IF(F46="YES",MROUND(ROUND(1.03*G45,0),100),IF(D46="TOTAL",SUM($G$15:G45),G45))) ->  | H46: =IF(D46="","",IF(D46="TOTAL",SUM($H$15:H45),(ROUND(G46*AK46/100,0)))) ->  | I46: =IF(D46="","",IF(D46="TOTAL",SUM($I$15:I45),(ROUND(G46*AL46/100,0)))) ->  | J46: 0 | L46: =IF(D46="","",IF(D46="TOTAL",SUM($L$15:L45),$P$4)) ->  | M46: =IF(D46="","",IF(D46="TOTAL",SUM($M$15:M45),(ROUND(L46*AF46/100,0)))) ->  | N46: =IF(D46="","",IF(D46="TOTAL",SUM($N$15:N45),(ROUND(L46*AG46/100,0)))) ->  | O46: 0 | T46: 0 | U46: =IF(D46="","",IF(D46="TOTAL",SUM($U$15:U45),IF($Z$5="REGULAR",BA46,AJ46+BF46))) ->  | V46: =IF(D46="","",IF(D46="TOTAL",SUM($V$15:V45),(ROUND(T46*AN46,0)))) ->  | W46: =IF(D46="","",IF(E46="mar",$Z$2,IF(D46="TOTAL",SUM($W$15:W45),W45))) ->  | X46: =IF(D46="","",IF(D46="TOTAL",SUM($X$15:X45),(SUM(AH47:AI47)))) ->  | Y46: 0 | Z46: 0 | AQ46: 2019-10-01 | AR46: Oct-2019 | AS46: 17 | AT46: 8 | AV46: 10% | AY46: 0 | AZ46: 0 | BA46: 0 | BF46: 0
G47: =IF(D47="","",IF(F47="YES",MROUND(ROUND(1.03*G46,0),100),IF(D47="TOTAL",SUM($G$15:G46),G46))) ->  | H47: =IF(D47="","",IF(D47="TOTAL",SUM($H$15:H46),(ROUND(G47*AK47/100,0)))) ->  | I47: =IF(D47="","",IF(D47="TOTAL",SUM($I$15:I46),(ROUND(G47*AL47/100,0)))) ->  | J47: 0 | L47: =IF(D47="","",IF(D47="TOTAL",SUM($L$15:L46),$P$4)) ->  | M47: =IF(D47="","",IF(D47="TOTAL",SUM($M$15:M46),(ROUND(L47*AF47/100,0)))) ->  | N47: =IF(D47="","",IF(D47="TOTAL",SUM($N$15:N46),(ROUND(L47*AG47/100,0)))) ->  | O47: 0 | P47: =IFERROR(MIN(G47-L47),"") ->  | T47: 0 | U47: =IF(D47="","",IF(D47="TOTAL",SUM($U$15:U46),IF($Z$5="REGULAR",BA47,AJ47+BF47))) ->  | V47: =IF(D47="","",IF(D47="TOTAL",SUM($V$15:V46),(ROUND(T47*AN47,0)))) ->  | W47: =IF(D47="","",IF(E47="mar",$Z$2,IF(D47="TOTAL",SUM($W$15:W46),W46))) ->  | X47: =IF(D47="","",IF(D47="TOTAL",SUM($X$15:X46),(SUM(AH48:AI48)))) ->  | Y47: 0 | Z47: 0 | AF47: =IFERROR(VLOOKUP(D47,$AR$13:$BF$209,8,0),"") ->  | AG47: =IFERROR(VLOOKUP(D47,$AR$13:$BF$209,9,0),"") ->  | AL47: =IFERROR(VLOOKUP(D47,$AR$13:$AAU$209,3,0),"") ->  | AM47: =IFERROR(VLOOKUP(D47,$AR$13:$AAV$209,4,0),"") ->  | AN47: =IFERROR(VLOOKUP(D47,$AR$13:$AAV$209,5,0),"") ->  | AO47: =IFERROR(VLOOKUP(D47,$AR$13:$AAV$109,6,0),"") ->  | AP47: =IFERROR(VLOOKUP(D47,$AR$13:$AAV$109,7,0),"") ->  | AQ47: 2019-11-01 | AR47: Nov-2019 | AS47: 17 | AT47: 8 | AV47: 10% | AY47: 0 | AZ47: 0 | BA47: 0 | BF47: 0
G48: =IF(D48="","",IF(F48="YES",MROUND(ROUND(1.03*G47,0),100),IF(D48="TOTAL",SUM($G$15:G47),G47))) ->  | H48: =IF(D48="","",IF(D48="TOTAL",SUM($H$15:H47),(ROUND(G48*AK48/100,0)))) ->  | I48: =IF(D48="","",IF(D48="TOTAL",SUM($I$15:I47),(ROUND(G48*AL48/100,0)))) ->  | J48: 0 | L48: =IF(D48="","",IF(D48="TOTAL",SUM($L$15:L47),$P$4)) ->  | M48: =IF(D48="","",IF(D48="TOTAL",SUM($M$15:M47),(ROUND(L48*AF48/100,0)))) ->  | N48: =IF(D48="","",IF(D48="TOTAL",SUM($N$15:N47),(ROUND(L48*AG48/100,0)))) ->  | O48: 0 | T48: 0 | U48: =IF(D48="","",IF(D48="TOTAL",SUM($U$15:U47),IF($Z$5="REGULAR",BA48,AJ48+BF48))) ->  | V48: =IF(D48="","",IF(D48="TOTAL",SUM($V$15:V47),(ROUND(T48*AN48,0)))) ->  | W48: =IF(D48="","",IF(E48="mar",$Z$2,IF(D48="TOTAL",SUM($W$15:W47),W47))) ->  | X48: =IF(D48="","",IF(D48="TOTAL",SUM($X$15:X47),(SUM(AH49:AI49)))) ->  | Y48: 0 | Z48: 0 | AQ48: 2019-12-01 | AR48: Dec-2019 | AS48: 17 | AT48: 8 | AV48: 10% | AY48: 0 | AZ48: 0 | BA48: 0 | BF48: 0
G49: =IF(D49="","",IF(F49="YES",MROUND(ROUND(1.03*G48,0),100),IF(D49="TOTAL",SUM($G$15:G48),G48))) ->  | H49: =IF(D49="","",IF(D49="TOTAL",SUM($H$15:H48),(ROUND(G49*AK49/100,0)))) ->  | I49: =IF(D49="","",IF(D49="TOTAL",SUM($I$15:I48),(ROUND(G49*AL49/100,0)))) ->  | J49: 0 | L49: =IF(D49="","",IF(D49="TOTAL",SUM($L$15:L48),$P$4)) ->  | M49: =IF(D49="","",IF(D49="TOTAL",SUM($M$15:M48),(ROUND(L49*AF49/100,0)))) ->  | N49: =IF(D49="","",IF(D49="TOTAL",SUM($N$15:N48),(ROUND(L49*AG49/100,0)))) ->  | O49: 0 | T49: 0 | U49: =IF(D49="","",IF(D49="TOTAL",SUM($U$15:U48),IF($Z$5="REGULAR",BA49,AJ49+BF49))) ->  | V49: =IF(D49="","",IF(D49="TOTAL",SUM($V$15:V48),(ROUND(T49*AN49,0)))) ->  | W49: =IF(D49="","",IF(E49="mar",$Z$2,IF(D49="TOTAL",SUM($W$15:W48),W48))) ->  | X49: =IF(D49="","",IF(D49="TOTAL",SUM($X$15:X48),(SUM(AH50:AI50)))) ->  | Y49: 0 | Z49: 0 | AQ49: 2020-01-01 | AR49: Jan-2020 | AS49: 17 | AT49: 8 | AV49: 10% | AY49: 0 | AZ49: 0 | BA49: 0 | BF49: 0
G50: =IF(D50="","",IF(F50="YES",MROUND(ROUND(1.03*G49,0),100),IF(D50="TOTAL",SUM($G$15:G49),G49))) ->  | H50: =IF(D50="","",IF(D50="TOTAL",SUM($H$15:H49),(ROUND(G50*AK50/100,0)))) ->  | I50: =IF(D50="","",IF(D50="TOTAL",SUM($I$15:I49),(ROUND(G50*AL50/100,0)))) ->  | J50: 0 | L50: =IF(D50="","",IF(D50="TOTAL",SUM($L$15:L49),$P$4)) ->  | M50: =IF(D50="","",IF(D50="TOTAL",SUM($M$15:M49),(ROUND(L50*AF50/100,0)))) ->  | N50: =IF(D50="","",IF(D50="TOTAL",SUM($N$15:N49),(ROUND(L50*AG50/100,0)))) ->  | O50: 0 | T50: 0 | U50: =IF(D50="","",IF(D50="TOTAL",SUM($U$15:U49),IF($Z$5="REGULAR",BA50,AJ50+BF50))) ->  | V50: =IF(D50="","",IF(D50="TOTAL",SUM($V$15:V49),(ROUND(T50*AN50,0)))) ->  | W50: =IF(D50="","",IF(E50="mar",$Z$2,IF(D50="TOTAL",SUM($W$15:W49),W49))) ->  | X50: =IF(D50="","",IF(D50="TOTAL",SUM($X$15:X49),(SUM(AH51:AI51)))) ->  | Y50: 0 | Z50: 0 | AQ50: 2020-02-01 | AR50: Feb-2020 | AS50: 17 | AT50: 8 | AV50: 10% | AY50: 0 | AZ50: 0 | BA50: 0 | BF50: 0
G51: =IF(D51="","",IF(F51="YES",MROUND(ROUND(1.03*G50,0),100),IF(D51="TOTAL",SUM($G$15:G50),G50))) ->  | H51: =IF(D51="","",IF(D51="TOTAL",SUM($H$15:H50),(ROUND(G51*AK51/100,0)))) ->  | I51: =IF(D51="","",IF(D51="TOTAL",SUM($I$15:I50),(ROUND(G51*AL51/100,0)))) ->  | J51: 0 | L51: =IF(D51="","",IF(D51="TOTAL",SUM($L$15:L50),$P$4)) ->  | M51: =IF(D51="","",IF(D51="TOTAL",SUM($M$15:M50),(ROUND(L51*AF51/100,0)))) ->  | N51: =IF(D51="","",IF(D51="TOTAL",SUM($N$15:N50),(ROUND(L51*AG51/100,0)))) ->  | O51: 0 | T51: 0 | U51: =IF(D51="","",IF(D51="TOTAL",SUM($U$15:U50),IF($Z$5="REGULAR",BA51,AJ51+BF51))) ->  | V51: =IF(D51="","",IF(D51="TOTAL",SUM($V$15:V50),(ROUND(T51*AN51,0)))) ->  | W51: =IF(D51="","",IF(E51="mar",$Z$2,IF(D51="TOTAL",SUM($W$15:W50),W50))) ->  | X51: =IF(D51="","",IF(D51="TOTAL",SUM($X$15:X50),(SUM(AH52:AI52)))) ->  | Y51: 0 | Z51: 0 | AQ51: 2020-03-01 | AR51: Mar-2020 | AS51: 17 | AT51: 8 | AV51: 10% | AW51: =AO10 -> 3 | AY51: 0 | AZ51: 0 | BA51: 0 | BF51: 0
G52: =IF(D52="","",IF(F52="YES",MROUND(ROUND(1.03*G51,0),100),IF(D52="TOTAL",SUM($G$15:G51),G51))) ->  | H52: =IF(D52="","",IF(D52="TOTAL",SUM($H$15:H51),(ROUND(G52*AK52/100,0)))) ->  | I52: =IF(D52="","",IF(D52="TOTAL",SUM($I$15:I51),(ROUND(G52*AL52/100,0)))) ->  | J52: 0 | L52: =IF(D52="","",IF(D52="TOTAL",SUM($L$15:L51),$P$4)) ->  | M52: =IF(D52="","",IF(D52="TOTAL",SUM($M$15:M51),(ROUND(L52*AF52/100,0)))) ->  | N52: =IF(D52="","",IF(D52="TOTAL",SUM($N$15:N51),(ROUND(L52*AG52/100,0)))) ->  | O52: 0 | T52: 0 | U52: =IF(D52="","",IF(D52="TOTAL",SUM($U$15:U51),IF($Z$5="REGULAR",BA52,AJ52+BF52))) ->  | V52: =IF(D52="","",IF(D52="TOTAL",SUM($V$15:V51),(ROUND(T52*AN52,0)))) ->  | W52: =IF(D52="","",IF(E52="mar",$Z$2,IF(D52="TOTAL",SUM($W$15:W51),W51))) ->  | X52: =IF(D52="","",IF(D52="TOTAL",SUM($X$15:X51),(SUM(AH53:AI53)))) ->  | Y52: 0 | Z52: 0 | AQ52: 2020-04-01 | AR52: Apr-2020 | AS52: 17 | AT52: 8 | AV52: 10% | AY52: 0 | AZ52: 0 | BA52: 0 | BF52: 0
G53: =IF(D53="","",IF(F53="YES",MROUND(ROUND(1.03*G52,0),100),IF(D53="TOTAL",SUM($G$15:G52),G52))) ->  | H53: =IF(D53="","",IF(D53="TOTAL",SUM($H$15:H52),(ROUND(G53*AK53/100,0)))) ->  | I53: =IF(D53="","",IF(D53="TOTAL",SUM($I$15:I52),(ROUND(G53*AL53/100,0)))) ->  | J53: 0 | L53: =IF(D53="","",IF(D53="TOTAL",SUM($L$15:L52),$P$4)) ->  | M53: =IF(D53="","",IF(D53="TOTAL",SUM($M$15:M52),(ROUND(L53*AF53/100,0)))) ->  | N53: =IF(D53="","",IF(D53="TOTAL",SUM($N$15:N52),(ROUND(L53*AG53/100,0)))) ->  | O53: 0 | T53: 0 | U53: =IF(D53="","",IF(D53="TOTAL",SUM($U$15:U52),IF($Z$5="REGULAR",BA53,AJ53+BF53))) ->  | V53: =IF(D53="","",IF(D53="TOTAL",SUM($V$15:V52),(ROUND(T53*AN53,0)))) ->  | W53: =IF(D53="","",IF(E53="mar",$Z$2,IF(D53="TOTAL",SUM($W$15:W52),W52))) ->  | X53: =IF(D53="","",IF(D53="TOTAL",SUM($X$15:X52),(SUM(AH54:AI54)))) ->  | Y53: 0 | Z53: 0 | AQ53: 2020-05-01 | AR53: May-2020 | AS53: 17 | AT53: 8 | AV53: 10% | AY53: 0 | AZ53: 0 | BA53: 0 | BF53: 0
G54: =IF(D54="","",IF(F54="YES",MROUND(ROUND(1.03*G53,0),100),IF(D54="TOTAL",SUM($G$15:G53),G53))) ->  | H54: =IF(D54="","",IF(D54="TOTAL",SUM($H$15:H53),(ROUND(G54*AK54/100,0)))) ->  | I54: =IF(D54="","",IF(D54="TOTAL",SUM($I$15:I53),(ROUND(G54*AL54/100,0)))) ->  | J54: 0 | L54: =IF(D54="","",IF(D54="TOTAL",SUM($L$15:L53),$P$4)) ->  | M54: =IF(D54="","",IF(D54="TOTAL",SUM($M$15:M53),(ROUND(L54*AF54/100,0)))) ->  | N54: =IF(D54="","",IF(D54="TOTAL",SUM($N$15:N53),(ROUND(L54*AG54/100,0)))) ->  | O54: 0 | T54: 0 | U54: =IF(D54="","",IF(D54="TOTAL",SUM($U$15:U53),IF($Z$5="REGULAR",BA54,AJ54+BF54))) ->  | V54: =IF(D54="","",IF(D54="TOTAL",SUM($V$15:V53),(ROUND(T54*AN54,0)))) ->  | W54: =IF(D54="","",IF(E54="mar",$Z$2,IF(D54="TOTAL",SUM($W$15:W53),W53))) ->  | X54: =IF(D54="","",IF(D54="TOTAL",SUM($X$15:X53),(SUM(AH55:AI55)))) ->  | Y54: 0 | Z54: 0 | AQ54: 2020-06-01 | AR54: Jun-2020 | AS54: 17 | AT54: 8 | AV54: 10% | AY54: 0 | AZ54: 0 | BA54: 0 | BF54: 0
G55: =IF(D55="","",IF(F55="YES",MROUND(ROUND(1.03*G54,0),100),IF(D55="TOTAL",SUM($G$15:G54),G54))) ->  | H55: =IF(D55="","",IF(D55="TOTAL",SUM($H$15:H54),(ROUND(G55*AK55/100,0)))) ->  | I55: =IF(D55="","",IF(D55="TOTAL",SUM($I$15:I54),(ROUND(G55*AL55/100,0)))) ->  | J55: 0 | L55: =IF(D55="","",IF(D55="TOTAL",SUM($L$15:L54),$P$4)) ->  | M55: =IF(D55="","",IF(D55="TOTAL",SUM($M$15:M54),(ROUND(L55*AF55/100,0)))) ->  | N55: =IF(D55="","",IF(D55="TOTAL",SUM($N$15:N54),(ROUND(L55*AG55/100,0)))) ->  | O55: 0 | T55: 0 | U55: =IF(D55="","",IF(D55="TOTAL",SUM($U$15:U54),IF($Z$5="REGULAR",BA55,AJ55+BF55))) ->  | V55: =IF(D55="","",IF(D55="TOTAL",SUM($V$15:V54),(ROUND(T55*AN55,0)))) ->  | W55: =IF(D55="","",IF(E55="mar",$Z$2,IF(D55="TOTAL",SUM($W$15:W54),W54))) ->  | X55: =IF(D55="","",IF(D55="TOTAL",SUM($X$15:X54),(SUM(AH56:AI56)))) ->  | Y55: 0 | Z55: 0 | AQ55: 2020-07-01 | AR55: Jul-2020 | AS55: 17 | AT55: 8 | AV55: 10% | AY55: 0 | AZ55: 0 | BA55: 0 | BF55: 0
G56: =IF(D56="","",IF(F56="YES",MROUND(ROUND(1.03*G55,0),100),IF(D56="TOTAL",SUM($G$15:G55),G55))) ->  | H56: =IF(D56="","",IF(D56="TOTAL",SUM($H$15:H55),(ROUND(G56*AK56/100,0)))) ->  | I56: =IF(D56="","",IF(D56="TOTAL",SUM($I$15:I55),(ROUND(G56*AL56/100,0)))) ->  | J56: 0 | L56: =IF(D56="","",IF(D56="TOTAL",SUM($L$15:L55),$P$4)) ->  | M56: =IF(D56="","",IF(D56="TOTAL",SUM($M$15:M55),(ROUND(L56*AF56/100,0)))) ->  | N56: =IF(D56="","",IF(D56="TOTAL",SUM($N$15:N55),(ROUND(L56*AG56/100,0)))) ->  | O56: 0 | T56: 0 | U56: =IF(D56="","",IF(D56="TOTAL",SUM($U$15:U55),IF($Z$5="REGULAR",BA56,AJ56+BF56))) ->  | V56: =IF(D56="","",IF(D56="TOTAL",SUM($V$15:V55),(ROUND(T56*AN56,0)))) ->  | W56: =IF(D56="","",IF(E56="mar",$Z$2,IF(D56="TOTAL",SUM($W$15:W55),W55))) ->  | X56: =IF(D56="","",IF(D56="TOTAL",SUM($X$15:X55),(SUM(AH57:AI57)))) ->  | Y56: 0 | Z56: 0 | AQ56: 2020-08-01 | AR56: Aug-2020 | AS56: 17 | AT56: 8 | AV56: 10% | AY56: 0 | AZ56: 0 | BA56: 0 | BF56: 0
G57: =IF(D57="","",IF(F57="YES",MROUND(ROUND(1.03*G56,0),100),IF(D57="TOTAL",SUM($G$15:G56),G56))) ->  | H57: =IF(D57="","",IF(D57="TOTAL",SUM($H$15:H56),(ROUND(G57*AK57/100,0)))) ->  | I57: =IF(D57="","",IF(D57="TOTAL",SUM($I$15:I56),(ROUND(G57*AL57/100,0)))) ->  | J57: 0 | L57: =IF(D57="","",IF(D57="TOTAL",SUM($L$15:L56),$P$4)) ->  | M57: =IF(D57="","",IF(D57="TOTAL",SUM($M$15:M56),(ROUND(L57*AF57/100,0)))) ->  | N57: =IF(D57="","",IF(D57="TOTAL",SUM($N$15:N56),(ROUND(L57*AG57/100,0)))) ->  | O57: 0 | T57: 0 | U57: =IF(D57="","",IF(D57="TOTAL",SUM($U$15:U56),IF($Z$5="REGULAR",BA57,AJ57+BF57))) ->  | V57: =IF(D57="","",IF(D57="TOTAL",SUM($V$15:V56),(ROUND(T57*AN57,0)))) ->  | W57: =IF(D57="","",IF(E57="mar",$Z$2,IF(D57="TOTAL",SUM($W$15:W56),W56))) ->  | X57: =IF(D57="","",IF(D57="TOTAL",SUM($X$15:X56),(SUM(AH58:AI58)))) ->  | Y57: 0 | Z57: 0 | AQ57: 2020-09-01 | AR57: Sep-2020 | AS57: 17 | AT57: 8 | AV57: 10% | AX57: 1 | AY57: 0 | AZ57: 0 | BA57: 0 | BF57: 0
G58: =IF(D58="","",IF(F58="YES",MROUND(ROUND(1.03*G57,0),100),IF(D58="TOTAL",SUM($G$15:G57),G57))) ->  | H58: =IF(D58="","",IF(D58="TOTAL",SUM($H$15:H57),(ROUND(G58*AK58/100,0)))) ->  | I58: =IF(D58="","",IF(D58="TOTAL",SUM($I$15:I57),(ROUND(G58*AL58/100,0)))) ->  | J58: 0 | L58: =IF(D58="","",IF(D58="TOTAL",SUM($L$15:L57),$P$4)) ->  | M58: =IF(D58="","",IF(D58="TOTAL",SUM($M$15:M57),(ROUND(L58*AF58/100,0)))) ->  | N58: =IF(D58="","",IF(D58="TOTAL",SUM($N$15:N57),(ROUND(L58*AG58/100,0)))) ->  | O58: 0 | T58: 0 | U58: =IF(D58="","",IF(D58="TOTAL",SUM($U$15:U57),IF($Z$5="REGULAR",BA58,AJ58+BF58))) ->  | V58: =IF(D58="","",IF(D58="TOTAL",SUM($V$15:V57),(ROUND(T58*AN58,0)))) ->  | W58: =IF(D58="","",IF(E58="mar",$Z$2,IF(D58="TOTAL",SUM($W$15:W57),W57))) ->  | X58: =IF(D58="","",IF(D58="TOTAL",SUM($X$15:X57),(SUM(AH59:AI59)))) ->  | Y58: 0 | Z58: 0 | AQ58: 2020-10-01 | AR58: Oct-2020 | AS58: 17 | AT58: 8 | AV58: 10% | AX58: 1 | AY58: 0 | AZ58: 0 | BA58: 0 | BF58: 0
G59: =IF(D59="","",IF(F59="YES",MROUND(ROUND(1.03*G58,0),100),IF(D59="TOTAL",SUM($G$15:G58),G58))) ->  | H59: =IF(D59="","",IF(D59="TOTAL",SUM($H$15:H58),(ROUND(G59*AK59/100,0)))) ->  | I59: =IF(D59="","",IF(D59="TOTAL",SUM($I$15:I58),(ROUND(G59*AL59/100,0)))) ->  | J59: 0 | L59: =IF(D59="","",IF(D59="TOTAL",SUM($L$15:L58),$P$4)) ->  | M59: =IF(D59="","",IF(D59="TOTAL",SUM($M$15:M58),(ROUND(L59*AF59/100,0)))) ->  | N59: =IF(D59="","",IF(D59="TOTAL",SUM($N$15:N58),(ROUND(L59*AG59/100,0)))) ->  | O59: 0 | T59: 0 | U59: =IF(D59="","",IF(D59="TOTAL",SUM($U$15:U58),IF($Z$5="REGULAR",BA59,AJ59+BF59))) ->  | V59: =IF(D59="","",IF(D59="TOTAL",SUM($V$15:V58),(ROUND(T59*AN59,0)))) ->  | W59: =IF(D59="","",IF(E59="mar",$Z$2,IF(D59="TOTAL",SUM($W$15:W58),W58))) ->  | X59: =IF(D59="","",IF(D59="TOTAL",SUM($X$15:X58),(SUM(AH60:AI60)))) ->  | Y59: 0 | Z59: 0 | AQ59: 2020-11-01 | AR59: Nov-2020 | AS59: 17 | AT59: 8 | AV59: 10% | AY59: 0 | AZ59: 0 | BA59: 0 | BF59: 0
G60: =IF(D60="","",IF(F60="YES",MROUND(ROUND(1.03*G59,0),100),IF(D60="TOTAL",SUM($G$15:G59),G59))) ->  | H60: =IF(D60="","",IF(D60="TOTAL",SUM($H$15:H59),(ROUND(G60*AK60/100,0)))) ->  | I60: =IF(D60="","",IF(D60="TOTAL",SUM($I$15:I59),(ROUND(G60*AL60/100,0)))) ->  | J60: 0 | L60: =IF(D60="","",IF(D60="TOTAL",SUM($L$15:L59),$P$4)) ->  | M60: =IF(D60="","",IF(D60="TOTAL",SUM($M$15:M59),(ROUND(L60*AF60/100,0)))) ->  | N60: =IF(D60="","",IF(D60="TOTAL",SUM($N$15:N59),(ROUND(L60*AG60/100,0)))) ->  | O60: 0 | T60: 0 | U60: =IF(D60="","",IF(D60="TOTAL",SUM($U$15:U59),IF($Z$5="REGULAR",BA60,AJ60+BF60))) ->  | V60: =IF(D60="","",IF(D60="TOTAL",SUM($V$15:V59),(ROUND(T60*AN60,0)))) ->  | W60: =IF(D60="","",IF(E60="mar",$Z$2,IF(D60="TOTAL",SUM($W$15:W59),W59))) ->  | X60: =IF(D60="","",IF(D60="TOTAL",SUM($X$15:X59),(SUM(AH61:AI61)))) ->  | Y60: 0 | Z60: 0 | AQ60: 2020-12-01 | AR60: Dec-2020 | AS60: 17 | AT60: 8 | AV60: 10% | AY60: 0 | AZ60: 0 | BA60: 0 | BF60: 0
G61: =IF(D61="","",IF(F61="YES",MROUND(ROUND(1.03*G60,0),100),IF(D61="TOTAL",SUM($G$15:G60),G60))) ->  | H61: =IF(D61="","",IF(D61="TOTAL",SUM($H$15:H60),(ROUND(G61*AK61/100,0)))) ->  | I61: =IF(D61="","",IF(D61="TOTAL",SUM($I$15:I60),(ROUND(G61*AL61/100,0)))) ->  | J61: 0 | L61: =IF(D61="","",IF(D61="TOTAL",SUM($L$15:L60),$P$4)) ->  | M61: =IF(D61="","",IF(D61="TOTAL",SUM($M$15:M60),(ROUND(L61*AF61/100,0)))) ->  | N61: =IF(D61="","",IF(D61="TOTAL",SUM($N$15:N60),(ROUND(L61*AG61/100,0)))) ->  | O61: 0 | T61: 0 | U61: =IF(D61="","",IF(D61="TOTAL",SUM($U$15:U60),IF($Z$5="REGULAR",BA61,AJ61+BF61))) ->  | V61: =IF(D61="","",IF(D61="TOTAL",SUM($V$15:V60),(ROUND(T61*AN61,0)))) ->  | W61: =IF(D61="","",IF(E61="mar",$Z$2,IF(D61="TOTAL",SUM($W$15:W60),W60))) ->  | X61: =IF(D61="","",IF(D61="TOTAL",SUM($X$15:X60),(SUM(AH62:AI62)))) ->  | Y61: 0 | Z61: 0 | AQ61: 2021-01-01 | AR61: Jan-2021 | AS61: 17 | AT61: 8 | AV61: 10% | AY61: 0 | AZ61: 0 | BA61: 0 | BF61: 0
G62: =IF(D62="","",IF(F62="YES",MROUND(ROUND(1.03*G61,0),100),IF(D62="TOTAL",SUM($G$15:G61),G61))) ->  | H62: =IF(D62="","",IF(D62="TOTAL",SUM($H$15:H61),(ROUND(G62*AK62/100,0)))) ->  | I62: =IF(D62="","",IF(D62="TOTAL",SUM($I$15:I61),(ROUND(G62*AL62/100,0)))) ->  | J62: 0 | L62: =IF(D62="","",IF(D62="TOTAL",SUM($L$15:L61),$P$4)) ->  | M62: =IF(D62="","",IF(D62="TOTAL",SUM($M$15:M61),(ROUND(L62*AF62/100,0)))) ->  | N62: =IF(D62="","",IF(D62="TOTAL",SUM($N$15:N61),(ROUND(L62*AG62/100,0)))) ->  | O62: 0 | T62: 0 | U62: =IF(D62="","",IF(D62="TOTAL",SUM($U$15:U61),IF($Z$5="REGULAR",BA62,AJ62+BF62))) ->  | V62: =IF(D62="","",IF(D62="TOTAL",SUM($V$15:V61),(ROUND(T62*AN62,0)))) ->  | W62: =IF(D62="","",IF(E62="mar",$Z$2,IF(D62="TOTAL",SUM($W$15:W61),W61))) ->  | X62: =IF(D62="","",IF(D62="TOTAL",SUM($X$15:X61),(SUM(AH63:AI63)))) ->  | Y62: 0 | Z62: 0 | AQ62: 2021-02-01 | AR62: Feb-2021 | AS62: 17 | AT62: 8 | AV62: 10% | AY62: 0 | AZ62: 0 | BA62: 0 | BF62: 0
G63: =IF(D63="","",IF(F63="YES",MROUND(ROUND(1.03*G62,0),100),IF(D63="TOTAL",SUM($G$15:G62),G62))) ->  | H63: =IF(D63="","",IF(D63="TOTAL",SUM($H$15:H62),(ROUND(G63*AK63/100,0)))) ->  | I63: =IF(D63="","",IF(D63="TOTAL",SUM($I$15:I62),(ROUND(G63*AL63/100,0)))) ->  | J63: 0 | L63: =IF(D63="","",IF(D63="TOTAL",SUM($L$15:L62),$P$4)) ->  | M63: =IF(D63="","",IF(D63="TOTAL",SUM($M$15:M62),(ROUND(L63*AF63/100,0)))) ->  | N63: =IF(D63="","",IF(D63="TOTAL",SUM($N$15:N62),(ROUND(L63*AG63/100,0)))) ->  | O63: 0 | T63: 0 | U63: =IF(D63="","",IF(D63="TOTAL",SUM($U$15:U62),IF($Z$5="REGULAR",BA63,AJ63+BF63))) ->  | V63: =IF(D63="","",IF(D63="TOTAL",SUM($V$15:V62),(ROUND(T63*AN63,0)))) ->  | W63: =IF(D63="","",IF(E63="mar",$Z$2,IF(D63="TOTAL",SUM($W$15:W62),W62))) ->  | X63: =IF(D63="","",IF(D63="TOTAL",SUM($X$15:X62),(SUM(AH64:AI64)))) ->  | Y63: 0 | Z63: 0 | AQ63: 2021-03-01 | AR63: Mar-2021 | AS63: 17 | AT63: 8 | AV63: 10% | AY63: 0 | AZ63: 0 | BA63: 0 | BF63: 0
G64: =IF(D64="","",IF(F64="YES",MROUND(ROUND(1.03*G63,0),100),IF(D64="TOTAL",SUM($G$15:G63),G63))) ->  | H64: =IF(D64="","",IF(D64="TOTAL",SUM($H$15:H63),(ROUND(G64*AK64/100,0)))) ->  | I64: =IF(D64="","",IF(D64="TOTAL",SUM($I$15:I63),(ROUND(G64*AL64/100,0)))) ->  | J64: 0 | L64: =IF(D64="","",IF(D64="TOTAL",SUM($L$15:L63),$P$4)) ->  | M64: =IF(D64="","",IF(D64="TOTAL",SUM($M$15:M63),(ROUND(L64*AF64/100,0)))) ->  | N64: =IF(D64="","",IF(D64="TOTAL",SUM($N$15:N63),(ROUND(L64*AG64/100,0)))) ->  | O64: 0 | T64: 0 | U64: =IF(D64="","",IF(D64="TOTAL",SUM($U$15:U63),IF($Z$5="REGULAR",BA64,AJ64+BF64))) ->  | V64: =IF(D64="","",IF(D64="TOTAL",SUM($V$15:V63),(ROUND(T64*AN64,0)))) ->  | W64: =IF(D64="","",IF(E64="mar",$Z$2,IF(D64="TOTAL",SUM($W$15:W63),W63))) ->  | X64: =IF(D64="","",IF(D64="TOTAL",SUM($X$15:X63),(SUM(AH65:AI65)))) ->  | Y64: 0 | Z64: 0 | AQ64: 2021-04-01 | AR64: Apr-2021 | AS64: 17 | AT64: 8 | AV64: 10% | AY64: 0 | AZ64: 0 | BA64: 0 | BF64: 0
G65: =IF(D65="","",IF(F65="YES",MROUND(ROUND(1.03*G64,0),100),IF(D65="TOTAL",SUM($G$15:G64),G64))) ->  | H65: =IF(D65="","",IF(D65="TOTAL",SUM($H$15:H64),(ROUND(G65*AK65/100,0)))) ->  | I65: =IF(D65="","",IF(D65="TOTAL",SUM($I$15:I64),(ROUND(G65*AL65/100,0)))) ->  | J65: 0 | L65: =IF(D65="","",IF(D65="TOTAL",SUM($L$15:L64),$P$4)) ->  | M65: =IF(D65="","",IF(D65="TOTAL",SUM($M$15:M64),(ROUND(L65*AF65/100,0)))) ->  | N65: =IF(D65="","",IF(D65="TOTAL",SUM($N$15:N64),(ROUND(L65*AG65/100,0)))) ->  | O65: 0 | T65: 0 | U65: =IF(D65="","",IF(D65="TOTAL",SUM($U$15:U64),IF($Z$5="REGULAR",BA65,AJ65+BF65))) ->  | V65: =IF(D65="","",IF(D65="TOTAL",SUM($V$15:V64),(ROUND(T65*AN65,0)))) ->  | W65: =IF(D65="","",IF(E65="mar",$Z$2,IF(D65="TOTAL",SUM($W$15:W64),W64))) ->  | X65: =IF(D65="","",IF(D65="TOTAL",SUM($X$15:X64),(SUM(AH66:AI66)))) ->  | Y65: 0 | Z65: 0 | AQ65: 2021-05-01 | AR65: May-2021 | AS65: 17 | AT65: 8 | AV65: 10% | AY65: 0 | AZ65: 0 | BA65: 0 | BF65: 0
G66: =IF(D66="","",IF(F66="YES",MROUND(ROUND(1.03*G65,0),100),IF(D66="TOTAL",SUM($G$15:G65),G65))) ->  | H66: =IF(D66="","",IF(D66="TOTAL",SUM($H$15:H65),(ROUND(G66*AK66/100,0)))) ->  | I66: =IF(D66="","",IF(D66="TOTAL",SUM($I$15:I65),(ROUND(G66*AL66/100,0)))) ->  | J66: 0 | L66: =IF(D66="","",IF(D66="TOTAL",SUM($L$15:L65),$P$4)) ->  | M66: =IF(D66="","",IF(D66="TOTAL",SUM($M$15:M65),(ROUND(L66*AF66/100,0)))) ->  | N66: =IF(D66="","",IF(D66="TOTAL",SUM($N$15:N65),(ROUND(L66*AG66/100,0)))) ->  | O66: 0 | T66: 0 | U66: =IF(D66="","",IF(D66="TOTAL",SUM($U$15:U65),IF($Z$5="REGULAR",BA66,AJ66+BF66))) ->  | V66: =IF(D66="","",IF(D66="TOTAL",SUM($V$15:V65),(ROUND(T66*AN66,0)))) ->  | W66: =IF(D66="","",IF(E66="mar",$Z$2,IF(D66="TOTAL",SUM($W$15:W65),W65))) ->  | X66: =IF(D66="","",IF(D66="TOTAL",SUM($X$15:X65),(SUM(AH67:AI67)))) ->  | Y66: 0 | Z66: 0 | AQ66: 2021-06-01 | AR66: Jun-2021 | AS66: 17 | AT66: 8 | AV66: 10% | AY66: 0 | AZ66: 0 | BA66: 0 | BF66: 0
G67: =IF(D67="","",IF(F67="YES",MROUND(ROUND(1.03*G66,0),100),IF(D67="TOTAL",SUM($G$15:G66),G66))) ->  | H67: =IF(D67="","",IF(D67="TOTAL",SUM($H$15:H66),(ROUND(G67*AK67/100,0)))) ->  | I67: =IF(D67="","",IF(D67="TOTAL",SUM($I$15:I66),(ROUND(G67*AL67/100,0)))) ->  | J67: 0 | L67: =IF(D67="","",IF(D67="TOTAL",SUM($L$15:L66),$P$4)) ->  | M67: =IF(D67="","",IF(D67="TOTAL",SUM($M$15:M66),(ROUND(L67*AF67/100,0)))) ->  | N67: =IF(D67="","",IF(D67="TOTAL",SUM($N$15:N66),(ROUND(L67*AG67/100,0)))) ->  | O67: 0 | T67: 0 | U67: =IF(D67="","",IF(D67="TOTAL",SUM($U$15:U66),IF($Z$5="REGULAR",BA67,AJ67+BF67))) ->  | V67: =IF(D67="","",IF(D67="TOTAL",SUM($V$15:V66),(ROUND(T67*AN67,0)))) ->  | W67: =IF(D67="","",IF(E67="mar",$Z$2,IF(D67="TOTAL",SUM($W$15:W66),W66))) ->  | X67: =IF(D67="","",IF(D67="TOTAL",SUM($X$15:X66),(SUM(AH68:AI68)))) ->  | Y67: 0 | Z67: 0 | AQ67: 2021-07-01 | AR67: Jul-2021 | AS67: 31 | AT67: =W5 -> 9 | AV67: 10% | AY67: 0 | AZ67: =IF($Z$5="REGULAR",$W$5,0) -> 0 | BA67: 0 | BF67: 0
G68: =IF(D68="","",IF(F68="YES",MROUND(ROUND(1.03*G67,0),100),IF(D68="TOTAL",SUM($G$15:G67),G67))) ->  | H68: =IF(D68="","",IF(D68="TOTAL",SUM($H$15:H67),(ROUND(G68*AK68/100,0)))) ->  | I68: =IF(D68="","",IF(D68="TOTAL",SUM($I$15:I67),(ROUND(G68*AL68/100,0)))) ->  | J68: 0 | L68: =IF(D68="","",IF(D68="TOTAL",SUM($L$15:L67),$P$4)) ->  | M68: =IF(D68="","",IF(D68="TOTAL",SUM($M$15:M67),(ROUND(L68*AF68/100,0)))) ->  | N68: =IF(D68="","",IF(D68="TOTAL",SUM($N$15:N67),(ROUND(L68*AG68/100,0)))) ->  | O68: 0 | T68: 0 | U68: =IF(D68="","",IF(D68="TOTAL",SUM($U$15:U67),IF($Z$5="REGULAR",BA68,AJ68+BF68))) ->  | V68: =IF(D68="","",IF(D68="TOTAL",SUM($V$15:V67),(ROUND(T68*AN68,0)))) ->  | W68: =IF(D68="","",IF(E68="mar",$Z$2,IF(D68="TOTAL",SUM($W$15:W67),W67))) ->  | X68: =IF(D68="","",IF(D68="TOTAL",SUM($X$15:X67),(SUM(AH69:AI69)))) ->  | Y68: 0 | Z68: 0 | AQ68: 2021-08-01 | AR68: Aug-2021 | AS68: 31 | AT68: =AT67 -> 9 | AV68: 10% | AY68: 0 | AZ68: =IF($Z$5="REGULAR",$W$5,0) -> 0 | BA68: 0 | BF68: 0
G69: =IF(D69="","",IF(F69="YES",MROUND(ROUND(1.03*G68,0),100),IF(D69="TOTAL",SUM($G$15:G68),G68))) ->  | H69: =IF(D69="","",IF(D69="TOTAL",SUM($H$15:H68),(ROUND(G69*AK69/100,0)))) ->  | I69: =IF(D69="","",IF(D69="TOTAL",SUM($I$15:I68),(ROUND(G69*AL69/100,0)))) ->  | J69: 0 | L69: =IF(D69="","",IF(D69="TOTAL",SUM($L$15:L68),$P$4)) ->  | M69: =IF(D69="","",IF(D69="TOTAL",SUM($M$15:M68),(ROUND(L69*AF69/100,0)))) ->  | N69: =IF(D69="","",IF(D69="TOTAL",SUM($N$15:N68),(ROUND(L69*AG69/100,0)))) ->  | O69: 0 | T69: 0 | U69: =IF(D69="","",IF(D69="TOTAL",SUM($U$15:U68),IF($Z$5="REGULAR",BA69,AJ69+BF69))) ->  | V69: =IF(D69="","",IF(D69="TOTAL",SUM($V$15:V68),(ROUND(T69*AN69,0)))) ->  | W69: =IF(D69="","",IF(E69="mar",$Z$2,IF(D69="TOTAL",SUM($W$15:W68),W68))) ->  | X69: =IF(D69="","",IF(D69="TOTAL",SUM($X$15:X68),(SUM(AH70:AI70)))) ->  | Y69: 0 | Z69: 0 | AQ69: 2021-09-01 | AR69: Sep-2021 | AS69: 31 | AT69: =AT68 -> 9 | AV69: 10% | AY69: 0 | AZ69: 0 | BA69: 0 | BF69: 0
G70: =IF(D70="","",IF(F70="YES",MROUND(ROUND(1.03*G69,0),100),IF(D70="TOTAL",SUM($G$15:G69),G69))) ->  | H70: =IF(D70="","",IF(D70="TOTAL",SUM($H$15:H69),(ROUND(G70*AK70/100,0)))) ->  | I70: =IF(D70="","",IF(D70="TOTAL",SUM($I$15:I69),(ROUND(G70*AL70/100,0)))) ->  | J70: 0 | L70: =IF(D70="","",IF(D70="TOTAL",SUM($L$15:L69),$P$4)) ->  | M70: =IF(D70="","",IF(D70="TOTAL",SUM($M$15:M69),(ROUND(L70*AF70/100,0)))) ->  | N70: =IF(D70="","",IF(D70="TOTAL",SUM($N$15:N69),(ROUND(L70*AG70/100,0)))) ->  | O70: 0 | T70: 0 | U70: =IF(D70="","",IF(D70="TOTAL",SUM($U$15:U69),IF($Z$5="REGULAR",BA70,AJ70+BF70))) ->  | V70: =IF(D70="","",IF(D70="TOTAL",SUM($V$15:V69),(ROUND(T70*AN70,0)))) ->  | W70: =IF(D70="","",IF(E70="mar",$Z$2,IF(D70="TOTAL",SUM($W$15:W69),W69))) ->  | X70: =IF(D70="","",IF(D70="TOTAL",SUM($X$15:X69),(SUM(AH71:AI71)))) ->  | Y70: 0 | Z70: 0 | AQ70: 2021-10-01 | AR70: Oct-2021 | AS70: 31 | AT70: 9 | AV70: 10% | AY70: 0 | AZ70: 0 | BA70: 0 | BF70: 0
G71: =IF(D71="","",IF(F71="YES",MROUND(ROUND(1.03*G70,0),100),IF(D71="TOTAL",SUM($G$15:G70),G70))) ->  | H71: =IF(D71="","",IF(D71="TOTAL",SUM($H$15:H70),(ROUND(G71*AK71/100,0)))) ->  | I71: =IF(D71="","",IF(D71="TOTAL",SUM($I$15:I70),(ROUND(G71*AL71/100,0)))) ->  | J71: 0 | L71: =IF(D71="","",IF(D71="TOTAL",SUM($L$15:L70),$P$4)) ->  | M71: =IF(D71="","",IF(D71="TOTAL",SUM($M$15:M70),(ROUND(L71*AF71/100,0)))) ->  | N71: =IF(D71="","",IF(D71="TOTAL",SUM($N$15:N70),(ROUND(L71*AG71/100,0)))) ->  | O71: 0 | T71: 0 | U71: =IF(D71="","",IF(D71="TOTAL",SUM($U$15:U70),IF($Z$5="REGULAR",BA71,AJ71+BF71))) ->  | V71: =IF(D71="","",IF(D71="TOTAL",SUM($V$15:V70),(ROUND(T71*AN71,0)))) ->  | W71: =IF(D71="","",IF(E71="mar",$Z$2,IF(D71="TOTAL",SUM($W$15:W70),W70))) ->  | X71: =IF(D71="","",IF(D71="TOTAL",SUM($X$15:X70),(SUM(AH72:AI72)))) ->  | Y71: 0 | Z71: 0 | AQ71: 2021-11-01 | AR71: Nov-2021 | AS71: 31 | AT71: 9 | AV71: 10% | AY71: 0 | AZ71: 0 | BA71: 0 | BF71: 0
G72: =IF(D72="","",IF(F72="YES",MROUND(ROUND(1.03*G71,0),100),IF(D72="TOTAL",SUM($G$15:G71),G71))) ->  | H72: =IF(D72="","",IF(D72="TOTAL",SUM($H$15:H71),(ROUND(G72*AK72/100,0)))) ->  | I72: =IF(D72="","",IF(D72="TOTAL",SUM($I$15:I71),(ROUND(G72*AL72/100,0)))) ->  | J72: 0 | L72: =IF(D72="","",IF(D72="TOTAL",SUM($L$15:L71),$P$4)) ->  | M72: =IF(D72="","",IF(D72="TOTAL",SUM($M$15:M71),(ROUND(L72*AF72/100,0)))) ->  | N72: =IF(D72="","",IF(D72="TOTAL",SUM($N$15:N71),(ROUND(L72*AG72/100,0)))) ->  | O72: 0 | T72: 0 | U72: =IF(D72="","",IF(D72="TOTAL",SUM($U$15:U71),IF($Z$5="REGULAR",BA72,AJ72+BF72))) ->  | V72: =IF(D72="","",IF(D72="TOTAL",SUM($V$15:V71),(ROUND(T72*AN72,0)))) ->  | W72: =IF(D72="","",IF(E72="mar",$Z$2,IF(D72="TOTAL",SUM($W$15:W71),W71))) ->  | X72: =IF(D72="","",IF(D72="TOTAL",SUM($X$15:X71),(SUM(AH73:AI73)))) ->  | Y72: 0 | Z72: 0 | AQ72: 2021-12-01 | AR72: Dec-2021 | AS72: 31 | AT72: 9 | AV72: 10% | AY72: 0 | AZ72: 0 | BA72: 0 | BF72: 0
G73: =IF(D73="","",IF(F73="YES",MROUND(ROUND(1.03*G72,0),100),IF(D73="TOTAL",SUM($G$15:G72),G72))) ->  | H73: =IF(D73="","",IF(D73="TOTAL",SUM($H$15:H72),(ROUND(G73*AK73/100,0)))) ->  | I73: =IF(D73="","",IF(D73="TOTAL",SUM($I$15:I72),(ROUND(G73*AL73/100,0)))) ->  | J73: 0 | L73: =IF(D73="","",IF(D73="TOTAL",SUM($L$15:L72),$P$4)) ->  | M73: =IF(D73="","",IF(D73="TOTAL",SUM($M$15:M72),(ROUND(L73*AF73/100,0)))) ->  | N73: =IF(D73="","",IF(D73="TOTAL",SUM($N$15:N72),(ROUND(L73*AG73/100,0)))) ->  | O73: 0 | T73: 0 | U73: =IF(D73="","",IF(D73="TOTAL",SUM($U$15:U72),IF($Z$5="REGULAR",BA73,AJ73+BF73))) ->  | V73: =IF(D73="","",IF(D73="TOTAL",SUM($V$15:V72),(ROUND(T73*AN73,0)))) ->  | W73: =IF(D73="","",IF(E73="mar",$Z$2,IF(D73="TOTAL",SUM($W$15:W72),W72))) ->  | X73: =IF(D73="","",IF(D73="TOTAL",SUM($X$15:X72),(SUM(AH74:AI74)))) ->  | Y73: 0 | Z73: 0 | AQ73: 2022-01-01 | AR73: Jan-2022 | AS73: 34 | AT73: 9 | AV73: 10% | AY73: 0 | AZ73: 0 | BA73: 0 | BF73: 0
G74: =IF(D74="","",IF(F74="YES",MROUND(ROUND(1.03*G73,0),100),IF(D74="TOTAL",SUM($G$15:G73),G73))) ->  | H74: =IF(D74="","",IF(D74="TOTAL",SUM($H$15:H73),(ROUND(G74*AK74/100,0)))) ->  | I74: =IF(D74="","",IF(D74="TOTAL",SUM($I$15:I73),(ROUND(G74*AL74/100,0)))) ->  | J74: 0 | L74: =IF(D74="","",IF(D74="TOTAL",SUM($L$15:L73),$P$4)) ->  | M74: =IF(D74="","",IF(D74="TOTAL",SUM($M$15:M73),(ROUND(L74*AF74/100,0)))) ->  | N74: =IF(D74="","",IF(D74="TOTAL",SUM($N$15:N73),(ROUND(L74*AG74/100,0)))) ->  | O74: 0 | T74: 0 | U74: =IF(D74="","",IF(D74="TOTAL",SUM($U$15:U73),IF($Z$5="REGULAR",BA74,AJ74+BF74))) ->  | V74: =IF(D74="","",IF(D74="TOTAL",SUM($V$15:V73),(ROUND(T74*AN74,0)))) ->  | W74: =IF(D74="","",IF(E74="mar",$Z$2,IF(D74="TOTAL",SUM($W$15:W73),W73))) ->  | X74: =IF(D74="","",IF(D74="TOTAL",SUM($X$15:X73),(SUM(AH75:AI75)))) ->  | Y74: 0 | Z74: 0 | AQ74: 2022-02-01 | AR74: Feb-2022 | AS74: 34 | AT74: 9 | AV74: 10% | AY74: 0 | AZ74: 0 | BA74: 0 | BF74: 0
G75: =IF(D75="","",IF(F75="YES",MROUND(ROUND(1.03*G74,0),100),IF(D75="TOTAL",SUM($G$15:G74),G74))) ->  | H75: =IF(D75="","",IF(D75="TOTAL",SUM($H$15:H74),(ROUND(G75*AK75/100,0)))) ->  | I75: =IF(D75="","",IF(D75="TOTAL",SUM($I$15:I74),(ROUND(G75*AL75/100,0)))) ->  | J75: 0 | L75: =IF(D75="","",IF(D75="TOTAL",SUM($L$15:L74),$P$4)) ->  | M75: =IF(D75="","",IF(D75="TOTAL",SUM($M$15:M74),(ROUND(L75*AF75/100,0)))) ->  | N75: =IF(D75="","",IF(D75="TOTAL",SUM($N$15:N74),(ROUND(L75*AG75/100,0)))) ->  | O75: 0 | T75: 0 | U75: =IF(D75="","",IF(D75="TOTAL",SUM($U$15:U74),IF($Z$5="REGULAR",BA75,AJ75+BF75))) ->  | V75: =IF(D75="","",IF(D75="TOTAL",SUM($V$15:V74),(ROUND(T75*AN75,0)))) ->  | W75: =IF(D75="","",IF(E75="mar",$Z$2,IF(D75="TOTAL",SUM($W$15:W74),W74))) ->  | X75: =IF(D75="","",IF(D75="TOTAL",SUM($X$15:X74),(SUM(AH76:AI76)))) ->  | Y75: 0 | Z75: 0 | AQ75: 2022-03-01 | AR75: Mar-2022 | AS75: 34 | AT75: 9 | AV75: 10% | AY75: 0 | AZ75: 0 | BA75: 0 | BF75: 0
G76: =IF(D76="","",IF(F76="YES",MROUND(ROUND(1.03*G75,0),100),IF(D76="TOTAL",SUM($G$15:G75),G75))) ->  | H76: =IF(D76="","",IF(D76="TOTAL",SUM($H$15:H75),(ROUND(G76*AK76/100,0)))) ->  | I76: =IF(D76="","",IF(D76="TOTAL",SUM($I$15:I75),(ROUND(G76*AL76/100,0)))) ->  | J76: 0 | L76: =IF(D76="","",IF(D76="TOTAL",SUM($L$15:L75),$P$4)) ->  | M76: =IF(D76="","",IF(D76="TOTAL",SUM($M$15:M75),(ROUND(L76*AF76/100,0)))) ->  | N76: =IF(D76="","",IF(D76="TOTAL",SUM($N$15:N75),(ROUND(L76*AG76/100,0)))) ->  | O76: 0 | T76: 0 | U76: =IF(D76="","",IF(D76="TOTAL",SUM($U$15:U75),IF($Z$5="REGULAR",BA76,AJ76+BF76))) ->  | V76: =IF(D76="","",IF(D76="TOTAL",SUM($V$15:V75),(ROUND(T76*AN76,0)))) ->  | W76: =IF(D76="","",IF(E76="mar",$Z$2,IF(D76="TOTAL",SUM($W$15:W75),W75))) ->  | X76: =IF(D76="","",IF(D76="TOTAL",SUM($X$15:X75),(SUM(AH77:AI77)))) ->  | Y76: 0 | Z76: 0 | AQ76: 2022-04-01 | AR76: Apr-2022 | AS76: 34 | AT76: 9 | AV76: 10% | AY76: 0 | AZ76: 0 | BA76: 0 | BD76: =IFERROR(VLOOKUP($AE$2,$BB$12:$BC$36,2,0),"") -> 1000 | BF76: 0
G77: =IF(D77="","",IF(F77="YES",MROUND(ROUND(1.03*G76,0),100),IF(D77="TOTAL",SUM($G$15:G76),G76))) ->  | H77: =IF(D77="","",IF(D77="TOTAL",SUM($H$15:H76),(ROUND(G77*AK77/100,0)))) ->  | I77: =IF(D77="","",IF(D77="TOTAL",SUM($I$15:I76),(ROUND(G77*AL77/100,0)))) ->  | J77: 0 | L77: =IF(D77="","",IF(D77="TOTAL",SUM($L$15:L76),$P$4)) ->  | M77: =IF(D77="","",IF(D77="TOTAL",SUM($M$15:M76),(ROUND(L77*AF77/100,0)))) ->  | N77: =IF(D77="","",IF(D77="TOTAL",SUM($N$15:N76),(ROUND(L77*AG77/100,0)))) ->  | O77: 0 | T77: 0 | U77: =IF(D77="","",IF(D77="TOTAL",SUM($U$15:U76),IF($Z$5="REGULAR",BA77,AJ77+BF77))) ->  | V77: =IF(D77="","",IF(D77="TOTAL",SUM($V$15:V76),(ROUND(T77*AN77,0)))) ->  | W77: =IF(D77="","",IF(E77="mar",$Z$2,IF(D77="TOTAL",SUM($W$15:W76),W76))) ->  | X77: =IF(D77="","",IF(D77="TOTAL",SUM($X$15:X76),(SUM(AH78:AI78)))) ->  | Y77: 0 | Z77: 0 | AQ77: 2022-05-01 | AR77: May-2022 | AS77: 34 | AT77: 9 | AV77: 10% | AY77: 0 | AZ77: 0 | BA77: 0 | BD77: 1000 | BF77: 0
G78: =IF(D78="","",IF(F78="YES",MROUND(ROUND(1.03*G77,0),100),IF(D78="TOTAL",SUM($G$15:G77),G77))) ->  | H78: =IF(D78="","",IF(D78="TOTAL",SUM($H$15:H77),(ROUND(G78*AK78/100,0)))) ->  | I78: =IF(D78="","",IF(D78="TOTAL",SUM($I$15:I77),(ROUND(G78*AL78/100,0)))) ->  | J78: 0 | L78: =IF(D78="","",IF(D78="TOTAL",SUM($L$15:L77),$P$4)) ->  | M78: =IF(D78="","",IF(D78="TOTAL",SUM($M$15:M77),(ROUND(L78*AF78/100,0)))) ->  | N78: =IF(D78="","",IF(D78="TOTAL",SUM($N$15:N77),(ROUND(L78*AG78/100,0)))) ->  | O78: 0 | T78: 0 | U78: =IF(D78="","",IF(D78="TOTAL",SUM($U$15:U77),IF($Z$5="REGULAR",BA78,AJ78+BF78))) ->  | V78: =IF(D78="","",IF(D78="TOTAL",SUM($V$15:V77),(ROUND(T78*AN78,0)))) ->  | W78: =IF(D78="","",IF(E78="mar",$Z$2,IF(D78="TOTAL",SUM($W$15:W77),W77))) ->  | X78: =IF(D78="","",IF(D78="TOTAL",SUM($X$15:X77),(SUM(AH79:AI79)))) ->  | Y78: 0 | Z78: 0 | AQ78: 2022-06-01 | AR78: =TEXT(AQ78,"mmm-yyyy") -> Jun-2022 | AS78: 34 | AT78: 9 | AV78: 10% | AY78: =IF($Z$5="REGULAR",AS78,0) -> 0 | AZ78: 0 | BA78: 0 | BD78: =IFERROR(VLOOKUP($AE$2,$BB$12:$BC$36,2,0),"") -> 1000 | BF78: 0
G79: =IF(D79="","",IF(F79="YES",MROUND(ROUND(1.03*G78,0),100),IF(D79="TOTAL",SUM($G$15:G78),G78))) ->  | H79: =IF(D79="","",IF(D79="TOTAL",SUM($H$15:H78),(ROUND(G79*AK79/100,0)))) ->  | I79: =IF(D79="","",IF(D79="TOTAL",SUM($I$15:I78),(ROUND(G79*AL79/100,0)))) ->  | J79: 0 | L79: =IF(D79="","",IF(D79="TOTAL",SUM($L$15:L78),$P$4)) ->  | M79: =IF(D79="","",IF(D79="TOTAL",SUM($M$15:M78),(ROUND(L79*AF79/100,0)))) ->  | N79: =IF(D79="","",IF(D79="TOTAL",SUM($N$15:N78),(ROUND(L79*AG79/100,0)))) ->  | O79: 0 | P79: =IFERROR(MIN(G79-L79),"") ->  | T79: 0 | U79: =IF(D79="","",IF(D79="TOTAL",SUM($U$15:U78),IF($Z$5="REGULAR",BA79,AJ79+BF79))) ->  | V79: =IF(D79="","",IF(D79="TOTAL",SUM($V$15:V78),(ROUND(T79*AN79,0)))) ->  | W79: =IF(D79="","",IF(E79="mar",$Z$2,IF(D79="TOTAL",SUM($W$15:W78),W78))) ->  | X79: =IF(D79="","",IF(D79="TOTAL",SUM($X$15:X78),(SUM(AH80:AI80)))) ->  | Y79: 0 | Z79: 0 | AF79: =IFERROR(VLOOKUP(D79,$AR$13:$BF$209,8,0),"") ->  | AG79: =IFERROR(VLOOKUP(D79,$AR$13:$BF$209,9,0),"") ->  | AH79: =IFERROR(ROUND(P79/31*AO79,0),"") ->  | AI79: =IFERROR(ROUND(T79/31*AP79,0),"") ->  | AL79: =IFERROR(VLOOKUP(D79,$AR$13:$AAU$209,3,0),"") ->  | AM79: =IFERROR(VLOOKUP(D79,$AR$13:$AAV$209,4,0),"") ->  | AN79: =IFERROR(VLOOKUP(D79,$AR$13:$AAV$209,5,0),"") ->  | AO79: =IFERROR(VLOOKUP(D79,$AR$13:$AAV$109,6,0),"") ->  | AP79: =IFERROR(VLOOKUP(D79,$AR$13:$AAV$109,7,0),"") ->  | AQ79: 2022-07-01 | AR79: Jul-2022 | AS79: 38 | AT79: 9 | AU79: 3 | AV79: =AV78 -> 10% | AY79: 0 | AZ79: 0 | BA79: =IFERROR(ROUND(P79*AM79/100,0)+S79,0) -> 0 | BD79: 1000 | BF79: 0
E80: =TEXT(D80,"mmm") ->  | G80: =IF(D80="","",IF(F80="YES",MROUND(ROUND(1.03*G79,0),100),IF(D80="TOTAL",SUM($G$15:G79),G79))) ->  | H80: =IF(D80="","",IF(D80="TOTAL",SUM($H$15:H79),(ROUND(G80*AK80/100,0)))) ->  | I80: =IF(D80="","",IF(D80="TOTAL",SUM($I$15:I79),(ROUND(G80*AL80/100,0)))) ->  | J80: =SUM(G80:I80) -> 0 | L80: =IF(D80="","",IF(D80="TOTAL",SUM($L$15:L79),$P$4)) ->  | M80: =IF(D80="","",IF(D80="TOTAL",SUM($M$15:M79),(ROUND(L80*AF80/100,0)))) ->  | N80: =IF(D80="","",IF(D80="TOTAL",SUM($N$15:N79),(ROUND(L80*AG80/100,0)))) ->  | O80: =IFERROR(SUM(L80:N80),"") -> 0 | T80: =IFERROR(SUM(P80:S80),"") -> 0 | U80: =IF(D80="","",IF(D80="TOTAL",SUM($U$15:U79),IF($Z$5="REGULAR",BA80,AJ80+BF80))) ->  | V80: =IF(D80="","",IF(D80="TOTAL",SUM($V$15:V79),(ROUND(T80*AN80,0)))) ->  | W80: =IF(D80="","",IF(E80="mar",$Z$2,IF(D80="TOTAL",SUM($W$15:W79),W79))) ->  | X80: =IF(D80="","",IF(D80="TOTAL",SUM($X$15:X79),(SUM(AH81:AI81)))) ->  | Y80: =IFERROR(SUM(U80:X80),"") -> 0 | Z80: =T80-Y80 -> 0 | AJ80: =IFERROR(VLOOKUP(D80,$AR$13:$BD$209,13,0),"") ->  | AK80: =IFERROR(VLOOKUP(D80,$AR$13:$AS$209,2,0),"") ->  | AQ80: 2022-08-01 | AR80: Aug-2022 | AS80: 38 | AT80: 9 | AU80: 3 | AV80: 10% | AY80: 0 | AZ80: 0 | BA80: 0 | BD80: 1000 | BF80: =IFERROR(ROUND(G80*AM80/100,0),0) -> 0
C81: =IFERROR(IF(AC81="","",IF(DATE(YEAR(AC81),MONTH(AC81),DAY(AC81))=DATE(YEAR($O$7),MONTH($O$7)+1,DAY($O$7)),"TOTAL",IF(AC81>$O$7,"",AC81))),"") ->  | D81: =TEXT(C81,"mmm-yyyy") ->  | F81: =IF(D82="","",IF($X$2=E81,"YES","NO")) ->  | G81: =IF(D81="","",IF(F81="YES",MROUND(ROUND(1.03*G80,0),100),IF(D81="TOTAL",SUM($G$15:G80),G80))) ->  | H81: =IF(D81="","",IF(D81="TOTAL",SUM($H$15:H80),(ROUND(G81*AK81/100,0)))) ->  | I81: =IF(D81="","",IF(D81="TOTAL",SUM($I$15:I80),(ROUND(G81*AL81/100,0)))) ->  | J81: 0 | L81: =IF(D81="","",IF(D81="TOTAL",SUM($L$15:L80),$P$4)) ->  | M81: =IF(D81="","",IF(D81="TOTAL",SUM($M$15:M80),(ROUND(L81*AF81/100,0)))) ->  | N81: =IF(D81="","",IF(D81="TOTAL",SUM($N$15:N80),(ROUND(L81*AG81/100,0)))) ->  | O81: 0 | T81: 0 | U81: =IF(D81="","",IF(D81="TOTAL",SUM($U$15:U80),IF($Z$5="REGULAR",BA81,AJ81+BF81))) ->  | V81: =IF(D81="","",IF(D81="TOTAL",SUM($V$15:V80),(ROUND(T81*AN81,0)))) ->  | W81: =IF(D81="","",IF(E81="mar",$Z$2,IF(D81="TOTAL",SUM($W$15:W80),W80))) ->  | X81: =IF(D81="","",IF(D81="TOTAL",SUM($X$15:X80),(SUM(AH82:AI82)))) ->  | Y81: 0 | Z81: 0 | AD81: =IFERROR(IF(AC81="","",IF(DATE(YEAR(AC81),MONTH(AC81),DAY(AC81))=DATE(YEAR($O$7),MONTH($O$7)+1,DAY($O$7)),"TOTAL",IF(AC81>$O$7,"",AC81))),"") ->  | AQ81: 2022-09-01 | AR81: Sep-2022 | AS81: 38 | AT81: 9 | AU81: 3 | AV81: 10% | AY81: 0 | AZ81: 0 | BA81: 0 | BD81: 1000 | BF81: 0
B82: =IF(B81>=$J$7,"",(B81+1)) ->  | G82: =IF(D82="","",IF(F82="YES",MROUND(ROUND(1.03*G81,0),100),IF(D82="TOTAL",SUM($G$15:G81),G81))) ->  | H82: =IF(D82="","",IF(D82="TOTAL",SUM($H$15:H81),(ROUND(G82*AK82/100,0)))) ->  | I82: =IF(D82="","",IF(D82="TOTAL",SUM($I$15:I81),(ROUND(G82*AL82/100,0)))) ->  | J82: 0 | L82: =IF(D82="","",IF(D82="TOTAL",SUM($L$15:L81),$P$4)) ->  | M82: =IF(D82="","",IF(D82="TOTAL",SUM($M$15:M81),(ROUND(L82*AF82/100,0)))) ->  | N82: =IF(D82="","",IF(D82="TOTAL",SUM($N$15:N81),(ROUND(L82*AG82/100,0)))) ->  | O82: 0 | T82: 0 | U82: =IF(D82="","",IF(D82="TOTAL",SUM($U$15:U81),IF($Z$5="REGULAR",BA82,AJ82+BF82))) ->  | V82: =IF(D82="","",IF(D82="TOTAL",SUM($V$15:V81),(ROUND(T82*AN82,0)))) ->  | W82: =IF(D82="","",IF(E82="mar",$Z$2,IF(D82="TOTAL",SUM($W$15:W81),W81))) ->  | X82: =IF(D82="","",IF(D82="TOTAL",SUM($X$15:X81),(SUM(AH83:AI83)))) ->  | Y82: 0 | Z82: 0 | AC82: =IFERROR(DATE(YEAR(C81),MONTH(C81)+1,DAY(C81)),"") ->  | AQ82: 2022-10-01 | AR82: Oct-2022 | AS82: 38 | AT82: 9 | AV82: 10% | AY82: 0 | AZ82: 0 | BA82: 0 | BD82: 1000 | BF82: 0
G83: =IF(D83="","",IF(F83="YES",MROUND(ROUND(1.03*G82,0),100),IF(D83="TOTAL",SUM($G$15:G82),G82))) ->  | H83: =IF(D83="","",IF(D83="TOTAL",SUM($H$15:H82),(ROUND(G83*AK83/100,0)))) ->  | I83: =IF(D83="","",IF(D83="TOTAL",SUM($I$15:I82),(ROUND(G83*AL83/100,0)))) ->  | J83: 0 | L83: =IF(D83="","",IF(D83="TOTAL",SUM($L$15:L82),$P$4)) ->  | M83: =IF(D83="","",IF(D83="TOTAL",SUM($M$15:M82),(ROUND(L83*AF83/100,0)))) ->  | N83: =IF(D83="","",IF(D83="TOTAL",SUM($N$15:N82),(ROUND(L83*AG83/100,0)))) ->  | O83: 0 | T83: 0 | U83: =IF(D83="","",IF(D83="TOTAL",SUM($U$15:U82),IF($Z$5="REGULAR",BA83,AJ83+BF83))) ->  | V83: =IF(D83="","",IF(D83="TOTAL",SUM($V$15:V82),(ROUND(T83*AN83,0)))) ->  | W83: =IF(D83="","",IF(E83="mar",$Z$2,IF(D83="TOTAL",SUM($W$15:W82),W82))) ->  | X83: =IF(D83="","",IF(D83="TOTAL",SUM($X$15:X82),(SUM(AH84:AI84)))) ->  | Y83: 0 | Z83: 0 | AQ83: 2022-11-01 | AR83: Nov-2022 | AS83: 38 | AT83: 9 | AV83: 10% | AY83: 0 | AZ83: 0 | BA83: 0 | BD83: 1000 | BF83: 0
G84: =IF(D84="","",IF(F84="YES",MROUND(ROUND(1.03*G83,0),100),IF(D84="TOTAL",SUM($G$15:G83),G83))) ->  | H84: =IF(D84="","",IF(D84="TOTAL",SUM($H$15:H83),(ROUND(G84*AK84/100,0)))) ->  | I84: =IF(D84="","",IF(D84="TOTAL",SUM($I$15:I83),(ROUND(G84*AL84/100,0)))) ->  | J84: 0 | L84: =IF(D84="","",IF(D84="TOTAL",SUM($L$15:L83),$P$4)) ->  | M84: =IF(D84="","",IF(D84="TOTAL",SUM($M$15:M83),(ROUND(L84*AF84/100,0)))) ->  | N84: =IF(D84="","",IF(D84="TOTAL",SUM($N$15:N83),(ROUND(L84*AG84/100,0)))) ->  | O84: 0 | T84: 0 | U84: =IF(D84="","",IF(D84="TOTAL",SUM($U$15:U83),IF($Z$5="REGULAR",BA84,AJ84+BF84))) ->  | V84: =IF(D84="","",IF(D84="TOTAL",SUM($V$15:V83),(ROUND(T84*AN84,0)))) ->  | W84: =IF(D84="","",IF(E84="mar",$Z$2,IF(D84="TOTAL",SUM($W$15:W83),W83))) ->  | X84: =IF(D84="","",IF(D84="TOTAL",SUM($X$15:X83),(SUM(AH85:AI85)))) ->  | Y84: 0 | Z84: 0 | AQ84: 2022-12-01 | AR84: Dec-2022 | AS84: 38 | AT84: 9 | AV84: 10% | AY84: 0 | AZ84: 0 | BA84: 0 | BD84: 1000 | BF84: 0
G85: =IF(D85="","",IF(F85="YES",MROUND(ROUND(1.03*G84,0),100),IF(D85="TOTAL",SUM($G$15:G84),G84))) ->  | H85: =IF(D85="","",IF(D85="TOTAL",SUM($H$15:H84),(ROUND(G85*AK85/100,0)))) ->  | I85: =IF(D85="","",IF(D85="TOTAL",SUM($I$15:I84),(ROUND(G85*AL85/100,0)))) ->  | J85: 0 | L85: =IF(D85="","",IF(D85="TOTAL",SUM($L$15:L84),$P$4)) ->  | M85: =IF(D85="","",IF(D85="TOTAL",SUM($M$15:M84),(ROUND(L85*AF85/100,0)))) ->  | N85: =IF(D85="","",IF(D85="TOTAL",SUM($N$15:N84),(ROUND(L85*AG85/100,0)))) ->  | O85: 0 | T85: 0 | U85: =IF(D85="","",IF(D85="TOTAL",SUM($U$15:U84),IF($Z$5="REGULAR",BA85,AJ85+BF85))) ->  | V85: =IF(D85="","",IF(D85="TOTAL",SUM($V$15:V84),(ROUND(T85*AN85,0)))) ->  | W85: =IF(D85="","",IF(E85="mar",$Z$2,IF(D85="TOTAL",SUM($W$15:W84),W84))) ->  | X85: =IF(D85="","",IF(D85="TOTAL",SUM($X$15:X84),(SUM(AH86:AI86)))) ->  | Y85: 0 | Z85: 0 | AQ85: 2023-01-01 | AR85: Jan-2023 | AS85: 42 | AT85: 9 | AU85: 4 | AV85: 10% | AY85: 0 | AZ85: 0 | BA85: 0 | BD85: 1000 | BF85: 0
G86: =IF(D86="","",IF(F86="YES",MROUND(ROUND(1.03*G85,0),100),IF(D86="TOTAL",SUM($G$15:G85),G85))) ->  | H86: =IF(D86="","",IF(D86="TOTAL",SUM($H$15:H85),(ROUND(G86*AK86/100,0)))) ->  | I86: =IF(D86="","",IF(D86="TOTAL",SUM($I$15:I85),(ROUND(G86*AL86/100,0)))) ->  | J86: 0 | L86: =IF(D86="","",IF(D86="TOTAL",SUM($L$15:L85),$P$4)) ->  | M86: =IF(D86="","",IF(D86="TOTAL",SUM($M$15:M85),(ROUND(L86*AF86/100,0)))) ->  | N86: =IF(D86="","",IF(D86="TOTAL",SUM($N$15:N85),(ROUND(L86*AG86/100,0)))) ->  | O86: 0 | T86: 0 | U86: =IF(D86="","",IF(D86="TOTAL",SUM($U$15:U85),IF($Z$5="REGULAR",BA86,AJ86+BF86))) ->  | V86: =IF(D86="","",IF(D86="TOTAL",SUM($V$15:V85),(ROUND(T86*AN86,0)))) ->  | W86: =IF(D86="","",IF(E86="mar",$Z$2,IF(D86="TOTAL",SUM($W$15:W85),W85))) ->  | X86: =IF(D86="","",IF(D86="TOTAL",SUM($X$15:X85),(SUM(AH87:AI87)))) ->  | Y86: 0 | Z86: 0 | AQ86: 2023-02-01 | AR86: Feb-2023 | AS86: 42 | AT86: 9 | AU86: 4 | AV86: 10% | AY86: 0 | AZ86: 0 | BA86: 0 | BD86: 1000 | BF86: 0
G87: =IF(D87="","",IF(F87="YES",MROUND(ROUND(1.03*G86,0),100),IF(D87="TOTAL",SUM($G$15:G86),G86))) ->  | H87: =IF(D87="","",IF(D87="TOTAL",SUM($H$15:H86),(ROUND(G87*AK87/100,0)))) ->  | I87: =IF(D87="","",IF(D87="TOTAL",SUM($I$15:I86),(ROUND(G87*AL87/100,0)))) ->  | J87: 0 | L87: =IF(D87="","",IF(D87="TOTAL",SUM($L$15:L86),$P$4)) ->  | M87: =IF(D87="","",IF(D87="TOTAL",SUM($M$15:M86),(ROUND(L87*AF87/100,0)))) ->  | N87: =IF(D87="","",IF(D87="TOTAL",SUM($N$15:N86),(ROUND(L87*AG87/100,0)))) ->  | O87: 0 | T87: 0 | U87: =IF(D87="","",IF(D87="TOTAL",SUM($U$15:U86),IF($Z$5="REGULAR",BA87,AJ87+BF87))) ->  | V87: =IF(D87="","",IF(D87="TOTAL",SUM($V$15:V86),(ROUND(T87*AN87,0)))) ->  | W87: =IF(D87="","",IF(E87="mar",$Z$2,IF(D87="TOTAL",SUM($W$15:W86),W86))) ->  | X87: =IF(D87="","",IF(D87="TOTAL",SUM($X$15:X86),(SUM(AH88:AI88)))) ->  | Y87: 0 | Z87: 0 | AQ87: 2023-03-01 | AR87: Mar-2023 | AS87: 42 | AT87: 9 | AU87: 4 | AV87: 10% | AY87: 0 | AZ87: 0 | BA87: 0 | BD87: 1000 | BF87: 0
G88: =IF(D88="","",IF(F88="YES",MROUND(ROUND(1.03*G87,0),100),IF(D88="TOTAL",SUM($G$15:G87),G87))) ->  | H88: =IF(D88="","",IF(D88="TOTAL",SUM($H$15:H87),(ROUND(G88*AK88/100,0)))) ->  | I88: =IF(D88="","",IF(D88="TOTAL",SUM($I$15:I87),(ROUND(G88*AL88/100,0)))) ->  | J88: 0 | L88: =IF(D88="","",IF(D88="TOTAL",SUM($L$15:L87),$P$4)) ->  | M88: =IF(D88="","",IF(D88="TOTAL",SUM($M$15:M87),(ROUND(L88*AF88/100,0)))) ->  | N88: =IF(D88="","",IF(D88="TOTAL",SUM($N$15:N87),(ROUND(L88*AG88/100,0)))) ->  | O88: 0 | T88: 0 | U88: =IF(D88="","",IF(D88="TOTAL",SUM($U$15:U87),IF($Z$5="REGULAR",BA88,AJ88+BF88))) ->  | V88: =IF(D88="","",IF(D88="TOTAL",SUM($V$15:V87),(ROUND(T88*AN88,0)))) ->  | W88: =IF(D88="","",IF(E88="mar",$Z$2,IF(D88="TOTAL",SUM($W$15:W87),W87))) ->  | X88: =IF(D88="","",IF(D88="TOTAL",SUM($X$15:X87),(SUM(AH89:AI89)))) ->  | Y88: 0 | Z88: 0 | AQ88: 2023-04-01 | AR88: Apr-2023 | AS88: 42 | AT88: 9 | AV88: 10% | AY88: 0 | AZ88: 0 | BA88: 0 | BD88: 1000 | BF88: 0
G89: =IF(D89="","",IF(F89="YES",MROUND(ROUND(1.03*G88,0),100),IF(D89="TOTAL",SUM($G$15:G88),G88))) ->  | H89: =IF(D89="","",IF(D89="TOTAL",SUM($H$15:H88),(ROUND(G89*AK89/100,0)))) ->  | I89: =IF(D89="","",IF(D89="TOTAL",SUM($I$15:I88),(ROUND(G89*AL89/100,0)))) ->  | J89: 0 | L89: =IF(D89="","",IF(D89="TOTAL",SUM($L$15:L88),$P$4)) ->  | M89: =IF(D89="","",IF(D89="TOTAL",SUM($M$15:M88),(ROUND(L89*AF89/100,0)))) ->  | N89: =IF(D89="","",IF(D89="TOTAL",SUM($N$15:N88),(ROUND(L89*AG89/100,0)))) ->  | O89: 0 | T89: 0 | U89: =IF(D89="","",IF(D89="TOTAL",SUM($U$15:U88),IF($Z$5="REGULAR",BA89,AJ89+BF89))) ->  | V89: =IF(D89="","",IF(D89="TOTAL",SUM($V$15:V88),(ROUND(T89*AN89,0)))) ->  | W89: =IF(D89="","",IF(E89="mar",$Z$2,IF(D89="TOTAL",SUM($W$15:W88),W88))) ->  | X89: =IF(D89="","",IF(D89="TOTAL",SUM($X$15:X88),(SUM(AH90:AI90)))) ->  | Y89: 0 | Z89: 0 | AQ89: 2023-05-01 | AR89: May-2023 | AS89: 42 | AT89: 9 | AV89: 10% | AY89: 0 | AZ89: 0 | BA89: 0 | BD89: 1000 | BF89: 0
G90: =IF(D90="","",IF(F90="YES",MROUND(ROUND(1.03*G89,0),100),IF(D90="TOTAL",SUM($G$15:G89),G89))) ->  | H90: =IF(D90="","",IF(D90="TOTAL",SUM($H$15:H89),(ROUND(G90*AK90/100,0)))) ->  | I90: =IF(D90="","",IF(D90="TOTAL",SUM($I$15:I89),(ROUND(G90*AL90/100,0)))) ->  | J90: 0 | L90: =IF(D90="","",IF(D90="TOTAL",SUM($L$15:L89),$P$4)) ->  | M90: =IF(D90="","",IF(D90="TOTAL",SUM($M$15:M89),(ROUND(L90*AF90/100,0)))) ->  | N90: =IF(D90="","",IF(D90="TOTAL",SUM($N$15:N89),(ROUND(L90*AG90/100,0)))) ->  | O90: 0 | T90: 0 | U90: =IF(D90="","",IF(D90="TOTAL",SUM($U$15:U89),IF($Z$5="REGULAR",BA90,AJ90+BF90))) ->  | V90: =IF(D90="","",IF(D90="TOTAL",SUM($V$15:V89),(ROUND(T90*AN90,0)))) ->  | W90: =IF(D90="","",IF(E90="mar",$Z$2,IF(D90="TOTAL",SUM($W$15:W89),W89))) ->  | X90: =IF(D90="","",IF(D90="TOTAL",SUM($X$15:X89),(SUM(AH91:AI91)))) ->  | Y90: 0 | Z90: 0 | AQ90: 2023-06-01 | AR90: Jun-2023 | AS90: 42 | AT90: 9 | AV90: 10% | AY90: 0 | AZ90: 0 | BA90: 0 | BD90: 1000 | BF90: 0
G91: =IF(D91="","",IF(F91="YES",MROUND(ROUND(1.03*G90,0),100),IF(D91="TOTAL",SUM($G$15:G90),G90))) ->  | H91: =IF(D91="","",IF(D91="TOTAL",SUM($H$15:H90),(ROUND(G91*AK91/100,0)))) ->  | I91: =IF(D91="","",IF(D91="TOTAL",SUM($I$15:I90),(ROUND(G91*AL91/100,0)))) ->  | J91: 0 | L91: =IF(D91="","",IF(D91="TOTAL",SUM($L$15:L90),$P$4)) ->  | M91: =IF(D91="","",IF(D91="TOTAL",SUM($M$15:M90),(ROUND(L91*AF91/100,0)))) ->  | N91: =IF(D91="","",IF(D91="TOTAL",SUM($N$15:N90),(ROUND(L91*AG91/100,0)))) ->  | O91: 0 | T91: 0 | U91: =IF(D91="","",IF(D91="TOTAL",SUM($U$15:U90),IF($Z$5="REGULAR",BA91,AJ91+BF91))) ->  | V91: =IF(D91="","",IF(D91="TOTAL",SUM($V$15:V90),(ROUND(T91*AN91,0)))) ->  | W91: =IF(D91="","",IF(E91="mar",$Z$2,IF(D91="TOTAL",SUM($W$15:W90),W90))) ->  | X91: =IF(D91="","",IF(D91="TOTAL",SUM($X$15:X90),(SUM(AH92:AI92)))) ->  | Y91: 0 | Z91: 0 | AQ91: 2023-07-01 | AR91: Jul-2023 | AS91: 46 | AT91: 9 | AU91: 4 | AV91: 10% | AY91: 0 | AZ91: 0 | BA91: 0 | BD91: 1000 | BF91: 0
G92: =IF(D92="","",IF(F92="YES",MROUND(ROUND(1.03*G91,0),100),IF(D92="TOTAL",SUM($G$15:G91),G91))) ->  | H92: =IF(D92="","",IF(D92="TOTAL",SUM($H$15:H91),(ROUND(G92*AK92/100,0)))) ->  | I92: =IF(D92="","",IF(D92="TOTAL",SUM($I$15:I91),(ROUND(G92*AL92/100,0)))) ->  | J92: 0 | L92: =IF(D92="","",IF(D92="TOTAL",SUM($L$15:L91),$P$4)) ->  | M92: =IF(D92="","",IF(D92="TOTAL",SUM($M$15:M91),(ROUND(L92*AF92/100,0)))) ->  | N92: =IF(D92="","",IF(D92="TOTAL",SUM($N$15:N91),(ROUND(L92*AG92/100,0)))) ->  | O92: 0 | T92: 0 | U92: =IF(D92="","",IF(D92="TOTAL",SUM($U$15:U91),IF($Z$5="REGULAR",BA92,AJ92+BF92))) ->  | V92: =IF(D92="","",IF(D92="TOTAL",SUM($V$15:V91),(ROUND(T92*AN92,0)))) ->  | W92: =IF(D92="","",IF(E92="mar",$Z$2,IF(D92="TOTAL",SUM($W$15:W91),W91))) ->  | X92: =IF(D92="","",IF(D92="TOTAL",SUM($X$15:X91),(SUM(AH93:AI93)))) ->  | Y92: 0 | Z92: 0 | AQ92: 2023-08-01 | AR92: Aug-2023 | AS92: 46 | AT92: 9 | AU92: 4 | AV92: 10% | AY92: 0 | AZ92: 0 | BA92: 0 | BD92: 1000 | BF92: 0
G93: =IF(D93="","",IF(F93="YES",MROUND(ROUND(1.03*G92,0),100),IF(D93="TOTAL",SUM($G$15:G92),G92))) ->  | H93: =IF(D93="","",IF(D93="TOTAL",SUM($H$15:H92),(ROUND(G93*AK93/100,0)))) ->  | I93: =IF(D93="","",IF(D93="TOTAL",SUM($I$15:I92),(ROUND(G93*AL93/100,0)))) ->  | J93: 0 | L93: =IF(D93="","",IF(D93="TOTAL",SUM($L$15:L92),$P$4)) ->  | M93: =IF(D93="","",IF(D93="TOTAL",SUM($M$15:M92),(ROUND(L93*AF93/100,0)))) ->  | N93: =IF(D93="","",IF(D93="TOTAL",SUM($N$15:N92),(ROUND(L93*AG93/100,0)))) ->  | O93: 0 | T93: 0 | U93: =IF(D93="","",IF(D93="TOTAL",SUM($U$15:U92),IF($Z$5="REGULAR",BA93,AJ93+BF93))) ->  | V93: =IF(D93="","",IF(D93="TOTAL",SUM($V$15:V92),(ROUND(T93*AN93,0)))) ->  | W93: =IF(D93="","",IF(E93="mar",$Z$2,IF(D93="TOTAL",SUM($W$15:W92),W92))) ->  | X93: =IF(D93="","",IF(D93="TOTAL",SUM($X$15:X92),(SUM(AH94:AI94)))) ->  | Y93: 0 | Z93: 0 | AQ93: 2023-09-01 | AR93: Sep-2023 | AS93: 46 | AT93: 9 | AU93: 4 | AV93: 10% | AY93: 0 | AZ93: 0 | BA93: 0 | BD93: 1000 | BF93: 0
G94: =IF(D94="","",IF(F94="YES",MROUND(ROUND(1.03*G93,0),100),IF(D94="TOTAL",SUM($G$15:G93),G93))) ->  | H94: =IF(D94="","",IF(D94="TOTAL",SUM($H$15:H93),(ROUND(G94*AK94/100,0)))) ->  | I94: =IF(D94="","",IF(D94="TOTAL",SUM($I$15:I93),(ROUND(G94*AL94/100,0)))) ->  | J94: 0 | L94: =IF(D94="","",IF(D94="TOTAL",SUM($L$15:L93),$P$4)) ->  | M94: =IF(D94="","",IF(D94="TOTAL",SUM($M$15:M93),(ROUND(L94*AF94/100,0)))) ->  | N94: =IF(D94="","",IF(D94="TOTAL",SUM($N$15:N93),(ROUND(L94*AG94/100,0)))) ->  | O94: 0 | T94: 0 | U94: =IF(D94="","",IF(D94="TOTAL",SUM($U$15:U93),IF($Z$5="REGULAR",BA94,AJ94+BF94))) ->  | V94: =IF(D94="","",IF(D94="TOTAL",SUM($V$15:V93),(ROUND(T94*AN94,0)))) ->  | W94: =IF(D94="","",IF(E94="mar",$Z$2,IF(D94="TOTAL",SUM($W$15:W93),W93))) ->  | X94: =IF(D94="","",IF(D94="TOTAL",SUM($X$15:X93),(SUM(AH95:AI95)))) ->  | Y94: 0 | Z94: 0 | AQ94: 2023-10-01 | AR94: Oct-2023 | AS94: 46 | AT94: 9 | AU94: 4 | AV94: 10% | AY94: 0 | AZ94: 0 | BA94: 0 | BD94: 1000 | BF94: 0
G95: =IF(D95="","",IF(F95="YES",MROUND(ROUND(1.03*G94,0),100),IF(D95="TOTAL",SUM($G$15:G94),G94))) ->  | H95: =IF(D95="","",IF(D95="TOTAL",SUM($H$15:H94),(ROUND(G95*AK95/100,0)))) ->  | I95: =IF(D95="","",IF(D95="TOTAL",SUM($I$15:I94),(ROUND(G95*AL95/100,0)))) ->  | J95: 0 | L95: =IF(D95="","",IF(D95="TOTAL",SUM($L$15:L94),$P$4)) ->  | M95: =IF(D95="","",IF(D95="TOTAL",SUM($M$15:M94),(ROUND(L95*AF95/100,0)))) ->  | N95: =IF(D95="","",IF(D95="TOTAL",SUM($N$15:N94),(ROUND(L95*AG95/100,0)))) ->  | O95: 0 | T95: 0 | U95: =IF(D95="","",IF(D95="TOTAL",SUM($U$15:U94),IF($Z$5="REGULAR",BA95,AJ95+BF95))) ->  | V95: =IF(D95="","",IF(D95="TOTAL",SUM($V$15:V94),(ROUND(T95*AN95,0)))) ->  | W95: =IF(D95="","",IF(E95="mar",$Z$2,IF(D95="TOTAL",SUM($W$15:W94),W94))) ->  | X95: =IF(D95="","",IF(D95="TOTAL",SUM($X$15:X94),(SUM(AH96:AI96)))) ->  | Y95: 0 | Z95: 0 | AQ95: 2023-11-01 | AR95: Nov-2023 | AS95: 46 | AT95: 9 | AV95: 10% | AY95: 0 | AZ95: 0 | BA95: 0 | BD95: 1000 | BF95: 0
G96: =IF(D96="","",IF(F96="YES",MROUND(ROUND(1.03*G95,0),100),IF(D96="TOTAL",SUM($G$15:G95),G95))) ->  | H96: =IF(D96="","",IF(D96="TOTAL",SUM($H$15:H95),(ROUND(G96*AK96/100,0)))) ->  | I96: =IF(D96="","",IF(D96="TOTAL",SUM($I$15:I95),(ROUND(G96*AL96/100,0)))) ->  | J96: 0 | L96: =IF(D96="","",IF(D96="TOTAL",SUM($L$15:L95),$P$4)) ->  | M96: =IF(D96="","",IF(D96="TOTAL",SUM($M$15:M95),(ROUND(L96*AF96/100,0)))) ->  | N96: =IF(D96="","",IF(D96="TOTAL",SUM($N$15:N95),(ROUND(L96*AG96/100,0)))) ->  | O96: 0 | T96: 0 | U96: =IF(D96="","",IF(D96="TOTAL",SUM($U$15:U95),IF($Z$5="REGULAR",BA96,AJ96+BF96))) ->  | V96: =IF(D96="","",IF(D96="TOTAL",SUM($V$15:V95),(ROUND(T96*AN96,0)))) ->  | W96: =IF(D96="","",IF(E96="mar",$Z$2,IF(D96="TOTAL",SUM($W$15:W95),W95))) ->  | X96: =IF(D96="","",IF(D96="TOTAL",SUM($X$15:X95),(SUM(AH97:AI97)))) ->  | Y96: 0 | Z96: 0 | AQ96: 2023-12-01 | AR96: Dec-2023 | AS96: 46 | AT96: 9 | AV96: 10% | AY96: 0 | AZ96: 0 | BA96: 0 | BD96: 1000 | BF96: 0
G97: =IF(D97="","",IF(F97="YES",MROUND(ROUND(1.03*G96,0),100),IF(D97="TOTAL",SUM($G$15:G96),G96))) ->  | H97: =IF(D97="","",IF(D97="TOTAL",SUM($H$15:H96),(ROUND(G97*AK97/100,0)))) ->  | I97: =IF(D97="","",IF(D97="TOTAL",SUM($I$15:I96),(ROUND(G97*AL97/100,0)))) ->  | J97: 0 | L97: =IF(D97="","",IF(D97="TOTAL",SUM($L$15:L96),$P$4)) ->  | M97: =IF(D97="","",IF(D97="TOTAL",SUM($M$15:M96),(ROUND(L97*AF97/100,0)))) ->  | N97: =IF(D97="","",IF(D97="TOTAL",SUM($N$15:N96),(ROUND(L97*AG97/100,0)))) ->  | O97: 0 | T97: 0 | U97: =IF(D97="","",IF(D97="TOTAL",SUM($U$15:U96),IF($Z$5="REGULAR",BA97,AJ97+BF97))) ->  | V97: =IF(D97="","",IF(D97="TOTAL",SUM($V$15:V96),(ROUND(T97*AN97,0)))) ->  | W97: =IF(D97="","",IF(E97="mar",$Z$2,IF(D97="TOTAL",SUM($W$15:W96),W96))) ->  | X97: =IF(D97="","",IF(D97="TOTAL",SUM($X$15:X96),(SUM(AH98:AI98)))) ->  | Y97: 0 | Z97: 0 | AQ97: 2024-01-01 | AR97: Jan-2024 | AS97: 50 | AT97: 9 | AU97: 4 | AV97: 10% | AY97: 0 | AZ97: 0 | BA97: 0 | BD97: 1000 | BF97: 0
G98: =IF(D98="","",IF(F98="YES",MROUND(ROUND(1.03*G97,0),100),IF(D98="TOTAL",SUM($G$15:G97),G97))) ->  | H98: =IF(D98="","",IF(D98="TOTAL",SUM($H$15:H97),(ROUND(G98*AK98/100,0)))) ->  | I98: =IF(D98="","",IF(D98="TOTAL",SUM($I$15:I97),(ROUND(G98*AL98/100,0)))) ->  | J98: 0 | L98: =IF(D98="","",IF(D98="TOTAL",SUM($L$15:L97),$P$4)) ->  | M98: =IF(D98="","",IF(D98="TOTAL",SUM($M$15:M97),(ROUND(L98*AF98/100,0)))) ->  | N98: =IF(D98="","",IF(D98="TOTAL",SUM($N$15:N97),(ROUND(L98*AG98/100,0)))) ->  | O98: 0 | T98: 0 | U98: =IF(D98="","",IF(D98="TOTAL",SUM($U$15:U97),IF($Z$5="REGULAR",BA98,AJ98+BF98))) ->  | V98: =IF(D98="","",IF(D98="TOTAL",SUM($V$15:V97),(ROUND(T98*AN98,0)))) ->  | W98: =IF(D98="","",IF(E98="mar",$Z$2,IF(D98="TOTAL",SUM($W$15:W97),W97))) ->  | X98: =IF(D98="","",IF(D98="TOTAL",SUM($X$15:X97),(SUM(AH99:AI99)))) ->  | Y98: 0 | Z98: 0 | AQ98: 2024-02-01 | AR98: Feb-2024 | AS98: 50 | AT98: 9 | AU98: 4 | AV98: 10% | AY98: 0 | AZ98: 0 | BA98: 0 | BD98: 1000 | BF98: 0
G99: =IF(D99="","",IF(F99="YES",MROUND(ROUND(1.03*G98,0),100),IF(D99="TOTAL",SUM($G$15:G98),G98))) ->  | H99: =IF(D99="","",IF(D99="TOTAL",SUM($H$15:H98),(ROUND(G99*AK99/100,0)))) ->  | I99: =IF(D99="","",IF(D99="TOTAL",SUM($I$15:I98),(ROUND(G99*AL99/100,0)))) ->  | J99: 0 | L99: =IF(D99="","",IF(D99="TOTAL",SUM($L$15:L98),$P$4)) ->  | M99: =IF(D99="","",IF(D99="TOTAL",SUM($M$15:M98),(ROUND(L99*AF99/100,0)))) ->  | N99: =IF(D99="","",IF(D99="TOTAL",SUM($N$15:N98),(ROUND(L99*AG99/100,0)))) ->  | O99: 0 | T99: 0 | U99: =IF(D99="","",IF(D99="TOTAL",SUM($U$15:U98),IF($Z$5="REGULAR",BA99,AJ99+BF99))) ->  | V99: =IF(D99="","",IF(D99="TOTAL",SUM($V$15:V98),(ROUND(T99*AN99,0)))) ->  | W99: =IF(D99="","",IF(E99="mar",$Z$2,IF(D99="TOTAL",SUM($W$15:W98),W98))) ->  | X99: =IF(D99="","",IF(D99="TOTAL",SUM($X$15:X98),(SUM(AH100:AI100)))) ->  | Y99: 0 | Z99: 0 | AQ99: 2024-03-01 | AR99: Mar-2024 | AS99: 50 | AT99: 9 | AV99: 10% | AY99: 0 | AZ99: 0 | BA99: 0 | BD99: 1000 | BF99: 0
G100: =IF(D100="","",IF(F100="YES",MROUND(ROUND(1.03*G99,0),100),IF(D100="TOTAL",SUM($G$15:G99),G99))) ->  | H100: =IF(D100="","",IF(D100="TOTAL",SUM($H$15:H99),(ROUND(G100*AK100/100,0)))) ->  | I100: =IF(D100="","",IF(D100="TOTAL",SUM($I$15:I99),(ROUND(G100*AL100/100,0)))) ->  | J100: 0 | L100: =IF(D100="","",IF(D100="TOTAL",SUM($L$15:L99),$P$4)) ->  | M100: =IF(D100="","",IF(D100="TOTAL",SUM($M$15:M99),(ROUND(L100*AF100/100,0)))) ->  | N100: =IF(D100="","",IF(D100="TOTAL",SUM($N$15:N99),(ROUND(L100*AG100/100,0)))) ->  | O100: 0 | T100: 0 | U100: =IF(D100="","",IF(D100="TOTAL",SUM($U$15:U99),IF($Z$5="REGULAR",BA100,AJ100+BF100))) ->  | V100: =IF(D100="","",IF(D100="TOTAL",SUM($V$15:V99),(ROUND(T100*AN100,0)))) ->  | W100: =IF(D100="","",IF(E100="mar",$Z$2,IF(D100="TOTAL",SUM($W$15:W99),W99))) ->  | X100: =IF(D100="","",IF(D100="TOTAL",SUM($X$15:X99),(SUM(AH101:AI101)))) ->  | Y100: 0 | Z100: 0 | AQ100: 2024-04-01 | AR100: Apr-2024 | AS100: 50 | AT100: 9 | AV100: 10% | AY100: 0 | AZ100: 0 | BA100: 0 | BD100: 1000 | BF100: 0
G101: =IF(D101="","",IF(F101="YES",MROUND(ROUND(1.03*G100,0),100),IF(D101="TOTAL",SUM($G$15:G100),G100))) ->  | H101: =IF(D101="","",IF(D101="TOTAL",SUM($H$15:H100),(ROUND(G101*AK101/100,0)))) ->  | I101: =IF(D101="","",IF(D101="TOTAL",SUM($I$15:I100),(ROUND(G101*AL101/100,0)))) ->  | J101: 0 | L101: =IF(D101="","",IF(D101="TOTAL",SUM($L$15:L100),$P$4)) ->  | M101: =IF(D101="","",IF(D101="TOTAL",SUM($M$15:M100),(ROUND(L101*AF101/100,0)))) ->  | N101: =IF(D101="","",IF(D101="TOTAL",SUM($N$15:N100),(ROUND(L101*AG101/100,0)))) ->  | O101: 0 | T101: 0 | U101: =IF(D101="","",IF(D101="TOTAL",SUM($U$15:U100),IF($Z$5="REGULAR",BA101,AJ101+BF101))) ->  | V101: =IF(D101="","",IF(D101="TOTAL",SUM($V$15:V100),(ROUND(T101*AN101,0)))) ->  | W101: =IF(D101="","",IF(E101="mar",$Z$2,IF(D101="TOTAL",SUM($W$15:W100),W100))) ->  | X101: =IF(D101="","",IF(D101="TOTAL",SUM($X$15:X100),(SUM(AH102:AI102)))) ->  | Y101: 0 | Z101: 0 | AQ101: 2024-05-01 | AR101: May-2024 | AS101: 50 | AT101: 9 | AV101: 10% | AY101: 0 | AZ101: 0 | BA101: 0 | BD101: 1000 | BF101: 0
G102: =IF(D102="","",IF(F102="YES",MROUND(ROUND(1.03*G101,0),100),IF(D102="TOTAL",SUM($G$15:G101),G101))) ->  | H102: =IF(D102="","",IF(D102="TOTAL",SUM($H$15:H101),(ROUND(G102*AK102/100,0)))) ->  | I102: =IF(D102="","",IF(D102="TOTAL",SUM($I$15:I101),(ROUND(G102*AL102/100,0)))) ->  | J102: 0 | L102: =IF(D102="","",IF(D102="TOTAL",SUM($L$15:L101),$P$4)) ->  | M102: =IF(D102="","",IF(D102="TOTAL",SUM($M$15:M101),(ROUND(L102*AF102/100,0)))) ->  | N102: =IF(D102="","",IF(D102="TOTAL",SUM($N$15:N101),(ROUND(L102*AG102/100,0)))) ->  | O102: 0 | T102: 0 | U102: =IF(D102="","",IF(D102="TOTAL",SUM($U$15:U101),IF($Z$5="REGULAR",BA102,AJ102+BF102))) ->  | V102: =IF(D102="","",IF(D102="TOTAL",SUM($V$15:V101),(ROUND(T102*AN102,0)))) ->  | W102: =IF(D102="","",IF(E102="mar",$Z$2,IF(D102="TOTAL",SUM($W$15:W101),W101))) ->  | X102: =IF(D102="","",IF(D102="TOTAL",SUM($X$15:X101),(SUM(AH103:AI103)))) ->  | Y102: 0 | Z102: 0 | AQ102: 2024-06-01 | AR102: Jun-2024 | AS102: 50 | AT102: 9 | AV102: 10% | AY102: 0 | AZ102: 0 | BA102: 0 | BD102: 1000 | BF102: 0
G103: =IF(D103="","",IF(F103="YES",MROUND(ROUND(1.03*G102,0),100),IF(D103="TOTAL",SUM($G$15:G102),G102))) ->  | H103: =IF(D103="","",IF(D103="TOTAL",SUM($H$15:H102),(ROUND(G103*AK103/100,0)))) ->  | I103: =IF(D103="","",IF(D103="TOTAL",SUM($I$15:I102),(ROUND(G103*AL103/100,0)))) ->  | J103: 0 | L103: =IF(D103="","",IF(D103="TOTAL",SUM($L$15:L102),$P$4)) ->  | M103: =IF(D103="","",IF(D103="TOTAL",SUM($M$15:M102),(ROUND(L103*AF103/100,0)))) ->  | N103: =IF(D103="","",IF(D103="TOTAL",SUM($N$15:N102),(ROUND(L103*AG103/100,0)))) ->  | O103: 0 | T103: 0 | U103: =IF(D103="","",IF(D103="TOTAL",SUM($U$15:U102),IF($Z$5="REGULAR",BA103,AJ103+BF103))) ->  | V103: =IF(D103="","",IF(D103="TOTAL",SUM($V$15:V102),(ROUND(T103*AN103,0)))) ->  | W103: =IF(D103="","",IF(E103="mar",$Z$2,IF(D103="TOTAL",SUM($W$15:W102),W102))) ->  | X103: =IF(D103="","",IF(D103="TOTAL",SUM($X$15:X102),(SUM(AH104:AI104)))) ->  | Y103: 0 | Z103: 0 | AQ103: 2024-07-01 | AR103: Jul-2024 | AS103: 53 | AT103: 9 | AU103: 3 | AV103: 10% | AY103: 0 | AZ103: 0 | BA103: 0 | BD103: 1000 | BF103: 0
G104: =IF(D104="","",IF(F104="YES",MROUND(ROUND(1.03*G103,0),100),IF(D104="TOTAL",SUM($G$15:G103),G103))) ->  | H104: =IF(D104="","",IF(D104="TOTAL",SUM($H$15:H103),(ROUND(G104*AK104/100,0)))) ->  | I104: =IF(D104="","",IF(D104="TOTAL",SUM($I$15:I103),(ROUND(G104*AL104/100,0)))) ->  | J104: 0 | L104: =IF(D104="","",IF(D104="TOTAL",SUM($L$15:L103),$P$4)) ->  | M104: =IF(D104="","",IF(D104="TOTAL",SUM($M$15:M103),(ROUND(L104*AF104/100,0)))) ->  | N104: =IF(D104="","",IF(D104="TOTAL",SUM($N$15:N103),(ROUND(L104*AG104/100,0)))) ->  | O104: 0 | T104: 0 | U104: =IF(D104="","",IF(D104="TOTAL",SUM($U$15:U103),IF($Z$5="REGULAR",BA104,AJ104+BF104))) ->  | V104: =IF(D104="","",IF(D104="TOTAL",SUM($V$15:V103),(ROUND(T104*AN104,0)))) ->  | W104: =IF(D104="","",IF(E104="mar",$Z$2,IF(D104="TOTAL",SUM($W$15:W103),W103))) ->  | X104: =IF(D104="","",IF(D104="TOTAL",SUM($X$15:X103),(SUM(AH105:AI105)))) ->  | Y104: 0 | Z104: 0 | AQ104: 2024-08-01 | AR104: Aug-2024 | AS104: 53 | AT104: 9 | AU104: 3 | AV104: 10% | AY104: 0 | AZ104: 0 | BA104: 0 | BD104: 1000 | BF104: 0
G105: =IF(D105="","",IF(F105="YES",MROUND(ROUND(1.03*G104,0),100),IF(D105="TOTAL",SUM($G$15:G104),G104))) ->  | H105: =IF(D105="","",IF(D105="TOTAL",SUM($H$15:H104),(ROUND(G105*AK105/100,0)))) ->  | I105: =IF(D105="","",IF(D105="TOTAL",SUM($I$15:I104),(ROUND(G105*AL105/100,0)))) ->  | J105: 0 | L105: =IF(D105="","",IF(D105="TOTAL",SUM($L$15:L104),$P$4)) ->  | M105: =IF(D105="","",IF(D105="TOTAL",SUM($M$15:M104),(ROUND(L105*AF105/100,0)))) ->  | N105: =IF(D105="","",IF(D105="TOTAL",SUM($N$15:N104),(ROUND(L105*AG105/100,0)))) ->  | O105: 0 | T105: =IFERROR(SUM(P105:S105),"") -> 0 | U105: =IF(D105="","",IF(D105="TOTAL",SUM($U$15:U104),IF($Z$5="REGULAR",BA105,AJ105+BF105))) ->  | V105: =IF(D105="","",IF(D105="TOTAL",SUM($V$15:V104),(ROUND(T105*AN105,0)))) ->  | W105: =IF(D105="","",IF(E105="mar",$Z$2,IF(D105="TOTAL",SUM($W$15:W104),W104))) ->  | X105: =IF(D105="","",IF(D105="TOTAL",SUM($X$15:X104),(SUM(AH106:AI106)))) ->  | Y105: 0 | Z105: 0 | AQ105: 2024-09-01 | AR105: Sep-2024 | AS105: 53 | AT105: 9 | AU105: 3 | AV105: 10% | AY105: 0 | AZ105: 0 | BD105: 1000 | BF105: 0
G106: =IF(D106="","",IF(F106="YES",MROUND(ROUND(1.03*G105,0),100),IF(D106="TOTAL",SUM($G$15:G105),G105))) ->  | H106: =IF(D106="","",IF(D106="TOTAL",SUM($H$15:H105),(ROUND(G106*AK106/100,0)))) ->  | I106: =IF(D106="","",IF(D106="TOTAL",SUM($I$15:I105),(ROUND(G106*AL106/100,0)))) ->  | J106: 0 | L106: =IF(D106="","",IF(D106="TOTAL",SUM($L$15:L105),$P$4)) ->  | M106: =IF(D106="","",IF(D106="TOTAL",SUM($M$15:M105),(ROUND(L106*AF106/100,0)))) ->  | N106: =IF(D106="","",IF(D106="TOTAL",SUM($N$15:N105),(ROUND(L106*AG106/100,0)))) ->  | O106: 0 | T106: 0 | U106: =IF(D106="","",IF(D106="TOTAL",SUM($U$15:U105),IF($Z$5="REGULAR",BA106,AJ106+BF106))) ->  | V106: =IF(D106="","",IF(D106="TOTAL",SUM($V$15:V105),(ROUND(T106*AN106,0)))) ->  | W106: =IF(D106="","",IF(E106="mar",$Z$2,IF(D106="TOTAL",SUM($W$15:W105),W105))) ->  | X106: =IF(D106="","",IF(D106="TOTAL",SUM($X$15:X105),(SUM(AH107:AI107)))) ->  | Y106: 0 | Z106: 0 | AQ106: 2024-10-01 | AR106: Oct-2024 | AS106: 53 | AT106: 9 | AU106: 3 | AV106: 10% | AY106: 0 | AZ106: 0 | BD106: 1000 | BF106: 0
G107: =IF(D107="","",IF(F107="YES",MROUND(ROUND(1.03*G106,0),100),IF(D107="TOTAL",SUM($G$15:G106),G106))) ->  | H107: =IF(D107="","",IF(D107="TOTAL",SUM($H$15:H106),(ROUND(G107*AK107/100,0)))) ->  | I107: =IF(D107="","",IF(D107="TOTAL",SUM($I$15:I106),(ROUND(G107*AL107/100,0)))) ->  | J107: 0 | L107: =IF(D107="","",IF(D107="TOTAL",SUM($L$15:L106),$P$4)) ->  | M107: =IF(D107="","",IF(D107="TOTAL",SUM($M$15:M106),(ROUND(L107*AF107/100,0)))) ->  | N107: =IF(D107="","",IF(D107="TOTAL",SUM($N$15:N106),(ROUND(L107*AG107/100,0)))) ->  | O107: 0 | T107: 0 | U107: =IF(D107="","",IF(D107="TOTAL",SUM($U$15:U106),IF($Z$5="REGULAR",BA107,AJ107+BF107))) ->  | V107: =IF(D107="","",IF(D107="TOTAL",SUM($V$15:V106),(ROUND(T107*AN107,0)))) ->  | W107: =IF(D107="","",IF(E107="mar",$Z$2,IF(D107="TOTAL",SUM($W$15:W106),W106))) ->  | X107: =IF(D107="","",IF(D107="TOTAL",SUM($X$15:X106),(SUM(AH108:AI108)))) ->  | Y107: 0 | Z107: 0 | AQ107: 2024-11-01 | AR107: Nov-2024 | AS107: 53 | AT107: =W6 -> 10 | AV107: 10% | AY107: 0 | AZ107: 0 | BD107: 1000 | BF107: 0
G108: =IF(D108="","",IF(F108="YES",MROUND(ROUND(1.03*G107,0),100),IF(D108="TOTAL",SUM($G$15:G107),G107))) ->  | H108: =IF(D108="","",IF(D108="TOTAL",SUM($H$15:H107),(ROUND(G108*AK108/100,0)))) ->  | I108: =IF(D108="","",IF(D108="TOTAL",SUM($I$15:I107),(ROUND(G108*AL108/100,0)))) ->  | J108: 0 | L108: =IF(D108="","",IF(D108="TOTAL",SUM($L$15:L107),$P$4)) ->  | M108: =IF(D108="","",IF(D108="TOTAL",SUM($M$15:M107),(ROUND(L108*AF108/100,0)))) ->  | N108: =IF(D108="","",IF(D108="TOTAL",SUM($N$15:N107),(ROUND(L108*AG108/100,0)))) ->  | O108: 0 | T108: 0 | U108: =IF(D108="","",IF(D108="TOTAL",SUM($U$15:U107),IF($Z$5="REGULAR",BA108,AJ108+BF108))) ->  | V108: =IF(D108="","",IF(D108="TOTAL",SUM($V$15:V107),(ROUND(T108*AN108,0)))) ->  | W108: =IF(D108="","",IF(E108="mar",$Z$2,IF(D108="TOTAL",SUM($W$15:W107),W107))) ->  | X108: =IF(D108="","",IF(D108="TOTAL",SUM($X$15:X107),(SUM(AH109:AI109)))) ->  | Y108: 0 | Z108: 0 | AQ108: 2024-12-01 | AR108: Dec-2024 | AS108: 53 | AT108: 10 | AV108: 10% | AY108: 0 | AZ108: 0 | BD108: 1000 | BF108: 0
G109: =IF(D109="","",IF(F109="YES",MROUND(ROUND(1.03*G108,0),100),IF(D109="TOTAL",SUM($G$15:G108),G108))) ->  | H109: =IF(D109="","",IF(D109="TOTAL",SUM($H$15:H108),(ROUND(G109*AK109/100,0)))) ->  | I109: =IF(D109="","",IF(D109="TOTAL",SUM($I$15:I108),(ROUND(G109*AL109/100,0)))) ->  | J109: 0 | L109: =IF(D109="","",IF(D109="TOTAL",SUM($L$15:L108),$P$4)) ->  | M109: =IF(D109="","",IF(D109="TOTAL",SUM($M$15:M108),(ROUND(L109*AF109/100,0)))) ->  | N109: =IF(D109="","",IF(D109="TOTAL",SUM($N$15:N108),(ROUND(L109*AG109/100,0)))) ->  | O109: 0 | T109: 0 | U109: =IF(D109="","",IF(D109="TOTAL",SUM($U$15:U108),IF($Z$5="REGULAR",BA109,AJ109+BF109))) ->  | V109: =IF(D109="","",IF(D109="TOTAL",SUM($V$15:V108),(ROUND(T109*AN109,0)))) ->  | W109: =IF(D109="","",IF(E109="mar",$Z$2,IF(D109="TOTAL",SUM($W$15:W108),W108))) ->  | X109: =IF(D109="","",IF(D109="TOTAL",SUM($X$15:X108),(SUM(AH110:AI110)))) ->  | Y109: 0 | Z109: 0 | AQ109: 2025-01-01 | AR109: Jan-2025 | AS109: 55 | AT109: 10 | AU109: 2 | AV109: 10% | AY109: 0 | AZ109: 0 | BD109: 1000 | BF109: 0
G110: =IF(D110="","",IF(F110="YES",MROUND(ROUND(1.03*G109,0),100),IF(D110="TOTAL",SUM($G$15:G109),G109))) ->  | H110: =IF(D110="","",IF(D110="TOTAL",SUM($H$15:H109),(ROUND(G110*AK110/100,0)))) ->  | I110: =IF(D110="","",IF(D110="TOTAL",SUM($I$15:I109),(ROUND(G110*AL110/100,0)))) ->  | J110: 0 | L110: =IF(D110="","",IF(D110="TOTAL",SUM($L$15:L109),$P$4)) ->  | M110: =IF(D110="","",IF(D110="TOTAL",SUM($M$15:M109),(ROUND(L110*AF110/100,0)))) ->  | N110: =IF(D110="","",IF(D110="TOTAL",SUM($N$15:N109),(ROUND(L110*AG110/100,0)))) ->  | O110: 0 | T110: 0 | U110: =IF(D110="","",IF(D110="TOTAL",SUM($U$15:U109),IF($Z$5="REGULAR",BA110,AJ110+BF110))) ->  | V110: =IF(D110="","",IF(D110="TOTAL",SUM($V$15:V109),(ROUND(T110*AN110,0)))) ->  | W110: =IF(D110="","",IF(E110="mar",$Z$2,IF(D110="TOTAL",SUM($W$15:W109),W109))) ->  | X110: =IF(D110="","",IF(D110="TOTAL",SUM($X$15:X109),(SUM(AH111:AI111)))) ->  | Y110: 0 | Z110: 0 | AQ110: 2025-02-01 | AR110: Feb-2025 | AS110: 55 | AT110: 10 | AU110: 2 | AV110: 10% | AY110: 0 | AZ110: 0 | BD110: =IFERROR(VLOOKUP($AE$2,$BB$12:$BC$36,2,0),"") -> 1000 | BF110: 0
G111: =IF(D111="","",IF(F111="YES",MROUND(ROUND(1.03*G110,0),100),IF(D111="TOTAL",SUM($G$15:G110),G110))) ->  | H111: =IF(D111="","",IF(D111="TOTAL",SUM($H$15:H110),(ROUND(G111*AK111/100,0)))) ->  | I111: =IF(D111="","",IF(D111="TOTAL",SUM($I$15:I110),(ROUND(G111*AL111/100,0)))) ->  | J111: 0 | L111: =IF(D111="","",IF(D111="TOTAL",SUM($L$15:L110),$P$4)) ->  | M111: =IF(D111="","",IF(D111="TOTAL",SUM($M$15:M110),(ROUND(L111*AF111/100,0)))) ->  | N111: =IF(D111="","",IF(D111="TOTAL",SUM($N$15:N110),(ROUND(L111*AG111/100,0)))) ->  | O111: 0 | T111: 0 | U111: =IF(D111="","",IF(D111="TOTAL",SUM($U$15:U110),IF($Z$5="REGULAR",BA111,AJ111+BF111))) ->  | V111: =IF(D111="","",IF(D111="TOTAL",SUM($V$15:V110),(ROUND(T111*AN111,0)))) ->  | W111: =IF(D111="","",IF(E111="mar",$Z$2,IF(D111="TOTAL",SUM($W$15:W110),W110))) ->  | X111: =IF(D111="","",IF(D111="TOTAL",SUM($X$15:X110),(SUM(AH112:AI112)))) ->  | Y111: 0 | Z111: 0 | AF111: =IFERROR(VLOOKUP(D111,$AR$13:$BF$209,8,0),"") ->  | AG111: =IFERROR(VLOOKUP(D111,$AR$13:$BF$209,9,0),"") ->  | AL111: =IFERROR(VLOOKUP(D111,$AR$13:$AAU$209,3,0),"") ->  | AM111: =IFERROR(VLOOKUP(D111,$AR$13:$AAV$209,4,0),"") ->  | AN111: =IFERROR(VLOOKUP(D111,$AR$13:$AAV$209,5,0),"") ->  | AO111: =IFERROR(VLOOKUP(D111,$AR$13:$AAV$109,6,0),"") ->  | AP111: =IFERROR(VLOOKUP(D111,$AR$13:$AAV$109,7,0),"") ->  | AQ111: 2025-03-01 | AR111: Mar-2025 | AS111: 55 | AT111: 10 | AU111: 2 | AV111: 10% | AY111: 0 | AZ111: 0 | BD111: 1000 | BF111: 0
G112: =IF(D112="","",IF(F112="YES",MROUND(ROUND(1.03*G111,0),100),IF(D112="TOTAL",SUM($G$15:G111),G111))) ->  | H112: =IF(D112="","",IF(D112="TOTAL",SUM($H$15:H111),(ROUND(G112*AK112/100,0)))) ->  | I112: =IF(D112="","",IF(D112="TOTAL",SUM($I$15:I111),(ROUND(G112*AL112/100,0)))) ->  | J112: 0 | L112: =IF(D112="","",IF(D112="TOTAL",SUM($L$15:L111),$P$4)) ->  | M112: =IF(D112="","",IF(D112="TOTAL",SUM($M$15:M111),(ROUND(L112*AF112/100,0)))) ->  | N112: =IF(D112="","",IF(D112="TOTAL",SUM($N$15:N111),(ROUND(L112*AG112/100,0)))) ->  | O112: 0 | P112: =IFERROR(MIN(G112-L112),"") ->  | T112: 0 | U112: =IF(D112="","",IF(D112="TOTAL",SUM($U$15:U111),IF($Z$5="REGULAR",BA112,AJ112+BF112))) ->  | V112: =IF(D112="","",IF(D112="TOTAL",SUM($V$15:V111),(ROUND(T112*AN112,0)))) ->  | W112: =IF(D112="","",IF(E112="mar",$Z$2,IF(D112="TOTAL",SUM($W$15:W111),W111))) ->  | X112: =IF(D112="","",IF(D112="TOTAL",SUM($X$15:X111),(SUM(AH113:AI113)))) ->  | Y112: 0 | Z112: 0 | AQ112: 2025-04-01 | AR112: =TEXT(AQ112,"mmm-yyyy") -> Apr-2025 | AS112: 55 | AT112: 10 | AV112: 10% | AY112: 0 | AZ112: 0 | BD112: 1000 | BF112: 0
G113: =IF(D113="","",IF(F113="YES",MROUND(ROUND(1.03*G112,0),100),IF(D113="TOTAL",SUM($G$15:G112),G112))) ->  | H113: =IF(D113="","",IF(D113="TOTAL",SUM($H$15:H112),(ROUND(G113*AK113/100,0)))) ->  | I113: =IF(D113="","",IF(D113="TOTAL",SUM($I$15:I112),(ROUND(G113*AL113/100,0)))) ->  | J113: 0 | L113: =IF(D113="","",IF(D113="TOTAL",SUM($L$15:L112),$P$4)) ->  | M113: =IF(D113="","",IF(D113="TOTAL",SUM($M$15:M112),(ROUND(L113*AF113/100,0)))) ->  | N113: =IF(D113="","",IF(D113="TOTAL",SUM($N$15:N112),(ROUND(L113*AG113/100,0)))) ->  | O113: 0 | T113: 0 | U113: =IF(D113="","",IF(D113="TOTAL",SUM($U$15:U112),IF($Z$5="REGULAR",BA113,AJ113+BF113))) ->  | V113: =IF(D113="","",IF(D113="TOTAL",SUM($V$15:V112),(ROUND(T113*AN113,0)))) ->  | W113: =IF(D113="","",IF(E113="mar",$Z$2,IF(D113="TOTAL",SUM($W$15:W112),W112))) ->  | X113: =IF(D113="","",IF(D113="TOTAL",SUM($X$15:X112),(SUM(AH114:AI114)))) ->  | Y113: 0 | Z113: 0 | AQ113: 2025-05-01 | AR113: May-2025 | AS113: 55 | AT113: 10 | AV113: 10% | AY113: 0 | AZ113: 0 | BD113: 1000 | BF113: 0
G114: =IF(D114="","",IF(F114="YES",MROUND(ROUND(1.03*G113,0),100),IF(D114="TOTAL",SUM($G$15:G113),G113))) ->  | H114: =IF(D114="","",IF(D114="TOTAL",SUM($H$15:H113),(ROUND(G114*AK114/100,0)))) ->  | I114: =IF(D114="","",IF(D114="TOTAL",SUM($I$15:I113),(ROUND(G114*AL114/100,0)))) ->  | J114: 0 | L114: =IF(D114="","",IF(D114="TOTAL",SUM($L$15:L113),$P$4)) ->  | M114: =IF(D114="","",IF(D114="TOTAL",SUM($M$15:M113),(ROUND(L114*AF114/100,0)))) ->  | N114: =IF(D114="","",IF(D114="TOTAL",SUM($N$15:N113),(ROUND(L114*AG114/100,0)))) ->  | O114: 0 | T114: 0 | U114: =IF(D114="","",IF(D114="TOTAL",SUM($U$15:U113),IF($Z$5="REGULAR",BA114,AJ114+BF114))) ->  | V114: =IF(D114="","",IF(D114="TOTAL",SUM($V$15:V113),(ROUND(T114*AN114,0)))) ->  | W114: =IF(D114="","",IF(E114="mar",$Z$2,IF(D114="TOTAL",SUM($W$15:W113),W113))) ->  | X114: =IF(D114="","",IF(D114="TOTAL",SUM($X$15:X113),(SUM(AH115:AI115)))) ->  | Y114: 0 | Z114: 0 | AQ114: 2025-06-01 | AR114: Jun-2025 | AS114: 55 | AT114: 10 | AU114: 3 | AV114: 10% | AY114: 0 | AZ114: 0 | BD114: 1000 | BF114: 0
G115: =IF(D115="","",IF(F115="YES",MROUND(ROUND(1.03*G114,0),100),IF(D115="TOTAL",SUM($G$15:G114),G114))) ->  | H115: =IF(D115="","",IF(D115="TOTAL",SUM($H$15:H114),(ROUND(G115*AK115/100,0)))) ->  | I115: =IF(D115="","",IF(D115="TOTAL",SUM($I$15:I114),(ROUND(G115*AL115/100,0)))) ->  | J115: 0 | L115: =IF(D115="","",IF(D115="TOTAL",SUM($L$15:L114),$P$4)) ->  | M115: =IF(D115="","",IF(D115="TOTAL",SUM($M$15:M114),(ROUND(L115*AF115/100,0)))) ->  | N115: =IF(D115="","",IF(D115="TOTAL",SUM($N$15:N114),(ROUND(L115*AG115/100,0)))) ->  | O115: 0 | T115: 0 | U115: =IF(D115="","",IF(D115="TOTAL",SUM($U$15:U114),IF($Z$5="REGULAR",BA115,AJ115+BF115))) ->  | V115: =IF(D115="","",IF(D115="TOTAL",SUM($V$15:V114),(ROUND(T115*AN115,0)))) ->  | W115: =IF(D115="","",IF(E115="mar",$Z$2,IF(D115="TOTAL",SUM($W$15:W114),W114))) ->  | X115: =IF(D115="","",IF(D115="TOTAL",SUM($X$15:X114),(SUM(AH116:AI116)))) ->  | Y115: 0 | Z115: 0 | AQ115: 2025-07-01 | AR115: Jul-2025 | AS115: 58 | AT115: 10 | AU115: 3 | AV115: 10% | AY115: 0 | AZ115: 0 | BD115: 1000 | BF115: 0
G116: =IF(D116="","",IF(F116="YES",MROUND(ROUND(1.03*G115,0),100),IF(D116="TOTAL",SUM($G$15:G115),G115))) ->  | H116: =IF(D116="","",IF(D116="TOTAL",SUM($H$15:H115),(ROUND(G116*AK116/100,0)))) ->  | I116: =IF(D116="","",IF(D116="TOTAL",SUM($I$15:I115),(ROUND(G116*AL116/100,0)))) ->  | J116: 0 | L116: =IF(D116="","",IF(D116="TOTAL",SUM($L$15:L115),$P$4)) ->  | M116: =IF(D116="","",IF(D116="TOTAL",SUM($M$15:M115),(ROUND(L116*AF116/100,0)))) ->  | N116: =IF(D116="","",IF(D116="TOTAL",SUM($N$15:N115),(ROUND(L116*AG116/100,0)))) ->  | O116: 0 | T116: 0 | U116: =IF(D116="","",IF(D116="TOTAL",SUM($U$15:U115),IF($Z$5="REGULAR",BA116,AJ116+BF116))) ->  | V116: =IF(D116="","",IF(D116="TOTAL",SUM($V$15:V115),(ROUND(T116*AN116,0)))) ->  | W116: =IF(D116="","",IF(E116="mar",$Z$2,IF(D116="TOTAL",SUM($W$15:W115),W115))) ->  | X116: =IF(D116="","",IF(D116="TOTAL",SUM($X$15:X115),(SUM(AH117:AI117)))) ->  | Y116: 0 | Z116: 0 | AQ116: 2025-08-01 | AR116: Aug-2025 | AS116: 58 | AT116: 10 | AU116: 3 | AV116: 10% | AY116: 0 | AZ116: 0 | BD116: 1000 | BF116: 0
G117: =IF(D117="","",IF(F117="YES",MROUND(ROUND(1.03*G116,0),100),IF(D117="TOTAL",SUM($G$15:G116),G116))) ->  | H117: =IF(D117="","",IF(D117="TOTAL",SUM($H$15:H116),(ROUND(G117*AK117/100,0)))) ->  | I117: =IF(D117="","",IF(D117="TOTAL",SUM($I$15:I116),(ROUND(G117*AL117/100,0)))) ->  | J117: 0 | L117: =IF(D117="","",IF(D117="TOTAL",SUM($L$15:L116),$P$4)) ->  | M117: =IF(D117="","",IF(D117="TOTAL",SUM($M$15:M116),(ROUND(L117*AF117/100,0)))) ->  | N117: =IF(D117="","",IF(D117="TOTAL",SUM($N$15:N116),(ROUND(L117*AG117/100,0)))) ->  | O117: 0 | T117: 0 | U117: =IF(D117="","",IF(D117="TOTAL",SUM($U$15:U116),IF($Z$5="REGULAR",BA117,AJ117+BF117))) ->  | V117: =IF(D117="","",IF(D117="TOTAL",SUM($V$15:V116),(ROUND(T117*AN117,0)))) ->  | W117: =IF(D117="","",IF(E117="mar",$Z$2,IF(D117="TOTAL",SUM($W$15:W116),W116))) ->  | X117: =IF(D117="","",IF(D117="TOTAL",SUM($X$15:X116),(SUM(AH118:AI118)))) ->  | Y117: 0 | Z117: 0 | AQ117: 2025-09-01 | AR117: Sep-2025 | AS117: 58 | AT117: 10 | AU117: 3 | AV117: 10% | AY117: 0 | AZ117: 0 | BD117: 1000 | BF117: 0
G118: =IF(D118="","",IF(F118="YES",MROUND(ROUND(1.03*G117,0),100),IF(D118="TOTAL",SUM($G$15:G117),G117))) ->  | H118: =IF(D118="","",IF(D118="TOTAL",SUM($H$15:H117),(ROUND(G118*AK118/100,0)))) ->  | I118: =IF(D118="","",IF(D118="TOTAL",SUM($I$15:I117),(ROUND(G118*AL118/100,0)))) ->  | J118: 0 | L118: =IF(D118="","",IF(D118="TOTAL",SUM($L$15:L117),$P$4)) ->  | M118: =IF(D118="","",IF(D118="TOTAL",SUM($M$15:M117),(ROUND(L118*AF118/100,0)))) ->  | N118: =IF(D118="","",IF(D118="TOTAL",SUM($N$15:N117),(ROUND(L118*AG118/100,0)))) ->  | O118: 0 | T118: 0 | U118: =IF(D118="","",IF(D118="TOTAL",SUM($U$15:U117),IF($Z$5="REGULAR",BA118,AJ118+BF118))) ->  | V118: =IF(D118="","",IF(D118="TOTAL",SUM($V$15:V117),(ROUND(T118*AN118,0)))) ->  | W118: =IF(D118="","",IF(E118="mar",$Z$2,IF(D118="TOTAL",SUM($W$15:W117),W117))) ->  | X118: =IF(D118="","",IF(D118="TOTAL",SUM($X$15:X117),(SUM(AH119:AI119)))) ->  | Y118: 0 | Z118: 0 | AQ118: 2025-10-01 | AR118: Oct-2025 | AS118: 58 | AT118: 10 | AV118: 10% | AY118: 0 | AZ118: 0 | BD118: 1000 | BF118: 0
G119: =IF(D119="","",IF(F119="YES",MROUND(ROUND(1.03*G118,0),100),IF(D119="TOTAL",SUM($G$15:G118),G118))) ->  | H119: =IF(D119="","",IF(D119="TOTAL",SUM($H$15:H118),(ROUND(G119*AK119/100,0)))) ->  | I119: =IF(D119="","",IF(D119="TOTAL",SUM($I$15:I118),(ROUND(G119*AL119/100,0)))) ->  | J119: 0 | L119: =IF(D119="","",IF(D119="TOTAL",SUM($L$15:L118),$P$4)) ->  | M119: =IF(D119="","",IF(D119="TOTAL",SUM($M$15:M118),(ROUND(L119*AF119/100,0)))) ->  | N119: =IF(D119="","",IF(D119="TOTAL",SUM($N$15:N118),(ROUND(L119*AG119/100,0)))) ->  | O119: 0 | T119: 0 | U119: =IF(D119="","",IF(D119="TOTAL",SUM($U$15:U118),IF($Z$5="REGULAR",BA119,AJ119+BF119))) ->  | V119: =IF(D119="","",IF(D119="TOTAL",SUM($V$15:V118),(ROUND(T119*AN119,0)))) ->  | W119: =IF(D119="","",IF(E119="mar",$Z$2,IF(D119="TOTAL",SUM($W$15:W118),W118))) ->  | X119: =IF(D119="","",IF(D119="TOTAL",SUM($X$15:X118),(SUM(AH120:AI120)))) ->  | Y119: 0 | Z119: 0 | AQ119: 2025-11-01 | AR119: Nov-2025 | AS119: 58 | AT119: 10 | AV119: 10% | AY119: 0 | AZ119: 0 | BD119: 1000 | BF119: 0
G120: =IF(D120="","",IF(F120="YES",MROUND(ROUND(1.03*G119,0),100),IF(D120="TOTAL",SUM($G$15:G119),G119))) ->  | H120: =IF(D120="","",IF(D120="TOTAL",SUM($H$15:H119),(ROUND(G120*AK120/100,0)))) ->  | I120: =IF(D120="","",IF(D120="TOTAL",SUM($I$15:I119),(ROUND(G120*AL120/100,0)))) ->  | J120: 0 | L120: =IF(D120="","",IF(D120="TOTAL",SUM($L$15:L119),$P$4)) ->  | M120: =IF(D120="","",IF(D120="TOTAL",SUM($M$15:M119),(ROUND(L120*AF120/100,0)))) ->  | N120: =IF(D120="","",IF(D120="TOTAL",SUM($N$15:N119),(ROUND(L120*AG120/100,0)))) ->  | O120: 0 | T120: 0 | U120: =IF(D120="","",IF(D120="TOTAL",SUM($U$15:U119),IF($Z$5="REGULAR",BA120,AJ120+BF120))) ->  | V120: =IF(D120="","",IF(D120="TOTAL",SUM($V$15:V119),(ROUND(T120*AN120,0)))) ->  | W120: =IF(D120="","",IF(E120="mar",$Z$2,IF(D120="TOTAL",SUM($W$15:W119),W119))) ->  | X120: =IF(D120="","",IF(D120="TOTAL",SUM($X$15:X119),(SUM(AH121:AI121)))) ->  | Y120: 0 | Z120: 0 | AQ120: 2025-12-01 | AR120: Dec-2025 | AS120: 58 | AT120: 10 | AV120: 10% | AY120: 0 | AZ120: 0 | BD120: 1000 | BF120: 0
G121: =IF(D121="","",IF(F121="YES",MROUND(ROUND(1.03*G120,0),100),IF(D121="TOTAL",SUM($G$15:G120),G120))) ->  | H121: =IF(D121="","",IF(D121="TOTAL",SUM($H$15:H120),(ROUND(G121*AK121/100,0)))) ->  | I121: =IF(D121="","",IF(D121="TOTAL",SUM($I$15:I120),(ROUND(G121*AL121/100,0)))) ->  | J121: 0 | L121: =IF(D121="","",IF(D121="TOTAL",SUM($L$15:L120),$P$4)) ->  | M121: =IF(D121="","",IF(D121="TOTAL",SUM($M$15:M120),(ROUND(L121*AF121/100,0)))) ->  | N121: =IF(D121="","",IF(D121="TOTAL",SUM($N$15:N120),(ROUND(L121*AG121/100,0)))) ->  | O121: 0 | T121: 0 | U121: =IF(D121="","",IF(D121="TOTAL",SUM($U$15:U120),IF($Z$5="REGULAR",BA121,AJ121+BF121))) ->  | V121: =IF(D121="","",IF(D121="TOTAL",SUM($V$15:V120),(ROUND(T121*AN121,0)))) ->  | W121: =IF(D121="","",IF(E121="mar",$Z$2,IF(D121="TOTAL",SUM($W$15:W120),W120))) ->  | X121: =IF(D121="","",IF(D121="TOTAL",SUM($X$15:X120),(SUM(AH122:AI122)))) ->  | Y121: 0 | Z121: 0 | AQ121: 2026-01-01 | AR121: Jan-2026 | AS121: 58 | AT121: 10 | AV121: 10% | AY121: 0 | AZ121: 0 | BD121: 1000
G122: =IF(D122="","",IF(F122="YES",MROUND(ROUND(1.03*G121,0),100),IF(D122="TOTAL",SUM($G$15:G121),G121))) ->  | H122: =IF(D122="","",IF(D122="TOTAL",SUM($H$15:H121),(ROUND(G122*AK122/100,0)))) ->  | I122: =IF(D122="","",IF(D122="TOTAL",SUM($I$15:I121),(ROUND(G122*AL122/100,0)))) ->  | J122: 0 | L122: =IF(D122="","",IF(D122="TOTAL",SUM($L$15:L121),$P$4)) ->  | M122: =IF(D122="","",IF(D122="TOTAL",SUM($M$15:M121),(ROUND(L122*AF122/100,0)))) ->  | N122: =IF(D122="","",IF(D122="TOTAL",SUM($N$15:N121),(ROUND(L122*AG122/100,0)))) ->  | O122: 0 | T122: 0 | U122: =IF(D122="","",IF(D122="TOTAL",SUM($U$15:U121),IF($Z$5="REGULAR",BA122,AJ122+BF122))) ->  | V122: =IF(D122="","",IF(D122="TOTAL",SUM($V$15:V121),(ROUND(T122*AN122,0)))) ->  | W122: =IF(D122="","",IF(E122="mar",$Z$2,IF(D122="TOTAL",SUM($W$15:W121),W121))) ->  | X122: =IF(D122="","",IF(D122="TOTAL",SUM($X$15:X121),(SUM(AH123:AI123)))) ->  | Y122: 0 | Z122: 0 | AQ122: 2026-02-01 | AR122: Feb-2026 | AS122: 58 | AT122: 10 | AV122: 10% | BD122: 1000
C123: =IFERROR(IF(AC123="","",IF(DATE(YEAR(AC123),MONTH(AC123),DAY(AC123))=DATE(YEAR($O$7),MONTH($O$7)+1,DAY($O$7)),"TOTAL",IF(AC123>$O$7,"",AC123))),"") ->  | D123: =TEXT(C123,"mmm-yyyy") ->  | G123: =IF(D123="","",IF(F123="YES",MROUND(ROUND(1.03*G122,0),100),IF(D123="TOTAL",SUM($G$15:G122),G122))) ->  | H123: =IF(D123="","",IF(D123="TOTAL",SUM($H$15:H122),(ROUND(G123*AK123/100,0)))) ->  | I123: =IF(D123="","",IF(D123="TOTAL",SUM($I$15:I122),(ROUND(G123*AL123/100,0)))) ->  | J123: =SUM(G123:I123) -> 0 | L123: =IF(D123="","",IF(D123="TOTAL",SUM($L$15:L122),$P$4)) ->  | M123: =IF(D123="","",IF(D123="TOTAL",SUM($M$15:M122),(ROUND(L123*AF123/100,0)))) ->  | N123: =IF(D123="","",IF(D123="TOTAL",SUM($N$15:N122),(ROUND(L123*AG123/100,0)))) ->  | O123: =IFERROR(SUM(L123:N123),"") -> 0 | P123: =IFERROR(MIN(G123-L123),"") ->  | Q123: =IFERROR(MIN(H123-M123),"") ->  | R123: =IFERROR(MIN(I123-N123),"") ->  | T123: =IFERROR(SUM(P123:S123),"") -> 0 | U123: =IF(D123="","",IF(D123="TOTAL",SUM($U$15:U122),IF($Z$5="REGULAR",BA123,AJ123+BF123))) ->  | V123: =IF(D123="","",IF(D123="TOTAL",SUM($V$15:V122),(ROUND(T123*AN123,0)))) ->  | W123: =IF(D123="","",IF(E123="mar",$Z$2,IF(D123="TOTAL",SUM($W$15:W122),W122))) ->  | X123: =IF(D123="","",IF(D123="TOTAL",SUM($X$15:X122),(SUM(AH124:AI124)))) ->  | Y123: =IFERROR(SUM(U123:X123),"") -> 0 | Z123: =T123-Y123 -> 0 | AI123: 0 | AQ123: 2026-03-01 | AR123: Mar-2026 | AS123: 58 | AT123: 10 | AV123: 10% | BD123: 1000
G124: =IF(D124="","",IF(F124="YES",MROUND(ROUND(1.03*G123,0),100),IF(D124="TOTAL",SUM($G$15:G123),G123))) ->  | H124: =IF(D124="","",IF(D124="TOTAL",SUM($H$15:H123),(ROUND(G124*AK124/100,0)))) ->  | I124: =IF(D124="","",IF(D124="TOTAL",SUM($I$15:I123),(ROUND(G124*AL124/100,0)))) ->  | J124: =SUM(G124:I124) -> 0 | L124: =IF(D124="","",IF(D124="TOTAL",SUM($L$15:L123),$P$4)) ->  | M124: =IF(D124="","",IF(D124="TOTAL",SUM($M$15:M123),(ROUND(L124*AF124/100,0)))) ->  | N124: =IF(D124="","",IF(D124="TOTAL",SUM($N$15:N123),(ROUND(L124*AG124/100,0)))) ->  | O124: =IFERROR(SUM(L124:N124),"") -> 0 | P124: =IFERROR(MIN(G124-L124),"") ->  | Q124: =IFERROR(MIN(H124-M124),"") ->  | R124: =IFERROR(MIN(I124-N124),"") ->  | T124: =IFERROR(SUM(P124:S124),"") -> 0 | U124: =IF(D124="","",IF(D124="TOTAL",SUM($U$15:U123),IF($Z$5="REGULAR",BA124,AJ124+BF124))) ->  | V124: =IF(D124="","",IF(D124="TOTAL",SUM($V$15:V123),(ROUND(T124*AN124,0)))) ->  | W124: =IF(D124="","",IF(E124="mar",$Z$2,IF(D124="TOTAL",SUM($W$15:W123),W123))) ->  | X124: =IF(D124="","",IF(D124="TOTAL",SUM($X$15:X123),(SUM(AH125:AI125)))) ->  | Y124: =IFERROR(SUM(U124:X124),"") -> 0 | Z124: 0 | AJ124: =IFERROR(VLOOKUP(D124,$AR$13:$BD$209,13,0),"") ->  | AK124: =IFERROR(VLOOKUP(D124,$AR$13:$AS$209,2,0),"") ->  | AL124: =IFERROR(VLOOKUP(D124,$AR$13:$AAU$209,3,0),"") ->  | AQ124: 2026-04-01 | AR124: Apr-2026 | AS124: 58 | AT124: 10 | AV124: 10% | BD124: 1000
G125: =IF(D125="","",IF(F125="YES",MROUND(ROUND(1.03*G124,0),100),IF(D125="TOTAL",SUM($G$15:G124),G124))) ->  | H125: =IF(D125="","",IF(D125="TOTAL",SUM($H$15:H124),(ROUND(G125*AK125/100,0)))) ->  | I125: =IF(D125="","",IF(D125="TOTAL",SUM($I$15:I124),(ROUND(G125*AL125/100,0)))) ->  | J125: 0 | L125: =IF(D125="","",IF(D125="TOTAL",SUM($L$15:L124),$P$4)) ->  | M125: =IF(D125="","",IF(D125="TOTAL",SUM($M$15:M124),(ROUND(L125*AF125/100,0)))) ->  | N125: =IF(D125="","",IF(D125="TOTAL",SUM($N$15:N124),(ROUND(L125*AG125/100,0)))) ->  | O125: 0 | T125: 0 | U125: =IF(D125="","",IF(D125="TOTAL",SUM($U$15:U124),IF($Z$5="REGULAR",BA125,AJ125+BF125))) ->  | V125: =IF(D125="","",IF(D125="TOTAL",SUM($V$15:V124),(ROUND(T125*AN125,0)))) ->  | W125: =IF(D125="","",IF(E125="mar",$Z$2,IF(D125="TOTAL",SUM($W$15:W124),W124))) ->  | X125: =IF(D125="","",IF(D125="TOTAL",SUM($X$15:X124),(SUM(AH126:AI126)))) ->  | Y125: 0 | Z125: 0 | AQ125: 2026-05-01 | AR125: May-2026 | AS125: 58 | AT125: 10 | AV125: 10% | BD125: 1000
G126: =IF(D126="","",IF(F126="YES",MROUND(ROUND(1.03*G125,0),100),IF(D126="TOTAL",SUM($G$15:G125),G125))) ->  | H126: =IF(D126="","",IF(D126="TOTAL",SUM($H$15:H125),(ROUND(G126*AK126/100,0)))) ->  | I126: =IF(D126="","",IF(D126="TOTAL",SUM($I$15:I125),(ROUND(G126*AL126/100,0)))) ->  | J126: 0 | L126: =IF(D126="","",IF(D126="TOTAL",SUM($L$15:L125),$P$4)) ->  | M126: =IF(D126="","",IF(D126="TOTAL",SUM($M$15:M125),(ROUND(L126*AF126/100,0)))) ->  | N126: =IF(D126="","",IF(D126="TOTAL",SUM($N$15:N125),(ROUND(L126*AG126/100,0)))) ->  | O126: 0 | T126: 0 | U126: =IF(D126="","",IF(D126="TOTAL",SUM($U$15:U125),IF($Z$5="REGULAR",BA126,AJ126+BF126))) ->  | V126: =IF(D126="","",IF(D126="TOTAL",SUM($V$15:V125),(ROUND(T126*AN126,0)))) ->  | W126: =IF(D126="","",IF(E126="mar",$Z$2,IF(D126="TOTAL",SUM($W$15:W125),W125))) ->  | X126: =IF(D126="","",IF(D126="TOTAL",SUM($X$15:X125),(SUM(AH127:AI127)))) ->  | Y126: 0 | Z126: 0 | AQ126: 2026-06-01 | AR126: Jun-2026 | AS126: 58 | AT126: 10 | AV126: 10% | BD126: 1000
G127: =IF(D127="","",IF(F127="YES",MROUND(ROUND(1.03*G126,0),100),IF(D127="TOTAL",SUM($G$15:G126),G126))) ->  | H127: =IF(D127="","",IF(D127="TOTAL",SUM($H$15:H126),(ROUND(G127*AK127/100,0)))) ->  | I127: =IF(D127="","",IF(D127="TOTAL",SUM($I$15:I126),(ROUND(G127*AL127/100,0)))) ->  | J127: 0 | L127: =IF(D127="","",IF(D127="TOTAL",SUM($L$15:L126),$P$4)) ->  | M127: =IF(D127="","",IF(D127="TOTAL",SUM($M$15:M126),(ROUND(L127*AF127/100,0)))) ->  | N127: =IF(D127="","",IF(D127="TOTAL",SUM($N$15:N126),(ROUND(L127*AG127/100,0)))) ->  | O127: 0 | T127: 0 | U127: =IF(D127="","",IF(D127="TOTAL",SUM($U$15:U126),IF($Z$5="REGULAR",BA127,AJ127+BF127))) ->  | V127: =IF(D127="","",IF(D127="TOTAL",SUM($V$15:V126),(ROUND(T127*AN127,0)))) ->  | W127: =IF(D127="","",IF(E127="mar",$Z$2,IF(D127="TOTAL",SUM($W$15:W126),W126))) ->  | X127: =IF(D127="","",IF(D127="TOTAL",SUM($X$15:X126),(SUM(AH128:AI128)))) ->  | Y127: 0 | Z127: 0 | AQ127: 2026-07-01 | AR127: Jul-2026 | AS127: 58 | AT127: 10 | AV127: 10% | BD127: 1000
G128: =IF(D128="","",IF(F128="YES",MROUND(ROUND(1.03*G127,0),100),IF(D128="TOTAL",SUM($G$15:G127),G127))) ->  | H128: =IF(D128="","",IF(D128="TOTAL",SUM($H$15:H127),(ROUND(G128*AK128/100,0)))) ->  | I128: =IF(D128="","",IF(D128="TOTAL",SUM($I$15:I127),(ROUND(G128*AL128/100,0)))) ->  | J128: 0 | L128: =IF(D128="","",IF(D128="TOTAL",SUM($L$15:L127),$P$4)) ->  | M128: =IF(D128="","",IF(D128="TOTAL",SUM($M$15:M127),(ROUND(L128*AF128/100,0)))) ->  | N128: =IF(D128="","",IF(D128="TOTAL",SUM($N$15:N127),(ROUND(L128*AG128/100,0)))) ->  | O128: 0 | T128: 0 | U128: =IF(D128="","",IF(D128="TOTAL",SUM($U$15:U127),IF($Z$5="REGULAR",BA128,AJ128+BF128))) ->  | V128: =IF(D128="","",IF(D128="TOTAL",SUM($V$15:V127),(ROUND(T128*AN128,0)))) ->  | W128: =IF(D128="","",IF(E128="mar",$Z$2,IF(D128="TOTAL",SUM($W$15:W127),W127))) ->  | X128: =IF(D128="","",IF(D128="TOTAL",SUM($X$15:X127),(SUM(AH129:AI129)))) ->  | Y128: 0 | Z128: 0 | AQ128: 2026-08-01 | AR128: Aug-2026 | AS128: 58 | AT128: 10 | AV128: 10% | BD128: 1000
G129: =IF(D129="","",IF(F129="YES",MROUND(ROUND(1.03*G128,0),100),IF(D129="TOTAL",SUM($G$15:G128),G128))) ->  | H129: =IF(D129="","",IF(D129="TOTAL",SUM($H$15:H128),(ROUND(G129*AK129/100,0)))) ->  | I129: =IF(D129="","",IF(D129="TOTAL",SUM($I$15:I128),(ROUND(G129*AL129/100,0)))) ->  | J129: 0 | L129: =IF(D129="","",IF(D129="TOTAL",SUM($L$15:L128),$P$4)) ->  | M129: =IF(D129="","",IF(D129="TOTAL",SUM($M$15:M128),(ROUND(L129*AF129/100,0)))) ->  | N129: =IF(D129="","",IF(D129="TOTAL",SUM($N$15:N128),(ROUND(L129*AG129/100,0)))) ->  | O129: 0 | T129: 0 | U129: =IF(D129="","",IF(D129="TOTAL",SUM($U$15:U128),IF($Z$5="REGULAR",BA129,AJ129+BF129))) ->  | V129: =IF(D129="","",IF(D129="TOTAL",SUM($V$15:V128),(ROUND(T129*AN129,0)))) ->  | W129: =IF(D129="","",IF(E129="mar",$Z$2,IF(D129="TOTAL",SUM($W$15:W128),W128))) ->  | X129: =IF(D129="","",IF(D129="TOTAL",SUM($X$15:X128),(SUM(AH130:AI130)))) ->  | Y129: 0 | Z129: 0 | AQ129: 2026-09-01 | AR129: Sep-2026 | AS129: 58 | AT129: 10 | AV129: 10% | BD129: 1000
G130: =IF(D130="","",IF(F130="YES",MROUND(ROUND(1.03*G129,0),100),IF(D130="TOTAL",SUM($G$15:G129),G129))) ->  | H130: =IF(D130="","",IF(D130="TOTAL",SUM($H$15:H129),(ROUND(G130*AK130/100,0)))) ->  | I130: =IF(D130="","",IF(D130="TOTAL",SUM($I$15:I129),(ROUND(G130*AL130/100,0)))) ->  | J130: 0 | L130: =IF(D130="","",IF(D130="TOTAL",SUM($L$15:L129),$P$4)) ->  | M130: =IF(D130="","",IF(D130="TOTAL",SUM($M$15:M129),(ROUND(L130*AF130/100,0)))) ->  | N130: =IF(D130="","",IF(D130="TOTAL",SUM($N$15:N129),(ROUND(L130*AG130/100,0)))) ->  | O130: 0 | T130: 0 | U130: =IF(D130="","",IF(D130="TOTAL",SUM($U$15:U129),IF($Z$5="REGULAR",BA130,AJ130+BF130))) ->  | V130: =IF(D130="","",IF(D130="TOTAL",SUM($V$15:V129),(ROUND(T130*AN130,0)))) ->  | W130: =IF(D130="","",IF(E130="mar",$Z$2,IF(D130="TOTAL",SUM($W$15:W129),W129))) ->  | X130: =IF(D130="","",IF(D130="TOTAL",SUM($X$15:X129),(SUM(AH131:AI131)))) ->  | Y130: 0 | Z130: 0 | AQ130: 2026-10-01 | AR130: Oct-2026 | AS130: 58 | AT130: 10 | AV130: 10% | BD130: 1000
G131: =IF(D131="","",IF(F131="YES",MROUND(ROUND(1.03*G130,0),100),IF(D131="TOTAL",SUM($G$15:G130),G130))) ->  | H131: =IF(D131="","",IF(D131="TOTAL",SUM($H$15:H130),(ROUND(G131*AK131/100,0)))) ->  | I131: =IF(D131="","",IF(D131="TOTAL",SUM($I$15:I130),(ROUND(G131*AL131/100,0)))) ->  | J131: 0 | L131: =IF(D131="","",IF(D131="TOTAL",SUM($L$15:L130),$P$4)) ->  | M131: =IF(D131="","",IF(D131="TOTAL",SUM($M$15:M130),(ROUND(L131*AF131/100,0)))) ->  | N131: =IF(D131="","",IF(D131="TOTAL",SUM($N$15:N130),(ROUND(L131*AG131/100,0)))) ->  | O131: 0 | T131: 0 | U131: =IF(D131="","",IF(D131="TOTAL",SUM($U$15:U130),IF($Z$5="REGULAR",BA131,AJ131+BF131))) ->  | V131: =IF(D131="","",IF(D131="TOTAL",SUM($V$15:V130),(ROUND(T131*AN131,0)))) ->  | W131: =IF(D131="","",IF(E131="mar",$Z$2,IF(D131="TOTAL",SUM($W$15:W130),W130))) ->  | X131: =IF(D131="","",IF(D131="TOTAL",SUM($X$15:X130),(SUM(AH132:AI132)))) ->  | Y131: 0 | Z131: 0 | AQ131: 2026-11-01 | AR131: Nov-2026 | AS131: 58 | AT131: 10 | AV131: 10% | BD131: 1000
G132: =IF(D132="","",IF(F132="YES",MROUND(ROUND(1.03*G131,0),100),IF(D132="TOTAL",SUM($G$15:G131),G131))) ->  | H132: =IF(D132="","",IF(D132="TOTAL",SUM($H$15:H131),(ROUND(G132*AK132/100,0)))) ->  | I132: =IF(D132="","",IF(D132="TOTAL",SUM($I$15:I131),(ROUND(G132*AL132/100,0)))) ->  | J132: 0 | L132: =IF(D132="","",IF(D132="TOTAL",SUM($L$15:L131),$P$4)) ->  | M132: =IF(D132="","",IF(D132="TOTAL",SUM($M$15:M131),(ROUND(L132*AF132/100,0)))) ->  | N132: =IF(D132="","",IF(D132="TOTAL",SUM($N$15:N131),(ROUND(L132*AG132/100,0)))) ->  | O132: 0 | T132: 0 | U132: =IF(D132="","",IF(D132="TOTAL",SUM($U$15:U131),IF($Z$5="REGULAR",BA132,AJ132+BF132))) ->  | V132: =IF(D132="","",IF(D132="TOTAL",SUM($V$15:V131),(ROUND(T132*AN132,0)))) ->  | W132: =IF(D132="","",IF(E132="mar",$Z$2,IF(D132="TOTAL",SUM($W$15:W131),W131))) ->  | X132: =IF(D132="","",IF(D132="TOTAL",SUM($X$15:X131),(SUM(AH133:AI133)))) ->  | Y132: 0 | Z132: 0 | AQ132: 2026-12-01 | AR132: Dec-2026 | AS132: 58 | AT132: 10 | AV132: 10% | BD132: 1000
G133: =IF(D133="","",IF(F133="YES",MROUND(ROUND(1.03*G132,0),100),IF(D133="TOTAL",SUM($G$15:G132),G132))) ->  | H133: =IF(D133="","",IF(D133="TOTAL",SUM($H$15:H132),(ROUND(G133*AK133/100,0)))) ->  | I133: =IF(D133="","",IF(D133="TOTAL",SUM($I$15:I132),(ROUND(G133*AL133/100,0)))) ->  | J133: 0 | L133: =IF(D133="","",IF(D133="TOTAL",SUM($L$15:L132),$P$4)) ->  | M133: =IF(D133="","",IF(D133="TOTAL",SUM($M$15:M132),(ROUND(L133*AF133/100,0)))) ->  | N133: =IF(D133="","",IF(D133="TOTAL",SUM($N$15:N132),(ROUND(L133*AG133/100,0)))) ->  | O133: 0 | T133: 0 | U133: =IF(D133="","",IF(D133="TOTAL",SUM($U$15:U132),IF($Z$5="REGULAR",BA133,AJ133+BF133))) ->  | V133: =IF(D133="","",IF(D133="TOTAL",SUM($V$15:V132),(ROUND(T133*AN133,0)))) ->  | W133: =IF(D133="","",IF(E133="mar",$Z$2,IF(D133="TOTAL",SUM($W$15:W132),W132))) ->  | X133: =IF(D133="","",IF(D133="TOTAL",SUM($X$15:X132),(SUM(AH134:AI134)))) ->  | Y133: 0 | Z133: 0 | AQ133: 2027-01-01 | AR133: =TEXT(AQ133,"mmm-yyyy") -> Jan-2027 | AS133: 59 | AT133: 10 | AV133: 10% | BD133: 1000
G134: =IF(D134="","",IF(F134="YES",MROUND(ROUND(1.03*G133,0),100),IF(D134="TOTAL",SUM($G$15:G133),G133))) ->  | H134: =IF(D134="","",IF(D134="TOTAL",SUM($H$15:H133),(ROUND(G134*AK134/100,0)))) ->  | I134: =IF(D134="","",IF(D134="TOTAL",SUM($I$15:I133),(ROUND(G134*AL134/100,0)))) ->  | J134: 0 | L134: =IF(D134="","",IF(D134="TOTAL",SUM($L$15:L133),$P$4)) ->  | M134: =IF(D134="","",IF(D134="TOTAL",SUM($M$15:M133),(ROUND(L134*AF134/100,0)))) ->  | N134: =IF(D134="","",IF(D134="TOTAL",SUM($N$15:N133),(ROUND(L134*AG134/100,0)))) ->  | O134: 0 | T134: 0 | U134: =IF(D134="","",IF(D134="TOTAL",SUM($U$15:U133),IF($Z$5="REGULAR",BA134,AJ134+BF134))) ->  | V134: =IF(D134="","",IF(D134="TOTAL",SUM($V$15:V133),(ROUND(T134*AN134,0)))) ->  | W134: =IF(D134="","",IF(E134="mar",$Z$2,IF(D134="TOTAL",SUM($W$15:W133),W133))) ->  | X134: =IF(D134="","",IF(D134="TOTAL",SUM($X$15:X133),(SUM(AH135:AI135)))) ->  | Y134: 0 | Z134: 0 | BD134: 1000
G135: =IF(D135="","",IF(F135="YES",MROUND(ROUND(1.03*G134,0),100),IF(D135="TOTAL",SUM($G$15:G134),G134))) ->  | H135: =IF(D135="","",IF(D135="TOTAL",SUM($H$15:H134),(ROUND(G135*AK135/100,0)))) ->  | I135: =IF(D135="","",IF(D135="TOTAL",SUM($I$15:I134),(ROUND(G135*AL135/100,0)))) ->  | J135: =SUM(G135:I135) -> 0 | L135: =IF(D135="","",IF(D135="TOTAL",SUM($L$15:L134),$P$4)) ->  | M135: =IF(D135="","",IF(D135="TOTAL",SUM($M$15:M134),(ROUND(L135*AF135/100,0)))) ->  | N135: =IF(D135="","",IF(D135="TOTAL",SUM($N$15:N134),(ROUND(L135*AG135/100,0)))) ->  | O135: =IFERROR(SUM(L135:N135),"") -> 0 | P135: =IFERROR(MIN(G135-L135),"") ->  | Q135: =IFERROR(MIN(H135-M135),"") ->  | R135: =IFERROR(MIN(I135-N135),"") ->  | T135: =IFERROR(SUM(P135:S135),"") -> 0 | U135: =IF(D135="","",IF(D135="TOTAL",SUM($U$15:U134),IF($Z$5="REGULAR",BA135,AJ135+BF135))) ->  | V135: =IF(D135="","",IF(D135="TOTAL",SUM($V$15:V134),(ROUND(T135*AN135,0)))) ->  | W135: =IF(D135="","",IF(E135="mar",$Z$2,IF(D135="TOTAL",SUM($W$15:W134),W134))) ->  | X135: =IF(D135="","",IF(D135="TOTAL",SUM($X$15:X134),(SUM(AH136:AI136)))) ->  | Y135: =IFERROR(SUM(U135:X135),"") -> 0 | Z135: 0 | BD135: 1000
G136: =IF(D136="","",IF(F136="YES",MROUND(ROUND(1.03*G135,0),100),IF(D136="TOTAL",SUM($G$15:G135),G135))) ->  | H136: =IF(D136="","",IF(D136="TOTAL",SUM($H$15:H135),(ROUND(G136*AK136/100,0)))) ->  | I136: =IF(D136="","",IF(D136="TOTAL",SUM($I$15:I135),(ROUND(G136*AL136/100,0)))) ->  | J136: 0 | L136: =IF(D136="","",IF(D136="TOTAL",SUM($L$15:L135),$P$4)) -> 
G137: =IF(D137="","",IF(F137="YES",MROUND(ROUND(1.03*G136,0),100),IF(D137="TOTAL",SUM($G$15:G136),G136))) ->  | H137: =IF(D137="","",IF(D137="TOTAL",SUM($H$15:H136),(ROUND(G137*AK137/100,0)))) ->  | I137: =IF(D137="","",IF(D137="TOTAL",SUM($I$15:I136),(ROUND(G137*AL137/100,0)))) ->  | J137: =SUM(G137:I137) -> 0 | L137: =IF(D137="","",IF(D137="TOTAL",SUM($L$15:L136),$P$4)) -> 
C145: =IFERROR(IF(AC145="","",IF(DATE(YEAR(AC145),MONTH(AC145),DAY(AC145))=DATE(YEAR($O$7),MONTH($O$7)+1,DAY($O$7)),"TOTAL",IF(AC145>$O$7,"",AC145))),"") -> 

Sheet Unlock Arrear Probation
B1: WELCOME TO RAJTEACHERS.NET | M1: CREATED BY : PARMANAND MEGHWAL SENIOR TEACHER GUPS KANWARPURA, BARAN
B2: OFFICE NAME | J2: GOVT. SR. SECONDARY SCHOOL, GORDHANPURA, ATRU, BARAN | U2: INCREAMENT | X2: JUL | Y2: S.I. DED. | Z2: 0 | AE2: =Z5 -> PROBATION (L-10)
B3: EMPLOYEE NAME | J3: Parmanand Meghwal | O3: DESIGNATION | Q3: Senior Teacher | U3: SI (STATE INSURANCE) | Y3: SUB-ORDINATE
B4: ARREAR DATE FROM (DD-MM-YYYY) | J4: 06 | K4: NOV | L4: 2025 | M4: OLD BASIC PAY | P4: 23700 | R4: HRA (BEFORE 01.07.2021) | W4: 8 | X4: TAX DED. % | Z4: 10% | AK4: TO
B5: ARREAR DATE UP TO (MM-YYYY) | J5: MAR | L5: 2026 | M5: NEW BASIC PAY | P5: 33800 | R5: HRA (AFTER 01.07.2021) | W5: 9 | X5: PAY LEVEL | Z5: PROBATION (L-10)
B6: Fill all the options on the sheet | R6: HRA (AFTER 01.07.2024) | W6: 10 | X6: RAJTEACHERS.NET
I7: =DATEDIF(L7,P7,"m") -> 4 | J7: =I7+1 -> 5 | L7: =DATEVALUE(J4&K4&L4) -> 2025-11-06 | O7: =DATEVALUE(J5&L5) -> 2026-03-01 | P7: =EOMONTH(O7,0) -> 2026-03-31
C8: =EOMONTH(L7,0) -> 2025-11-30 | D8: =DAY(EOMONTH(C8,0)) -> 30 | E8: =G8+1 -> 1900-01-25 | G8: =DATEDIF(L7, C8, "D") -> 1900-01-24 | L8: =DATEVALUE(K4&L4) -> 2025-11-01 | M8: =IFERROR(DATE(YEAR(L8),MONTH(L8)+1,DAY(L8)),"") -> 2025-12-01
B10: =J2 -> GOVT. SR. SECONDARY SCHOOL, GORDHANPURA, ATRU, BARAN | AO10: =IF(Y3="STATE",5,IF(Y3="SUB-ORDINATE",3,IF(Y3="MINISTRIAL",2,IF(Y3="CLASS-IV",1,"")))) -> 3 | BB10: =E8 -> 1900-01-25
M11: ARREAR FROM - | P11: =L7 -> 2025-11-06 | R11: TO | S11: =P7 -> 2026-03-31 | AO11: =ROUND(T15/31,0) -> 889 | BG11: 2017 | BH11: JAN | BI11: 01
B12: Name Of Employee - | I12: =J3 -> Parmanand Meghwal | O12: Designation - | R12: =Q3 -> Senior Teacher | V12: Employee ID | Y12: RJBR200804022222 | BG12: 2018 | BH12: FEB | BI12: 02
B13: SN | C13: MONTH | D13: MONTH | G13: DUE | L13: DRAWN | P13: DIFFERENT | U13: DEDUCTION | Y13: TOTAL DED. | Z13: NET AMOUNT | AF13: DA-P | AG13: HRA-P | AH13: CORONA | AI13: CORONA | AJ13: TOTAL | AK13: DA | AL13: HRA | AM13: GPF | AN13: TAX | AO13: CORONA | AP13: CORONA2 | AQ13: 2017-01-01 | AR13: =TEXT(AQ13,"mmm-yyyy") -> Jan-2017 | AS13: 4 | AV13: =Z4 -> 10% | AY13: =IF($Z$5="REGULAR",AS13,0) -> 0 | AZ13: =IF($Z$5="REGULAR",$W$4,0) -> 0 | BA13: GPF-P | BB13: PROBATION (L-1) | BC13: 750 | BG13: 2019 | BH13: MAR | BI13: 03
G14: BASIC | H14: DA | I14: HRA | J14: TOTAL | L14: BASIC | M14: DA | N14: HRA | O14: TOTAL | P14: BASIC | Q14: DA | R14: HRA | S14: SURRENDER | T14: TOTAL | U14: GPF | V14: ITAX | W14: SI | X14: CORONA | AQ14: 2017-02-01 | AR14: =TEXT(AQ14,"mmm-yyyy") -> Feb-2017 | AS14: 4 | AV14: =AV13 -> 10% | AY14: =IF($Z$5="REGULAR",AS14,0) -> 0 | AZ14: =IF($Z$5="REGULAR",$W$4,0) -> 0 | BB14: PROBATION (L-2) | BC14: 750 | BG14: 2020 | BH14: APR | BI14: 04
B15: 1 | C15: =L7 -> 2025-11-06 | D15: =TEXT(C15,"mmm-yyyy") -> Nov-2025 | E15: =TEXT(D15,"mmm") -> Nov | G15: =IF(D15="","",ROUND(P5/D8*E8,0)) -> 28167 | H15: =IF(D15="","",IF(D15="TOTAL",SUM($H$15:H15),(ROUND(G15*AK15/100,0)))) -> 16337 | I15: =IF(D15="","",IF(D15="TOTAL",SUM($I$15:I15),(ROUND(G15*AL15/100,0)))) -> 2817 | J15: =IFERROR(SUM(G15:I15),"") -> 47321 | L15: =IF(D15="","",ROUND(P4/D8*E8,0)) -> 19750 | M15: =IF(D15="","",IF(D15="TOTAL",SUM($M$15:M15),(ROUND(L15*AF15/100,0)))) -> 0 | N15: =IF(D15="","",IF(D15="TOTAL",SUM($N$15:N15),(ROUND(L15*AG15/100,0)))) -> 0 | O15: =IFERROR(SUM(L15:N15),"") -> 19750 | P15: =IFERROR(MIN(G15-L15),"") -> 8417 | Q15: 16337 | R15: 2817 | T15: =IFERROR(SUM(P15:S15),"") -> 27571 | U15: =IF(D15="","",IF(D15="TOTAL",SUM($U$15:U15),IF($Z$5="REGULAR",BA15,AJ15+BF15))) -> 1000 | V15: =IF(D15="","",IF(D15="TOTAL",SUM($V$15:V15),(ROUND(T15*AN15,0)))) -> 2757 | W15: =IF(E15="mar",$Z$2,"") ->  | X15: =IF(D15="","",IF(D15="TOTAL",SUM($X$15:X15),(SUM(AH16:AI16)))) -> 0 | Y15: =IFERROR(SUM(U15:X15),"") -> 3757 | Z15: =T15-Y15 -> 23814 | AC15: =DATEVALUE(J4&K4&L4) -> 2025-11-06 | AD15: =AC15 -> 2025-11-06 | AE15: =IFERROR(ROUND(P15*AK15/100,0),"") -> 4882 | AF15: =IFERROR(VLOOKUP(D15,$AR$13:$BF$209,8,0),"") -> 0 | AG15: =IFERROR(VLOOKUP(D15,$AR$13:$BF$209,9,0),"") -> 0 | AH15: =IFERROR(ROUND(P15/31*AO15,0),"") ->  | AI15: =IFERROR(ROUND(T15/31*AP15,0),"") ->  | AJ15: =IFERROR(VLOOKUP(D15,$AR$13:$BD$209,13,0),"") -> 1000 | AK15: =IFERROR(VLOOKUP(D15,$AR$13:$AS$209,2,0),"") -> 58 | AL15: =IFERROR(VLOOKUP(D15,$AR$13:$AAU$209,3,0),"") -> 10 | AM15: =IFERROR(VLOOKUP(D15,$AR$13:$AAV$209,4,0),"") -> 0 | AN15: =IFERROR(VLOOKUP(D15,$AR$13:$AAV$209,5,0),"") -> 0.1 | AO15: =IFERROR(VLOOKUP(D15,$AR$13:$AAV$109,6,0),"") ->  | AP15: =IFERROR(VLOOKUP(D15,$AR$13:$AAV$109,7,0),"") ->  | AQ15: 2017-03-01 | AR15: Mar-2017 | AS15: 4 | AV15: =AV14 -> 10% | AY15: 0 | AZ15: 0 | BA15: =IFERROR(ROUND(P15*AM15/100,0)+S15,0) -> 0 | BB15: PROBATION (L-3) | BC15: 750 | BF15: =IFERROR(ROUND(G15*AM15/100,0),0) -> 0 | BG15: 2021 | BH15: MAY | BI15: 05
B16: =IF(B15>=$J$7,"",(B15+1)) -> 2 | C16: =IFERROR(IF(AC16="","",IF(DATE(YEAR(AC16),MONTH(AC16),DAY(AC16))=DATE(YEAR($O$7),MONTH($O$7)+1,DAY($O$7)),"TOTAL",IF(AC16>$O$7,"",AC16))),"") -> 2025-12-01 | D16: =TEXT(C16,"mmm-yyyy") -> Dec-2025 | E16: =TEXT(D16,"mmm") -> Dec | F16: =IF(D17="","",IF($X$2=E16,"YES","NO")) -> NO | G16: =IF(D16="","",IF(F16="YES",MROUND(ROUND(1.03*P5,0),100),IF(D16="TOTAL",SUM($G$15:G15),$P$5))) -> 33800 | H16: =IF(D16="","",IF(D16="TOTAL",SUM($H$15:H15),(ROUND(G16*AK16/100,0)))) -> 19604 | I16: =IF(D16="","",IF(D16="TOTAL",SUM($I$15:I15),(ROUND(G16*AL16/100,0)))) -> 3380 | J16: =SUM(G16:I16) -> 56784 | L16: =IF(D16="","",IF(D16="TOTAL",SUM($L$15:L15),$P$4)) -> 23700 | M16: =IF(D16="","",IF(D16="TOTAL",SUM($M$15:M15),(ROUND(L16*AF16/100,0)))) -> 0 | N16: =IF(D16="","",IF(D16="TOTAL",SUM($N$15:N15),(ROUND(L16*AG16/100,0)))) -> 0 | O16: =IFERROR(SUM(L16:N16),"") -> 23700 | P16: 10100 | Q16: 19604 | R16: 3380 | T16: =IFERROR(SUM(P16:S16),"") -> 33084 | U16: =IF(D16="","",IF(D16="TOTAL",SUM($U$15:U15),IF($Z$5="REGULAR",BA16,AJ16+BF16))) -> 1000 | V16: =IF(D16="","",IF(D16="TOTAL",SUM($V$15:V15),(ROUND(T16*AN16,0)))) -> 3308 | W16: =IF(D16="","",IF(E16="mar",$Z$2,IF(D16="TOTAL",SUM($W$15:W15),W15))) ->  | X16: =IF(D16="","",IF(D16="TOTAL",SUM($X$15:X15),(SUM(AH17:AI17)))) -> 0 | Y16: =IFERROR(SUM(U16:X16),"") -> 4308 | Z16: =T16-Y16 -> 28776 | AC16: =IFERROR(DATE(YEAR(L8),MONTH(L8)+1,DAY(L8)),"") -> 2025-12-01 | AD16: =IFERROR(IF(AC16="","",IF(DATE(YEAR(AC16),MONTH(AC16),DAY(AC16))=DATE(YEAR($O$7),MONTH($O$7)+2,DAY($O$7)),"TOTAL",IF(AC16>$O$7,"",AC16))),"") -> 2025-12-01 | AF16: 0 | AG16: 0 | AJ16: =IFERROR(VLOOKUP(D16,$AR$13:$BD$209,13,0),"") -> 1000 | AK16: =IFERROR(VLOOKUP(D16,$AR$13:$AS$209,2,0),"") -> 58 | AL16: 10 | AM16: 0 | AN16: 0.1 | AQ16: 2017-04-01 | AR16: Apr-2017 | AS16: 4 | AV16: 10% | AY16: 0 | AZ16: 0 | BA16: 0 | BB16: PROBATION (L-4) | BC16: 750 | BF16: =IFERROR(ROUND(G16*AM16/100,0),0) -> 0 | BG16: 2022 | BH16: JUN | BI16: 06
B17: =IF(B16>=$J$7,"",(B16+1)) -> 3 | C17: =IFERROR(IF(AC17="","",IF(DATE(YEAR(AC17),MONTH(AC17),DAY(AC17))=DATE(YEAR($O$7),MONTH($O$7)+1,DAY($O$7)),"TOTAL",IF(AC17>$O$7,"",AC17))),"") -> 2026-01-01 | D17: =TEXT(C17,"mmm-yyyy") -> Jan-2026 | E17: Jan | F17: =IF(D18="","",IF($X$2=E17,"YES","NO")) -> NO | G17: =IF(D17="","",IF(F17="YES",MROUND(ROUND(1.03*G16,0),100),IF(D17="TOTAL",SUM($G$15:G16),G16))) -> 33800 | H17: =IF(D17="","",IF(D17="TOTAL",SUM($H$15:H16),(ROUND(G17*AK17/100,0)))) -> 19604 | I17: =IF(D17="","",IF(D17="TOTAL",SUM($I$15:I16),(ROUND(G17*AL17/100,0)))) -> 3380 | J17: 56784 | L17: =IF(D17="","",IF(D17="TOTAL",SUM($L$15:L16),$P$4)) -> 23700 | M17: =IF(D17="","",IF(D17="TOTAL",SUM($M$15:M16),(ROUND(L17*AF17/100,0)))) -> 0 | N17: =IF(D17="","",IF(D17="TOTAL",SUM($N$15:N16),(ROUND(L17*AG17/100,0)))) -> 0 | O17: 23700 | P17: 10100 | Q17: 19604 | R17: 3380 | T17: 33084 | U17: =IF(D17="","",IF(D17="TOTAL",SUM($U$15:U16),IF($Z$5="REGULAR",BA17,AJ17+BF17))) -> 1000 | V17: =IF(D17="","",IF(D17="TOTAL",SUM($V$15:V16),(ROUND(T17*AN17,0)))) -> 3308 | W17: =IF(D17="","",IF(E17="mar",$Z$2,IF(D17="TOTAL",SUM($W$15:W16),W16))) ->  | X17: =IF(D17="","",IF(D17="TOTAL",SUM($X$15:X16),(SUM(AH18:AI18)))) -> 0 | Y17: 4308 | Z17: 28776 | AC17: =IFERROR(DATE(YEAR(C16),MONTH(C16)+1,DAY(C16)),"") -> 2026-01-01 | AD17: =IFERROR(IF(AC17="","",IF(DATE(YEAR(AC17),MONTH(AC17),DAY(AC17))=DATE(YEAR($O$7),MONTH($O$7)+1,DAY($O$7)),"TOTAL",IF(AC17>$O$7,"",AC17))),"") -> 2026-01-01 | AF17: 0 | AG17: 0 | AJ17: 1000 | AK17: 58 | AL17: 10 | AM17: 0 | AN17: 0.1 | AQ17: 2017-05-01 | AR17: May-2017 | AS17: 4 | AV17: 10% | AY17: 0 | AZ17: 0 | BA17: 0 | BB17: PROBATION (L-5) | BC17: 750 | BF17: 0 | BG17: 2023 | BH17: JUL | BI17: 07
B18: =IF(B17>=$J$7,"",(B17+1)) -> 4 | C18: 2026-02-01 | D18: Feb-2026 | E18: Feb | F18: NO | G18: =IF(D18="","",IF(F18="YES",MROUND(ROUND(1.03*G17,0),100),IF(D18="TOTAL",SUM($G$15:G17),G17))) -> 33800 | H18: =IF(D18="","",IF(D18="TOTAL",SUM($H$15:H17),(ROUND(G18*AK18/100,0)))) -> 19604 | I18: =IF(D18="","",IF(D18="TOTAL",SUM($I$15:I17),(ROUND(G18*AL18/100,0)))) -> 3380 | J18: 56784 | L18: =IF(D18="","",IF(D18="TOTAL",SUM($L$15:L17),$P$4)) -> 23700 | M18: =IF(D18="","",IF(D18="TOTAL",SUM($M$15:M17),(ROUND(L18*AF18/100,0)))) -> 0 | N18: =IF(D18="","",IF(D18="TOTAL",SUM($N$15:N17),(ROUND(L18*AG18/100,0)))) -> 0 | O18: 23700 | P18: 10100 | Q18: 19604 | R18: 3380 | T18: 33084 | U18: =IF(D18="","",IF(D18="TOTAL",SUM($U$15:U17),IF($Z$5="REGULAR",BA18,AJ18+BF18))) -> 1000 | V18: =IF(D18="","",IF(D18="TOTAL",SUM($V$15:V17),(ROUND(T18*AN18,0)))) -> 3308 | W18: =IF(D18="","",IF(E18="mar",$Z$2,IF(D18="TOTAL",SUM($W$15:W17),W17))) ->  | X18: =IF(D18="","",IF(D18="TOTAL",SUM($X$15:X17),(SUM(AH19:AI19)))) -> 0 | Y18: 4308 | Z18: 28776 | AC18: =IFERROR(DATE(YEAR(C17),MONTH(C17)+1,DAY(C17)),"") -> 2026-02-01 | AD18: 2026-02-01 | AF18: 0 | AG18: 0 | AJ18: 1000 | AK18: 58 | AL18: 10 | AM18: 0 | AN18: 0.1 | AQ18: 2017-06-01 | AR18: Jun-2017 | AS18: 4 | AV18: 10% | AY18: 0 | AZ18: 0 | BA18: 0 | BB18: PROBATION (L-6) | BC18: 750 | BF18: 0 | BG18: 2024 | BH18: AUG | BI18: 08
B19: 5 | C19: 2026-03-01 | D19: Mar-2026 | E19: Mar | F19: NO | G19: =IF(D19="","",IF(F19="YES",MROUND(ROUND(1.03*G18,0),100),IF(D19="TOTAL",SUM($G$15:G18),G18))) -> 33800 | H19: =IF(D19="","",IF(D19="TOTAL",SUM($H$15:H18),(ROUND(G19*AK19/100,0)))) -> 19604 | I19: =IF(D19="","",IF(D19="TOTAL",SUM($I$15:I18),(ROUND(G19*AL19/100,0)))) -> 3380 | J19: 56784 | L19: =IF(D19="","",IF(D19="TOTAL",SUM($L$15:L18),$P$4)) -> 23700 | M19: =IF(D19="","",IF(D19="TOTAL",SUM($M$15:M18),(ROUND(L19*AF19/100,0)))) -> 0 | N19: =IF(D19="","",IF(D19="TOTAL",SUM($N$15:N18),(ROUND(L19*AG19/100,0)))) -> 0 | O19: 23700 | P19: 10100 | Q19: 19604 | R19: 3380 | T19: 33084 | U19: =IF(D19="","",IF(D19="TOTAL",SUM($U$15:U18),IF($Z$5="REGULAR",BA19,AJ19+BF19))) -> 1000 | V19: =IF(D19="","",IF(D19="TOTAL",SUM($V$15:V18),(ROUND(T19*AN19,0)))) -> 3308 | W19: =IF(D19="","",IF(E19="mar",$Z$2,IF(D19="TOTAL",SUM($W$15:W18),W18))) -> 0 | X19: =IF(D19="","",IF(D19="TOTAL",SUM($X$15:X18),(SUM(AH20:AI20)))) -> 0 | Y19: 4308 | Z19: 28776 | AC19: 2026-03-01 | AD19: 2026-03-01 | AF19: 0 | AG19: 0 | AJ19: 1000 | AK19: 58 | AL19: 10 | AM19: 0 | AN19: 0.1 | AQ19: 2017-07-01 | AR19: Jul-2017 | AS19: 5 | AV19: 10% | AY19: 0 | AZ19: 0 | BA19: 0 | BB19: PROBATION (L-7) | BC19: 750 | BF19: 0 | BG19: 2025 | BH19: SEP | BI19: 09
C20: TOTAL | D20: TOTAL | E20: TOTAL | G20: =IF(D20="","",IF(F20="YES",MROUND(ROUND(1.03*G19,0),100),IF(D20="TOTAL",SUM($G$15:G19),G19))) -> 163367 | H20: =IF(D20="","",IF(D20="TOTAL",SUM($H$15:H19),(ROUND(G20*AK20/100,0)))) -> 94753 | I20: =IF(D20="","",IF(D20="TOTAL",SUM($I$15:I19),(ROUND(G20*AL20/100,0)))) -> 16337 | J20: 274457 | L20: =IF(D20="","",IF(D20="TOTAL",SUM($L$15:L19),$P$4)) -> 114550 | M20: =IF(D20="","",IF(D20="TOTAL",SUM($M$15:M19),(ROUND(L20*AF20/100,0)))) -> 0 | N20: =IF(D20="","",IF(D20="TOTAL",SUM($N$15:N19),(ROUND(L20*AG20/100,0)))) -> 0 | O20: 114550 | P20: 48817 | Q20: 94753 | R20: 16337 | T20: 159907 | U20: =IF(D20="","",IF(D20="TOTAL",SUM($U$15:U19),IF($Z$5="REGULAR",BA20,AJ20+BF20))) -> 5000 | V20: =IF(D20="","",IF(D20="TOTAL",SUM($V$15:V19),(ROUND(T20*AN20,0)))) -> 15989 | W20: =IF(D20="","",IF(E20="mar",$Z$2,IF(D20="TOTAL",SUM($W$15:W19),W19))) -> 0 | X20: =IF(D20="","",IF(D20="TOTAL",SUM($X$15:X19),(SUM(AH21:AI21)))) -> 0 | Y20: 20989 | Z20: 138918 | AC20: 2026-04-01 | AD20: TOTAL | AQ20: 2017-08-01 | AR20: Aug-2017 | AS20: 5 | AV20: 10% | AY20: 0 | AZ20: 0 | BA20: 0 | BB20: PROBATION (L-8) | BC20: 825 | BF20: 0 | BG20: 2026 | BH20: OCT | BI20: 10
G21: =IF(D21="","",IF(F21="YES",MROUND(ROUND(1.03*G20,0),100),IF(D21="TOTAL",SUM($G$15:G20),G20))) ->  | H21: =IF(D21="","",IF(D21="TOTAL",SUM($H$15:H20),(ROUND(G21*AK21/100,0)))) ->  | I21: =IF(D21="","",IF(D21="TOTAL",SUM($I$15:I20),(ROUND(G21*AL21/100,0)))) ->  | J21: 0 | L21: =IF(D21="","",IF(D21="TOTAL",SUM($L$15:L20),$P$4)) ->  | M21: =IF(D21="","",IF(D21="TOTAL",SUM($M$15:M20),(ROUND(L21*AF21/100,0)))) ->  | N21: =IF(D21="","",IF(D21="TOTAL",SUM($N$15:N20),(ROUND(L21*AG21/100,0)))) ->  | O21: 0 | T21: 0 | U21: =IF(D21="","",IF(D21="TOTAL",SUM($U$15:U20),IF($Z$5="REGULAR",BA21,AJ21+BF21))) ->  | V21: =IF(D21="","",IF(D21="TOTAL",SUM($V$15:V20),(ROUND(T21*AN21,0)))) ->  | W21: =IF(D21="","",IF(E21="mar",$Z$2,IF(D21="TOTAL",SUM($W$15:W20),W20))) ->  | X21: =IF(D21="","",IF(D21="TOTAL",SUM($X$15:X20),(SUM(AH22:AI22)))) ->  | Y21: 0 | Z21: 0 | AQ21: 2017-09-01 | AR21: Sep-2017 | AS21: 5 | AV21: 10% | AY21: 0 | AZ21: 0 | BA21: 0 | BB21: PROBATION (L-9) | BC21: 1300 | BF21: 0 | BH21: NOV | BI21: 11
G22: =IF(D22="","",IF(F22="YES",MROUND(ROUND(1.03*G21,0),100),IF(D22="TOTAL",SUM($G$15:G21),G21))) ->  | H22: =IF(D22="","",IF(D22="TOTAL",SUM($H$15:H21),(ROUND(G22*AK22/100,0)))) ->  | I22: =IF(D22="","",IF(D22="TOTAL",SUM($I$15:I21),(ROUND(G22*AL22/100,0)))) ->  | J22: 0 | L22: =IF(D22="","",IF(D22="TOTAL",SUM($L$15:L21),$P$4)) ->  | M22: =IF(D22="","",IF(D22="TOTAL",SUM($M$15:M21),(ROUND(L22*AF22/100,0)))) ->  | N22: =IF(D22="","",IF(D22="TOTAL",SUM($N$15:N21),(ROUND(L22*AG22/100,0)))) ->  | O22: 0 | T22: 0 | U22: =IF(D22="","",IF(D22="TOTAL",SUM($U$15:U21),IF($Z$5="REGULAR",BA22,AJ22+BF22))) ->  | V22: =IF(D22="","",IF(D22="TOTAL",SUM($V$15:V21),(ROUND(T22*AN22,0)))) ->  | W22: =IF(D22="","",IF(E22="mar",$Z$2,IF(D22="TOTAL",SUM($W$15:W21),W21))) ->  | X22: =IF(D22="","",IF(D22="TOTAL",SUM($X$15:X21),(SUM(AH23:AI23)))) ->  | Y22: 0 | Z22: 0 | AQ22: 2017-10-01 | AR22: Oct-2017 | AS22: 5 | AT22: 8 | AV22: 10% | AY22: 0 | AZ22: 0 | BA22: 0 | BB22: PROBATION (L-10) | BC22: 1000 | BF22: 0 | BH22: DEC | BI22: 12
G23: =IF(D23="","",IF(F23="YES",MROUND(ROUND(1.03*G22,0),100),IF(D23="TOTAL",SUM($G$15:G22),G22))) ->  | H23: =IF(D23="","",IF(D23="TOTAL",SUM($H$15:H22),(ROUND(G23*AK23/100,0)))) ->  | I23: =IF(D23="","",IF(D23="TOTAL",SUM($I$15:I22),(ROUND(G23*AL23/100,0)))) ->  | J23: 0 | L23: =IF(D23="","",IF(D23="TOTAL",SUM($L$15:L22),$P$4)) ->  | M23: =IF(D23="","",IF(D23="TOTAL",SUM($M$15:M22),(ROUND(L23*AF23/100,0)))) ->  | N23: =IF(D23="","",IF(D23="TOTAL",SUM($N$15:N22),(ROUND(L23*AG23/100,0)))) ->  | O23: 0 | T23: 0 | U23: =IF(D23="","",IF(D23="TOTAL",SUM($U$15:U22),IF($Z$5="REGULAR",BA23,AJ23+BF23))) ->  | V23: =IF(D23="","",IF(D23="TOTAL",SUM($V$15:V22),(ROUND(T23*AN23,0)))) ->  | W23: =IF(D23="","",IF(E23="mar",$Z$2,IF(D23="TOTAL",SUM($W$15:W22),W22))) ->  | X23: =IF(D23="","",IF(D23="TOTAL",SUM($X$15:X22),(SUM(AH24:AI24)))) ->  | Y23: 0 | Z23: 0 | AQ23: 2017-11-01 | AR23: Nov-2017 | AS23: 5 | AT23: =AT22 -> 8 | AV23: 10% | AY23: 0 | AZ23: 0 | BA23: 0 | BB23: PROBATION (L-11) | BC23: 1000 | BF23: 0 | BI23: 13
G24: =IF(D24="","",IF(F24="YES",MROUND(ROUND(1.03*G23,0),100),IF(D24="TOTAL",SUM($G$15:G23),G23))) ->  | H24: =IF(D24="","",IF(D24="TOTAL",SUM($H$15:H23),(ROUND(G24*AK24/100,0)))) ->  | I24: =IF(D24="","",IF(D24="TOTAL",SUM($I$15:I23),(ROUND(G24*AL24/100,0)))) ->  | J24: 0 | L24: =IF(D24="","",IF(D24="TOTAL",SUM($L$15:L23),$P$4)) ->  | M24: =IF(D24="","",IF(D24="TOTAL",SUM($M$15:M23),(ROUND(L24*AF24/100,0)))) ->  | N24: =IF(D24="","",IF(D24="TOTAL",SUM($N$15:N23),(ROUND(L24*AG24/100,0)))) ->  | O24: 0 | T24: 0 | U24: =IF(D24="","",IF(D24="TOTAL",SUM($U$15:U23),IF($Z$5="REGULAR",BA24,AJ24+BF24))) ->  | V24: =IF(D24="","",IF(D24="TOTAL",SUM($V$15:V23),(ROUND(T24*AN24,0)))) ->  | W24: =IF(D24="","",IF(E24="mar",$Z$2,IF(D24="TOTAL",SUM($W$15:W23),W23))) ->  | X24: =IF(D24="","",IF(D24="TOTAL",SUM($X$15:X23),(SUM(AH25:AI25)))) ->  | Y24: 0 | Z24: 0 | AQ24: 2017-12-01 | AR24: Dec-2017 | AS24: 5 | AT24: 8 | AV24: 10% | AY24: 0 | AZ24: 0 | BA24: 0 | BB24: PROBATION (L-12) | BC24: 1450 | BF24: 0 | BI24: 14
G25: =IF(D25="","",IF(F25="YES",MROUND(ROUND(1.03*G24,0),100),IF(D25="TOTAL",SUM($G$15:G24),G24))) ->  | H25: =IF(D25="","",IF(D25="TOTAL",SUM($H$15:H24),(ROUND(G25*AK25/100,0)))) ->  | I25: =IF(D25="","",IF(D25="TOTAL",SUM($I$15:I24),(ROUND(G25*AL25/100,0)))) ->  | J25: 0 | L25: =IF(D25="","",IF(D25="TOTAL",SUM($L$15:L24),$P$4)) ->  | M25: =IF(D25="","",IF(D25="TOTAL",SUM($M$15:M24),(ROUND(L25*AF25/100,0)))) ->  | N25: =IF(D25="","",IF(D25="TOTAL",SUM($N$15:N24),(ROUND(L25*AG25/100,0)))) ->  | O25: 0 | T25: 0 | U25: =IF(D25="","",IF(D25="TOTAL",SUM($U$15:U24),IF($Z$5="REGULAR",BA25,AJ25+BF25))) ->  | V25: =IF(D25="","",IF(D25="TOTAL",SUM($V$15:V24),(ROUND(T25*AN25,0)))) ->  | W25: =IF(D25="","",IF(E25="mar",$Z$2,IF(D25="TOTAL",SUM($W$15:W24),W24))) ->  | X25: =IF(D25="","",IF(D25="TOTAL",SUM($X$15:X24),(SUM(AH26:AI26)))) ->  | Y25: 0 | Z25: 0 | AQ25: 2018-01-01 | AR25: Jan-2018 | AS25: 7 | AT25: 8 | AV25: 10% | AY25: 0 | AZ25: 0 | BA25: 0 | BF25: 0 | BI25: 15
G26: =IF(D26="","",IF(F26="YES",MROUND(ROUND(1.03*G25,0),100),IF(D26="TOTAL",SUM($G$15:G25),G25))) ->  | H26: =IF(D26="","",IF(D26="TOTAL",SUM($H$15:H25),(ROUND(G26*AK26/100,0)))) ->  | I26: =IF(D26="","",IF(D26="TOTAL",SUM($I$15:I25),(ROUND(G26*AL26/100,0)))) ->  | J26: 0 | L26: =IF(D26="","",IF(D26="TOTAL",SUM($L$15:L25),$P$4)) ->  | M26: =IF(D26="","",IF(D26="TOTAL",SUM($M$15:M25),(ROUND(L26*AF26/100,0)))) ->  | N26: =IF(D26="","",IF(D26="TOTAL",SUM($N$15:N25),(ROUND(L26*AG26/100,0)))) ->  | O26: 0 | T26: 0 | U26: =IF(D26="","",IF(D26="TOTAL",SUM($U$15:U25),IF($Z$5="REGULAR",BA26,AJ26+BF26))) ->  | V26: =IF(D26="","",IF(D26="TOTAL",SUM($V$15:V25),(ROUND(T26*AN26,0)))) ->  | W26: =IF(D26="","",IF(E26="mar",$Z$2,IF(D26="TOTAL",SUM($W$15:W25),W25))) ->  | X26: =IF(D26="","",IF(D26="TOTAL",SUM($X$15:X25),(SUM(AH27:AI27)))) ->  | Y26: 0 | Z26: 0 | AQ26: 2018-02-01 | AR26: Feb-2018 | AS26: 7 | AT26: 8 | AV26: 10% | AY26: 0 | AZ26: 0 | BA26: 0 | BF26: 0 | BI26: 16
G27: =IF(D27="","",IF(F27="YES",MROUND(ROUND(1.03*G26,0),100),IF(D27="TOTAL",SUM($G$15:G26),G26))) ->  | H27: =IF(D27="","",IF(D27="TOTAL",SUM($H$15:H26),(ROUND(G27*AK27/100,0)))) ->  | I27: =IF(D27="","",IF(D27="TOTAL",SUM($I$15:I26),(ROUND(G27*AL27/100,0)))) ->  | J27: 0 | L27: =IF(D27="","",IF(D27="TOTAL",SUM($L$15:L26),$P$4)) ->  | M27: =IF(D27="","",IF(D27="TOTAL",SUM($M$15:M26),(ROUND(L27*AF27/100,0)))) ->  | N27: =IF(D27="","",IF(D27="TOTAL",SUM($N$15:N26),(ROUND(L27*AG27/100,0)))) ->  | O27: 0 | T27: 0 | U27: =IF(D27="","",IF(D27="TOTAL",SUM($U$15:U26),IF($Z$5="REGULAR",BA27,AJ27+BF27))) ->  | V27: =IF(D27="","",IF(D27="TOTAL",SUM($V$15:V26),(ROUND(T27*AN27,0)))) ->  | W27: =IF(D27="","",IF(E27="mar",$Z$2,IF(D27="TOTAL",SUM($W$15:W26),W26))) ->  | X27: =IF(D27="","",IF(D27="TOTAL",SUM($X$15:X26),(SUM(AH28:AI28)))) ->  | Y27: 0 | Z27: 0 | AQ27: 2018-03-01 | AR27: Mar-2018 | AS27: 7 | AT27: 8 | AV27: 10% | AY27: 0 | AZ27: 0 | BA27: 0 | BF27: 0 | BI27: 17
G28: =IF(D28="","",IF(F28="YES",MROUND(ROUND(1.03*G27,0),100),IF(D28="TOTAL",SUM($G$15:G27),G27))) ->  | H28: =IF(D28="","",IF(D28="TOTAL",SUM($H$15:H27),(ROUND(G28*AK28/100,0)))) ->  | I28: =IF(D28="","",IF(D28="TOTAL",SUM($I$15:I27),(ROUND(G28*AL28/100,0)))) ->  | J28: 0 | L28: =IF(D28="","",IF(D28="TOTAL",SUM($L$15:L27),$P$4)) ->  | M28: =IF(D28="","",IF(D28="TOTAL",SUM($M$15:M27),(ROUND(L28*AF28/100,0)))) ->  | N28: =IF(D28="","",IF(D28="TOTAL",SUM($N$15:N27),(ROUND(L28*AG28/100,0)))) ->  | O28: 0 | T28: 0 | U28: =IF(D28="","",IF(D28="TOTAL",SUM($U$15:U27),IF($Z$5="REGULAR",BA28,AJ28+BF28))) ->  | V28: =IF(D28="","",IF(D28="TOTAL",SUM($V$15:V27),(ROUND(T28*AN28,0)))) ->  | W28: =IF(D28="","",IF(E28="mar",$Z$2,IF(D28="TOTAL",SUM($W$15:W27),W27))) ->  | X28: =IF(D28="","",IF(D28="TOTAL",SUM($X$15:X27),(SUM(AH29:AI29)))) ->  | Y28: 0 | Z28: 0 | AQ28: 2018-04-01 | AR28: Apr-2018 | AS28: 7 | AT28: 8 | AV28: 10% | AY28: 0 | AZ28: 0 | BA28: 0 | BF28: 0 | BI28: 18
G29: =IF(D29="","",IF(F29="YES",MROUND(ROUND(1.03*G28,0),100),IF(D29="TOTAL",SUM($G$15:G28),G28))) ->  | H29: =IF(D29="","",IF(D29="TOTAL",SUM($H$15:H28),(ROUND(G29*AK29/100,0)))) ->  | I29: =IF(D29="","",IF(D29="TOTAL",SUM($I$15:I28),(ROUND(G29*AL29/100,0)))) ->  | J29: 0 | L29: =IF(D29="","",IF(D29="TOTAL",SUM($L$15:L28),$P$4)) ->  | M29: =IF(D29="","",IF(D29="TOTAL",SUM($M$15:M28),(ROUND(L29*AF29/100,0)))) ->  | N29: =IF(D29="","",IF(D29="TOTAL",SUM($N$15:N28),(ROUND(L29*AG29/100,0)))) ->  | O29: 0 | T29: 0 | U29: =IF(D29="","",IF(D29="TOTAL",SUM($U$15:U28),IF($Z$5="REGULAR",BA29,AJ29+BF29))) ->  | V29: =IF(D29="","",IF(D29="TOTAL",SUM($V$15:V28),(ROUND(T29*AN29,0)))) ->  | W29: =IF(D29="","",IF(E29="mar",$Z$2,IF(D29="TOTAL",SUM($W$15:W28),W28))) ->  | X29: =IF(D29="","",IF(D29="TOTAL",SUM($X$15:X28),(SUM(AH30:AI30)))) ->  | Y29: 0 | Z29: 0 | AQ29: 2018-05-01 | AR29: May-2018 | AS29: 7 | AT29: 8 | AV29: 10% | AY29: 0 | AZ29: 0 | BA29: 0 | BF29: 0 | BI29: 19
G30: =IF(D30="","",IF(F30="YES",MROUND(ROUND(1.03*G29,0),100),IF(D30="TOTAL",SUM($G$15:G29),G29))) ->  | H30: =IF(D30="","",IF(D30="TOTAL",SUM($H$15:H29),(ROUND(G30*AK30/100,0)))) ->  | I30: =IF(D30="","",IF(D30="TOTAL",SUM($I$15:I29),(ROUND(G30*AL30/100,0)))) ->  | J30: 0 | L30: =IF(D30="","",IF(D30="TOTAL",SUM($L$15:L29),$P$4)) ->  | M30: =IF(D30="","",IF(D30="TOTAL",SUM($M$15:M29),(ROUND(L30*AF30/100,0)))) ->  | N30: =IF(D30="","",IF(D30="TOTAL",SUM($N$15:N29),(ROUND(L30*AG30/100,0)))) ->  | O30: 0 | T30: 0 | U30: =IF(D30="","",IF(D30="TOTAL",SUM($U$15:U29),IF($Z$5="REGULAR",BA30,AJ30+BF30))) ->  | V30: =IF(D30="","",IF(D30="TOTAL",SUM($V$15:V29),(ROUND(T30*AN30,0)))) ->  | W30: =IF(D30="","",IF(E30="mar",$Z$2,IF(D30="TOTAL",SUM($W$15:W29),W29))) ->  | X30: =IF(D30="","",IF(D30="TOTAL",SUM($X$15:X29),(SUM(AH31:AI31)))) ->  | Y30: 0 | Z30: 0 | AQ30: 2018-06-01 | AR30: Jun-2018 | AS30: 7 | AT30: 8 | AV30: 10% | AY30: 0 | AZ30: 0 | BA30: 0 | BF30: 0 | BI30: 20
C31: =IFERROR(IF(AC31="","",IF(DATE(YEAR(AC31),MONTH(AC31),DAY(AC31))=DATE(YEAR($O$7),MONTH($O$7)+1,DAY($O$7)),"TOTAL",IF(AC31>$O$7,"",AC31))),"") ->  | G31: =IF(D31="","",IF(F31="YES",MROUND(ROUND(1.03*G30,0),100),IF(D31="TOTAL",SUM($G$15:G30),G30))) ->  | H31: =IF(D31="","",IF(D31="TOTAL",SUM($H$15:H30),(ROUND(G31*AK31/100,0)))) ->  | I31: =IF(D31="","",IF(D31="TOTAL",SUM($I$15:I30),(ROUND(G31*AL31/100,0)))) ->  | J31: 0 | L31: =IF(D31="","",IF(D31="TOTAL",SUM($L$15:L30),$P$4)) ->  | M31: =IF(D31="","",IF(D31="TOTAL",SUM($M$15:M30),(ROUND(L31*AF31/100,0)))) ->  | N31: =IF(D31="","",IF(D31="TOTAL",SUM($N$15:N30),(ROUND(L31*AG31/100,0)))) ->  | O31: 0 | T31: 0 | U31: =IF(D31="","",IF(D31="TOTAL",SUM($U$15:U30),IF($Z$5="REGULAR",BA31,AJ31+BF31))) ->  | V31: =IF(D31="","",IF(D31="TOTAL",SUM($V$15:V30),(ROUND(T31*AN31,0)))) ->  | W31: =IF(D31="","",IF(E31="mar",$Z$2,IF(D31="TOTAL",SUM($W$15:W30),W30))) ->  | X31: =IF(D31="","",IF(D31="TOTAL",SUM($X$15:X30),(SUM(AH32:AI32)))) ->  | Y31: 0 | Z31: 0 | AQ31: 2018-07-01 | AR31: Jul-2018 | AS31: 9 | AT31: 8 | AV31: 10% | AY31: 0 | AZ31: 0 | BA31: 0 | BF31: 0 | BI31: 21
G32: =IF(D32="","",IF(F32="YES",MROUND(ROUND(1.03*G31,0),100),IF(D32="TOTAL",SUM($G$15:G31),G31))) ->  | H32: =IF(D32="","",IF(D32="TOTAL",SUM($H$15:H31),(ROUND(G32*AK32/100,0)))) ->  | I32: =IF(D32="","",IF(D32="TOTAL",SUM($I$15:I31),(ROUND(G32*AL32/100,0)))) ->  | J32: 0 | L32: =IF(D32="","",IF(D32="TOTAL",SUM($L$15:L31),$P$4)) ->  | M32: =IF(D32="","",IF(D32="TOTAL",SUM($M$15:M31),(ROUND(L32*AF32/100,0)))) ->  | N32: =IF(D32="","",IF(D32="TOTAL",SUM($N$15:N31),(ROUND(L32*AG32/100,0)))) ->  | O32: 0 | T32: 0 | U32: =IF(D32="","",IF(D32="TOTAL",SUM($U$15:U31),IF($Z$5="REGULAR",BA32,AJ32+BF32))) ->  | V32: =IF(D32="","",IF(D32="TOTAL",SUM($V$15:V31),(ROUND(T32*AN32,0)))) ->  | W32: =IF(D32="","",IF(E32="mar",$Z$2,IF(D32="TOTAL",SUM($W$15:W31),W31))) ->  | X32: =IF(D32="","",IF(D32="TOTAL",SUM($X$15:X31),(SUM(AH33:AI33)))) ->  | Y32: 0 | Z32: 0 | AQ32: 2018-08-01 | AR32: Aug-2018 | AS32: 9 | AT32: 8 | AV32: 10% | AY32: 0 | AZ32: 0 | BA32: 0 | BF32: 0 | BI32: 22
